Workbook

Sheet SCFI Weekly Figures
A3: SCFI Weekly trend
A6: Date | B6: Europe (Base port) | C6: Europe Average by Month | D6: Mediterranean (Base port) | E6: Mediterranean Average by Month | F6: USWC (Base port) /FEU right axes | G6: USWC Average by Month | H6: USEC (Base port)/FEU right axes | I6: USEC Average by Month | J6: Persian Gulf and Red Sea (Dubai) | K6: Persian Gulf and Red Sea Average by Month | L6: Austrlia/ New Zealand (Melbourne) | M6: Australia/ NZ Average by Month | N6: East/West Africa (Lagos) | O6: East West Africa Average by Month | P6: South Africa (Duban) | Q6: South Africa Average by Month | R6: South America (Santos) | S6: South America Average by Month | T6: West Japan (Base port) | U6: West Japan Average by Month | V6: East Japan (Base port) | W6: East Japan Average by Month | X6: Southeast Asia (Singapore) | Y6: Southeast Asia Average by Month | Z6: Korea (Pusan) | AA6: Korea Average by Month | AB6: Central/South America West Coast (Manzanillo) | AC6: Central/South America West Coast (Manzanillo) Average by Month | AD6: East Africa (Mombasa) | AE6: East Africa (Mombasa) Average by Month
B7: USD/TEU | D7: USD/TEU | F7: USD/FEU | H7: USD/FEU | J7: USD/TEU | L7: USD/TEU | N7: USD/TEU | P7: USD/TEU | R7: USD/TEU | T7: USD/TEU | V7: USD/TEU | X7: USD/TEU | Z7: USD/TEU | AB7: USD/TEU | AD7: USD/TEU
A8: 2016-01-08 | B8: 932 | D8: 1022 | F8: 1498 | H8: 2542 | J8: 462 | L8: 743 | N8: 1470 | P8: 523 | R8: 278 | T8: 102 | V8: 110 | X8: 95 | Z8: 108
A9: 2016-01-15 | B9: 740 | D9: 869 | F9: 1417 | H9: 2457 | J9: 385 | L9: 640 | N9: 1431 | P9: 549 | R9: 203 | T9: 119 | V9: 130 | X9: 93 | Z9: 109
A10: 2016-01-22 | B10: 545 | D10: 629 | F10: 1377 | H10: 2420 | J10: 306 | L10: 563 | N10: 1358 | P10: 530 | R10: 155 | T10: 137 | V10: 146 | X10: 88 | Z10: 124
A11: 2016-01-29 | B11: 469 | C11: =AVERAGE(B8:B11) -> 671.5 | D11: 488 | E11: =AVERAGE(D8:D11) -> 752 | F11: 1388 | G11: =AVERAGE(F8:F11) -> 1420 | H11: 2466 | I11: =AVERAGE(H8:H11) -> 2471.25 | J11: 278 | K11: =AVERAGE(J8:J11) -> 357.75 | L11: 525 | M11: =AVERAGE(L8:L11) -> 617.75 | N11: 1321 | O11: =AVERAGE(N8:N11) -> 1395 | P11: 502 | Q11: =AVERAGE(P8:P11) -> 526 | R11: 137 | S11: =AVERAGE(R8:R11) -> 193.25 | T11: 143 | U11: =AVERAGE(T8:T11) -> 125.25 | V11: 154 | W11: =AVERAGE(V8:V11) -> 135 | X11: 84 | Y11: =AVERAGE(X8:X11) -> 90 | Z11: 125 | AA11: =AVERAGE(Z8:Z11) -> 116.5
A12: 2016-02-05 | B12: 431 | D12: 454 | F12: 1321 | H12: 2341 | J12: 276 | L12: 479 | N12: 1301 | P12: 493 | R12: 113 | T12: 144 | V12: 155 | X12: 83 | Z12: 125
A13: 2016-02-12
A14: 2016-02-19 | B14: 332 | D14: 344 | F14: 1070 | H14: 2074 | J14: 261 | L14: 440 | N14: 1249 | P14: 469 | R14: 99 | T14: 126 | V14: 131 | X14: 83 | Z14: 125
A15: 2016-02-26 | B15: 257 | C15: =SUM(B12:B15)/3 -> 340 | D15: 266 | E15: =SUM(D12:D15)/3 -> 354.6666667 | F15: 1005 | G15: =SUM(F12:F15)/3 -> 1132 | H15: 1983 | I15: =SUM(H12:H15)/3 -> 2132.666667 | J15: 266 | K15: =SUM(J12:J15)/3 -> 267.6666667 | L15: 400 | M15: =SUM(L12:L15)/3 -> 439.6666667 | N15: 1197 | O15: =SUM(N12:N15)/3 -> 1249 | P15: 460 | Q15: =SUM(P12:P15)/3 -> 474 | R15: 817 | S15: =SUM(R12:R15)/3 -> 343 | T15: 138 | U15: =SUM(T12:T15)/3 -> 136 | V15: 151 | W15: =SUM(V12:V15)/3 -> 145.6666667 | X15: 84 | Y15: =SUM(X12:X15)/3 -> 83.33333333 | Z15: 125 | AA15: =SUM(Z12:Z15)/3 -> 125
A16: 2016-03-04 | B16: 231 | D16: 236 | F16: 884 | H16: 1804 | J16: 247 | L16: 382 | N16: 1148 | P16: 429 | R16: 633 | T16: 140 | V16: 156 | X16: 83 | Z16: 125
A17: 2016-03-11 | B17: 211 | D17: 203 | F17: 810 | H17: 1710 | J17: 211 | L17: 362 | N17: 1068 | P17: 385 | R17: 472 | T17: 143 | V17: 153 | X17: 83 | Z17: 107
A18: 2016-03-18 | B18: 205 | D18: 195 | F18: 761 | H18: 1659 | J18: 315 | L18: 336 | N18: 995 | P18: 369 | R18: 332 | T18: 152 | V18: 166 | X18: 58 | Z18: 105
A19: 2016-03-25 | B19: 247 | C19: =AVERAGE(B16:B19) -> 223.5 | D19: 248 | E19: =AVERAGE(D16:D19) -> 220.5 | F19: 748 | G19: =AVERAGE(F16:F19) -> 800.75 | H19: 1651 | I19: =AVERAGE(H16:H19) -> 1706 | J19: 346 | K19: =AVERAGE(J16:J19) -> 279.75 | L19: 332 | M19: =AVERAGE(L16:L19) -> 353 | N19: 966 | O19: =AVERAGE(N16:N19) -> 1044.25 | P19: 362 | Q19: =AVERAGE(P16:P19) -> 386.25 | R19: 442 | S19: =AVERAGE(R16:R19) -> 469.75 | T19: 180 | U19: =AVERAGE(T16:T19) -> 153.75 | V19: 180 | W19: =AVERAGE(V16:V19) -> 163.75 | X19: 57 | Y19: =AVERAGE(X16:X19) -> 70.25 | Z19: 96 | AA19: =AVERAGE(Z16:Z19) -> 108.25
A20: 2016-04-01 | B20: 339 | D20: 507 | F20: 922 | H20: 1787 | J20: 511 | L20: 465 | N20: 982 | P20: 350 | R20: 674 | T20: 193 | V20: 191 | X20: 56 | Z20: 95
A21: 2016-04-08 | B21: 291 | D21: 438 | F21: 849 | H21: 1732 | J21: 558 | L21: 430 | N21: 908 | P21: 335 | R21: 505 | T21: 200 | V21: 193 | X21: 58 | Z21: 95
A22: 2016-04-15 | B22: 271 | D22: 409 | F22: 770 | H22: 1648 | J22: 561 | L22: 377 | N22: 888 | P22: 318 | R22: 730 | T22: 201 | V22: 194 | X22: 58 | Z22: 104
A23: 2016-04-22 | B23: 271 | D23: 397 | F23: 725 | H23: 1599 | J23: 521 | L23: 342 | N23: 841 | P23: 317 | R23: 649 | T23: 201 | V23: 194 | X23: 58 | Z23: 115
A24: 2016-04-29 | B24: 732 | C24: =AVERAGE(B20:B24) -> 380.8 | D24: 944 | E24: =AVERAGE(D20:D24) -> 539 | F24: 857 | G24: =AVERAGE(F20:F24) -> 824.6 | H24: 1694 | I24: =AVERAGE(H20:H24) -> 1692 | J24: 536 | K24: =AVERAGE(J20:J24) -> 537.4 | L24: 354 | M24: =AVERAGE(L20:L24) -> 393.6 | N24: 1254 | O24: =AVERAGE(N20:N24) -> 974.6 | P24: 307 | Q24: =AVERAGE(P20:P24) -> 325.4 | R24: 887 | S24: =AVERAGE(R20:R24) -> 689 | T24: 196 | U24: =AVERAGE(T20:T24) -> 198.2 | V24: 192 | W24: =AVERAGE(V20:V24) -> 192.8 | X24: 58 | Y24: =AVERAGE(X20:X24) -> 57.6 | Z24: 115 | AA24: =AVERAGE(Z20:Z24) -> 104.8
A25: 2016-05-06 | B25: 636 | D25: 873 | F25: 863 | H25: 1683 | J25: 491 | L25: 385 | N25: 1247 | P25: 308 | R25: 925 | T25: 201 | V25: 194 | X25: 59 | Z25: 105
A26: 2016-05-13 | B26: 606 | D26: 869 | F26: 818 | H26: 1619 | J26: 407 | L26: 442 | N26: 1232 | P26: 333 | R26: 1259 | T26: 199 | V26: 193 | X26: 59 | Z26: 103
A27: 2016-05-20 | B27: 527 | D27: 754 | F27: 753 | H27: 1547 | J27: 386 | L27: 397 | N27: 1214 | P27: 345 | R27: 1303 | T27: 199 | V27: 192 | X27: 59 | Z27: 103
A28: 2016-05-27 | B28: 720 | C28: =AVERAGE(B25:B28) -> 622.25 | D28: 918 | E28: =AVERAGE(D25:D28) -> 853.5 | F28: 788 | G28: =AVERAGE(F25:F28) -> 805.5 | H28: 1622 | I28: =AVERAGE(H25:H28) -> 1617.75 | J28: 361 | K28: =AVERAGE(J25:J28) -> 411.25 | L28: 381 | M28: =AVERAGE(L25:L28) -> 401.25 | N28: 1181 | O28: =AVERAGE(N25:N28) -> 1218.5 | P28: 341 | Q28: =AVERAGE(P25:P28) -> 331.75 | R28: 1698 | S28: =AVERAGE(R25:R28) -> 1296.25 | T28: 197 | U28: =AVERAGE(T25:T28) -> 199 | V28: 191 | W28: =AVERAGE(V25:V28) -> 192.5 | X28: 61 | Y28: =AVERAGE(X25:X28) -> 59.5 | Z28: 105 | AA28: =AVERAGE(Z25:Z28) -> 104
A29: 2016-06-03 | B29: 761 | D29: 889 | F29: 852 | H29: 1685 | J29: 336 | L29: 345 | N29: 1041 | P29: 346 | R29: 1911 | T29: 194 | V29: 188 | X29: 62 | Z29: 105
A30: 2016-06-10 | B30: 657 | D30: 788 | F30: 811 | H30: 1649 | J30: 356 | L30: 321 | N30: 1028 | P30: 336 | R30: 1894 | T30: 193 | V30: 187 | X30: 62 | Z30: 105
A31: 2016-06-17 | B31: 540 | D31: 660 | F31: 770 | H31: 1528 | J31: 358 | L31: 305 | N31: 982 | P31: 330 | R31: 2399 | T31: 191 | V31: 186 | X31: 60 | Z31: 100
A32: 2016-06-24 | B32: 680 | C32: =AVERAGE(B29:B32) -> 659.5 | D32: 776 | E32: =AVERAGE(D29:D32) -> 778.25 | F32: 753 | G32: =AVERAGE(F29:F32) -> 796.5 | H32: 1496 | I32: =AVERAGE(H29:H32) -> 1589.5 | J32: 361 | K32: =AVERAGE(J29:J32) -> 352.75 | L32: 315 | M32: =AVERAGE(L29:L32) -> 321.5 | N32: 909 | O32: =AVERAGE(N29:N32) -> 990 | P32: 326 | Q32: =AVERAGE(P29:P32) -> 334.5 | R32: 2389 | S32: =AVERAGE(R29:R32) -> 2148.25 | T32: 190 | U32: =AVERAGE(T29:T32) -> 192 | V32: 184 | W32: =AVERAGE(V29:V32) -> 186.25 | X32: 56 | Y32: =AVERAGE(X29:X32) -> 60 | Z32: 113 | AA32: =AVERAGE(Z29:Z32) -> 105.75
A33: 2016-07-01 | B33: 1206 | D33: 1172 | F33: 1209 | H33: 1785 | J33: 401 | L33: 414 | N33: 1242 | P33: 325 | R33: 2543 | T33: 190 | V33: 184 | X33: 56 | Z33: 109
A34: 2016-07-08 | B34: 932 | D34: 951 | F34: 1166 | H34: 1727 | J34: 387 | L34: 418 | N34: 1201 | P34: 319 | R34: 2291 | T34: 189 | V34: 184 | X34: 55 | Z34: 108
A35: 2016-07-15 | B35: 776 | D35: 758 | F35: 1421 | H35: 1871 | J35: 320 | L35: 373 | N35: 1082 | P35: 311 | R35: 2626 | T35: 190 | V35: 185 | X35: 55 | Z35: 107
A36: 2016-07-22 | B36: 713 | D36: 664 | F36: 1296 | H36: 1744 | J36: 305 | L36: 364 | N36: 1072 | P36: 308 | R36: 2544 | T36: 190 | V36: 185 | X36: 56 | Z36: 107
A37: 2016-07-29 | B37: 1125 | C37: =AVERAGE(B33:B37) -> 950.4 | D37: 1004 | E37: =AVERAGE(D33:D37) -> 909.8 | F37: 1322 | G37: =AVERAGE(F33:F37) -> 1282.8 | H37: 1958 | I37: =AVERAGE(H33:H37) -> 1817 | J37: 308 | K37: =AVERAGE(J33:J37) -> 344.2 | L37: 410 | M37: =AVERAGE(L33:L37) -> 395.8 | N37: 1266 | O37: =AVERAGE(N33:N37) -> 1172.6 | P37: 643 | Q37: =AVERAGE(P33:P37) -> 381.2 | R37: 2723 | S37: =AVERAGE(R33:R37) -> 2545.4 | T37: 193 | U37: =AVERAGE(T33:T37) -> 190.4 | V37: 187 | W37: =AVERAGE(V33:V37) -> 185 | X37: 54 | Y37: =AVERAGE(X33:X37) -> 55.2 | Z37: 109 | AA37: =AVERAGE(Z33:Z37) -> 108
A38: 2016-08-05 | B38: 861 | D38: 865 | F38: 1277 | H38: 1884 | J38: 277 | L38: 367 | N38: 1333 | P38: 700 | R38: 2774 | T38: 195 | V38: 189 | X38: 53 | Z38: 107
A39: 2016-08-12 | B39: 771 | D39: 699 | F39: 1225 | H39: 1768 | J39: 248 | L39: 343 | N39: 1224 | P39: 661 | R39: 2718 | T39: 194 | V39: 188 | X39: 53 | Z39: 103
A40: 2016-08-19 | B40: 691 | D40: 594 | F40: 1159 | H40: 1694 | J40: 230 | L40: 337 | N40: 1083 | P40: 658 | R40: 2832 | T40: 195 | V40: 188 | X40: 54 | Z40: 88
A41: 2016-08-26 | B41: 695 | C41: =AVERAGE(B38:B41) -> 754.5 | D41: 553 | E41: =AVERAGE(D38:D41) -> 677.75 | F41: 1153 | G41: =AVERAGE(F38:F41) -> 1203.5 | H41: 1684 | I41: =AVERAGE(H38:H41) -> 1757.5 | J41: 247 | K41: =AVERAGE(J38:J41) -> 250.5 | L41: 361 | M41: =AVERAGE(L38:L41) -> 352 | N41: 1030 | O41: =AVERAGE(N38:N41) -> 1167.5 | P41: 740 | Q41: =AVERAGE(P38:P41) -> 689.75 | R41: 2711 | S41: =AVERAGE(R38:R41) -> 2758.75 | T41: 196 | U41: =AVERAGE(T38:T41) -> 195 | V41: 190 | W41: =AVERAGE(V38:V41) -> 188.75 | X41: 54 | Y41: =AVERAGE(X38:X41) -> 53.5 | Z41: 87 | AA41: =AVERAGE(Z38:Z41) -> 96.25
A42: 2016-09-02 | B42: 949 | D42: 519 | F42: 1746 | H42: 2441 | J42: 317 | L42: 497 | N42: 1419 | P42: 812 | R42: 2871 | T42: 200 | V42: 193 | X42: 54 | Z42: 87
A43: 2016-09-09 | B43: 943 | D43: 702 | F43: 1749 | H43: 2447 | J43: 414 | L43: 516 | N43: 1173 | P43: 838 | R43: 2351 | T43: 202 | V43: 196 | X43: 53 | Z43: 86
A44: 2016-09-14 | B44: 966 | D44: 860 | F44: 1742 | H44: 2447 | J44: 401 | L44: 519 | N44: 1166 | P44: 901 | R44: 2159 | T44: 203 | V44: 196 | X44: 53 | Z44: 88
A45: 2016-09-23 | B45: 764 | D45: 667 | F45: 1726 | H45: 2433 | J45: 374 | L45: 523 | N45: 1101 | P45: 944 | R45: 1613 | T45: 201 | V45: 196 | X45: 53 | Z45: 88
A46: 2016-09-30 | B46: 699 | C46: =AVERAGE(B42:B46) -> 864.2 | D46: 583 | E46: =AVERAGE(D42:D46) -> 666.2 | F46: 1686 | G46: =AVERAGE(F42:F46) -> 1729.8 | H46: 2416 | I46: =AVERAGE(H42:H46) -> 2436.8 | J46: 371 | K46: =AVERAGE(J42:J46) -> 375.4 | L46: 516 | M46: =AVERAGE(L42:L46) -> 514.2 | N46: 1037 | O46: =AVERAGE(N42:N46) -> 1179.2 | P46: 909 | Q46: =AVERAGE(P42:P46) -> 880.8 | R46: 1427 | S46: =AVERAGE(R42:R46) -> 2084.2 | T46: 202 | U46: =AVERAGE(T42:T46) -> 201.6 | V46: 198 | W46: =AVERAGE(V42:V46) -> 195.8 | X46: 53 | Y46: =AVERAGE(X42:X46) -> 53.2 | Z46: 95 | AA46: =AVERAGE(Z42:Z46) -> 88.8
A47: 2016-10-07
A48: 2016-10-14 | B48: 755 | D48: 565 | F48: 1914 | H48: 2563 | J48: 420 | L48: 833 | N48: 942 | P48: 891 | R48: 2239 | T48: 202 | V48: 197 | X48: 58 | Z48: 94
A49: 2016-10-21 | B49: 761 | D49: 558 | F49: 1917 | H49: 2565 | J49: 595 | L49: 856 | N49: 903 | P49: 900 | R49: 2219 | T49: 203 | V49: 198 | X49: 59 | Z49: 95
A50: 2016-10-28 | B50: 958 | C50: =AVERAGE(B47:B50) -> 824.6666667 | D50: 788 | E50: =AVERAGE(D47:D50) -> 637 | F50: 2034 | G50: =AVERAGE(F47:F50) -> 1955 | H50: 2836 | I50: =AVERAGE(H47:H50) -> 2654.666667 | J50: 579 | K50: =AVERAGE(J47:J50) -> 531.3333333 | L50: 878 | M50: =AVERAGE(L47:L50) -> 855.6666667 | N50: 1190 | O50: =AVERAGE(N47:N50) -> 1011.666667 | P50: 930 | Q50: =AVERAGE(P47:P50) -> 907 | R50: 2719 | S50: =AVERAGE(R47:R50) -> 2392.333333 | T50: 210 | U50: =AVERAGE(T47:T50) -> 205 | V50: 205 | W50: =AVERAGE(V47:V50) -> 200 | X50: 71 | Y50: =AVERAGE(X47:X50) -> 62.66666667 | Z50: 95 | AA50: =AVERAGE(Z47:Z50) -> 94.66666667
A51: 2016-11-04 | B51: 913 | D51: 738 | F51: 1990 | H51: 2793 | J51: 490 | L51: 891 | N51: 1222 | P51: 911 | R51: 2673 | T51: 220 | V51: 214 | X51: 78 | Z51: 95
A52: 2016-11-11 | B52: 869 | D52: 728 | F52: 1809 | H52: 2671 | J52: 441 | L52: 973 | N52: 1209 | P52: 898 | R52: 2908 | T52: 219 | V52: 213 | X52: 92 | Z52: 94
A53: 2016-11-18 | B53: 788 | D53: 710 | F53: 1687 | H53: 2623 | J53: 648 | L53: 977 | N53: 1209 | P53: 869 | R53: 2685 | T53: 219 | V53: 213 | X53: 97 | Z53: 95
A54: 2016-11-25 | B54: 775 | C54: =AVERAGE(B51:B54) -> 836.25 | D54: 725 | E54: =AVERAGE(D51:D54) -> 725.25 | F54: 1528 | G54: =AVERAGE(F51:F54) -> 1753.5 | H54: 2513 | I54: =AVERAGE(H51:H54) -> 2650 | J54: 641 | K54: =AVERAGE(J51:J54) -> 555 | L54: 924 | M54: =AVERAGE(L51:L54) -> 941.25 | N54: 1196 | O54: =AVERAGE(N51:N54) -> 1209 | P54: 869 | Q54: =AVERAGE(P51:P54) -> 886.75 | R54: 2400 | S54: =AVERAGE(R51:R54) -> 2666.5 | T54: 219 | U54: =AVERAGE(T51:T54) -> 219.25 | V54: 213 | W54: =AVERAGE(V51:V54) -> 213.25 | X54: 98 | Y54: =AVERAGE(X51:X54) -> 91.25 | Z54: 98 | AA54: =AVERAGE(Z51:Z54) -> 95.5
A55: 2016-12-02 | B55: 930 | D55: 865 | F55: 1456 | H55: 2414 | J55: 545 | L55: 795 | N55: 1525 | P55: 841 | R55: 2477 | T55: 219 | V55: 213 | X55: 100 | Z55: 98
A56: 2016-12-09 | B56: 1046 | D56: 944 | F56: 1382 | H56: 2340 | J56: 527 | L56: 730 | N56: 1503 | P56: 819 | R56: 2058 | T56: 219 | V56: 213 | X56: 100 | Z56: 98
A57: 2016-12-16 | B57: 1006 | D57: 947 | F57: 1608 | H57: 2627 | J57: 495 | L57: 720 | N57: 1469 | P57: 804 | R57: 1816 | T57: 219 | V57: 213 | X57: 101 | Z57: 98
A58: 2016-12-23 | B58: 1049 | D58: 963 | F58: 1541 | H58: 2613 | J58: 495 | L58: 747 | N58: 1442 | P58: 803 | R58: 1757 | T58: 219 | V58: 213 | X58: 105 | Z58: 98
A59: 2016-12-30 | B59: 1168 | C59: =AVERAGE(B55:B59) -> 1039.8 | D59: 1086 | E59: =AVERAGE(D55:D59) -> 961 | F59: 1541 | G59: =AVERAGE(F55:F59) -> 1505.6 | H59: 2613 | I59: =AVERAGE(H55:H59) -> 2521.4 | J59: 495 | K59: =AVERAGE(J55:J59) -> 511.4 | L59: 982 | M59: =AVERAGE(L55:L59) -> 794.8 | N59: 1786 | O59: =AVERAGE(N55:N59) -> 1545 | P59: 1116 | Q59: =AVERAGE(P55:P59) -> 876.6 | R59: 2828 | S59: =AVERAGE(R55:R59) -> 2187.2 | T59: 210 | U59: =AVERAGE(T55:T59) -> 217.2 | V59: 212 | W59: =AVERAGE(V55:V59) -> 212.8 | X59: 108 | Y59: =AVERAGE(X55:X59) -> 102.8 | Z59: 98 | AA59: =AVERAGE(Z55:Z59) -> 98
A60: 2017-01-06 | B60: 1116 | D60: 1042 | F60: 2082 | H60: 3133 | J60: 623 | L60: 892 | N60: 1693 | P60: 1098 | R60: 2707 | T60: 210 | V60: 212 | X60: 104 | Z60: 98
A61: 2017-01-13 | B61: 1086 | D61: 1028 | F61: 2211 | H61: 3594 | J61: 637 | L61: 831 | N61: 1646 | P61: 997 | R61: 2575 | T61: 210 | V61: 212 | X61: 104 | Z61: 101
A62: 2017-01-20 | B62: 1052 | D62: 1004 | F62: 2167 | H62: 3647 | J62: 634 | L62: 772 | N62: 1595 | P62: 987 | R62: 2294 | T62: 210 | V62: 212 | X62: 102 | Z62: 101
A63: 2017-01-26 | B63: 1041 | C63: =AVERAGE(B60:B63) -> 1073.75 | D63: 986 | E63: =AVERAGE(D60:D63) -> 1015 | F63: 2106 | G63: =AVERAGE(F60:F63) -> 2141.5 | H63: 3637 | I63: =AVERAGE(H60:H63) -> 3502.75 | J63: 630 | K63: =AVERAGE(J60:J63) -> 631 | L63: 738 | M63: =AVERAGE(L60:L63) -> 808.25 | N63: 1556 | O63: =AVERAGE(N60:N63) -> 1622.5 | P63: 995 | Q63: =AVERAGE(P60:P63) -> 1019.25 | R63: 2056 | S63: =AVERAGE(R60:R63) -> 2408 | T63: 210 | U63: =AVERAGE(T60:T63) -> 210 | V63: 212 | W63: =AVERAGE(V60:V63) -> 212 | X63: 97 | Y63: =AVERAGE(X60:X63) -> 101.75 | Z63: 101 | AA63: =AVERAGE(Z60:Z63) -> 100.25
A64: 2017-02-03 | B64: 1023 | D64: 988 | F64: 2092 | H64: 3639 | J64: 630 | L64: 730 | N64: 1528 | P64: 993 | R64: 1982 | T64: 210 | V64: 212 | X64: 98 | Z64: 101
A65: 2017-02-10 | B65: 913 | D65: 876 | F65: 1964 | H65: 3456 | J65: 609 | L65: 660 | N65: 1408 | P65: 896 | R65: 1960 | T65: 200 | V65: 202 | X65: 99 | Z65: 101
A66: 2017-02-17 | B66: 858 | D66: 844 | F66: 1771 | H66: 3214 | J66: 578 | L66: 572 | N66: 1368 | P66: 833 | R66: 1756 | T66: 204 | V66: 206 | X66: 100 | Z66: 93
A67: 2017-02-24 | B67: 921 | C67: =AVERAGE(B64:B67) -> 928.75 | D67: 882 | E67: =AVERAGE(D64:D67) -> 897.5 | F67: 1650 | G67: =AVERAGE(F64:F67) -> 1869.25 | H67: 3055 | I67: =AVERAGE(H64:H67) -> 3341 | J67: 527 | K67: =AVERAGE(J64:J67) -> 586 | L67: 510 | M67: =AVERAGE(L64:L67) -> 618 | N67: 1385 | O67: =AVERAGE(N64:N67) -> 1422.25 | P67: 807 | Q67: =AVERAGE(P64:P67) -> 882.25 | R67: 1757 | S67: =AVERAGE(R64:R67) -> 1863.75 | T67: 204 | U67: =AVERAGE(T64:T67) -> 204.5 | V67: 206 | W67: =AVERAGE(V64:V67) -> 206.5 | X67: 108 | Y67: =AVERAGE(X64:X67) -> 101.25 | Z67: 93 | AA67: =AVERAGE(Z64:Z67) -> 97
A68: 2017-03-03 | B68: 876 | D68: 854 | F68: 1496 | H68: 2955 | J68: 503 | L68: 469 | N68: 1523 | P68: 792 | R68: 1609 | T68: 211 | V68: 211 | X68: 111 | Z68: 92
A69: 2017-03-10 | B69: 859 | D69: 838 | F69: 1424 | H69: 2887 | J69: 477 | L69: 460 | N69: 1531 | P69: 775 | R69: 1613 | T69: 213 | V69: 213 | X69: 113 | Z69: 92
A70: 2017-03-17 | B70: 819 | D70: 802 | F70: 1338 | H70: 2721 | J70: 550 | L70: 440 | N70: 1493 | P70: 749 | R70: 1760 | T70: 208 | V70: 208 | X70: 116 | Z70: 118
A71: 2017-03-24 | B71: 815 | D71: 798 | F71: 1288 | H71: 2625 | J71: 690 | L71: 443 | N71: 1473 | P71: 747 | R71: 1726 | T71: 213 | V71: 213 | X71: 112 | Z71: 160
A72: 2017-03-31 | B72: 838 | C72: =AVERAGE(B68:B72) -> 841.4 | D72: 837 | E72: =AVERAGE(D68:D72) -> 825.8 | F72: 1479 | G72: =AVERAGE(F68:F72) -> 1405 | H72: 2565 | I72: =AVERAGE(H68:H72) -> 2750.6 | J72: 906 | K72: =AVERAGE(J68:J72) -> 625.2 | L72: 434 | M72: =AVERAGE(L68:L72) -> 449.2 | N72: 1827 | O72: =AVERAGE(N68:N72) -> 1569.4 | P72: 971 | Q72: =AVERAGE(P68:P72) -> 806.8 | R72: 2332 | S72: =AVERAGE(R68:R72) -> 1808 | T72: 214 | U72: =AVERAGE(T68:T72) -> 211.8 | V72: 214 | W72: =AVERAGE(V68:V72) -> 211.8 | X72: 110 | Y72: =AVERAGE(X68:X72) -> 112.4 | Z72: 168 | AA72: =AVERAGE(Z68:Z72) -> 126
A73: 2017-04-08 | B73: 836 | D73: 817 | F73: 1375 | H73: 2436 | J73: 890 | L73: 441 | N73: 1911 | P73: 990 | R73: 2247 | T73: 215 | V73: 215 | X73: 113 | Z73: 165
A74: 2017-04-14 | B74: 866 | D74: 827 | F74: 1357 | H74: 2360 | J74: 847 | L74: 430 | N74: 1915 | P74: 1002 | R74: 2540 | T74: 216 | V74: 216 | X74: 124 | Z74: 162
A75: 2017-04-21 | B75: 880 | D75: 841 | F75: 1326 | H75: 2307 | J75: 829 | L75: 424 | N75: 1890 | P75: 999 | R75: 2448 | T75: 219 | V75: 219 | X75: 143 | Z75: 162
A76: 2017-04-28 | B76: 1021 | C76: =AVERAGE(B73:B76) -> 900.75 | D76: 1011 | E76: =AVERAGE(D73:D76) -> 874 | F76: 1606 | G76: =AVERAGE(F73:F76) -> 1416 | H76: 2625 | I76: =AVERAGE(H73:H76) -> 2432 | J76: 822 | K76: =AVERAGE(J73:J76) -> 847 | L76: 446 | M76: =AVERAGE(L73:L76) -> 435.25 | N76: 2231 | O76: =AVERAGE(N73:N76) -> 1986.75 | P76: 1149 | Q76: =AVERAGE(P73:P76) -> 1035 | R76: 2927 | S76: =AVERAGE(R73:R76) -> 2540.5 | T76: 219 | U76: =AVERAGE(T73:T76) -> 217.25 | V76: 219 | W76: =AVERAGE(V73:V76) -> 217.25 | X76: 162 | Y76: =AVERAGE(X73:X76) -> 135.5 | Z76: 164 | AA76: =AVERAGE(Z73:Z76) -> 163.25
A77: 2017-05-05 | B77: 996 | D77: 988 | F77: 1555 | H77: 2567 | J77: 744 | L77: 431 | N77: 2288 | P77: 1145 | R77: 2820 | T77: 219 | V77: 219 | X77: 178 | Z77: 164
A78: 2017-05-12 | B78: 961 | D78: 949 | F78: 1432 | H78: 2432 | J78: 716 | L78: 419 | N78: 2211 | P78: 1120 | R78: 3284 | T78: 219 | V78: 219 | X78: 183 | Z78: 164
A79: 2017-05-19 | B79: 924 | D79: 914 | F79: 1310 | H79: 2298 | J79: 719 | L79: 406 | N79: 2181 | P79: 1134 | R79: 3069 | T79: 218 | V79: 218 | X79: 185 | Z79: 164
A80: 2017-05-26 | B80: 977 | C80: =AVERAGE(B77:B80) -> 964.5 | D80: 945 | E80: =AVERAGE(D77:D80) -> 949 | F80: 1264 | G80: =AVERAGE(F77:F80) -> 1390.25 | H80: 2229 | I80: =AVERAGE(H77:H80) -> 2381.5 | J80: 764 | K80: =AVERAGE(J77:J80) -> 735.75 | L80: 373 | M80: =AVERAGE(L77:L80) -> 407.25 | N80: 2213 | O80: =AVERAGE(N77:N80) -> 2223.25 | P80: 1194 | Q80: =AVERAGE(P77:P80) -> 1148.25 | R80: 3294 | S80: =AVERAGE(R77:R80) -> 3116.75 | T80: 218 | U80: =AVERAGE(T77:T80) -> 218.5 | V80: 218 | W80: =AVERAGE(V77:V80) -> 218.5 | X80: 178 | Y80: =AVERAGE(X77:X80) -> 181 | Z80: 164 | AA80: =AVERAGE(Z77:Z80) -> 164
A81: 2017-06-02 | B81: 933 | D81: 920 | F81: 1413 | H81: 2428 | J81: 918 | L81: 350 | N81: 2561 | P81: 1252 | R81: 3424 | T81: 219 | V81: 219 | X81: 175 | Z81: 164
A82: 2017-06-09 | B82: 935 | D82: 904 | F82: 1277 | H82: 2233 | J82: 916 | L82: 338 | N82: 2465 | P82: 1222 | R82: 3460 | T82: 217 | V82: 217 | X82: 178 | Z82: 162
A83: 2017-06-16 | B83: 880 | D83: 877 | F83: 1146 | H83: 2081 | J83: 949 | L83: 323 | N83: 2380 | P83: 1215 | R83: 3551 | T83: 216 | V83: 217 | X83: 178 | Z83: 162
A84: 2017-06-23 | B84: 882 | D84: 878 | F84: 1092 | H84: 2013 | J84: 933 | L84: 337 | N84: 2335 | P84: 1210 | R84: 3599 | T84: 216 | V84: 216 | X84: 176 | Z84: 160
A85: 2017-06-30 | B85: 1015 | C85: =AVERAGE(B81:B85) -> 929 | D85: 951 | E85: =AVERAGE(D81:D85) -> 906 | F85: 1378 | G85: =AVERAGE(F81:F85) -> 1261.2 | H85: 2356 | I85: =AVERAGE(H81:H85) -> 2222.2 | J85: 910 | K85: =AVERAGE(J81:J85) -> 925.2 | L85: 394 | M85: =AVERAGE(L81:L85) -> 348.4 | N85: 2726 | O85: =AVERAGE(N81:N85) -> 2493.4 | P85: 1400 | Q85: =AVERAGE(P81:P85) -> 1259.8 | R85: 3811 | S85: =AVERAGE(R81:R85) -> 3569 | T85: 216 | U85: =AVERAGE(T81:T85) -> 216.8 | V85: 216 | W85: =AVERAGE(V81:V85) -> 217 | X85: 180 | Y85: =AVERAGE(X81:X85) -> 177.4 | Z85: 160 | AA85: =AVERAGE(Z81:Z85) -> 161.6
A86: 2017-07-07 | B86: 969 | D86: 906 | F86: 1333 | H86: 2307 | J86: 846 | L86: 374 | N86: 2620 | P86: 1391 | R86: 3795 | T86: 216 | V86: 216 | X86: 181 | Z86: 152
A87: 2017-07-14 | B87: 939 | D87: 864 | F87: 1265 | H87: 2251 | J87: 772 | L87: 366 | N87: 2620 | P87: 1390 | R87: 3762 | T87: 216 | V87: 216 | X87: 184 | Z87: 152
A88: 2017-07-21 | B88: 919 | D88: 852 | F88: 1226 | H88: 2233 | J88: 717 | L88: 365 | N88: 2469 | P88: 1395 | R88: 3518 | T88: 218 | V88: 218 | X88: 181 | Z88: 145
A89: 2017-07-28 | B89: 963 | C89: =AVERAGE(B86:B89) -> 947.5 | D89: 883 | E89: =AVERAGE(D86:D89) -> 876.25 | F89: 1687 | G89: =AVERAGE(F86:F89) -> 1377.75 | H89: 2685 | I89: =AVERAGE(H86:H89) -> 2369 | J89: 690 | K89: =AVERAGE(J86:J89) -> 756.25 | L89: 513 | M89: =AVERAGE(L86:L89) -> 404.5 | N89: 2506 | O89: =AVERAGE(N86:N89) -> 2553.75 | P89: 1474 | Q89: =AVERAGE(P86:P89) -> 1412.5 | R89: 3352 | S89: =AVERAGE(R86:R89) -> 3606.75 | T89: 218 | U89: =AVERAGE(T86:T89) -> 217 | V89: 218 | W89: =AVERAGE(V86:V89) -> 217 | X89: 179 | Y89: =AVERAGE(X86:X89) -> 181.25 | Z89: 144 | AA89: =AVERAGE(Z86:Z89) -> 148.25
A90: 2017-08-04 | B90: 935 | D90: 859 | F90: 1661 | H90: 2661 | J90: 672 | L90: 504 | N90: 2273 | P90: 1366 | R90: 3100 | T90: 218 | V90: 218 | X90: 169 | Z90: 135
A91: 2017-08-11 | B91: 931 | D91: 849 | F91: 1641 | H91: 2620 | J91: 633 | L91: 493 | N91: 1925 | P91: 1347 | R91: 2980 | T91: 218 | V91: 218 | X91: 165 | Z91: 135
A92: 2017-08-18 | B92: 918 | D92: 831 | F92: 1659 | H92: 2592 | J92: 548 | L92: 489 | N92: 1848 | P92: 1298 | R92: 2843 | T92: 218 | V92: 218 | X92: 161 | Z92: 134
A93: 2017-08-25 | B93: 923 | C93: =AVERAGE(B90:B93) -> 926.75 | D93: 822 | E93: =AVERAGE(D90:D93) -> 840.25 | F93: 1541 | G93: =AVERAGE(F90:F93) -> 1625.5 | H93: 2419 | I93: =AVERAGE(H90:H93) -> 2573 | J93: 475 | K93: =AVERAGE(J90:J93) -> 582 | L93: 514 | M93: =AVERAGE(L90:L93) -> 500 | N93: 1757 | O93: =AVERAGE(N90:N93) -> 1950.75 | P93: 1295 | Q93: =AVERAGE(P90:P93) -> 1326.5 | R93: 2583 | S93: =AVERAGE(R90:R93) -> 2876.5 | T93: 218 | U93: =AVERAGE(T90:T93) -> 218 | V93: 218 | W93: =AVERAGE(V90:V93) -> 218 | X93: 152 | Y93: =AVERAGE(X90:X93) -> 161.75 | Z93: 133 | AA93: =AVERAGE(Z90:Z93) -> 134.25
A94: 2017-09-01 | B94: 886 | D94: 791 | F94: 1495 | H94: 2280 | J94: 450 | L94: 710 | N94: 1553 | P94: 1394 | R94: 2407 | T94: 218 | V94: 218 | X94: 149 | Z94: 137
A95: 2017-09-08 | B95: 812 | D95: 758 | F95: 1473 | H95: 2231 | J95: 430 | L95: 706 | N95: 1417 | P95: 1337 | R95: 2241 | T95: 218 | V95: 218 | X95: 149 | Z95: 140
A96: 2017-09-15 | B96: 769 | D96: 730 | F96: 1586 | H96: 2269 | J96: 420 | L96: 714 | N96: 1293 | P96: 1264 | R96: 2091 | T96: 218 | V96: 218 | X96: 147 | Z96: 140
A97: 2017-09-22 | B97: 734 | D97: 709 | F97: 1484 | H97: 2105 | J97: 376 | L97: 730 | N97: 1161 | P97: 1196 | R97: 1886 | T97: 218 | V97: 218 | X97: 147 | Z97: 134
A98: 2017-09-29 | B98: 714 | C98: =AVERAGE(B94:B98) -> 783 | D98: 692 | E98: =AVERAGE(D94:D98) -> 736 | F98: 1414 | G98: =AVERAGE(F94:F98) -> 1490.4 | H98: 1991 | I98: =AVERAGE(H94:H98) -> 2175.2 | J98: 366 | K98: =AVERAGE(J94:J98) -> 408.4 | L98: 708 | M98: =AVERAGE(L94:L98) -> 713.6 | N98: 1151 | O98: =AVERAGE(N94:N98) -> 1315 | P98: 1173 | Q98: =AVERAGE(P94:P98) -> 1272.8 | R98: 1846 | S98: =AVERAGE(R94:R98) -> 2094.2 | T98: 218 | U98: =AVERAGE(T94:T98) -> 218 | V98: 218 | W98: =AVERAGE(V94:V98) -> 218 | X98: 148 | Y98: =AVERAGE(X94:X98) -> 148 | Z98: 137 | AA98: =AVERAGE(Z94:Z98) -> 137.6
A99: 2017-10-07
A100: 2017-10-13 | B100: 686 | D100: 652 | F100: 1367 | H100: 1801 | J100: 410 | L100: 1020 | N100: 1189 | P100: 1191 | R100: 2582 | T100: 207 | V100: 207 | X100: 150 | Z100: 137
A101: 2017-10-20 | B101: 681 | D101: 646 | F101: 1366 | H101: 1755 | J101: 570 | L101: 1052 | N101: 1178 | P101: 1240 | R101: 2545 | T101: 216 | V101: 216 | X101: 155 | Z101: 144
A102: 2017-10-27 | B102: 744 | C102: =AVERAGE(B100:B102) -> 703.6666667 | D102: 640 | E102: =AVERAGE(D100:D102) -> 646 | F102: 1512 | G102: =AVERAGE(F100:F102) -> 1415 | H102: 2075 | I102: =AVERAGE(H100:H102) -> 1877 | J102: 576 | K102: =AVERAGE(J100:J102) -> 518.6666667 | L102: 1100 | M102: =AVERAGE(L100:L102) -> 1057.333333 | N102: 1569 | O102: =AVERAGE(N100:N102) -> 1312 | P102: 1292 | Q102: =AVERAGE(P100:P102) -> 1241 | R102: 2929 | S102: =AVERAGE(R100:R102) -> 2685.333333 | T102: 217 | U102: =AVERAGE(T100:T102) -> 213.3333333 | V102: 271 | W102: =AVERAGE(V100:V102) -> 231.3333333 | X102: 162 | Y102: =AVERAGE(X100:X102) -> 155.6666667 | Z102: 149 | AA102: =AVERAGE(Z100:Z102) -> 143.3333333
A103: 2017-11-03 | B103: 779 | D103: 660 | F103: 1548 | H103: 2089 | J103: 521 | L103: 1155 | N103: 1619 | P103: 1332 | R103: 2813 | T103: 215 | V103: 215 | X103: 174 | Z103: 153
A104: 2017-11-10 | B104: 728 | D104: 619 | F104: 1411 | H104: 1917 | J104: 482 | L104: 1309 | N104: 1486 | P104: 1342 | R104: 2923 | T104: 215 | V104: 215 | X104: 168 | Z104: 152
A105: 2017-11-17 | B105: 689 | D105: 595 | F105: 1249 | H105: 1801 | J105: 410 | L105: 1362 | N105: 1339 | P105: 1277 | R105: 2678 | T105: 215 | V105: 215 | X105: 168 | Z105: 154
A106: 2017-11-24 | B106: 694 | C106: =AVERAGE(B103:B106) -> 722.5 | D106: 593 | E106: =AVERAGE(D103:D106) -> 616.75 | F106: 1097 | G106: =AVERAGE(F103:F106) -> 1326.25 | H106: 1681 | I106: =AVERAGE(H103:H106) -> 1872 | J106: 401 | K106: =AVERAGE(J103:J106) -> 453.5 | L106: 1358 | M106: =AVERAGE(L103:L106) -> 1296 | N106: 1260 | O106: =AVERAGE(N103:N106) -> 1426 | P106: 1258 | Q106: =AVERAGE(P103:P106) -> 1302.25 | R106: 2613 | S106: =AVERAGE(R103:R106) -> 2756.75 | T106: 215 | U106: =AVERAGE(T103:T106) -> 215 | V106: 215 | W106: =AVERAGE(V103:V106) -> 215 | X106: 166 | Y106: =AVERAGE(X103:X106) -> 169 | Z106: 154 | AA106: =AVERAGE(Z103:Z106) -> 153.25
A107: 2017-12-01 | B107: 729 | D107: 598 | F107: 1177 | H107: 1901 | J107: 391 | L107: 1280 | N107: 1625 | P107: 1253 | R107: 2725 | T107: 215 | V107: 215 | X107: 166 | Z107: 154
A108: 2017-12-08 | B108: 751 | D108: 600 | F108: 1078 | H108: 1804 | J108: 360 | L108: 1167 | N108: 1331 | P108: 1208 | R108: 2681 | T108: 215 | V108: 215 | X108: 161 | Z108: 154
A109: 2017-12-15 | B109: 801 | D109: 596 | F109: 1183 | H109: 1967 | J109: 329 | L109: 1144 | N109: 1268 | P109: 1191 | R109: 3022 | T109: 215 | V109: 215 | X109: 148 | Z109: 154
A110: 2017-12-22 | B110: 800 | D110: 596 | F110: 1177 | H110: 1972 | J110: 319 | L110: 1145 | N110: 1194 | P110: 1156 | R110: 2986 | T110: 213 | V110: 213 | X110: 150 | Z110: 154
A111: 2017-12-29 | B111: 864 | C111: =AVERAGE(B107:B111) -> 789 | D111: 738 | E111: =AVERAGE(D107:D111) -> 625.6 | F111: 1523 | G111: =AVERAGE(F107:F111) -> 1227.6 | H111: 2418 | I111: =AVERAGE(H107:H111) -> 2012.4 | J111: 415 | K111: =AVERAGE(J107:J111) -> 362.8 | L111: 1185 | M111: =AVERAGE(L107:L111) -> 1184.2 | N111: 1279 | O111: =AVERAGE(N107:N111) -> 1339.4 | P111: 1194 | Q111: =AVERAGE(P107:P111) -> 1200.4 | R111: 3150 | S111: =AVERAGE(R107:R111) -> 2912.8 | T111: 213 | U111: =AVERAGE(T107:T111) -> 214.2 | V111: 213 | W111: =AVERAGE(V107:V111) -> 214.2 | X111: 150 | Y111: =AVERAGE(X107:X111) -> 155 | Z111: 152 | AA111: =AVERAGE(Z107:Z111) -> 153.6
A112: 2018-01-05 | B112: 888 | D112: 738 | F112: 1465 | H112: 2425 | J112: 433 | L112: 1218 | N112: 1293 | P112: 1178 | R112: 2923 | T112: 213 | V112: 213 | X112: 145 | Z112: 150
A113: 2018-01-12 | B113: 897 | D113: 759 | F113: 1514 | H113: 2608 | J113: 450 | L113: 1399 | N113: 1481 | P113: 1242 | R113: 2517 | T113: 213 | V113: 213 | X113: 153 | Z113: 150
A114: 2018-01-19 | B114: 891 | D114: 761 | F114: 1436 | H114: 2792 | J114: 572 | L114: 1360 | N114: 1487 | P114: 1264 | R114: 2179 | T114: 209 | V114: 210 | X114: 157 | Z114: 152
A115: 2018-01-26 | B115: 907 | C115: =AVERAGE(B112:B115) -> 895.75 | D115: 772 | E115: =AVERAGE(D112:D115) -> 757.5 | F115: 1457 | G115: =AVERAGE(F112:F115) -> 1468 | H115: 2761 | I115: =AVERAGE(H112:H115) -> 2646.5 | J115: 631 | K115: =AVERAGE(J112:J115) -> 521.5 | L115: 1360 | M115: =AVERAGE(L112:L115) -> 1334.25 | N115: 1525 | O115: =AVERAGE(N112:N115) -> 1446.5 | P115: 1264 | Q115: =AVERAGE(P112:P115) -> 1237 | R115: 2393 | S115: =AVERAGE(R112:R115) -> 2503 | T115: 209 | U115: =AVERAGE(T112:T115) -> 211 | V115: 210 | W115: =AVERAGE(V112:V115) -> 211.5 | X115: 159 | Y115: =AVERAGE(X112:X115) -> 153.5 | Z115: 157 | AA115: =AVERAGE(Z112:Z115) -> 152.25
A116: 2018-02-02 | B116: 912 | D116: 797 | F116: 1552 | H116: 2843 | J116: 611 | L116: 1351 | N116: 1804 | P116: 1292 | R116: 2584 | T116: 209 | V116: 210 | X116: 161 | Z116: 160
A117: 2018-02-09 | B117: 914 | D117: 791 | F117: 1486 | H117: 2775 | J117: 573 | L117: 1314 | N117: 1791 | P117: 1304 | R117: 2562 | T117: 218 | V117: 220 | X117: 166 | Z117: 165
A118: 2018-02-14 | B118: 905 | D118: 791 | F118: 1484 | H118: 2767 | J118: 579 | L118: 1288 | N118: 1788 | P118: 1301 | R118: 2559 | T118: 218 | V118: 220 | X118: 161 | Z118: 163
A119: 2018-02-23 | B119: 916 | C119: =AVERAGE(B116:B119) -> 911.75 | D119: 797 | E119: =AVERAGE(D116:D119) -> 794 | F119: 1412 | G119: =AVERAGE(F116:F119) -> 1483.5 | H119: 2708 | I119: =AVERAGE(H116:H119) -> 2773.25 | J119: 571 | K119: =AVERAGE(J116:J119) -> 583.5 | L119: 1263 | M119: =AVERAGE(L116:L119) -> 1304 | N119: 1788 | O119: =AVERAGE(N116:N119) -> 1792.75 | P119: 1303 | Q119: =AVERAGE(P116:P119) -> 1300 | R119: 2539 | S119: =AVERAGE(R116:R119) -> 2561 | T119: 218 | U119: =AVERAGE(T116:T119) -> 215.75 | V119: 220 | W119: =AVERAGE(V116:V119) -> 217.5 | X119: 160 | Y119: =AVERAGE(X116:X119) -> 162 | Z119: 157 | AA119: =AVERAGE(Z116:Z119) -> 161.25
A120: 2018-03-02 | B120: 827 | D120: 721 | F120: 1252 | H120: 2375 | J120: 465 | L120: 1136 | N120: 1668 | P120: 1251 | R120: 2309 | T120: 209 | V120: 211 | X120: 158 | Z120: 150
A121: 2018-03-09 | B121: 791 | D121: 701 | F121: 1143 | H121: 2181 | J121: 427 | L121: 1003 | N121: 1582 | P121: 1172 | R121: 2391 | T121: 218 | V121: 220 | X121: 140 | Z121: 150
A122: 2018-03-16 | B122: 741 | D122: 665 | F122: 1016 | H122: 2009 | J122: 384 | L122: 933 | N122: 1367 | P122: 1080 | R122: 2007 | T122: 215 | V122: 217 | X122: 142 | Z122: 146
A123: 2018-03-23 | B123: 704 | D123: 650 | F123: 945 | H123: 1933 | J123: 355 | L123: 897 | N123: 1296 | P123: 1027 | R123: 1904 | T123: 217 | V123: 219 | X123: 138 | Z123: 144
A124: 2018-03-30 | B124: 633 | C124: =AVERAGE(B120:B124) -> 739.2 | D124: 615 | E124: =AVERAGE(D120:D124) -> 670.4 | F124: 1127 | G124: =AVERAGE(F120:F124) -> 1096.6 | H124: 2148 | I124: =AVERAGE(H120:H124) -> 2129.2 | J124: 319 | K124: =AVERAGE(J120:J124) -> 390 | L124: 894 | M124: =AVERAGE(L120:L124) -> 972.6 | N124: 1319 | O124: =AVERAGE(N120:N124) -> 1446.4 | P124: 1026 | Q124: =AVERAGE(P120:P124) -> 1111.2 | R124: 1759 | S124: =AVERAGE(R120:R124) -> 2074 | T124: 216 | U124: =AVERAGE(T120:T124) -> 215 | V124: 219 | W124: =AVERAGE(V120:V124) -> 217.2 | X124: 142 | Y124: =AVERAGE(X120:X124) -> 144 | Z124: 144 | AA124: =AVERAGE(Z120:Z124) -> 146.8
A125: 2018-04-06 | B125: 617 | D125: 616 | F125: 1128 | H125: 2150 | J125: 311 | L125: 883 | N125: 1307 | P125: 998 | R125: 1707 | T125: 216 | V125: 219 | X125: 144 | Z125: 144
A126: =A125+7 -> 2018-04-13 | B126: 585 | D126: 600 | F126: 1152 | H126: 2192 | J126: 327 | L126: 846 | N126: 1358 | P126: 930 | R126: 2094 | T126: 218 | V126: 219 | X126: 142 | Z126: 148
A127: 2018-04-20 | B127: 584 | D127: 601 | F127: 1152 | H127: 2193 | J127: 460 | L127: 831 | N127: 1340 | P127: 894 | R127: 1767 | T127: 221 | V127: 223 | X127: 144 | Z127: 194
A128: 2018-04-27 | B128: 774 | C128: =AVERAGE(B125:B128) -> 640 | D128: 694 | E128: =AVERAGE(D125:D128) -> 627.75 | F128: 1403 | G128: =AVERAGE(F125:F128) -> 1208.75 | H128: 2371 | I128: =AVERAGE(H125:H128) -> 2226.5 | J128: 436 | K128: =AVERAGE(J125:J128) -> 383.5 | L128: 832 | M128: =AVERAGE(L125:L128) -> 848 | N128: 1546 | O128: =AVERAGE(N125:N128) -> 1387.75 | P128: 868 | Q128: =AVERAGE(P125:P128) -> 922.5 | R128: 2133 | S128: =AVERAGE(R125:R128) -> 1925.25 | T128: 230 | U128: =AVERAGE(T125:T128) -> 221.25 | V128: 229 | W128: =AVERAGE(V125:V128) -> 222.5 | X128: 141 | Y128: =AVERAGE(X125:X128) -> 142.75 | Z128: 191 | AA128: =AVERAGE(Z125:Z128) -> 169.25
A129: 2018-05-04 | B129: 788 | D129: 756 | F129: 1468 | H129: 2433 | J129: 431 | L129: 837 | N129: 1593 | P129: 834 | R129: 2086 | T129: 229 | V129: 228 | X129: 136 | Z129: 204
A130: 2018-05-11 | B130: 811 | D130: 783 | F130: 1382 | H130: 2364 | J130: 460 | L130: 848 | N130: 2004 | P130: 797 | R130: 2118 | T130: 229 | V130: 228 | X130: 139 | Z130: 205
A131: 2018-05-18 | B131: 793 | D131: 795 | F131: 1308 | H131: 2331 | J131: 459 | L131: 826 | N131: 1949 | P131: 783 | R131: 1655 | T131: 227 | V131: 226 | X131: 141 | Z131: 200
A132: 2018-05-25 | B132: 825 | C132: =AVERAGE(B129:B132) -> 804.25 | D132: 848 | E132: =AVERAGE(D129:D132) -> 795.5 | F132: 1283 | G132: =AVERAGE(F129:F132) -> 1360.25 | H132: 2271 | I132: =AVERAGE(H129:H132) -> 2349.75 | J132: 484 | K132: =AVERAGE(J129:J132) -> 458.5 | L132: 810 | M132: =AVERAGE(L129:L132) -> 830.25 | N132: 1954 | O132: =AVERAGE(N129:N132) -> 1875 | P132: 797 | Q132: =AVERAGE(P129:P132) -> 802.75 | R132: 1849 | S132: =AVERAGE(R129:R132) -> 1927 | T132: 227 | U132: =AVERAGE(T129:T132) -> 228 | V132: 226 | W132: =AVERAGE(V129:V132) -> 227 | X132: 141 | Y132: =AVERAGE(X129:X132) -> 139.25 | Z132: 198 | AA132: =AVERAGE(Z129:Z132) -> 201.75
A133: 2018-06-01 | B133: 876 | D133: 895 | F133: 1445 | H133: 2463 | J133: 557 | L133: 787 | N133: 2331 | P133: 888 | R133: 2180 | T133: 227 | V133: 226 | X133: 153 | Z133: 193
A134: 2018-06-08 | B134: 870 | D134: 904 | F134: 1358 | H134: 2354 | J134: 547 | L134: 757 | N134: 2177 | P134: 848 | R134: 1990 | T134: 227 | V134: 225 | X134: 159 | Z134: 189
A135: 2018-06-15 | B135: 862 | D135: 915 | F135: 1266 | H135: 2236 | J135: 544 | L135: 710 | N135: 2213 | P135: 800 | R135: 1673 | T135: 226 | V135: 225 | X135: 154 | Z135: 181
A136: =A135+7 -> 2018-06-22 | B136: 834 | D136: 905 | F136: 1194 | H136: 2181 | J136: 508 | L136: 697 | N136: 2165 | P136: 749 | R136: 1546 | T136: 226 | V136: 225 | X136: 152 | Z136: 181
A137: =A136+7 -> 2018-06-29 | B137: 885 | C137: =AVERAGE(B133:B137) -> 865.4 | D137: 913 | E137: =AVERAGE(D133:D137) -> 906.4 | F137: 1545 | G137: =AVERAGE(F133:F137) -> 1361.6 | H137: 2524 | I137: =AVERAGE(H133:H137) -> 2351.6 | J137: 482 | K137: =AVERAGE(J133:J137) -> 527.6 | L137: 713 | M137: =AVERAGE(L133:L137) -> 732.8 | N137: 2148 | O137: =AVERAGE(N133:N137) -> 2206.8 | P137: 697 | Q137: =AVERAGE(P133:P137) -> 796.4 | R137: 1988 | S137: =AVERAGE(R133:R137) -> 1875.4 | T137: 227 | U137: =AVERAGE(T133:T137) -> 226.6 | V137: 226 | W137: =AVERAGE(V133:V137) -> 225.4 | X137: 143 | Y137: =AVERAGE(X133:X137) -> 152.2 | Z137: 180 | AA137: =AVERAGE(Z133:Z137) -> 184.8
A138: 2018-07-06 | B138: 881 | D138: 903 | F138: 1555 | H138: 2623 | J138: 470 | L138: 723 | N138: 2042 | P138: 623 | R138: 1737 | T138: 227 | V138: 224 | X138: 152 | Z138: 168
A139: =A138+7 -> 2018-07-13 | B139: 882 | D139: 887 | F139: 1685 | H139: 2710 | J139: 434 | L139: 730 | N139: 2173 | P139: 589 | R139: 1587 | T139: 227 | V139: 222 | X139: 140 | Z139: 164
A140: =A139+7 -> 2018-07-20 | B140: 863 | D140: 869 | F140: 1616 | H140: 2650 | J140: 371 | L140: 737 | N140: 2008 | P140: 569 | R140: 1437 | T140: 226 | V140: 224 | X140: 131 | Z140: 159
A141: =A140+7 -> 2018-07-27 | B141: 926 | C141: =AVERAGE(B138:B141) -> 888 | D141: 893 | E141: =AVERAGE(D138:D141) -> 888 | F141: 1877 | G141: =AVERAGE(F138:F141) -> 1683.25 | H141: 2846 | I141: =AVERAGE(H138:H141) -> 2707.25 | J141: 371 | K141: =AVERAGE(J138:J141) -> 411.5 | L141: 754 | M141: =AVERAGE(L138:L141) -> 736 | N141: 1960 | O141: =AVERAGE(N138:N141) -> 2045.75 | P141: 562 | Q141: =AVERAGE(P138:P141) -> 585.75 | R141: 1931 | S141: =AVERAGE(R138:R141) -> 1673 | T141: 225 | U141: =AVERAGE(T138:T141) -> 226.25 | V141: 224 | W141: =AVERAGE(V138:V141) -> 223.5 | X141: 146 | Y141: =AVERAGE(X138:X141) -> 142.25 | Z141: 159 | AA141: =AVERAGE(Z138:Z141) -> 162.5
A142: =A141+7 -> 2018-08-03 | B142: 935 | D142: 881 | F142: 2074 | H142: 3099 | J142: 364 | L142: 756 | N142: 2020 | P142: 540 | R142: 1576 | T142: 225 | V142: 224 | X142: 142 | Z142: 159
A143: 2018-08-10 | B143: 948 | D143: 895 | F143: 2068 | H143: 3102 | J143: 373 | L143: 727 | N143: 1963 | P143: 502 | R143: 1830 | T143: 225 | V143: 226 | X143: 136 | Z143: 158
A144: 2018-08-17 | B144: 928 | D144: 909 | F144: 2086 | H144: 3317 | J144: 357 | L144: 663 | N144: 1853 | P144: 483 | R144: 1607 | T144: 226 | V144: 226 | X144: 140 | Z144: 155
A145: 2018-08-24 | B145: 959 | D145: 915 | F145: 2126 | H145: 3329 | J145: 392 | L145: 621 | N145: 1859 | P145: 488 | R145: 1448 | T145: 226 | V145: 226 | X145: 138 | Z145: 154
A146: 2018-08-31 | B146: 933 | C146: =SUM(B142:B146)/5 -> 940.6 | D146: 908 | E146: =SUM(D142:D146)/5 -> 901.6 | F146: 2298 | G146: =SUM(F142:F146)/5 -> 2130.4 | H146: 3485 | I146: =SUM(H142:H146)/5 -> 3266.4 | J146: 409 | K146: =SUM(J142:J146)/5 -> 379 | L146: 590 | M146: =SUM(L142:L146)/5 -> 671.4 | N146: 2081 | O146: =SUM(N142:N146)/5 -> 1955.2 | P146: 724 | Q146: =SUM(P142:P146)/5 -> 547.4 | R146: 1753 | S146: =SUM(R142:R146)/5 -> 1642.8 | T146: 226 | U146: =SUM(T142:T146)/5 -> 225.6 | V146: 226 | W146: =SUM(V142:V146)/5 -> 225.6 | X146: 137 | Y146: =SUM(X142:X146)/5 -> 138.6 | Z146: 154 | AA146: =SUM(Z142:Z146)/5 -> 156
A147: 2018-09-07 | B147: 885 | D147: 870 | F147: 2332 | H147: 3518 | J147: 391 | L147: 559 | N147: 1898 | P147: 712 | R147: 1311 | T147: 229 | V147: 230 | X147: 137 | Z147: 154
A148: 2018-09-14 | B148: 821 | D148: 852 | F148: 2349 | H148: 3512 | J148: 391 | L148: 552 | N148: 1775 | P148: 745 | R148: 1272 | T148: 229 | V148: 228 | X148: 137 | Z148: 155
A149: 2018-09-21 | B149: 766 | D149: 804 | F149: 2343 | H149: 3502 | J149: 365 | L149: 538 | N149: 1773 | P149: 753 | R149: 1098 | T149: 228 | V149: 228 | X149: 137 | Z149: 165
A150: 2018-09-28 | B150: 735 | C150: =AVERAGE(B147:B150) -> 801.75 | D150: 767 | E150: =AVERAGE(D147:D150) -> 823.25 | F150: 2332 | G150: =AVERAGE(F147:F150) -> 2339 | H150: 3319 | I150: =AVERAGE(H147:H150) -> 3462.75 | J150: 354 | K150: =AVERAGE(J147:J150) -> 375.25 | L150: 532 | M150: =AVERAGE(L147:L150) -> 545.25 | N150: 1719 | O150: =AVERAGE(N147:N150) -> 1791.25 | P150: 752 | Q150: =AVERAGE(P147:P150) -> 740.5 | R150: 976 | S150: =AVERAGE(R147:R150) -> 1164.25 | T150: 228 | U150: =AVERAGE(T147:T150) -> 228.5 | V150: 228 | W150: =AVERAGE(V147:V150) -> 228.5 | X150: 138 | Y150: =AVERAGE(X147:X150) -> 137.25 | Z150: 162 | AA150: =AVERAGE(Z147:Z150) -> 159
A151: 2018-10-05 | B151: Nil info due to Golden Week
A152: 2018-10-12 | B152: 731 | D152: 751 | F152: 2503 | H152: 3304 | J152: 366 | L152: 716 | N152: 2003 | P152: 895 | R152: 952 | T152: 220 | V152: 221 | X152: 140 | Z152: 160
A153: 2018-10-19 | B153: 727 | D153: 751 | F153: 2587 | H153: 3304 | J153: 422 | L153: 733 | N153: 2082 | P153: 954 | R153: 885 | T153: 220 | V153: 220 | X153: 149 | Z153: 158
A154: 2018-10-26 | B154: 761 | C154: =AVERAGE(B152:B154) -> 739.6666667 | D154: 778 | E154: =AVERAGE(D152:D154) -> 760 | F154: 2587 | G154: =AVERAGE(F152:F154) -> 2559 | H154: 3294 | I154: =AVERAGE(H152:H154) -> 3300.666667 | J154: 495 | K154: =AVERAGE(J152:J154) -> 427.6666667 | L154: 761 | M154: =AVERAGE(L152:L154) -> 736.6666667 | N154: 2226 | O154: =AVERAGE(N152:N154) -> 2103.666667 | P154: 979 | Q154: =AVERAGE(P152:P154) -> 942.6666667 | R154: 1310 | S154: =AVERAGE(R152:R154) -> 1049 | T154: 227 | U154: =AVERAGE(T152:T154) -> 222.3333333 | V154: 228 | W154: =AVERAGE(V152:V154) -> 223 | X154: 151 | Y154: =AVERAGE(X152:X154) -> 146.6666667 | Z154: 158 | AA154: =AVERAGE(Z152:Z154) -> 158.6666667
A155: 2018-11-02 | B155: 752 | D155: 769 | F155: 2606 | H155: 3615 | J155: 525 | L155: 778 | N155: 2437 | P155: 930 | R155: 1468 | T155: 227 | V155: 228 | X155: 155 | Z155: 150
A156: 2018-11-09 | B156: 753 | D156: 767 | F156: 2575 | H156: 3613 | J156: 528 | L156: 735 | N156: 2472 | P156: 845 | R156: 1243 | T156: 226 | V156: 227 | X156: 147 | Z156: 150
A157: 2018-11-16 | B157: 735 | D157: 757 | F157: 2529 | H157: 3739 | J157: 518 | L157: 675 | N157: 2538 | P157: 824 | R157: 1185 | T157: 226 | V157: 227 | X157: 145 | Z157: 157
A158: 2018-11-23 | B158: 738 | D158: 755 | F158: 2247 | H158: 3652 | J158: 513 | L158: 632 | N158: 2581 | P158: 813 | R158: 996 | T158: 228 | V158: 228 | X158: 143 | Z158: 153
A159: 2018-11-30 | B159: 747 | C159: =AVERAGE(B155:B159) -> 745 | D159: 783 | E159: =AVERAGE(D155:D159) -> 766.2 | F159: 2190 | G159: =AVERAGE(F155:F159) -> 2429.4 | H159: 3403 | I159: =AVERAGE(H155:H159) -> 3604.4 | J159: 518 | K159: =AVERAGE(J155:J159) -> 520.4 | L159: 564 | M159: =AVERAGE(L155:L159) -> 676.8 | N159: 2559 | O159: =AVERAGE(N155:N159) -> 2517.4 | P159: 1010 | Q159: =AVERAGE(P155:P159) -> 884.4 | R159: 771 | S159: =AVERAGE(R155:R159) -> 1132.6 | T159: 226 | U159: =AVERAGE(T155:T159) -> 226.6 | V159: 227 | W159: =AVERAGE(V155:V159) -> 227.4 | X159: 148 | Y159: =AVERAGE(X155:X159) -> 147.6 | Z159: 153 | AA159: =AVERAGE(Z155:Z159) -> 152.6
A160: 2018-12-07 | B160: 774 | D160: 788 | F160: 2030 | H160: 3136 | J160: 523 | L160: 563 | N160: 2497 | P160: 957 | R160: 692 | T160: 226 | V160: 227 | X160: 146 | Z160: 157
A161: 2018-12-14 | B161: 832 | D161: 821 | F161: 1935 | H161: 2901 | J161: 530 | L161: 564 | N161: 2393 | P161: 819 | R161: 649 | T161: 226 | V161: 227 | X161: 147 | Z161: 153
A162: 2018-12-21 | B162: 872 | D162: 839 | F162: 1763 | H162: 2750 | J162: 597 | L162: 564 | N162: 2378 | P162: 822 | R162: 616 | T162: 226 | V162: 227 | X162: 147 | Z162: 146
A163: 2018-12-28 | B163: 996 | C163: =AVERAGE(B160:B163) -> 868.5 | D163: 967 | E163: =AVERAGE(D160:D163) -> 853.75 | F163: 1883 | G163: =AVERAGE(F160:F163) -> 1902.75 | H163: 2998 | I163: =AVERAGE(H160:H163) -> 2946.25 | J163: 668 | K163: =AVERAGE(J160:J163) -> 579.5 | L163: 634 | M163: =AVERAGE(L160:L163) -> 581.25 | N163: 2373 | O163: =AVERAGE(N160:N163) -> 2410.25 | P163: 829 | Q163: =AVERAGE(P160:P163) -> 856.75 | R163: 1092 | S163: =AVERAGE(R160:R163) -> 762.25 | T163: 226 | U163: =AVERAGE(T160:T163) -> 226 | V163: 227 | W163: =AVERAGE(V160:V163) -> 227 | X163: 153 | Y163: =AVERAGE(X160:X163) -> 148.25 | Z163: 146 | AA163: =AVERAGE(Z160:Z163) -> 150.5
A164: 2019-01-04 | B164: 996 | D164: 997 | F164: 1933 | H164: 3119 | J164: 789 | L164: 612 | N164: 2367 | P164: 901 | R164: 1237 | T164: 226 | V164: 227 | X164: 153 | Z164: 146
A165: 2019-01-11 | B165: 979 | D165: 980 | F165: 1895 | H165: 3040 | J165: 814 | L165: 551 | N165: 2618 | P165: 841 | R165: 1675 | T165: 226 | V165: 227 | X165: 153 | Z165: 146
A166: 2019-01-18 | B166: 970 | D166: 978 | F166: 2114 | H166: 3187 | J166: 778 | L166: 542 | N166: 2627 | P166: 828 | R166: 1506 | T166: 226 | V166: 227 | X166: 158 | Z166: 146
A167: 2019-01-25 | B167: 960 | C167: =AVERAGE(B164:B167) -> 976.25 | D167: 957 | E167: =AVERAGE(D164:D167) -> 978 | F167: 2039 | G167: =AVERAGE(F164:F167) -> 1995.25 | H167: 3137 | I167: =AVERAGE(H164:H167) -> 3120.75 | J167: 736 | K167: =AVERAGE(J164:J167) -> 779.25 | L167: 536 | M167: =AVERAGE(L164:L167) -> 560.25 | N167: 2600 | O167: =AVERAGE(N164:N167) -> 2553 | P167: 835 | Q167: =AVERAGE(P164:P167) -> 851.25 | R167: 1408 | S167: =AVERAGE(R164:R167) -> 1456.5 | T167: 228 | U167: =AVERAGE(T164:T167) -> 226.5 | V167: 230 | W167: =AVERAGE(V164:V167) -> 227.75 | X167: 156 | Y167: =AVERAGE(X164:X167) -> 155 | Z167: 145 | AA167: =AVERAGE(Z164:Z167) -> 145.75
A168: 2019-02-01 | B168: 960 | D168: 962 | F168: 1993 | H168: 3054 | J168: 721 | L168: 532 | N168: 2582 | P168: 838 | R168: 1363 | T168: 228 | V168: 227 | X168: 156 | Z168: 153
A169: 2019-02-08 | B169: Nil info due to Chinese New Year
A170: 2019-02-15 | B170: 906 | D170: 920 | F170: 1834 | H170: 2968 | J170: 703 | L170: 502 | N170: 2536 | P170: 818 | R170: 1305 | T170: 219 | V170: 219 | X170: 153 | Z170: 153
A171: 2019-02-22 | B171: 831 | C171: =AVERAGE(B168,B170,B171) -> 899 | D171: 857 | E171: =AVERAGE(D168,D170,D171) -> 913 | F171: 1720 | G171: =AVERAGE(F168,F170,F171) -> 1849 | H171: 2837 | I171: =AVERAGE(H168,H170,H171) -> 2953 | J171: 690 | K171: =AVERAGE(J168,J170,J171) -> 704.6666667 | L171: 468 | M171: =AVERAGE(L168,L170,L171) -> 500.6666667 | N171: 2483 | O171: =AVERAGE(N168,N170,N171) -> 2533.666667 | P171: 798 | Q171: =AVERAGE(P168,P170,P171) -> 818 | R171: 1290 | S171: =AVERAGE(R168,R170,R171) -> 1319.333333 | T171: 226 | U171: =AVERAGE(T168,T170,T171) -> 224.3333333 | V171: 227 | W171: =AVERAGE(V168,V170,V171) -> 224.3333333 | X171: 148 | Y171: =AVERAGE(X168,X170,X171) -> 152.3333333 | Z171: 153 | AA171: =AVERAGE(Z168,Z170,Z171) -> 153
A172: 2019-03-01 | B172: 796 | D172: 810 | F172: 1549 | H172: 2640 | J172: 639 | L172: 394 | N172: 2522 | P172: 765 | R172: 1498 | T172: 226 | V172: 227 | X172: 148 | Z172: 153
A173: 2019-03-08 | B173: 754 | D173: 776 | F173: 1431 | H173: 2479 | J173: 612 | L173: 383 | N173: 2485 | P173: 726 | R173: 1469 | T173: 226 | V173: 227 | X173: 146 | Z173: 153
A174: 2019-03-15 | B174: 714 | D174: 748 | F174: 1345 | H174: 2357 | J174: 590 | L174: 358 | N174: 2726 | P174: 678 | R174: 1498 | T174: 228 | V174: 229 | X174: 148 | Z174: 147
A175: 2019-03-22 | B175: 684 | D175: 732 | F175: 1329 | H175: 2338 | J175: 575 | L175: 375 | N175: 2745 | P175: 663 | R175: 1298 | T175: 227 | V175: 229 | X175: 148 | Z175: 147
A176: 2019-03-29 | B176: 651 | C176: =AVERAGE(B172:B176) -> 719.8 | D176: 725 | E176: =AVERAGE(D172:D176) -> 758.2 | F176: 1626 | G176: =AVERAGE(F172:F176) -> 1456 | H176: 2634 | I176: =AVERAGE(H172:H176) -> 2489.6 | J176: 689 | K176: =AVERAGE(J172:J176) -> 621 | L176: 374 | M176: =AVERAGE(L172:L176) -> 376.8 | N176: 2806 | O176: =AVERAGE(N172:N176) -> 2656.8 | P176: 686 | Q176: =AVERAGE(P172:P176) -> 703.6 | R176: 1573 | S176: =AVERAGE(R172:R176) -> 1467.2 | T176: 230 | U176: =AVERAGE(T172:T176) -> 227.4 | V176: 232 | W176: =AVERAGE(V172:V176) -> 228.8 | X176: 148 | Y176: =AVERAGE(X172:X176) -> 147.6 | Z176: 149 | AA176: =AVERAGE(Z172:Z176) -> 149.8
A177: 2019-04-05 | B177: 658 | D177: 711 | F177: 1623 | H177: 2644 | J177: 730 | L177: 360 | N177: 2731 | P177: 654 | R177: 1418 | T177: 231 | V177: 232 | X177: 146 | Z177: 149
A178: 2019-04-12 | B178: 640 | D178: 715 | F178: 1606 | H178: 2638 | J178: 734 | L178: 339 | N178: 2691 | P178: 644 | R178: 1434 | T178: 231 | V178: 232 | X178: 145 | Z178: 122
A179: 2019-04-19 | B179: 638 | D179: 717 | F179: 1538 | H179: 2634 | J179: 702 | L179: 308 | N179: 2590 | P179: 640 | R179: 1230 | T179: 232 | V179: 233 | X179: 142 | Z179: 120
A180: 2019-04-26 | B180: 717 | C180: =AVERAGE(B177:B180) -> 663.25 | D180: 726 | E180: =AVERAGE(D177:D180) -> 717.25 | F180: 1569 | G180: =AVERAGE(F177:F180) -> 1584 | H180: 2705 | I180: =AVERAGE(H177:H180) -> 2655.25 | J180: 682 | K180: =AVERAGE(J177:J180) -> 712 | L180: 298 | M180: =AVERAGE(L177:L180) -> 326.25 | N180: 2668 | O180: =AVERAGE(N177:N180) -> 2670 | P180: 629 | Q180: =AVERAGE(P177:P180) -> 641.75 | R180: 1139 | S180: =AVERAGE(R177:R180) -> 1305.25 | T180: 232 | U180: =AVERAGE(T177:T180) -> 231.5 | V180: 233 | W180: =AVERAGE(V177:V180) -> 232.5 | X180: 142 | Y180: =AVERAGE(X177:X180) -> 143.75 | Z180: 120 | AA180: =AVERAGE(Z177:Z180) -> 127.75
A181: 2019-05-03 | B181: Nil info due to Labour Day
A182: 2019-05-10 | B182: 767.78 | D182: 725.59 | F182: 1441.84 | H182: 2710.94 | J182: 620.09 | L182: 288.48 | N182: 2601.16 | P182: 626.06 | R182: 940 | T182: 233.07 | V182: 237.31 | X182: 141 | Z182: 119.67
A183: 2019-05-17 | B183: 722.57 | D183: 696.27 | F183: 1340 | H183: 2596.76 | J183: 611.35 | L183: 274.55 | N183: 2615.84 | P183: 619.59 | R183: 886.63 | T183: 233.07 | V183: 237.31 | X183: 139.67 | Z183: 117.67
A184: 2019-05-24 | B184: 743 | D184: 710 | F184: 1294 | H184: 2540 | J184: 657 | L184: 270 | N184: 2554 | P184: 613 | R184: 803 | T184: 231 | V184: 233 | X184: 140 | Z184: 118
A185: 2019-05-31 | B185: 780 | C185: =AVERAGE(B182:B185) -> 753.3375 | D185: 740 | E185: =AVERAGE(D182:D185) -> 717.965 | F185: 1471 | G185: =AVERAGE(F182:F185) -> 1386.71 | H185: 2541 | I185: =AVERAGE(H182:H185) -> 2597.175 | J185: 775 | K185: =AVERAGE(J182:J185) -> 665.86 | L185: 259 | M185: =AVERAGE(L182:L185) -> 273.0075 | N185: 2525 | O185: =AVERAGE(N182:N185) -> 2574 | P185: 689 | Q185: =AVERAGE(P182:P185) -> 636.9125 | R185: 1361 | S185: =AVERAGE(R182:R185) -> 997.6575 | T185: 231 | U185: =AVERAGE(T182:T185) -> 232.035 | V185: 233 | W185: =AVERAGE(V182:V185) -> 235.155 | X185: 140 | Y185: =AVERAGE(X182:X185) -> 140.1675 | Z185: 118 | AA185: =AVERAGE(Z182:Z185) -> 118.335
A186: =A185+7 -> 2019-06-07 | B186: 779 | D186: 745 | F186: 1439 | H186: 2502 | J186: 840 | L186: 256 | N186: 2468 | P186: 705 | R186: 1330 | T186: 231 | V186: 233 | X186: 140 | Z186: 118
A187: 2019-06-14 | B187: 745 | D187: 741 | F187: 1416 | H187: 2464 | J187: 820 | L187: 249 | N187: 2417 | P187: 748 | R187: 1774 | T187: 231 | V187: 233 | X187: 140 | Z187: 118
A188: 2019-06-21 | B188: 716 | D188: 731 | F188: 1382 | H188: 2404 | J188: 794 | L188: 252 | N188: 2366 | P188: 765 | R188: 1800 | T188: 231 | V188: 234 | X188: 140 | Z188: 118
A189: 2019-06-28 | B189: 701 | C189: =AVERAGE(B186:B189) -> 735.25 | D189: 726 | E189: =AVERAGE(D186:D189) -> 735.75 | F189: 1720 | G189: =AVERAGE(F186:F189) -> 1489.25 | H189: 2789 | I189: =AVERAGE(H186:H189) -> 2539.75 | J189: 784 | K189: =AVERAGE(J186:J189) -> 809.5 | L189: 300 | M189: =AVERAGE(L186:L189) -> 264.25 | N189: 2356 | O189: =AVERAGE(N186:N189) -> 2401.75 | P189: 777 | Q189: =AVERAGE(P186:P189) -> 748.75 | R189: 2260 | S189: =AVERAGE(R186:R189) -> 1791 | T189: 231 | U189: =AVERAGE(T186:T189) -> 231 | V189: 234 | W189: =AVERAGE(V186:V189) -> 233.5 | X189: 138 | Y189: =AVERAGE(X186:X189) -> 139.5 | Z189: 117 | AA189: =AVERAGE(Z186:Z189) -> 117.75
A190: 2019-07-05 | B190: 688 | D190: 705 | F190: 1649 | H190: 2764 | J190: 782 | L190: 348 | N190: 2313 | P190: 749 | R190: 2014 | T190: 234 | V190: 234 | X190: 134 | Z190: 125
A191: 2019-07-12 | B191: 676 | D191: 697 | F191: 1659 | H191: 2864 | J191: 773 | L191: 416 | N191: 2385 | P191: 769 | R191: 2180 | T191: 234 | V191: 234 | X191: 131 | Z191: 125
A192: 2019-07-19 | B192: 672 | D192: 695 | F192: 1539 | H192: 2891 | J192: 738 | L192: 464 | N192: 2492 | P192: 759 | R192: 1958 | T192: 234 | V192: 234 | X192: 119 | Z192: 125
A193: 2019-07-26 | B193: 754 | C193: =AVERAGE(B190:B193) -> 697.5 | D193: 718 | E193: =AVERAGE(D190:D193) -> 703.75 | F193: 1433 | G193: =AVERAGE(F190:F193) -> 1570 | H193: 2800 | I193: =AVERAGE(H190:H193) -> 2829.75 | J193: 720 | K193: =AVERAGE(J190:J193) -> 753.25 | L193: 525 | M193: =AVERAGE(L190:L193) -> 438.25 | N193: 2530 | O193: =AVERAGE(N190:N193) -> 2430 | P193: 783 | Q193: =AVERAGE(P190:P193) -> 765 | R193: 2052 | S193: =AVERAGE(R190:R193) -> 2051 | T193: 234 | U193: =AVERAGE(T190:T193) -> 234 | V193: 234 | W193: =AVERAGE(V190:V193) -> 234 | X193: 116 | Y193: =AVERAGE(X190:X193) -> 125 | Z193: 117 | AA193: =AVERAGE(Z190:Z193) -> 123
A194: 2019-08-02 | B194: 806 | D194: 850 | F194: 1589 | H194: 2801 | J194: 713 | L194: 578 | N194: 2556 | P194: 774 | R194: 1935 | T194: 234 | V194: 234 | X194: 122 | Z194: 117
A195: 2019-08-09 | B195: 810 | D195: 974 | F195: 1474 | H195: 2660 | J195: 683 | L195: 591 | N195: 2545 | P195: 766 | R195: 2104 | T195: 234 | V195: 234 | X195: 125 | Z195: 117
A196: 2019-08-16 | B196: 812 | D196: 1017 | F196: 1368 | H196: 2543 | J196: 684 | L196: 609 | N196: 2507 | P196: 749 | R196: 2028 | T196: 232 | V196: 234 | X196: 120 | Z196: 117
A197: 2019-08-23 | B197: 793 | D197: 969 | F197: 1286 | H197: 2436 | J197: 685 | L197: 660 | N197: 2494 | P197: 746 | R197: 1881 | T197: 232 | V197: 234 | X197: 103 | Z197: 117
A198: 2019-08-30 | B198: 757 | C198: =AVERAGE(B194:B198) -> 795.6 | D198: 895 | E198: =AVERAGE(D194:D198) -> 941 | F198: 1615 | G198: =AVERAGE(F194:F198) -> 1466.4 | H198: 2691 | I198: =AVERAGE(H194:H198) -> 2626.2 | J198: 657 | K198: =AVERAGE(J194:J198) -> 684.4 | L198: 770 | M198: =AVERAGE(L194:L198) -> 641.6 | N198: 2408 | O198: =AVERAGE(N194:N198) -> 2502 | P198: 779 | Q198: =AVERAGE(P194:P198) -> 762.8 | R198: 2001 | S198: =AVERAGE(R194:R198) -> 1989.8 | T198: 232 | U198: =AVERAGE(T194:T198) -> 232.8 | V198: 234 | W198: =AVERAGE(V194:V198) -> 234 | X198: 103 | Y198: =AVERAGE(X194:X198) -> 114.6 | Z198: 117 | AA198: =AVERAGE(Z194:Z198) -> 117
A199: 2019-09-06 | B199: 710 | D199: 877 | F199: 1566 | H199: 2631 | J199: 633 | L199: 790 | N199: 2318 | P199: 771 | R199: 1866 | T199: 232 | V199: 234 | X199: 101 | Z199: 117
A200: 2019-09-12 | B200: 674 | D200: 826 | F200: 1447 | H200: 2516 | J200: 602 | L200: 820 | N200: 2352 | P200: 789 | R200: 1977 | T200: 232 | V200: 234 | X200: 101 | Z200: 117
A201: 2019-09-20 | B201: 639 | D201: 797 | F201: 1338 | H201: 2351 | J201: 562 | L201: 898 | N201: 2322 | P201: 828 | R201: 1849 | T201: 234 | V201: 236 | X201: 101 | Z201: 117
A202: 2019-09-27 | B202: 593 | C202: =AVERAGE(B199:B202) -> 654 | D202: 742 | E202: =AVERAGE(D199:D202) -> 810.5 | F202: 1328 | G202: =AVERAGE(F199:F202) -> 1419.75 | H202: 2346 | I202: =AVERAGE(H199:H202) -> 2461 | J202: 519 | K202: =AVERAGE(J199:J202) -> 579 | L202: 923 | M202: =AVERAGE(L199:L202) -> 857.75 | N202: 2308 | O202: =AVERAGE(N199:N202) -> 2325 | P202: 842 | Q202: =AVERAGE(P199:P202) -> 807.5 | R202: 1770 | S202: =AVERAGE(R199:R202) -> 1865.5 | T202: 234 | U202: =AVERAGE(T199:T202) -> 233 | V202: 236 | W202: =AVERAGE(V199:V202) -> 235 | X202: 120 | Y202: =AVERAGE(X199:X202) -> 105.75 | Z202: 117 | AA202: =AVERAGE(Z199:Z202) -> 117
A203: 2019-10-04 | B203: Nil info due to Golden Week
A204: 2019-10-11 | B204: 581 | D204: 722 | F204: 1313 | H204: 2335 | J204: 512 | L204: 1064 | N204: 2287 | P204: 906 | R204: 1811 | T204: 224 | V204: 226 | X204: 110 | Z204: 117
... 341 more rows

Sheet 2025_SCFI
A1: Date | B1: NWE TEU | C1: MED TEU | D1: USWC FEU | E1: USEC FEU | F1: Gulf & Red Sea (DXB) TEU | G1: ANZ (MEL) TEU | H1: E/W Africa (LOS) TEU | I1: S/ Africa DUR) TEU | J1: S/America (SSZ) TEU | K1: W/Japan TEU | L1: E/Japan TEU | M1: SE Asia (SIN) TEU | N1: Korea (PUS) TEU | O1: C/S USWC (ZLO) TEU | P1: E/Africa (MBA) TEU
A2: 2025-01-03 | B2: 2851 | C2: 3747 | D2: 4997 | E2: 6418 | F2: 1472 | G2: 2147 | H2: 4521 | I2: 3507 | J2: 5344 | K2: 317 | L2: 317 | M2: 655 | N2: 141
A3: 2025-01-10 | B3: 2440 | C3: 3477 | D3: 4682 | E3: 6229 | F3: 1397 | G3: 1838 | H3: 4412 | I3: 3405 | J3: 4637 | K3: 305 | L3: 308 | M3: 564 | N3: 139 | O3: 1820.05 | P3: 1377.21
A4: 2025-01-17 | B4: 2279 | C4: 3327 | D4: 4232 | E4: 5960 | F4: 1311 | G4: 1478 | H4: 4259 | I4: 3219 | J4: 4304 | K4: 305 | L4: 308 | M4: 524 | N4: 139 | O4: 1680.05 | P4: 1354.53
A5: 2025-01-24 | B5: 2147 | C5: 3207 | D5: 4116 | E5: 5776 | F5: 1210 | G5: 1369 | H5: 4213 | I5: 3146 | J5: 3863 | K5: 305 | L5: 308 | M5: 508 | N5: 139 | O5: 1527.95 | P5: 1338.11
A6: 2025-01-31 | B6: 2147 | C6: 3207 | D6: 4116 | E6: 5776 | F6: 1210 | G6: 1369 | H6: 4213 | I6: 3146 | J6: 3863 | K6: 305 | L6: 308 | M6: 508 | N6: 139
A7: 2025-02-07 | B7: 1805 | C7: 3036 | D7: 3932 | E7: 5490 | F7: 1191 | G7: 1085 | H7: 4166 | I7: 3011 | J7: 3435 | K7: 305 | L7: 308 | M7: 454 | N7: 138 | O7: 1682.3 | P7: 1358.8
A8: 2025-02-14 | B8: 1608 | C8: 2815 | D8: 3544 | E8: 4825 | F8: 1144 | G8: 967 | H8: 4074 | I8: 2867 | J8: 3359 | K8: 305 | L8: 308 | M8: 457 | N8: 137 | O8: 2123.62 | P8: 1363.8
A9: 2025-02-21 | B9: 1578 | C9: 2624 | D9: 2907 | E9: 3954 | F9: 1102 | G9: 826 | H9: 3987 | I9: 2753 | J9: 2947 | K9: 305 | L9: 308 | M9: 440 | N9: 137 | O9: 1890.29 | P9: 1381.35
A10: 2025-02-28 | B10: 1693 | C10: 2594 | D10: 2482 | E10: 3508 | F10: 1015 | G10: 745 | H10: 3791 | I10: 2526 | J10: 2770 | K10: 305 | L10: 308 | M10: 441 | N10: 137 | O10: 1648.81 | P10: 1389.8
A11: 2025-03-07 | B11: 1582 | C11: 2517 | D11: 2291 | E11: 3329 | F11: 975 | G11: 629 | H11: 3660 | I11: 2294 | J11: 2422 | K11: 304 | L11: 308 | M11: 439 | N11: 137 | O11: 1560.05 | P11: 1466.15
A12: 2025-03-14 | B12: 1342 | C12: 2295 | D12: 1965 | E12: 2977 | F12: 976 | G12: 735 | H12: 3651 | I12: 2207 | J12: 1945 | K12: 304 | L12: 308 | M12: 446 | N12: 137 | O12: 1454.57 | P12: 1491.3
A13: 2025-03-21 | B13: 1306 | C13: 2195 | D13: 1872 | E13: 2866 | F13: 1059 | G13: 755 | H13: 3634 | I13: 2123 | J13: 1680 | K13: 304 | L13: 310 | M13: 446 | N13: 137 | O13: 1362.9 | P13: 1430.4
A14: 2025-03-28 | B14: 1318 | C14: 2076 | D14: 2177 | E14: 3194 | F14: 1188 | G14: 828 | H14: 3708 | I14: 2172 | J14: 1669 | K14: 319 | L14: 324 | M14: 433 | N14: 141 | O14: 1480.76 | P14: 1431.1
A15: 2025-04-04 | B15: 1336 | C15: 2028 | D15: 2313 | E15: 3306 | F15: 1290 | G15: 839 | H15: 3749 | I15: 2192 | J15: 1436 | K15: 322 | L15: 327 | M15: 445 | N15: 142 | O15: 1531.19 | P15: 1465.7
A16: 2025-04-11 | B16: 1356 | C16: 2144 | D16: 2202 | E16: 3226 | F16: 1309 | G16: 890 | H16: 3894 | I16: 2151 | J16: 1566 | K16: 316 | L16: 321 | M16: 448 | N16: 142 | O16: 1482.38 | P16: 1422.7
A17: 2025-04-18 | B17: 1316 | C17: 2161 | D17: 2103 | E17: 3251 | F17: 1266 | G17: 891 | H17: 3853 | I17: 2076 | J17: 1573 | K17: 316 | L17: 321 | M17: 450 | N17: 146 | O17: 1455 | P17: 1459.15
A18: 2025-04-25 | B18: 1260 | C18: 2129 | D18: 2141 | E18: 3257 | F18: 1161 | G18: 855 | H18: 3749 | I18: 2043 | J18: 1414 | K18: 316 | L18: 321 | M18: 454 | N18: 146 | O18: 1418.1 | P18: 1539.85
A19: 2025-05-02 | B19: 1200 | C19: 2089 | D19: 2272 | E19: 3283 | F19: 1122 | G19: 814 | H19: 3729 | I19: 2026 | J19: 1393 | K19: 316 | L19: 321 | M19: 438 | N19: 147 | O19: 1410.95 | P19: 1636.35
A20: 2025-05-09 | B20: 1161 | C20: 2089 | D20: 2347 | E20: 3335 | F20: 1145 | G20: 771 | H20: 3740 | I20: 1975 | J20: 1472 | K20: 316 | L20: 320 | M20: 430 | N20: 148 | O20: 1432.14 | P20: 1772.7
A21: 2025-05-16 | B21: 1154 | C21: 2082 | D21: 3091 | E21: 4069 | F21: 1191 | G21: 737 | H21: 3714 | I21: 1970 | J21: 1725 | K21: 315 | L21: 320 | M21: 434 | N21: 144 | O21: 1584.75 | P21: 2051.61
A22: 2025-05-23 | B22: 1317 | C22: 2328 | D22: 3275 | E22: 4284 | F22: 1387 | G22: 722 | H22: 3776 | I22: 1991 | J22: 1934 | K22: 315 | L22: 320 | M22: 440 | N22: 140 | O22: 2387.25 | P22: 2151.89
A23: 2025-05-30 | B23: 1587 | C23: 3061 | D23: 5172 | E23: 6243 | F23: 1692 | G23: 709 | H23: 4060 | I23: 2242 | J23: 2797 | K23: 315 | L23: 320 | M23: 441 | N23: 139 | O23: 3964.72 | P23: 2509.94
A24: 2025-06-06 | B24: 1667 | C24: 3302 | D24: 5606 | E24: 6939 | F24: 1929 | G24: 686 | H24: 4230 | I24: 2301 | J24: 3959 | K24: 315 | L24: 320 | M24: 446 | N24: 138 | O24: 4583.24 | P24: 2621.41
A25: 2025-06-13 | B25: 1844 | C25: 3190 | D25: 4120 | E25: 6745 | F25: 2083 | G25: 745 | H25: 4382 | I25: 2397 | J25: 4724 | K25: 315 | L25: 320 | M25: 455 | N25: 136 | O25: 3714.05 | P25: 2771.79
A26: 2025-06-20 | B26: 1835 | C26: 3063 | D26: 2772 | E26: 5352 | F26: 2122 | G26: 763 | H26: 4440 | I26: 2476 | J26: 5459 | K26: 315 | L26: 319 | M26: 460 | N26: 136 | O26: 2555 | P26: 2594.9
A27: 2025-06-27 | B27: 2030 | C27: 2985 | D27: 2578 | E27: 4717 | F27: 2060 | G27: 836 | H27: 4526 | I27: 2641 | J27: 6220 | K27: 312 | L27: 321 | M27: 456 | N27: 136 | O27: 2346 | P27: 2583
A28: 2025-07-04 | B28: 2101 | C28: 2869 | D28: 2089 | E28: 4124 | F28: 1916 | G28: 853 | H28: 4500 | I28: 2653 | J28: 6374 | K28: 312 | L28: 321 | M28: 453 | N28: 136 | O28: 2180 | P28: 2642
A29: 2025-07-11 | B29: 2099 | C29: 2667 | D29: 2194 | E29: 4172 | F29: 1607 | G29: 1021 | H29: 4437 | I29: 2828 | J29: 6221 | K29: 312 | L29: 321 | M29: 451 | N29: 136 | O29: 2107 | P29: 2624
A30: 2025-07-18 | B30: 2079 | C30: 2528 | D30: 2142 | E30: 3612 | F30: 1321 | G30: 1042 | H30: 4312 | I30: 2851 | J30: 5628 | K30: 313 | L30: 322 | M30: 442 | N30: 136 | O30: 1877 | P30: 2710
A31: 2025-07-25 | B31: 2090 | C31: 2418 | D31: 2067 | E31: 3378 | F31: 1152 | G31: 1071 | H31: 4273 | I31: 2961 | J31: 5188 | K31: 315 | L31: 324 | M31: 429 | N31: 135 | O31: 2081 | P31: 2583
A32: 2025-08-01 | B32: 2051 | C32: 2333 | D32: 2021 | E32: 3126 | F32: 1153 | G32: 1121 | H32: 4232 | I32: 3022 | J32: 4662 | K32: 313 | L32: 322 | M32: 412 | N32: 138 | O32: 2175 | P32: 2581
A33: 2025-08-08 | B33: 1961 | C33: 2318 | D33: 1823 | E33: 2792 | F33: 1233 | G33: 1197 | H33: 4153 | I33: 2996 | J33: 3811 | K33: 313 | L33: 322 | M33: 409 | N33: 136 | O33: 2154 | P33: 2532
A34: 2025-08-15 | B34: 1820 | C34: 2279 | D34: 1759 | E34: 2719 | F34: 1381 | G34: 1239 | H34: 4074 | I34: 3008 | J34: 3340 | K34: 313 | L34: 324 | M34: 406 | N34: 138 | O34: 2385 | P34: 2496
A35: 2025-08-22 | B35: 1668 | C35: 2225 | D35: 1644 | E35: 2613 | F35: 1479 | G35: 1267 | H35: 4015 | I35: 2996 | J35: 3107 | K35: 314 | L35: 323 | M35: 398 | N35: 139 | O35: 2475 | P35: 2491
A36: 2025-08-29 | B36: 1481 | C36: 2145 | D36: 1923 | E36: 2866 | F36: 1579 | G36: 1325 | H36: 3977 | I36: 2984 | J36: 3027 | K36: 314 | L36: 323 | M36: 419 | N36: 139 | O36: 2636 | P36: 2509
A37: 2025-09-05 | B37: 1315 | C37: 1971 | D37: 2189 | E37: 3073 | F37: 1579 | G37: 1313 | H37: 3994 | I37: 2990 | J37: 3199 | K37: 313 | L37: 322 | M37: 419 | N37: 139 | O37: 2363 | P37: 2528
A38: 2025-09-12 | B38: USD 1,154 | C38: USD 1,738 | D38: USD 2,370 | E38: USD 3,307 | F38: USD 1,273 | G38: USD 1,259 | H38: USD 3,934 | I38: USD 2,977 | J38: USD 3,018 | K38: USD 312 | L38: USD 321 | M38: USD 420 | N38: USD 138 | O38: USD 1,801 | P38: USD 2,517
A39: 2025-09-19 | B39: 1052 | C39: 1638 | D39: 1636 | E39: 2557 | F39: 991 | G39: 1158 | H39: 3770 | I39: 2859 | J39: 2497 | K39: 312 | L39: 321 | M39: 422 | N39: 138 | O39: 1431 | P39: 2472
A40: 2025-09-26 | B40: 971 | C40: 1485 | D40: 1460 | E40: 2385 | F40: 843 | G40: 1093 | H40: 3739 | I40: 2826 | J40: 2133 | K40: 312 | L40: 321 | M40: 418 | N40: 138 | O40: 1288 | P40: 2351
A41: 2025-10-03 | B41: 971 | C41: 1485 | D41: 1460 | E41: 2385 | F41: 843 | G41: 1093 | H41: 3739 | I41: 2826 | J41: 2133 | K41: 312 | L41: 321 | M41: 418 | N41: 138 | O41: 1288 | P41: 2351
A42: 2025-10-10 | B42: 1068 | C42: 1558 | D42: 1468 | E42: 2452 | F42: 975 | G42: 1159 | H42: 3763 | I42: 2830 | J42: 2446 | K42: 312 | L42: 321 | M42: 411 | N42: 138 | O42: 1585 | P42: 2456
A43: 2025-10-17
A44: 2025-10-24
A45: 2025-10-31
A46: 2025-11-07
A47: 2025-11-14
A48: 2025-11-21
A49: 2025-11-28
A50: 2025-12-05
A51: 2025-12-12
A52: 2025-12-19
A53: 2025-12-26

Sheet SCFI Graph - Flexi
A1: EUROPE
B13: Sum of Europe Average by Month | C13: Years
B14: Date | C14: 2024 | D14: 2025
B15: Jan | C15: 2966.25 | D15: 2372.8
B16: Feb | C16: 2626.333333 | D16: 1671
B17: Mar | C17: 2063.8 | D17: 1387
B18: Apr | C18: 2059.75 | D18: 1317
B19: May | C19: 3267 | D19: 1283.8
B20: Jun | C20: 4336 | D20: 1844
B21: Jul | C21: 4974.75 | D21: 2092.25
B22: Aug | C22: 4515.8 | D22: 1796.2
B23: Sep | C23: 2785.5
B24: Oct | C24: 2116.5
B25: Nov | C25: 2603
B26: Dec | C26: 2975.25
A35: OCEANIA
B47: Sum of Australia/ NZ Average by Month | C47: Years
B48: Date | C48: 2024 | D48: 2025
B49: Jan | C49: 1204.75 | D49: 1640.2
B50: Feb | C50: 1230 | D50: 905.75
B51: Mar | C51: 921.4 | D51: 736.75
B52: Apr | C52: 826.75 | D52: 868.75
B53: May | C53: 1264.75 | D53: 750.6
B54: Jun | C54: 1406.25 | D54: 757.5
B55: Jul | C55: 1411.5 | D55: 996.75
B56: Aug | C56: 1915 | D56: 1229.8
B57: Sep | C57: 2184
B58: Oct | C58: 2014.5
B59: Nov | C59: 2076.4
B60: Dec | C60: 1938.25
A68: USWC
B80: Sum of USWC Average by Month | C80: Years
B81: Date | C81: 2024 | D81: 2025
B82: Jan | C82: 3870.25 | D82: 4428.6
B83: Feb | C83: 4843 | D83: 3216.25
B84: Mar | C84: 3821 | D84: 2076.25
B85: Apr | C85: 3322.5 | D85: 2189.75
B86: May | C86: 5193.75 | D86: 3231.4
B87: Jun | C87: 7029.5 | D87: 3769
B88: Jul | C88: 7386 | D88: 2123
B89: Aug | C89: 6197.8 | D89: 1834
B90: Sep | C90: 5323
B91: Oct | C91: 4772.75
B92: Nov | C92: 4180.4
B93: Dec | C93: 4027.75
A102: USEC
B114: Sum of USEC Average by Month | C114: Years
B115: Date | C115: 2024 | D115: 2025
B116: Jan | C116: 5604.75 | D116: 6031.8
B117: Feb | C117: 6410.333333 | D117: 4444.25
B118: Mar | C118: 5179.2 | D118: 3091.5
B119: Apr | C119: 4317.5 | D119: 3260
B120: May | C120: 6319 | D120: 4242.8
B121: Jun | C121: 8247.75 | D121: 5938.25
B122: Jul | C122: 9783.5 | D122: 3821.5
B123: Aug | C123: 8942.2 | D123: 2823.2
B124: Sep | C124: 6615.25
B125: Oct | C125: 5312
B126: Nov | C126: 5110.4
B127: Dec | C127: 5533.5

Sheet SCFI All Trades Data for Trend (hidden)
A3: EUROPE
B4: Ave by Month in 2018 | D4: Ave by Month in 2019 | F4: Ave by Month in 2020 | H4: Ave by Month in 2021 | J4: Ave by Month in 2022 | L4: Ave by Month in 2023 | N4: Ave by Month in 2024 | P4: Ave by Month in 2025
A5: JANUARY | B5: 895.75 | C5: JANUARY | D5: 976.25 | E5: JANUARY | F5: 1040 | G5: JANUARY | H5: 4325 | I5: JANUARY | J5: 7784.25 | K5: JANUARY | L5: 1028 | M5: JANUARY | N5: 2966.25 | O5: JANUARY | P5: 2372.8
A6: FEBRUARY | B6: 911.75 | C6: FEBRUARY | D6: 899 | E6: FEBRUARY | F6: 829 | G6: FEBRUARY | H6: 4190 | I6: FEBRUARY | J6: 7616 | K6: FEBRUARY | L6: 919.5 | M6: FEBRUARY | N6: 2626.333333 | O6: FEBRUARY | P6: 1671
A7: MARCH | B7: 739.2 | C7: MARCH | D7: 720 | E7: MARCH | F7: 805 | G7: MARCH | H7: 3771 | I7: MARCH | J7: 6949 | K7: MARCH | L7: 871 | M7: MARCH | N7: 2063.8 | O7: MARCH | P7: 1387
A8: APRIL | B8: 640 | C8: APRIL | D8: 663 | E8: APRIL | F8: 741 | G8: APRIL | H8: 4151 | I8: APRIL | J8: 6133.6 | K8: APRIL | L8: 878 | M8: APRIL | N8: 2059.75 | O8: APRIL | P8: 1317
A9: MAY | B9: 804.25 | C9: MAY | D9: 753.3375 | E9: MAY | F9: 801 | G9: MAY | H9: 5378 | I9: MAY | J9: 5885.5 | K9: MAY | L9: 868 | M9: MAY | N9: 3267 | O9: MAY | P9: 1283.8
A10: JUNE | B10: 865.4 | C10: JUNE | D10: 735.25 | E10: JUNE | F10: 883 | G10: JUNE | H10: 6268 | I10: JUNE | J10: 5814.25 | K10: JUNE | L10: 808.2 | M10: JUNE | N10: 4336 | O10: JUNE | P10: 1844
A11: JULY | B11: 888 | C11: JULY | D11: 697.5 | E11: JULY | F11: 906 | G11: JULY | H11: 7014 | I11: JULY | J11: 5605.2 | K11: JULY | L11: 798.75 | M11: JULY | N11: 4974.75 | O11: JULY | P11: 2092.25
A12: AUGUST | B12: 940.6 | C12: AUGUST | D12: 795.6 | E12: AUGUST | F12: 948 | G12: AUGUST | H12: 7397 | I12: AUGUST | J12: 4841.5 | K12: AUGUST | L12: 881.75 | M12: AUGUST | N12: 4515.8 | O12: AUGUST | P12: 1944
A13: SEPTEMBER | B13: ='[1]Main sheet'!C150 -> 801.75 | C13: SEPTEMBER | D13: 654 | E13: SEPTEMBER | F13: 1064 | G13: SEPTEMBER | H13: 7502.25 | I13: SEPTEMBER | J13: 3557.4 | K13: SEPTEMBER | L13: 672.4 | M13: SEPTEMBER | N13: 2785.5 | O13: SEPTEMBER
A14: OCTOBER | B14: ='[1]Main sheet'!C154 -> 739.6666667 | C14: OCTOBER | D14: 585 | E14: OCTOBER | F14: 1128 | G14: OCTOBER | H14: 7660 | I14: OCTOBER | J14: 2354 | K14: OCTOBER | L14: 637.3333333 | M14: OCTOBER | N14: 2116.5 | O14: OCTOBER
A15: NOVEMBER | B15: 745 | C15: NOVEMBER | D15: 722 | E15: NOVEMBER | F15: 1622 | G15: NOVEMBER | H15: 7575 | I15: NOVEMBER | J15: 1378.25 | K15: NOVEMBER | L15: 741 | M15: NOVEMBER | N15: 2603 | O15: NOVEMBER
A16: DECEMBER | B16: 868.5 | C16: DECEMBER | D16: 916 | E16: DECEMBER | F16: 3061 | G16: DECEMBER | H16: 7641.8 | I16: DECEMBER | J16: 1061.8 | K16: DECEMBER | L16: 1399.2 | M16: DECEMBER | N16: 2975.25 | O16: DECEMBER
A17: MEDITERRANEAN
B18: Ave by Month in 2018 | D18: Ave by Month in 2019 | F18: Ave by Month in 2020 | H18: Ave by Month in 2021 | J18: Ave by Month in 2022 | L18: Ave by Month in 2023 | N18: Ave by Month in 2024 | P18: Ave by Month in 2025
A19: JANUARY | B19: 757.5 | C19: JANUARY | D19: 978 | E19: JANUARY | F19: 1181 | G19: JANUARY | H19: 4303 | I19: JANUARY | J19: 7522.75 | K19: JANUARY | L19: 1835.666667 | M19: JANUARY | N19: 3906.75 | O19: JANUARY | P19: 3393
A20: FEBRUARY | B20: 794 | C20: FEBRUARY | D20: 913 | E20: FEBRUARY | F20: 979 | G20: FEBRUARY | H20: 4253 | I20: FEBRUARY | J20: 7396.666667 | K20: FEBRUARY | L20: 1679 | M20: FEBRUARY | N20: 3641 | O20: FEBRUARY | P20: 2767.25
A21: MARCH | B21: 670.4 | C21: MARCH | D21: 758 | E21: MARCH | F21: 898 | G21: MARCH | H21: 3975 | I21: MARCH | J21: 7070.75 | K21: MARCH | L21: 1609.6 | M21: MARCH | N21: 3060.6 | O21: MARCH | P21: 2270.75
A22: APRIL | B22: 627.75 | C22: APRIL | D22: 717 | E22: APRIL | F22: 852 | G22: APRIL | H22: 4276 | I22: APRIL | J22: 6742.2 | K22: APRIL | L22: 1613.25 | M22: APRIL | N22: 3076.75 | O22: APRIL | P22: 2115.5
A23: MAY | B23: 795.5 | C23: MAY | D23: 717.965 | E23: MAY | F23: 874 | G23: MAY | H23: 5365 | I23: MAY | J23: 6623.75 | K23: MAY | L23: 1630 | M23: MAY | N23: 4210 | O23: MAY | P23: 2329.8
A24: JUNE | B24: 904.75 | C24: JUNE | D24: 735.75 | E24: JUNE | F24: 951 | G24: JUNE | H24: 6282.5 | I24: JUNE | J24: 6509.75 | K24: JUNE | L24: 1583.8 | M24: JUNE | N24: 4968.5 | O24: JUNE | P24: 3135
A25: JULY | B25: 888 | C25: JULY | D25: 703.75 | E25: JULY | F25: 947 | G25: JULY | H25: 6849.2 | I25: JULY | J25: 6242.6 | K25: JULY | L25: 1433.75 | M25: JULY | N25: 5371.75 | O25: JULY | P25: 2620.5
A26: AUGUST | B26: 901.6 | C26: AUGUST | D26: 941 | E26: AUGUST | F26: 991 | G26: AUGUST | H26: 7074.5 | I26: AUGUST | J26: 5509.75 | K26: AUGUST | L26: 1497.75 | M26: AUGUST | N26: 4596.2 | O26: AUGUST | P26: 2310
A27: SEPTEMBER | B27: ='[1]Main sheet'!E150 -> 823.25 | C27: SEPTEMBER | D27: 810.5 | E27: SEPTEMBER | F27: 1145 | G27: SEPTEMBER | H27: 7415.75 | I27: SEPTEMBER | J27: 3804.2 | K27: SEPTEMBER | L27: 1260.6 | M27: SEPTEMBER | N27: 3171 | O27: SEPTEMBER
A28: OCTOBER | B28: ='[1]Main sheet'!E154 -> 760 | C28: OCTOBER | D28: 716 | E28: OCTOBER | F28: 1248 | G28: OCTOBER | H28: 7383 | I28: OCTOBER | J28: 2553 | K28: OCTOBER | L28: 1147.333333 | M28: OCTOBER | N28: 2444.25 | O28: OCTOBER
A29: NOVEMBER | B29: 766 | C29: NOVEMBER | D29: 716 | E29: NOVEMBER | F29: 1764 | G29: NOVEMBER | H29: 7236 | I29: NOVEMBER | J29: 2023 | K29: NOVEMBER | L29: 1186 | M29: NOVEMBER | N29: 3159 | O29: NOVEMBER
A30: DECEMBER | B30: 853.75 | C30: DECEMBER | D30: 1030.5 | E30: DECEMBER | F30: 3097 | G30: DECEMBER | H30: 7369.8 | I30: DECEMBER | J30: 1853 | K30: DECEMBER | L30: 1952.2 | M30: DECEMBER | N30: 3755 | O30: DECEMBER
A32: USWC
B33: Ave by Month in 2018 | D33: Ave by Month in 2019 | F33: Ave by Month in 2020 | H33: Ave by Month in 2021 | J33: Ave by Month in 2022 | L33: Ave by Month in 2023 | N33: Ave by Month in 2024 | P33: Ave by Month in 2025
A34: JANUARY | B34: 1468 | C34: JANUARY | D34: 1995.25 | E34: JANUARY | F34: 1572 | G34: JANUARY | H34: 4035 | I34: JANUARY | J34: 7980.25 | K34: JANUARY | L34: 1398.333333 | M34: JANUARY | N34: 3870.25 | O34: JANUARY | P34: 4428.6
A35: FEBRUARY | B35: 1483.5 | C35: FEBRUARY | D35: 1849 | E35: FEBRUARY | F35: 1395 | G35: FEBRUARY | H35: 4030 | I35: FEBRUARY | J35: 8079 | K35: FEBRUARY | L35: 1290.75 | M35: FEBRUARY | N35: 4843 | O35: FEBRUARY | P35: 3216.25
A36: MARCH | B36: 1096.6 | C36: MARCH | D36: 1456 | E36: MARCH | F36: 1509 | G36: MARCH | H36: 3991 | I36: MARCH | J36: 8049.5 | K36: MARCH | L36: 1165.4 | M36: MARCH | N36: 3821 | O36: MARCH | P36: 2076.25
A37: APRIL | B37: 1208.75 | C37: APRIL | D37: 1584 | E37: APRIL | F37: 1579 | G37: APRIL | H37: 4482 | I37: APRIL | J37: 7876.8 | K37: APRIL | L37: 1511.5 | M37: APRIL | N37: 3322.5 | O37: APRIL | P37: 2189.75
A38: MAY | B38: 1360.25 | C38: MAY | D38: 1386.71 | E38: MAY | F38: 1783 | G38: MAY | H38: 4676.5 | I38: MAY | J38: 7863 | K38: MAY | L38: 1391 | M38: MAY | N38: 5193.75 | O38: MAY | P38: 3231.4
A39: JUNE | B39: 1361.6 | C39: JUNE | D39: 1489.25 | E39: JUNE | F39: 2562 | G39: JUNE | H39: 4729 | I39: JUNE | J39: 7551.75 | K39: JUNE | L39: 1368.4 | M39: JUNE | N39: 7029.5 | O39: JUNE | P39: 3769
A40: JULY | B40: 1683.25 | C40: JULY | D40: 1570 | E40: JULY | F40: 2874 | G40: JULY | H40: 5241.6 | I40: JULY | J40: 6949.8 | K40: JULY | L40: 1720.5 | M40: JULY | N40: 7386 | O40: JULY | P40: 2123
A41: AUGUST | B41: 2130.4 | C41: AUGUST | D41: 1466.4 | E41: AUGUST | F41: 3407.25 | G41: AUGUST | H41: 5793.75 | I41: AUGUST | J41: 5892 | K41: AUGUST | L41: 2007 | M41: AUGUST | N41: 6197.8 | O41: AUGUST | P41: 1867.666667
A42: SEPTEMBER | B42: ='[1]Main sheet'!G150 -> 2339 | C42: SEPTEMBER | D42: 1419.75 | E42: SEPTEMBER | F42: 3824 | G42: SEPTEMBER | H42: 6308 | I42: SEPTEMBER | J42: 3115.2 | K42: SEPTEMBER | L42: 1916 | M42: SEPTEMBER | N42: 5323 | O42: SEPTEMBER
A43: OCTOBER | B43: ='[1]Main sheet'!G154 -> 2559 | C43: OCTOBER | D43: 1347 | E43: OCTOBER | F43: 3853 | G43: OCTOBER | H43: 6334 | I43: OCTOBER | J43: 2009.333333 | K43: OCTOBER | L43: 1799 | M43: OCTOBER | N43: 4772.75 | O43: OCTOBER
A44: NOVEMBER | B44: 2429 | C44: NOVEMBER | D44: 1421 | E44: NOVEMBER | F44: 3888 | G44: NOVEMBER | H44: 6663 | I44: NOVEMBER | J44: 1592 | K44: NOVEMBER | L44: 1817 | M44: NOVEMBER | N44: 4180.4 | O44: NOVEMBER
A45: DECEMBER | B45: 1902.75 | C45: DECEMBER | D45: 1413.75 | E45: DECEMBER | F45: 3969 | G45: DECEMBER | H45: 7372.6 | I45: DECEMBER | J45: 1426.2 | K45: DECEMBER | L45: 1908.4 | M45: DECEMBER | N45: 4027.75 | O45: DECEMBER
A47: USEC
B48: Ave by Month in 2018 | D48: Ave by Month in 2019 | F48: Ave by Month in 2020 | H48: Ave by Month in 2021 | J48: Ave by Month in 2022 | L48: Ave by Month in 2023 | N48: Ave by Month in 2024 | P48: Ave by Month in 2025
A49: January | B49: 2646.5 | C49: January | D49: 3120.75 | E49: January | F49: 2898 | G49: January | H49: 4742 | I49: JANUARY | J49: 11471 | K49: JANUARY | L49: 2817.666667 | M49: JANUARY | N49: 5604.75 | O49: JANUARY | P49: 6031.8
A50: February | B50: 2773.25 | C50: February | D50: 2953 | E50: February | F50: 2714 | G50: February | H50: 4804 | I50: FEBRUARY | J50: 10918.66667 | K50: FEBRUARY | L50: 2536.5 | M50: FEBRUARY | N50: 6410.333333 | O50: FEBRUARY | P50: 4444.25
A51: March | B51: 2129.2 | C51: March | D51: 2490 | E51: March | F51: 2784 | G51: March | H51: 4807 | I51: MARCH | J51: 10612.5 | K51: MARCH | L51: 2130.2 | M51: MARCH | N51: 5179.2 | O51: MARCH | P51: 3091.5
A52: April | B52: 2226.5 | C52: April | D52: 2655 | E52: April | F52: 2690 | G52: April | H52: 5536 | I52: APRIL | J52: 10579.8 | K52: APRIL | L52: 2410 | M52: APRIL | N52: 4317.5 | O52: APRIL | P52: 3260
A53: May | B53: 2349.75 | C53: May | D53: 2597.175 | E53: May | F53: 2661.4 | G53: May | H53: 7392 | I53: MAY | J53: 10553.25 | K53: MAY | L53: 2379 | M53: MAY | N53: 6319 | O53: MAY | P53: 4242.8
A54: June | B54: 2351.6 | C54: June | D54: 2539.75 | E54: June | F54: 3146 | G54: June | H54: 8721.75 | I54: JUNE | J54: 10051.5 | K54: JUNE | L54: 2320.2 | M54: JUNE | N54: 8247.75 | O54: JUNE | P54: 5938.25
A55: July | B55: 2707.25 | C55: July | D55: 2829.75 | E55: July | F55: 3371 | G55: July | H55: 9636.4 | I55: JULY | J55: 9521.8 | K55: JULY | L55: 2639.75 | M55: JULY | N55: 9783.5 | O55: JULY | P55: 3821.5
A56: August | B56: 3266.4 | C56: August | D56: 2626.2 | E56: August | F56: 3894.25 | G56: August | H56: 10658.25 | I56: AUGUST | J56: 9057.25 | K56: AUGUST | L56: 3061.5 | M56: AUGUST | N56: 8942.2 | O56: AUGUST | P56: 2879
A57: September | B57: ='[1]Main sheet'!I150 -> 3462.75 | C57: September | D57: 2461 | E57: September | F57: 4583 | G57: September | H57: 11778.5 | I57: SEPTEMBER | J57: 7191.6 | K57: SEPTEMBER | L57: 2635.4 | M57: SEPTEMBER | N57: 6615.25 | O57: SEPTEMBER
A58: October | B58: ='[1]Main sheet'!I154 -> 3300.666667 | C58: October | D58: 2373 | E58: October | F58: 4626 | G58: October | H58: 10812 | I58: OCTOBER | J58: 5591 | K58: OCTOBER | L58: 2263 | M58: OCTOBER | N58: 5312 | O58: OCTOBER
A59: November | B59: 3604 | C59: November | D59: 2503 | E59: November | F59: 4683 | G59: November | H59: 10465 | I59: NOVEMBER | J59: 4169.25 | K59: NOVEMBER | L59: 2363.75 | M59: NOVEMBER | N59: 5110.4 | O59: NOVEMBER
A60: December | B60: 2946.25 | C60: December | D60: 2540.75 | E60: December | F60: 4814 | G60: December | H60: 11036 | I60: DECEMBER | J60: 3211.8 | K60: DECEMBER | L60: 2846.6 | M60: DECEMBER | N60: 5533.5 | O60: DECEMBER
A62: PERSIAN GULF AND RED SEA
B63: Ave by Month in 2018 | D63: Ave by Month in 2019 | F63: Ave by Month in 2020 | H63: Ave by Month in 2021 | J63: Ave by Month in 2022 | L63: Ave by Month in 2023 | N63: Ave by Month in 2024 | P63: Ave by Month in 2025
A64: January | B64: 521.5 | C64: January | D64: 779.25 | E64: January | F64: 1161 | G64: January | H64: 1942 | I64: JANUARY | J64: 3648.75 | K64: JANUARY | L64: 1013.666667 | M64: JANUARY | N64: 2051.5 | O64: JANUARY | P64: 1320
A65: February | B65: 583.5 | C65: February | D65: 704.67 | E65: February | F65: 1034 | G65: February | H65: 1820 | I65: FEBRUARY | J65: 3487.333333 | K65: FEBRUARY | L65: 1070 | M65: FEBRUARY | N65: 1612.333333 | O65: FEBRUARY | P65: 1113
A66: March | B66: 390 | C66: March | D66: 621 | E66: March | F66: 997 | G66: March | H66: 1422 | I66: MARCH | J66: 3134.75 | K66: MARCH | L66: 931.2 | M66: MARCH | N66: 1584.8 | O66: MARCH | P66: 1049.5
A67: April | B67: 383.5 | C67: April | D67: 712 | E67: April | F67: 767 | G67: April | H67: 1904 | I67: APRIL | J67: 2500.6 | K67: APRIL | L67: 1231 | M67: APRIL | N67: 2006 | O67: APRIL | P67: 1256.5
A68: May | B68: 458.5 | C68: May | D68: 665.86 | E68: May | F68: 626.4 | G68: May | H68: 2617 | I68: MAY | J68: 2527.75 | K68: MAY | L68: 1290 | M68: MAY | N68: 2319.5 | O68: MAY | P68: 1307.4
A69: June | B69: 527.6 | C69: June | D69: 809.5 | E69: June | F69: 475 | G69: June | H69: 2948.75 | I69: JUNE | J69: 3316 | K69: JUNE | L69: 1253.4 | M69: JUNE | N69: 2852.25 | O69: JUNE | P69: 2048.5
A70: July | B70: 411.5 | C70: July | D70: 753.25 | E70: July | F70: 672 | G70: July | H70: 3357 | I70: JULY | J70: 3148.6 | K70: JULY | L70: 983.75 | M70: JULY | N70: 2280.25 | O70: JULY | P70: 1499
A71: August | B71: 379 | C71: August | D71: 684.4 | E71: August | F71: 799 | G71: August | H71: 3680.75 | I71: AUGUST | J71: 2315.25 | K71: AUGUST | L71: 871 | M71: AUGUST | N71: 2057.8 | O71: AUGUST | P71: 1255.666667
A72: September | B72: ='[1]Main sheet'!K150 -> 375.25 | C72: September | D72: 579 | E72: September | F72: 1007.25 | G72: September | H72: 3914 | I72: SEPTEMBER | J72: 1276 | K72: SEPTEMBER | L72: 875.8 | M72: SEPTEMBER | N72: 1220.5 | O72: SEPTEMBER
A73: October | B73: ='[1]Main sheet'!K154 -> 427.6666667 | C73: October | D73: 647 | E73: October | F73: 1068 | G73: October | H73: 3745 | I73: OCTOBER | J73: 1449.666667 | K73: OCTOBER | L73: 968 | M73: OCTOBER | N73: 1142 | O73: OCTOBER
A74: November | B74: 520 | C74: November | D74: 793 | E74: November | F74: 1319 | G74: November | H74: 3380 | I74: NOVEMBER | J74: 1526.25 | K74: NOVEMBER | L74: 1262.5 | M74: NOVEMBER | N74: 1417.4 | O74: NOVEMBER
A75: December | B75: 579.5 | C75: December | D75: 1069.25 | E75: December | F75: 1520 | G75: December | H75: 3670.6 | I75: DECEMBER | J75: 1166.6 | K75: DECEMBER | L75: 1401 | M75: DECEMBER | N75: 1463.5 | O75: DECEMBER
A77: AUSTRALIA / NZ
B78: Ave by Month in 2018 | D78: Ave by Month in 2019 | F78: Ave by Month in 2020 | H78: Ave by Month in 2021 | J78: Ave by Month in 2022 | L78: Ave by Month in 2023 | N78: Ave by Month in 2024 | P78: Ave by Month in 2025
A79: January | B79: 1334.25 | C79: January | D79: 560.25 | E79: January | F79: 944 | G79: January | H79: 2427 | I79: JANUARY | J79: 4631.5 | K79: JANUARY | L79: 549.6666667 | M79: JANUARY | N79: 1204.75 | O79: JANUARY | P79: 1640.2
A80: February | B80: 1304 | C80: February | D80: 500.67 | E80: February | F80: 868 | G80: February | H80: 2393 | I80: FEBRUARY | J80: 4498.666667 | K80: FEBRUARY | L80: 392.5 | M80: FEBRUARY | N80: 1230 | O80: FEBRUARY | P80: 905.75
A81: March | B81: 972.6 | C81: March | D81: 377 | E81: March | F81: 815 | G81: March | H81: 2058 | I81: MARCH | J81: 4006.75 | K81: MARCH | L81: 306.6 | M81: MARCH | N81: 921.4 | O81: MARCH | P81: 736.75
A82: April | B82: 848 | C82: April | D82: 326 | E82: April | F82: 903 | G82: April | H82: 1846 | I82: APRIL | J82: 3518.4 | K82: APRIL | L82: 245.75 | M82: APRIL | N82: 826.75 | O82: APRIL | P82: 868.75
A83: May | B83: 830.25 | C83: May | D83: 273.0075 | E83: May | F83: 945.6 | G83: May | H83: 1990.5 | I83: MAY | J83: 3309.25 | K83: MAY | L83: 246 | M83: MAY | N83: 1264.75 | O83: MAY | P83: 750.6
A84: June | B84: 732.8 | C84: June | D84: 264.25 | E84: June | F84: 1024 | G84: June | H84: 2355.25 | I84: JUNE | J84: 3388.5 | K84: JUNE | L84: 265.6 | M84: JUNE | N84: 1406.25 | O84: JUNE | P84: 757.5
A85: July | B85: 736 | C85: July | D85: 438.25 | E85: July | F85: 1080 | G85: July | H85: 3036.4 | I85: JULY | J85: 3191 | K85: JULY | L85: 268 | M85: JULY | N85: 1411.5 | O85: JULY | P85: 996.75
A86: August | B86: 671.4 | C86: August | D86: 641.6 | E86: August | F86: 1128 | G86: August | H86: 3744.5 | I86: AUGUST | J86: 2885 | K86: AUGUST | L86: 437 | M86: AUGUST | N86: 1915 | O86: AUGUST | P86: 1185.666667
A87: September | B87: ='[1]Main sheet'!M150 -> 545.25 | C87: September | D87: 857.75 | E87: September | F87: 1363 | G87: September | H87: 4273.5 | I87: SEPTEMBER | J87: 2243.8 | K87: SEPTEMBER | L87: 609 | M87: SEPTEMBER | N87: 2184 | O87: SEPTEMBER
A88: October | B88: ='[1]Main sheet'!M154 -> 736.6666667 | C88: October | D88: 1116 | E88: October | F88: 1828 | G88: October | H88: 4453 | I88: OCTOBER | J88: 1471 | K88: OCTOBER | L88: 721 | M88: OCTOBER | N88: 2014.5 | O88: OCTOBER
A89: November | B89: 677 | C89: November | D89: 1033 | E89: November | F89: 2352 | G89: November | H89: 4455 | I89: NOVEMBER | J89: 905.25 | K89: NOVEMBER | L89: 905.5 | M89: NOVEMBER | N89: 2076.4 | O89: NOVEMBER
A90: December | B90: 581.25 | C90: December | D90: 801 | E90: December | F90: 2455 | G90: December | H90: 4527 | I90: DECEMBER | J90: 691.6 | K90: DECEMBER | L90: 945 | M90: DECEMBER | N90: 1938.25 | O90: DECEMBER
A92: EAST WEST AFRICA
B93: Ave by Month in 2018 | D93: Ave by Month in 2019 | F93: Ave by Month in 2020 | H93: Ave by Month in 2021 | J93: Ave by Month in 2022 | L93: Ave by Month in 2023 | N93: Ave by Month in 2024 | P93: Ave by Month in 2025
A94: January | B94: 1446.5 | C94: January | D94: 2553 | E94: January | F94: 2856 | G94: January | H94: 6412 | I94: JANUARY | J94: 7429.75 | K94: JANUARY | L94: 3096.333333 | M94: JANUARY | N94: 2347.5 | O94: JANUARY | P94: 4323.6
A95: February | B95: 1792.75 | C95: February | D95: 2533.67 | E95: February | F95: 2930 | G95: February | H95: 6536 | I95: FEBRUARY | J95: 7177.666667 | K95: FEBRUARY | L95: 2833 | M95: FEBRUARY | N95: 2447 | O95: FEBRUARY | P95: 4004.5
A96: March | B96: 1446.4 | C96: March | D96: 2657 | E96: March | F96: 2891 | G96: March | H96: 5910 | I96: MARCH | J96: 6831.25 | K96: MARCH | L96: 2703.4 | M96: MARCH | N96: 2233.6 | O96: MARCH | P96: 3663.25
A97: April | B97: 1387.75 | C97: April | D97: 2670 | E97: April | F97: 2757 | G97: April | H97: 6360 | I97: APRIL | J97: 6584.2 | K97: APRIL | L97: 2687.25 | M97: APRIL | N97: 2429.25 | O97: APRIL | P97: 3811.25
A98: May | B98: 1875 | C98: May | D98: 2574 | E98: May | F98: 2773.2 | G98: May | H98: 6763.25 | I98: MAY | J98: 6421.75 | K98: MAY | L98: 2743 | M98: MAY | N98: 4968.75 | O98: MAY | P98: 3803.8
A99: June | B99: 2206.8 | C99: June | D99: 2401.75 | E99: June | F99: 2741 | G99: June | H99: 7593.25 | I99: JUNE | J99: 6308 | K99: JUNE | L99: 2729.6 | M99: JUNE | N99: 5871.75 | O99: JUNE | P99: 4394.5
A100: July | B100: 2045.75 | C100: July | D100: 2430 | E100: July | F100: 2685 | G100: July | H100: 8025 | I100: JULY | J100: 6152.6 | K100: JULY | L100: 2673.75 | M100: JULY | N100: 5204.75 | O100: JULY | P100: 4380.5
A101: August | B101: 1955.2 | C101: August | D101: 2502 | E101: August | F101: 2706.5 | G101: August | H101: 8271.75 | I101: AUGUST | J101: 5833.25 | K101: AUGUST | L101: 2519.5 | M101: AUGUST | N101: 5004.8 | O101: AUGUST | P101: 4113.5
A102: September | B102: ='[1]Main sheet'!O150 -> 1791.25 | C102: September | D102: 2325 | E102: September | F102: 3110.5 | G102: September | H102: 8341.5 | I102: SEPTEMBER | J102: 5087.6 | K102: SEPTEMBER | L102: 2317.2 | M102: SEPTEMBER | N102: 4646 | O102: SEPTEMBER
A103: October | B103: ='[1]Main sheet'!O154 -> 2103.666667 | C103: October | D103: 2310 | E103: October | F103: 3393.2 | G103: October | H103: 8089 | I103: OCTOBER | J103: 4786 | K103: OCTOBER | L103: 2250 | M103: OCTOBER | N103: 4450.25 | O103: OCTOBER
A104: November | B104: 2517 | C104: November | D104: 2349 | E104: November | F104: 4094.5 | G104: November | H104: 7576 | I104: NOVEMBER | J104: 4241.75 | K104: NOVEMBER | L104: 2279.75 | M104: NOVEMBER | N104: 4548.2 | O104: NOVEMBER
A105: December | B105: 2410.25 | C105: December | D105: 2331 | E105: December | F105: 5095.25 | G105: December | H105: 7451.6 | I105: DECEMBER | J105: 3469.4 | K105: DECEMBER | L105: 2138.6 | M105: DECEMBER | N105: 4529 | O105: DECEMBER
A107: SOUTH AFRICA
B108: Ave by Month in 2018 | D108: Ave by Month in 2019 | F108: Ave by Month in 2020 | H108: Ave by Month in 2021 | J108: Ave by Month in 2022 | L108: Ave by Month in 2023 | N108: Ave by Month in 2024 | P108: Ave by Month in 2025
A109: January | B109: 1237 | C109: January | D109: 851.25 | E109: January | F109: 1120 | G109: January | H109: 3196 | I109: JANUARY | J109: 6322 | K109: JANUARY | L109: 2728 | M109: JANUARY | N109: 1811.25 | O109: JANUARY | P109: 3284.6
A110: February | B110: 1300 | C110: February | D110: 818 | E110: February | F110: 1032 | G110: February | H110: 2981 | I110: FEBRUARY | J110: 6133 | K110: FEBRUARY | L110: 2432.5 | M110: FEBRUARY | N110: 1879 | O110: FEBRUARY | P110: 2789.25
A111: March | B111: 1111.2 | C111: March | D111: 704 | E111: March | F111: 969 | G111: March | H111: 2664 | I111: MARCH | J111: 5816.25 | K111: MARCH | L111: 1926.8 | M111: MARCH | N111: 1767.2 | O111: MARCH | P111: 2199
A112: April | B112: 922.5 | C112: April | D112: 642 | E112: April | F112: 834 | G112: April | H112: 3183 | I112: APRIL | J112: 5516.8 | K112: APRIL | L112: 1557.5 | M112: APRIL | N112: 1845.25 | O112: APRIL | P112: 2115.5
A113: May | B113: 802.75 | C113: May | D113: 636.9125 | E113: May | F113: 744.2 | G113: May | H113: 3902.75 | I113: MAY | J113: 5422.25 | K113: MAY | L113: 1404 | M113: MAY | N113: 3683.5 | O113: MAY | P113: 2040.8
A114: June | B114: 796.4 | C114: June | D114: 748.75 | E114: June | F114: 646 | G114: June | H114: 4346.25 | I114: JUNE | J114: 5584.75 | K114: JUNE | L114: 1335.6 | M114: JUNE | N114: 5452 | O114: JUNE | P114: 2453.75
A115: July | B115: 585.75 | C115: July | D115: 765 | E115: July | F115: 706 | G115: July | H115: 4679.6 | I115: JULY | J115: 5491.2 | K115: JULY | L115: 1305.5 | M115: JULY | N115: 5088.5 | O115: JULY | P115: 2823.25
A116: August | B116: 547.4 | C116: August | D116: 762.8 | E116: August | F116: 874 | G116: August | H116: 5641.25 | I116: AUGUST | J116: 5220 | K116: AUGUST | L116: 1351.75 | M116: AUGUST | N116: 4816.2 | O116: AUGUST | P116: 3008.666667
A117: September | B117: ='[1]Main sheet'!Q150 -> 740.5 | C117: September | D117: 807.5 | E117: September | F117: 1484.25 | G117: September | H117: 6826 | I117: SEPTEMBER | J117: 4672 | K117: SEPTEMBER | L117: 1328.8 | M117: SEPTEMBER | N117: 4442.75 | O117: SEPTEMBER
A118: October | B118: ='[1]Main sheet'!Q154 -> 942.6666667 | C118: October | D118: 933 | E118: October | F118: 1853.6 | G118: October | H118: 6967 | I118: OCTOBER | J118: 4344.333333 | K118: OCTOBER | L118: 1463 | M118: OCTOBER | N118: 4234 | O118: OCTOBER
A119: November | B119: 884 | C119: November | D119: 969 | E119: November | F119: 1892.75 | G119: November | H119: 6539 | I119: NOVEMBER | J119: 3819.75 | K119: NOVEMBER | L119: 1517 | M119: NOVEMBER | N119: 4020.2 | O119: NOVEMBER
A120: December | B120: 856.75 | C120: December | D120: 1019.25 | E120: December | F120: 2362 | G120: December | H120: 6451.2 | I120: DECEMBER | J120: 3094.8 | K120: DECEMBER | L120: 1583.4 | M120: DECEMBER | N120: 3551 | O120: DECEMBER
A122: SOUTH AMERICA
B123: Ave by Month in 2018 | D123: Ave by Month in 2019 | F123: Ave by Month in 2020 | H123: Ave by Month in 2021 | J123: Ave by Month in 2022 | L123: Ave by Month in 2023 | N123: Ave by Month in 2024 | P123: Ave by Month in 2025
A124: January | B124: 2503 | C124: January | D124: 1456.5 | E124: January | F124: 2069 | G124: January | H124: 8625 | I124: JANUARY | J124: 10079 | K124: JANUARY | L124: 1137.666667 | M124: JANUARY | N124: 2788.75 | O124: JANUARY | P124: 4402.2
A125: February | B125: 2561 | C125: February | D125: 1319.33 | E125: February | F125: 1714 | G125: February | H125: 8303 | I125: FEBRUARY | J125: 9051.666667 | K125: FEBRUARY | L125: 1494.5 | M125: FEBRUARY | N125: 2581.333333 | O125: FEBRUARY | P125: 3127.75
A126: March | B126: 2074 | C126: March | D126: 1467 | E126: March | F126: 1426 | G126: March | H126: 7205 | I126: MARCH | J126: 7829.5 | K126: MARCH | L126: 1461.8 | M126: MARCH | N126: 2617.8 | O126: MARCH | P126: 1929
A127: April | B127: 1925.25 | C127: April | D127: 1305 | E127: April | F127: 982 | G127: April | H127: 7208 | I127: APRIL | J127: 6606 | K127: APRIL | L127: 1931.25 | M127: APRIL | N127: 3871.25 | O127: APRIL | P127: 1497.25
A128: May | B128: 1927 | C128: May | D128: 997.6575 | E128: May | F128: 1073.8 | G128: May | H128: 7941.25 | I128: MAY | J128: 6333.25 | K128: MAY | L128: 1992 | M128: MAY | N128: 6655 | O128: MAY | P128: 1864.2
A129: June | B129: 1875.4 | C129: June | D129: 1791 | E129: June | F129: 914 | G129: June | H129: 9178 | I129: JUNE | J129: 7358.5 | K129: JUNE | L129: 2373.4 | M129: JUNE | N129: 8402.75 | O129: JUNE | P129: 5090.5
A130: July | B130: 1673 | C130: July | D130: 2051 | E130: July | F130: 633 | G130: July | H130: 9485.8 | I130: JULY | J130: 9114.4 | K130: JULY | L130: 2593.5 | M130: JULY | N130: 8484.25 | O130: JULY | P130: 5852.75
A131: August | B131: 1642.8 | C131: August | D131: 1989.8 | E131: August | F131: 1379.25 | G131: August | H131: 9859.25 | I131: AUGUST | J131: 9134.5 | K131: AUGUST | L131: 2321.75 | M131: AUGUST | N131: 7768.8 | O131: AUGUST | P131: 3937.666667
A132: September | B132: ='[1]Main sheet'!S150 -> 1164.25 | C132: September | D132: 1865.5 | E132: September | F132: 3178 | G132: September | H132: 10136.5 | I132: SEPTEMBER | J132: 6402 | K132: SEPTEMBER | L132: 1868.8 | M132: SEPTEMBER | N132: 7063.25 | O132: SEPTEMBER
A133: October | B133: ='[1]Main sheet'!S154 -> 1049 | C133: October | D133: 1858 | E133: October | F133: 3967.8 | G133: October | H133: 10209 | I133: OCTOBER | J133: 4906.666667 | K133: OCTOBER | L133: 2170.333333 | M133: OCTOBER | N133: 6325 | O133: OCTOBER
A134: November | B134: 1133 | C134: November | D134: 1859 | E134: November | F134: 4403 | G134: November | H134: 10135 | I134: NOVEMBER | J134: 2903 | K134: NOVEMBER | L134: 2734.75 | M134: NOVEMBER | N134: 5682 | O134: NOVEMBER
A135: December | B135: 762.25 | C135: December | D135: 1999.25 | E135: December | F135: 6135.25 | G135: December | H135: 10195.6 | I135: DECEMBER | J135: 1702.2 | K135: DECEMBER | L135: 2504.6 | M135: DECEMBER | N135: 5534.5 | O135: DECEMBER
A137: WEST JAPAN
B138: Ave by Month in 2018 | D138: Ave by Month in 2019 | F138: Ave by Month in 2020 | H138: Ave by Month in 2021 | J138: Ave by Month in 2022 | L138: Ave by Month in 2023 | N138: Ave by Month in 2024 | P138: Ave by Month in 2025
A139: January | B139: 211 | C139: January | D139: 226.5 | E139: January | F139: 226 | G139: January | H139: 247 | I139: JANUARY | J139: 312.5 | K139: JANUARY | L139: 326 | M139: JANUARY | N139: 291 | O139: JANUARY | P139: 307.4
A140: February | B140: 215.75 | C140: February | D140: 224.33 | E140: February | F140: 226 | G140: February | H140: 255 | I140: FEBRUARY | J140: 315.3333333 | K140: FEBRUARY | L140: 329 | M140: FEBRUARY | N140: 289 | O140: FEBRUARY | P140: 305
A141: March | B141: 215 | C141: March | D141: 227 | E141: March | F141: 227 | G141: March | H141: 250 | I141: MARCH | J141: 321.5 | K141: MARCH | L141: 324.2 | M141: MARCH | N141: 288.6 | O141: MARCH | P141: 307.75
A142: April | B142: 221.25 | C142: April | D142: 232 | E142: April | F142: 234 | G142: April | H142: 254 | I142: APRIL | J142: 343.2 | K142: APRIL | L142: 323 | M142: APRIL | N142: 293.5 | O142: APRIL | P142: 317.5
A143: May | B143: 228 | C143: May | D143: 232.035 | E143: May | F143: 230 | G143: May | H143: 282.25 | I143: MAY | J143: 344.5 | K143: MAY | L143: 322 | M143: MAY | N143: 291 | O143: MAY | P143: 315.4
A144: June | B144: 226.5 | C144: June | D144: 231 | E144: June | F144: 226 | G144: June | H144: 301.5 | I144: JUNE | J144: 341 | K144: JUNE | L144: 327 | M144: JUNE | N144: 293 | O144: JUNE | P144: 314.25
A145: July | B145: 226.25 | C145: July | D145: 234 | E145: July | F145: 229 | G145: July | H145: 286.6 | I145: JULY | J145: 337.2 | K145: JULY | L145: 326.5 | M145: JULY | N145: 293 | O145: JULY | P145: 313
A146: August | B146: 225.6 | C146: August | D146: 232.8 | E146: August | F146: 231 | G146: August | H146: 275.75 | I146: AUGUST | J146: 318.75 | K146: AUGUST | L146: 317 | M146: AUGUST | N146: 293 | O146: AUGUST | P146: 313
A147: September | B147: ='[1]Main sheet'!U150 -> 228.5 | C147: September | D147: 233 | E147: September | F147: 232 | G147: September | H147: 323.5 | I147: SEPTEMBER | J147: 321.8 | K147: SEPTEMBER | L147: 307.8 | M147: SEPTEMBER | N147: 299.5 | O147: SEPTEMBER
A148: October | B148: ='[1]Main sheet'!U154 -> 222.3333333 | C148: October | D148: 227 | E148: October | F148: 232.2 | G148: October | H148: 349 | I148: OCTOBER | J148: 322.6666667 | K148: OCTOBER | L148: 306.3333333 | M148: OCTOBER | N148: 302.25 | O148: OCTOBER
A149: November | B149: 227 | C149: November | D149: 226 | E149: November | F149: 248.25 | G149: November | H149: 317 | I149: NOVEMBER | J149: 327.25 | K149: NOVEMBER | L149: 305.5 | M149: NOVEMBER | N149: 304 | O149: NOVEMBER
A150: December | B150: 226 | C150: December | D150: 226 | E150: December | F150: 246.75 | G150: December | H150: 302.4 | I150: DECEMBER | J150: 328.6 | K150: DECEMBER | L150: 300.4 | M150: DECEMBER | N150: 307.5 | O150: DECEMBER
A152: EAST JAPAN
B153: Ave by Month in 2018 | D153: Ave by Month in 2019 | F153: Ave by Month in 2020 | H153: Ave by Month in 2021 | J153: Ave by Month in 2022 | L153: Ave by Month in 2023 | N153: Ave by Month in 2024 | P153: Ave by Month in 2025
A154: January | B154: 211.5 | C154: January | D154: 227.75 | E154: January | F154: 241 | G154: January | H154: 254 | I154: JANUARY | J154: 282.75 | K154: JANUARY | L154: 331 | M154: JANUARY | N154: 301.25 | O154: JANUARY | P154: 309.8
A155: February | B155: 217.5 | C155: February | D155: 224.33 | E155: February | F155: 236 | G155: February | H155: 264 | I155: FEBRUARY | J155: 295.3333333 | K155: FEBRUARY | L155: 329.25 | M155: FEBRUARY | N155: 302 | O155: FEBRUARY | P155: 308
A156: March | B156: 217.2 | C156: March | D156: 229 | E156: March | F156: 240 | G156: March | H156: 255 | I156: MARCH | J156: 308.75 | K156: MARCH | L156: 328 | M156: MARCH | N156: 300.6 | O156: MARCH | P156: 312.5
A157: April | B157: 222.5 | C157: April | D157: 233 | E157: April | F157: 242 | G157: April | H157: 260 | I157: APRIL | J157: 332.6 | K157: APRIL | L157: 331.25 | M157: APRIL | N157: 305.25 | O157: APRIL | P157: 322.5
A158: May | B158: 227 | C158: May | D158: 235.155 | E158: May | F158: 242.4 | G158: May | H158: 286.75 | I158: MAY | J158: 351 | K158: MAY | L158: 330 | M158: MAY | N158: 304.5 | O158: MAY | P158: 320.2
A159: June | B159: 225.25 | C159: June | D159: 233.5 | E159: June | F159: 238 | G159: June | H159: 307.5 | I159: JUNE | J159: 352.5 | K159: JUNE | L159: 327.4 | M159: JUNE | N159: 299 | O159: JUNE | P159: 320
A160: July | B160: 223.5 | C160: July | D160: 234 | E160: July | F160: 238 | G160: July | H160: 287.8 | I160: JULY | J160: 338.6 | K160: JULY | L160: 334.5 | M160: JULY | N160: 299 | O160: JULY | P160: 322
A161: August | B161: 225.6 | C161: August | D161: 234 | E161: August | F161: 238 | G161: August | H161: 276.5 | I161: AUGUST | J161: 308 | K161: AUGUST | L161: 325.5 | M161: AUGUST | N161: 299 | O161: AUGUST | P161: 322.6666667
A162: September | B162: ='[1]Main sheet'!W150 -> 228.5 | C162: September | D162: 235 | E162: September | F162: 238 | G162: September | H162: 316.75 | I162: SEPTEMBER | J162: 306.8 | K162: SEPTEMBER | L162: 319.8 | M162: SEPTEMBER | N162: 306.75 | O162: SEPTEMBER
A163: October | B163: ='[1]Main sheet'!W154 -> 223 | C163: October | D163: 232 | E163: October | F163: 238.2 | G163: October | H163: 335 | I163: OCTOBER | J163: 299.3333333 | K163: OCTOBER | L163: 319 | M163: OCTOBER | N163: 305 | O163: OCTOBER
A164: November | B164: 227 | C164: November | D164: 240 | E164: November | F164: 252.5 | G164: November | H164: 304 | I164: NOVEMBER | J164: 315 | K164: NOVEMBER | L164: 319.5 | M164: NOVEMBER | N164: 305.4 | O164: NOVEMBER
A165: December | B165: 227 | C165: December | D165: 240.25 | E165: December | F165: 251 | G165: December | H165: 279.4 | I165: DECEMBER | J165: 334.2 | K165: DECEMBER | L165: 309.4 | M165: DECEMBER | N165: 309.75 | O165: DECEMBER
A167: SOUTHEAST ASIA
B168: Ave by Month in 2018 | D168: Ave by Month in 2019 | F168: Ave by Month in 2020 | H168: Ave by Month in 2021 | J168: Ave by Month in 2022 | L168: Ave by Month in 2023 | N168: Ave by Month in 2024 | P168: Ave by Month in 2025
A169: January | B169: 153.5 | C169: January | D169: 155 | E169: January | F169: 189 | G169: January | H169: 960 | I169: JANUARY | J169: 1513.25 | K169: JANUARY | L169: 161 | M169: JANUARY | N169: 303.75 | O169: JANUARY | P169: 551.8
A170: February | B170: 162 | C170: February | D170: 152.33 | E170: February | F170: 187 | G170: February | H170: 1003 | I170: FEBRUARY | J170: 1368 | K170: FEBRUARY | L170: 155.25 | M170: FEBRUARY | N170: 301.3333333 | O170: FEBRUARY | P170: 448
A171: March | B171: 144 | C171: March | D171: 148 | E171: March | F171: 201 | G171: March | H171: 955 | I171: MARCH | J171: 1145.25 | K171: MARCH | L171: 188 | M171: MARCH | N171: 281.6 | O171: MARCH | P171: 441
A172: April | B172: 142.75 | C172: April | D172: 144 | E172: April | F172: 201 | G172: April | H172: 855 | I172: APRIL | J172: 1038 | K172: APRIL | L172: 190.5 | M172: APRIL | N172: 291.25 | O172: APRIL | P172: 449.25
A173: May | B173: 139.25 | C173: May | D173: 140.1675 | E173: May | F173: 174.6 | G173: May | H173: 889.75 | I173: MAY | J173: 997.75 | K173: MAY | L173: 175 | M173: MAY | N173: 441.25 | O173: MAY | P173: 438.25
A174: June | B174: 152.2 | C174: June | D174: 139.5 | E174: June | F174: 158 | G174: June | H174: 922.5 | I174: JUNE | J174: 1056 | K174: JUNE | L174: 165.8 | M174: JUNE | N174: 697 | O174: JUNE | P174: 454.25
A175: July | B175: 142.25 | C175: July | D175: 125 | E175: July | F175: 145 | G175: July | H175: 873.4 | I175: JULY | J175: 1035.4 | K175: JULY | L175: 150.25 | M175: JULY | N175: 716.75 | O175: JULY | P175: 443.75
A176: August | B176: 138.6 | C176: August | D176: 114.6 | E176: August | F176: 133.25 | G176: August | H176: 863.25 | I176: AUGUST | J176: 740.25 | K176: AUGUST | L176: 141.75 | M176: AUGUST | N176: 568.4 | O176: AUGUST | P176: 409
A177: September | B177: ='[1]Main sheet'!Y150 -> 137.25 | C177: September | D177: 105.75 | E177: September | F177: 135.75 | G177: September | H177: 922.25 | I177: SEPTEMBER | J177: 432.4 | K177: SEPTEMBER | L177: 169.2 | M177: SEPTEMBER | N177: 430.5 | O177: SEPTEMBER
A178: October | B178: ='[1]Main sheet'!Y154 -> 146.6666667 | C178: October | D178: 115 | E178: October | F178: 169.6 | G178: October | H178: 966 | I178: OCTOBER | J178: 349 | K178: OCTOBER | L178: 184 | M178: OCTOBER | N178: 417.25 | O178: OCTOBER
A179: November | B179: 148 | C179: November | D179: 153 | E179: November | F179: 695.25 | G179: November | H179: 1019 | I179: NOVEMBER | J179: 332.75 | K179: NOVEMBER | L179: 194 | M179: NOVEMBER | N179: 622.8 | O179: NOVEMBER
A180: December | B180: 148.25 | C180: December | D180: 163 | E180: December | F180: 845.5 | G180: December | H180: 1417.2 | I180: DECEMBER | J180: 207 | K180: DECEMBER | L180: 203.4 | M180: DECEMBER | N180: 697.5 | O180: DECEMBER
A182: KOREA
B183: Ave by Month in 2018 | D183: Ave by Month in 2019 | F183: Ave by Month in 2020 | H183: Ave by Month in 2021 | J183: Ave by Month in 2022 | L183: Ave by Month in 2023 | N183: Ave by Month in 2024 | P183: Ave by Month in 2025
A184: January | B184: 152.25 | C184: January | D184: 145.75 | E184: January | F184: 120 | G184: January | H184: 200 | I184: JANUARY | J184: 446.5 | K184: JANUARY | L184: 238 | M184: JANUARY | N184: 147.5 | O184: JANUARY | P184: 139.4
A185: February | B185: 161.25 | C185: February | D185: 153 | E185: February | F185: 118 | G185: February | H185: 318 | I185: FEBRUARY | J185: 393.3333333 | K185: FEBRUARY | L185: 214 | M185: FEBRUARY | N185: 156 | O185: FEBRUARY | P185: 137.25
A186: March | B186: 146.8 | C186: March | D186: 150 | E186: March | F186: 118 | G186: March | H186: 300 | I186: MARCH | J186: 363.5 | K186: MARCH | L186: 194.6 | M186: MARCH | N186: 154.4 | O186: MARCH | P186: 138
A187: April | B187: 169.25 | C187: April | D187: 128 | E187: April | F187: 120 | G187: April | H187: 310 | I187: APRIL | J187: 343.6 | K187: APRIL | L187: 175 | M187: APRIL | N187: 158 | O187: APRIL | P187: 144
A188: May | B188: 201.75 | C188: May | D188: 118.335 | E188: May | F188: 120 | G188: May | H188: 312.5 | I188: MAY | J188: 330.25 | K188: MAY | L188: 149 | M188: MAY | N188: 166.5 | O188: MAY | P188: 143.6
A189: June | B189: 184.8 | C189: June | D189: 117.75 | E189: June | F189: 129 | G189: June | H189: 255.75 | I189: JUNE | J189: 329.75 | K189: JUNE | L189: 137.6 | M189: JUNE | N189: 166.75 | O189: JUNE | P189: 136.5
A190: July | B190: 162.5 | C190: July | D190: 123 | E190: July | F190: 119 | G190: July | H190: 215.8 | I190: JULY | J190: 356.8 | K190: JULY | L190: 131 | M190: JULY | N190: 164.5 | O190: JULY | P190: 135.75
A191: August | B191: 156 | C191: August | D191: 117 | E191: August | F191: 117.75 | G191: August | H191: 199.5 | I191: AUGUST | J191: 297 | K191: AUGUST | L191: 154.25 | M191: AUGUST | N191: 161.8 | O191: AUGUST | P191: 137.3333333
A192: September | B192: ='[1]Main sheet'!AA150 -> 159 | C192: September | D192: 117 | E192: September | F192: 119 | G192: September | H192: 303.25 | I192: SEPTEMBER | J192: 260.2 | K192: SEPTEMBER | L192: 145.8 | M192: SEPTEMBER | N192: 142.75 | O192: SEPTEMBER
A193: October | B193: ='[1]Main sheet'!AA154 -> 158.6666667 | C193: October | D193: 125 | E193: October | F193: 126.8 | G193: October | H193: 351 | I193: OCTOBER | J193: 254.3333333 | K193: OCTOBER | L193: 141.3333333 | M193: OCTOBER | N193: 144.5 | O193: OCTOBER
A194: November | B194: 153 | C194: November | D194: 130 | E194: November | F194: 181 | G194: November | H194: 342 | I194: NOVEMBER | J194: 254.75 | K194: NOVEMBER | L194: 140 | M194: NOVEMBER | N194: 141.8 | O194: NOVEMBER
A195: December | B195: 150.5 | C195: December | D195: 118.75 | E195: December | F195: 201.5 | G195: December | H195: 366.6 | I195: DECEMBER | J195: 248 | K195: DECEMBER | L195: 137.4 | M195: DECEMBER | N195: 139 | O195: DECEMBER
A197: Central/South America West Coast(Manzanillo)
B198: Ave by Month in 2018 | D198: Ave by Month in 2019 | F198: Ave by Month in 2020 | H198: Ave by Month in 2021 | J198: Ave by Month in 2022 | L198: Ave by Month in 2023 | N198: Ave by Month in 2024 | P198: Ave by Month in 2025
A199: January | C199: January | E199: January | G199: January | I199: JANUARY | K199: JANUARY | M199: JANUARY | O199: JANUARY | P199: 1676.016667
A200: February | C200: February | E200: February | G200: February | I200: FEBRUARY | K200: FEBRUARY | M200: FEBRUARY | O200: FEBRUARY | P200: 1836.255
A201: March | C201: March | E201: March | G201: March | I201: MARCH | K201: MARCH | M201: MARCH | O201: MARCH | P201: 1464.57
A202: April | C202: April | E202: April | G202: April | I202: APRIL | K202: APRIL | M202: APRIL | O202: APRIL | P202: 1471.6675
A203: May | C203: May | E203: May | G203: May | I203: MAY | K203: MAY | M203: MAY | O203: MAY | P203: 2155.962
A204: June | C204: June | E204: June | G204: June | I204: JUNE | K204: JUNE | M204: JUNE | O204: JUNE | P204: 3299.5725
A205: July | C205: July | E205: July | G205: July | I205: JULY | K205: JULY | M205: JULY | O205: JULY | P205: 2061.25
A206: August | C206: August | E206: August | G206: August | I206: AUGUST | K206: AUGUST | M206: AUGUST | O206: AUGUST | P206: 2238
A207: September | C207: September | E207: September | G207: September | I207: SEPTEMBER | K207: SEPTEMBER | M207: SEPTEMBER | O207: SEPTEMBER
A208: October | C208: October | E208: October | G208: October | I208: OCTOBER | K208: OCTOBER | M208: OCTOBER | O208: OCTOBER
A209: November | C209: November | E209: November | G209: November | I209: NOVEMBER | K209: NOVEMBER | M209: NOVEMBER | O209: NOVEMBER
A210: December | C210: December | E210: December | G210: December | I210: DECEMBER | K210: DECEMBER | M210: DECEMBER | O210: DECEMBER
A212: East Africa(Mombasa)
B213: Ave by Month in 2018 | D213: Ave by Month in 2019 | F213: Ave by Month in 2020 | H213: Ave by Month in 2021 | J213: Ave by Month in 2022 | L213: Ave by Month in 2023 | N213: Ave by Month in 2024 | P213: Ave by Month in 2025
A214: January | C214: January | E214: January | G214: January | I214: JANUARY | K214: JANUARY | M214: JANUARY | O214: JANUARY | P214: 1356.616667
A215: February | C215: February | E215: February | G215: February | I215: FEBRUARY | K215: FEBRUARY | M215: FEBRUARY | O215: FEBRUARY | P215: 1373.4375
... 186 more rows

Sheet Asia to Europe Trend (hidden)
A3: SCFI Weekly trend
B6: Europe Average by Month in 2016 | D6: Europe Average by Month in 2017 | F6: Europe Average by Month in 2018 | H6: Europe Average by Month in 2019 | J6: Europe Average by Month in 2020 | L6: Europe Average by Month in 2021
A7: JANUARY | B7: 671.5 | C7: JANUARY | D7: 1073.75 | E7: JANUARY | F7: 895.75 | G7: JANUARY | H7: 976.25 | I7: JANUARY | J7: 1040 | K7: JANUARY | L7: 4325
A8: FEBRUARY | B8: 340 | C8: FEBRUARY | D8: 928.75 | E8: FEBRUARY | F8: 911.75 | G8: FEBRUARY | H8: 899 | I8: FEBRUARY | J8: 829 | K8: FEBRUARY | L8: 4190
A9: MARCH | B9: 223.5 | C9: MARCH | D9: 841.4 | E9: MARCH | F9: 739.2 | G9: MARCH | H9: 720 | I9: MARCH | J9: 805 | K9: MARCH | L9: 3771
A10: APRIL | B10: 380.8 | C10: APRIL | D10: 900.75 | E10: APRIL | F10: 640 | G10: APRIL | H10: 663 | I10: APRIL | J10: 741 | K10: APRIL
A11: MAY | B11: 622.25 | C11: MAY | D11: 964.5 | E11: MAY | F11: 804.25 | G11: MAY | H11: 753.3375 | I11: MAY | J11: 801 | K11: MAY
A12: JUNE | B12: 659.5 | C12: JUNE | D12: 929 | E12: JUNE | F12: 865.4 | G12: JUNE | H12: 735.25 | I12: JUNE | J12: 883 | K12: JUNE
A13: JULY | B13: 950.4 | C13: JULY | D13: 947.5 | E13: JULY | F13: 888 | G13: JULY | H13: 697.5 | I13: JULY | J13: 906 | K13: JULY
A14: AUGUST | B14: 754.5 | C14: AUGUST | D14: 926.75 | E14: AUGUST | F14: 940.6 | G14: AUGUST | H14: 795.6 | I14: AUGUST | J14: 948 | K14: AUGUST
A15: SEPTEMBER | B15: 864.2 | C15: SEPTEMBER | D15: 783 | E15: SEPTEMBER | F15: ='[1]Main sheet'!C150 -> 801.75 | G15: SEPTEMBER | H15: 654 | I15: SEPTEMBER | J15: 1064 | K15: SEPTEMBER
A16: OCTOBER | B16: 824.6666667 | C16: OCTOBER | D16: 703.6666667 | E16: OCTOBER | F16: ='[1]Main sheet'!C154 -> 739.6666667 | G16: OCTOBER | H16: 585 | I16: OCTOBER | J16: 1128 | K16: OCTOBER
A17: NOVEMBER | B17: 836.25 | C17: NOVEMBER | D17: 722.5 | E17: NOVEMBER | F17: 745 | G17: NOVEMBER | H17: 722 | I17: NOVEMBER | J17: 1622 | K17: NOVEMBER
A18: DECEMBER | B18: 1039.8 | C18: DECEMBER | D18: 789 | E18: DECEMBER | F18: 868.5 | G18: DECEMBER | H18: 916 | I18: DECEMBER | J18: 3061 | K18: DECEMBER
B27: Europe Average by Month
A28: 2016-01-01 | B28: 671.5
A29: 2016-02-01 | B29: 340
A30: 2016-03-01 | B30: 223.5
A31: 2016-04-01 | B31: 380.8
A32: 2016-05-01 | B32: 622.25
A33: 2016-06-01 | B33: 659.5
A34: 2016-07-01 | B34: 950.4
A35: 2016-08-01 | B35: 754.5
A36: 2016-09-01 | B36: 864.2
A37: 2016-10-01 | B37: 824.6666667
A38: 2016-11-01 | B38: 836.25
A39: 2016-12-01 | B39: 1039.8
A40: 2017-01-01 | B40: 1073.75
A41: 2017-02-01 | B41: 928.75
A42: 2017-03-01 | B42: 841.4
A43: 2017-04-01 | B43: 900.75
A44: 2017-05-01 | B44: 964.5
A45: 2017-06-01 | B45: 929
A46: 2017-07-01 | B46: 947.5
A47: 2017-08-01 | B47: 926.75
A48: 2017-09-01 | B48: 783
A49: 2017-10-01 | B49: 703.6666667
A50: 2017-11-01 | B50: 722.5
A51: 2017-12-01 | B51: 789
A52: 2018-01-01 | B52: 895.75
A53: 2018-02-01 | B53: 911.75
A54: 2018-03-01 | B54: 739.2
A55: 2018-04-01 | B55: 640
A56: 2018-05-01 | B56: 804.25
A57: 2018-06-01 | B57: 865.4
A58: 2018-07-01 | B58: 888
A59: 2018-08-01 | B59: 940.6
A60: 2018-09-01 | B60: 802
A61: 2018-10-01 | B61: 740
A62: 2018-11-01 | B62: 745
A63: 2018-12-01 | B63: 868.5
A64: 2019-01-01 | B64: 976.25
A65: 2019-02-01 | B65: 899
A66: 2019-03-01 | B66: 720
A67: 2019-04-01 | B67: 663
A68: 2019-05-01 | B68: 753
A69: 2019-06-01 | B69: 735.25
A70: 2019-07-01 | B70: 697.5
A71: 2019-08-01 | B71: 796
A72: 2019-09-01 | B72: 654
A73: 2019-10-01 | B73: 585
A74: 2019-11-01 | B74: 722
A75: 2019-12-01 | B75: 916
A76: 2020-01-01 | B76: 1040
A77: 2020-02-01 | B77: 829
A78: 2020-03-01 | B78: 805
A79: 2020-04-01 | B79: 741
A80: 2020-05-01 | B80: 801
A81: 2020-06-01 | B81: 883
A82: 2020-07-01 | B82: 906
A83: 2020-08-01 | B83: 948
A84: 2020-09-01 | B84: 1064
A85: 2020-10-01 | B85: 1128
A86: 2020-11-01 | B86: 1622
A87: 2020-12-01 | B87: 3061
A88: 2021-01-01 | B88: 4325
A89: 2021-02-01 | B89: 4190
A90: 2021-03-01 | B90: 3771
A91: 2021-04-01
A92: 2021-05-01
A93: 2021-06-01
A94: 2021-07-01
A95: 2021-08-01
A96: 2021-09-01
A97: 2021-10-01
A98: 2021-11-01
A99: 2021-12-01

Sheet Asia to Mediterranean Trend (hidden)
B2: Mediterranean Average by Month in 2016 | D2: Mediterranean Average by Month in 2017 | F2: Mediterranean Average by Month in 2018 | H2: Mediterranean Average by Month in 2019 | J2: Mediterranean Average by Month in 2020 | L2: Mediterranean Average by Month in 2021
A3: JANUARY | B3: 752 | C3: JANUARY | D3: 1015 | E3: JANUARY | F3: 757.5 | G3: JANUARY | H3: 978 | I3: JANUARY | J3: 1181 | K3: JANUARY | L3: 4303
A4: FEBRUARY | B4: 354.6666667 | C4: FEBRUARY | D4: 897.5 | E4: FEBRUARY | F4: 794 | G4: FEBRUARY | H4: 913 | I4: FEBRUARY | J4: 979 | K4: FEBRUARY | L4: 4253
A5: MARCH | B5: 220.5 | C5: MARCH | D5: 825.8 | E5: MARCH | F5: 670.4 | G5: MARCH | H5: 758 | I5: MARCH | J5: 898 | K5: MARCH | L5: 3975
A6: APRIL | B6: 539 | C6: APRIL | D6: 874 | E6: APRIL | F6: 627.75 | G6: APRIL | H6: 717 | I6: APRIL | J6: 852 | K6: APRIL
A7: MAY | B7: 853.5 | C7: MAY | D7: 949 | E7: MAY | F7: 795.5 | G7: MAY | H7: 717.965 | I7: MAY | J7: 874 | K7: MAY
A8: JUNE | B8: 778.25 | C8: JUNE | D8: 906 | E8: JUNE | F8: 904.75 | G8: JUNE | H8: 735.75 | I8: JUNE | J8: 951 | K8: JUNE
A9: JULY | B9: 909.8 | C9: JULY | D9: 876.25 | E9: JULY | F9: 888 | G9: JULY | H9: 703.75 | I9: JULY | J9: 947 | K9: JULY
A10: AUGUST | B10: 677.75 | C10: AUGUST | D10: 840.25 | E10: AUGUST | F10: 901.6 | G10: AUGUST | H10: 941 | I10: AUGUST | J10: 991 | K10: AUGUST
A11: SEPTEMBER | B11: 666.2 | C11: SEPTEMBER | D11: 736 | E11: SEPTEMBER | F11: ='[1]Main sheet'!E150 -> 823.25 | G11: SEPTEMBER | H11: 810.5 | I11: SEPTEMBER | J11: 1145 | K11: SEPTEMBER
A12: OCTOBER | B12: 637 | C12: OCTOBER | D12: 646 | E12: OCTOBER | F12: ='[1]Main sheet'!E154 -> 760 | G12: OCTOBER | H12: 716 | I12: OCTOBER | J12: 1248 | K12: OCTOBER
A13: NOVEMBER | B13: 725.25 | C13: NOVEMBER | D13: 616.75 | E13: NOVEMBER | F13: 766 | G13: NOVEMBER | H13: 716 | I13: NOVEMBER | J13: 1764 | K13: NOVEMBER
A14: DECEMBER | B14: 961 | C14: DECEMBER | D14: 625.6 | E14: DECEMBER | F14: 853.75 | G14: DECEMBER | H14: 1030.5 | I14: DECEMBER | J14: 3097 | K14: DECEMBER
B27: Mediterranean Average by Month
A28: 2016-01-01 | B28: 752
A29: 2016-02-01 | B29: 354.6666667
A30: 2016-03-01 | B30: 220.5
A31: 2016-04-01 | B31: 539
A32: 2016-05-01 | B32: 853.5
A33: 2016-06-01 | B33: 778.25
A34: 2016-07-01 | B34: 909.8
A35: 2016-08-01 | B35: 677.75
A36: 2016-09-01 | B36: 666.2
A37: 2016-10-01 | B37: 637
A38: 2016-11-01 | B38: 725.25
A39: 2016-12-01 | B39: 961
A40: 2017-01-01 | B40: 1015
A41: 2017-02-01 | B41: 897.5
A42: 2017-03-01 | B42: 825.8
A43: 2017-04-01 | B43: 874
A44: 2017-05-01 | B44: 949
A45: 2017-06-01 | B45: 906
A46: 2017-07-01 | B46: 876.25
A47: 2017-08-01 | B47: 840.25
A48: 2017-09-01 | B48: 736
A49: 2017-10-01 | B49: 646
A50: 2017-11-01 | B50: 616.75
A51: 2017-12-01 | B51: 625.6
A52: 2018-01-01 | B52: 757.5
A53: 2018-02-01 | B53: 794
A54: 2018-03-01 | B54: 670.4
A55: 2018-04-01 | B55: 627.75
A56: 2018-05-01 | B56: 795.5
A57: 2018-06-01 | B57: 904.75
A58: 2018-07-01 | B58: 888
A59: 2018-08-01 | B59: 901.6
A60: 2018-09-01 | B60: 823
A61: 2018-10-01 | B61: 760
A62: 2018-11-01 | B62: 766
A63: 2018-12-01 | B63: 853.75
A64: 2019-01-01 | B64: 978
A65: 2019-02-01 | B65: 913
A66: 2019-03-01 | B66: 758
A67: 2019-04-01 | B67: 717
A68: 2019-05-01 | B68: 717.965
A69: 2019-06-01 | B69: 735.75
A70: 2019-07-01 | B70: 703.75
A71: 2019-08-01 | B71: 941
A72: 2019-09-01 | B72: 810.5
A73: 2019-10-01 | B73: 716
A74: 2019-11-01 | B74: 716
A75: 2019-12-01 | B75: 1030.5
A76: 2020-01-01 | B76: 1181
A77: 2020-02-01 | B77: 979
A78: 2020-03-01 | B78: 898
A79: 2020-04-01 | B79: 852
A80: 2020-05-01 | B80: 874
A81: 2020-06-01 | B81: 951
A82: 2020-07-01 | B82: 947
A83: 2020-08-01 | B83: 991
A84: 2020-09-01 | B84: 1145
A85: 2020-10-01 | B85: 1248
A86: 2020-11-01 | B86: 1764
A87: 2020-12-01 | B87: 3097
A88: 2021-01-01 | B88: 4303
A89: 2021-02-01 | B89: 4253
A90: 2021-03-01 | B90: 3975
A91: 2021-04-01
A92: 2021-05-01
A93: 2021-06-01
A94: 2021-07-01
A95: 2021-08-01
A96: 2021-09-01
A97: 2021-10-01
A98: 2021-11-01
A99: 2021-12-01

Sheet Asia to USWC Trend (hidden)
A1: SCFI Weekly trend
B3: USWC Average by Month in 2016 | D3: USWC Average by Month in 2017 | F3: USWC Average by Month in 2018 | H3: USWC Average by Month in 2019 | J3: USWC Average by Month in 2020 | L3: USWC Average by Month in 2021
A4: JANUARY | B4: 1420 | C4: JANUARY | D4: 2141.5 | E4: JANUARY | F4: 1468 | G4: JANUARY | H4: 1995.25 | I4: JANUARY | J4: 1572 | K4: JANUARY | L4: 4742
A5: FEBRUARY | B5: 1132 | C5: FEBRUARY | D5: 1869.25 | E5: FEBRUARY | F5: 1483.5 | G5: FEBRUARY | H5: 1849 | I5: FEBRUARY | J5: 1395 | K5: FEBRUARY | L5: 4804
A6: MARCH | B6: 800.75 | C6: MARCH | D6: 1405 | E6: MARCH | F6: 1096.6 | G6: MARCH | H6: 1456 | I6: MARCH | J6: 1509 | K6: MARCH | L6: 4807
A7: APRIL | B7: 824.6 | C7: APRIL | D7: 1416 | E7: APRIL | F7: 1208.75 | G7: APRIL | H7: 1584 | I7: APRIL | J7: 1579 | K7: APRIL
A8: MAY | B8: 805.5 | C8: MAY | D8: 1390.25 | E8: MAY | F8: 1360.25 | G8: MAY | H8: 1386.71 | I8: MAY | J8: 1783 | K8: MAY
A9: JUNE | B9: 796.5 | C9: JUNE | D9: 1261.2 | E9: JUNE | F9: 1361.6 | G9: JUNE | H9: 1489.25 | I9: JUNE | J9: 2562 | K9: JUNE
A10: JULY | B10: 1282.8 | C10: JULY | D10: 1377.75 | E10: JULY | F10: 1683.25 | G10: JULY | H10: 1570 | I10: JULY | J10: 2874 | K10: JULY
A11: AUGUST | B11: 1203.5 | C11: AUGUST | D11: 1625.5 | E11: AUGUST | F11: 2130.4 | G11: AUGUST | H11: 1466.4 | I11: AUGUST | J11: 3407.25 | K11: AUGUST
A12: SEPTEMBER | B12: 1729.8 | C12: SEPTEMBER | D12: 1490.4 | E12: SEPTEMBER | F12: ='[1]Main sheet'!G150 -> 2339 | G12: SEPTEMBER | H12: 1419.75 | I12: SEPTEMBER | J12: 3824 | K12: SEPTEMBER
A13: OCTOBER | B13: 1955 | C13: OCTOBER | D13: 1415 | E13: OCTOBER | F13: ='[1]Main sheet'!G154 -> 2559 | G13: OCTOBER | H13: 1347 | I13: OCTOBER | J13: 3853 | K13: OCTOBER
A14: NOVEMBER | B14: 1753.5 | C14: NOVEMBER | D14: 1326.25 | E14: NOVEMBER | F14: 2429 | G14: NOVEMBER | H14: 1421 | I14: NOVEMBER | J14: 3888 | K14: NOVEMBER
A15: DECEMBER | B15: 1505.6 | C15: DECEMBER | D15: 1227.6 | E15: DECEMBER | F15: 1902.75 | G15: DECEMBER | H15: 1413.75 | I15: DECEMBER | J15: 3969 | K15: DECEMBER
B24: USWC Average by Month
A25: 2016-01-01 | B25: 1420
A26: 2016-02-01 | B26: 1132
A27: 2016-03-01 | B27: 800.75
A28: 2016-04-01 | B28: 824.6
A29: 2016-05-01 | B29: 805.5
A30: 2016-06-01 | B30: 796.5
A31: 2016-07-01 | B31: 1282.8
A32: 2016-08-01 | B32: 1203.5
A33: 2016-09-01 | B33: 1729.8
A34: 2016-10-01 | B34: 1955
A35: 2016-11-01 | B35: 1753.5
A36: 2016-12-01 | B36: 1505.6
A37: 2017-01-01 | B37: 2141.5
A38: 2017-02-01 | B38: 1869.25
A39: 2017-03-01 | B39: 1405
A40: 2017-04-01 | B40: 1416
A41: 2017-05-01 | B41: 1390.25
A42: 2017-06-01 | B42: 1261.2
A43: 2017-07-01 | B43: 1377.75
A44: 2017-08-01 | B44: 1625.5
A45: 2017-09-01 | B45: 1490.4
A46: 2017-10-01 | B46: 1415
A47: 2017-11-01 | B47: 1326.25
A48: 2017-12-01 | B48: 1227.6
A49: 2018-01-01 | B49: 1468
A50: 2018-02-01 | B50: 1483.5
A51: 2018-03-01 | B51: 1096.6
A52: 2018-04-01 | B52: 1208.75
A53: 2018-05-01 | B53: 1360.25
A54: 2018-06-01 | B54: 1361.6
A55: 2018-07-01 | B55: 1683.25
A56: 2018-08-01 | B56: 2130.4
A57: 2018-09-01 | B57: 2339
A58: 2018-10-01 | B58: 2559
A59: 2018-11-01 | B59: 2429
A60: 2018-12-01 | B60: 1902.75
A61: 2019-01-01 | B61: 1995.25
A62: 2019-02-01 | B62: 1849
A63: 2019-03-01 | B63: 1456
A64: 2019-04-01 | B64: 1584
A65: 2019-05-01 | B65: 1386.71
A66: 2019-06-01 | B66: 1489.25
A67: 2019-07-01 | B67: 1570
A68: 2019-08-01 | B68: 1466.4
A69: 2019-09-01 | B69: 1419.75
A70: 2019-10-01 | B70: 1347
A71: 2019-11-01 | B71: 1421
A72: 2019-12-01 | B72: 1413.75
A73: 2020-01-01 | B73: 1572
A74: 2020-02-01 | B74: 1395
A75: 2020-03-01 | B75: 1509
A76: 2020-04-01 | B76: 1579
A77: 2020-05-01 | B77: 1783
A78: 2020-06-01 | B78: 2562
A79: 2020-07-01 | B79: 2874
A80: 2020-08-01 | B80: 3407.25
A81: 2020-09-01 | B81: 3824
A82: 2020-10-01 | B82: 3853
A83: 2020-11-01 | B83: 3888
A84: 2020-12-01 | B84: 3969
A85: 2021-01-01 | B85: 4742
A86: 2021-02-01 | B86: 4804
A87: 2021-03-01 | B87: 4807
A88: 2021-04-01
A89: 2021-05-01
A90: 2021-06-01
A91: 2021-07-01
A92: 2021-08-01
A93: 2021-09-01
A94: 2021-10-01
A95: 2021-11-01
A96: 2021-12-01

Sheet Asia to USEC Trend (hidden)
A3: SCFI Weekly trend
B7: USEC Average by Month in 2016 | D7: USEC Average by Month in 2017 | F7: USEC Average by Month in 2018 | H7: USEC Average by Month in 2019 | J7: USEC Average by Month in 2020 | L7: USEC Average by Month in 2021
A8: January | B8: 2471.25 | C8: January | D8: 3502.75 | E8: January | F8: 2646.5 | G8: January | H8: 3120.75 | I8: January | J8: 2898 | K8: January | L8: 1942
A9: February | B9: 2132.666667 | C9: February | D9: 3341 | E9: February | F9: 2773.25 | G9: February | H9: 2953 | I9: February | J9: 2714 | K9: February | L9: 1820
A10: March | B10: 1706 | C10: March | D10: 2750.6 | E10: March | F10: 2129.2 | G10: March | H10: 2490 | I10: March | J10: 2784 | K10: March | L10: 1422
A11: April | B11: 1692 | C11: April | D11: 2432 | E11: April | F11: 2226.5 | G11: April | H11: 2655 | I11: April | J11: 2690 | K11: April
A12: May | B12: 1617.75 | C12: May | D12: 2381.5 | E12: May | F12: 2349.75 | G12: May | H12: 2597.175 | I12: May | J12: 2661.4 | K12: May
A13: June | B13: 1589.5 | C13: June | D13: 2222.2 | E13: June | F13: 2351.6 | G13: June | H13: 2539.75 | I13: June | J13: 3146 | K13: June
A14: July | B14: 1817 | C14: July | D14: 2369 | E14: July | F14: 2707.25 | G14: July | H14: 2829.75 | I14: July | J14: 3371 | K14: July
A15: August | B15: 1757.5 | C15: August | D15: 2573 | E15: August | F15: 3266.4 | G15: August | H15: 2626.2 | I15: August | J15: 3894.25 | K15: August
A16: September | B16: 2436.8 | C16: September | D16: 2175.2 | E16: September | F16: ='[1]Main sheet'!I150 -> 3462.75 | G16: September | H16: 2461 | I16: September | J16: 4583 | K16: September
A17: October | B17: 2654.666667 | C17: October | D17: 1877 | E17: October | F17: ='[1]Main sheet'!I154 -> 3300.666667 | G17: October | H17: 2373 | I17: October | J17: 4626 | K17: October
A18: November | B18: 2650 | C18: November | D18: 1872 | E18: November | F18: 3604 | G18: November | H18: 2503 | I18: November | J18: 4683 | K18: November
A19: December | B19: 2521.4 | C19: December | D19: 2012.4 | E19: December | F19: 2946.25 | G19: December | H19: 2540.75 | I19: December | J19: 4814 | K19: December
B28: USEC Average by Month
A29: 2016-01-01 | B29: 2471.25
A30: 2016-02-01 | B30: 2132.666667
A31: 2016-03-01 | B31: 1706
A32: 2016-04-01 | B32: 1692
A33: 2016-05-01 | B33: 1617.75
A34: 2016-06-01 | B34: 1589.5
A35: 2016-07-01 | B35: 1817
A36: 2016-08-01 | B36: 1757.5
A37: 2016-09-01 | B37: 2436.8
A38: 2016-10-01 | B38: 2654.666667
A39: 2016-11-01 | B39: 2650
A40: 2016-12-01 | B40: 2521.4
A41: 2017-01-01 | B41: 3502.75
A42: 2017-02-01 | B42: 3341
A43: 2017-03-01 | B43: 2750.6
A44: 2017-04-01 | B44: 2432
A45: 2017-05-01 | B45: 2381.5
A46: 2017-06-01 | B46: 2222.2
A47: 2017-07-01 | B47: 2369
A48: 2017-08-01 | B48: 2573
A49: 2017-09-01 | B49: 2175.2
A50: 2017-10-01 | B50: 1877
A51: 2017-11-01 | B51: 1872
A52: 2017-12-01 | B52: 2012.4
A53: 2018-01-01 | B53: 2646.5
A54: 2018-02-01 | B54: 2773.25
A55: 2018-03-01 | B55: 2129.2
A56: 2018-04-01 | B56: 2226.5
A57: 2018-05-01 | B57: 2349.75
A58: 2018-06-01 | B58: 2351.6
A59: 2018-07-01 | B59: 2707.25
A60: 2018-08-01 | B60: 3266.4
A61: 2018-09-01 | B61: 3462.75
A62: 2018-10-01 | B62: 3300.666667
A63: 2018-11-01 | B63: 3604
A64: 2018-12-01 | B64: 2946.25
A65: 2019-01-01 | B65: 3120.75
A66: 2019-02-01 | B66: 2953
A67: 2019-03-01 | B67: 2490
A68: 2019-04-01 | B68: 2655
A69: 2019-05-01 | B69: 2597.175
A70: 2019-06-01 | B70: 2539.75
A71: 2019-07-01 | B71: 2829.75
A72: 2019-08-01 | B72: 2626.2
A73: 2019-09-01 | B73: 2461
A74: 2019-10-01 | B74: 2373
A75: 2019-11-01 | B75: 2503
A76: 2019-12-01 | B76: 2540.75
A77: 2020-01-01 | B77: 2898
A78: 2020-02-01 | B78: 2714
A79: 2020-03-01 | B79: 2784
A80: 2020-04-01 | B80: 2690
A81: 2020-05-01 | B81: 2661.4
A82: 2020-06-01 | B82: 3146
A83: 2020-07-01 | B83: 3371
A84: 2020-08-01 | B84: 3894.25
A85: 2020-09-01 | B85: 4583
A86: 2020-10-01 | B86: 4626
A87: 2020-11-01 | B87: 4683
A88: 2020-12-01 | B88: 4814
A89: 2021-01-01 | B89: 1942
A90: 2021-02-01 | B90: 1820
A91: 2021-03-01 | B91: 1422
A92: 2021-04-01
A93: 2021-05-01
A94: 2021-06-01
A95: 2021-07-01
A96: 2021-08-01
A97: 2021-09-01
A98: 2021-10-01
A99: 2021-11-01
A100: 2021-12-01

Sheet Persian Gulf and Red Sea Trend (hidden)
B2: Persian Gulf and Red Sea Average by Month in 2016 | D2: Persian Gulf and Red Sea Average by Month in 2017 | F2: Persian Gulf and Red Sea Average by Month in 2018 | H2: Persian Gulf and Red Sea Average by Month in 2019 | J2: Persian Gulf and Red Sea Average by Month in 2020 | L2: Persian Gulf and Red Sea Average by Month in 2021
A3: January | B3: 357.75 | C3: January | D3: 631 | E3: January | F3: 521.5 | G3: January | H3: 779.25 | I3: January | J3: 1161 | K3: January | L3: 1942
A4: February | B4: 267.6666667 | C4: February | D4: 586 | E4: February | F4: 583.5 | G4: February | H4: 704.67 | I4: February | J4: 1034 | K4: February | L4: 1820
A5: March | B5: 279.75 | C5: March | D5: 625.2 | E5: March | F5: 390 | G5: March | H5: 621 | I5: March | J5: 997 | K5: March | L5: 1422
A6: April | B6: 537.4 | C6: April | D6: 847 | E6: April | F6: 383.5 | G6: April | H6: 712 | I6: April | J6: 767 | K6: April
A7: May | B7: 411.25 | C7: May | D7: 735.75 | E7: May | F7: 458.5 | G7: May | H7: 665.86 | I7: May | J7: 626.4 | K7: May
A8: June | B8: 352.75 | C8: June | D8: 925.2 | E8: June | F8: 527.6 | G8: June | H8: 809.5 | I8: June | J8: 475 | K8: June
A9: July | B9: 344.2 | C9: July | D9: 756.25 | E9: July | F9: 411.5 | G9: July | H9: 753.25 | I9: July | J9: 672 | K9: July
A10: August | B10: 250.5 | C10: August | D10: 582 | E10: August | F10: 379 | G10: August | H10: 684.4 | I10: August | J10: 799 | K10: August
A11: September | B11: 375.4 | C11: September | D11: 408.4 | E11: September | F11: ='[1]Main sheet'!K150 -> 375.25 | G11: September | H11: 579 | I11: September | J11: 1007.25 | K11: September
A12: October | B12: 531.3333333 | C12: October | D12: 518.6666667 | E12: October | F12: ='[1]Main sheet'!K154 -> 427.6666667 | G12: October | H12: 647 | I12: October | J12: 1068 | K12: October
A13: November | B13: 555 | C13: November | D13: 453.5 | E13: November | F13: 520 | G13: November | H13: 793 | I13: November | J13: 1319 | K13: November
A14: December | B14: 511.4 | C14: December | D14: 362.8 | E14: December | F14: 579.5 | G14: December | H14: 1069.25 | I14: December | J14: 1520 | K14: December
B25: Persian Gulf and Red Sea Average by Month
A26: 2016-01-01 | B26: 357.75
A27: 2016-02-01 | B27: 267.6666667
A28: 2016-03-01 | B28: 279.75
A29: 2016-04-01 | B29: 537.4
A30: 2016-05-01 | B30: 411.25
A31: 2016-06-01 | B31: 352.75
A32: 2016-07-01 | B32: 344.2
A33: 2016-08-01 | B33: 250.5
A34: 2016-09-01 | B34: 375.4
A35: 2016-10-01 | B35: 531.3333333
A36: 2016-11-01 | B36: 555
A37: 2016-12-01 | B37: 511.4
A38: 2017-01-01 | B38: 631
A39: 2017-02-01 | B39: 586
A40: 2017-03-01 | B40: 625.2
A41: 2017-04-01 | B41: 847
A42: 2017-05-01 | B42: 735.75
A43: 2017-06-01 | B43: 925.2
A44: 2017-07-01 | B44: 756.25
A45: 2017-08-01 | B45: 582
A46: 2017-09-01 | B46: 408.4
A47: 2017-10-01 | B47: 518.6666667
A48: 2017-11-01 | B48: 453.5
A49: 2017-12-01 | B49: 362.8
A50: 2018-01-01 | B50: 521.5
A51: 2018-02-01 | B51: 583.5
A52: 2018-03-01 | B52: 390
A53: 2018-04-01 | B53: 383.5
A54: 2018-05-01 | B54: 458.5
A55: 2018-06-01 | B55: 527.6
A56: 2018-07-01 | B56: 411.5
A57: 2018-08-01 | B57: 379
A58: 2018-09-01 | B58: 375.25
A59: 2018-10-01 | B59: 427.6666667
A60: 2018-11-01 | B60: 520
A61: 2018-12-01 | B61: 579.5
A62: 2019-01-01 | B62: 779.25
A63: 2019-02-01 | B63: 704.67
A64: 2019-03-01 | B64: 621
A65: 2019-04-01 | B65: 712
A66: 2019-05-01 | B66: 665.86
A67: 2019-06-01 | B67: 809.5
A68: 2019-07-01 | B68: 753.25
A69: 2019-08-01 | B69: 684.4
A70: 2019-09-01 | B70: 579
A71: 2019-10-01 | B71: 647
A72: 2019-11-01 | B72: 793
A73: 2019-12-01 | B73: 1069.25
A74: 2020-01-01 | B74: 1161
A75: 2020-02-01 | B75: 1034
A76: 2020-03-01 | B76: 997
A77: 2020-04-01 | B77: 767
A78: 2020-05-01 | B78: 626.4
A79: 2020-06-01 | B79: 475
A80: 2020-07-01 | B80: 672
A81: 2020-08-01 | B81: 799
A82: 2020-09-01 | B82: 1007.25
A83: 2020-10-01 | B83: 1068
A84: 2020-11-01 | B84: 1319
A85: 2020-12-01 | B85: 1520
A86: 2021-01-01 | B86: 1942
A87: 2021-02-01 | B87: 1820
A88: 2021-03-01 | B88: 1422
A89: 2021-04-01
A90: 2021-05-01
A91: 2021-06-01
A92: 2021-07-01
A93: 2021-08-01
A94: 2021-09-01
A95: 2021-10-01
A96: 2021-11-01
A97: 2021-12-01

Sheet Australia and NZ Trend (hidden)
B1: Australia/ NZ Average by Month
B2: Australia/ NZ Average by Month in 2016 | D2: Australia/ NZ Average by Month in 2017 | F2: Australia/ NZ Average by Month in 2018 | H2: Australia/ NZ Average by Month in 2019 | J2: Australia/ NZ Average by Month in 2020 | L2: Australia/ NZ Average by Month in 2021
A3: January | B3: 617.75 | C3: January | D3: 808.25 | E3: January | F3: 1334.25 | G3: January | H3: 560.25 | I3: January | J3: 944 | K3: January | L3: 2427
A4: February | B4: 439.6666667 | C4: February | D4: 618 | E4: February | F4: 1304 | G4: February | H4: 500.67 | I4: February | J4: 868 | K4: February | L4: 2393
A5: March | B5: 353 | C5: March | D5: 449.2 | E5: March | F5: 972.6 | G5: March | H5: 377 | I5: March | J5: 815 | K5: March | L5: 2058
A6: April | B6: 393.6 | C6: April | D6: 435.25 | E6: April | F6: 848 | G6: April | H6: 326 | I6: April | J6: 903 | K6: April
A7: May | B7: 401.25 | C7: May | D7: 407.25 | E7: May | F7: 830.25 | G7: May | H7: 273.0075 | I7: May | J7: 945.6 | K7: May
A8: June | B8: 321.5 | C8: June | D8: 348.4 | E8: June | F8: 732.8 | G8: June | H8: 264.25 | I8: June | J8: 1024 | K8: June
A9: July | B9: 395.8 | C9: July | D9: 404.5 | E9: July | F9: 736 | G9: July | H9: 438.25 | I9: July | J9: 1080 | K9: July
A10: August | B10: 352 | C10: August | D10: 500 | E10: August | F10: 671.4 | G10: August | H10: 641.6 | I10: August | J10: 1128 | K10: August
A11: September | B11: 514.2 | C11: September | D11: 713.6 | E11: September | F11: ='[1]Main sheet'!M150 -> 545.25 | G11: September | H11: 857.75 | I11: September | J11: 1363 | K11: September
A12: October | B12: 855.6666667 | C12: October | D12: 1057.333333 | E12: October | F12: ='[1]Main sheet'!M154 -> 736.6666667 | G12: October | H12: 1116 | I12: October | J12: 1828 | K12: October
A13: November | B13: 941.25 | C13: November | D13: 1296 | E13: November | F13: 677 | G13: November | H13: 1033 | I13: November | J13: 2352 | K13: November
A14: December | B14: 794.8 | C14: December | D14: 1184.2 | E14: December | F14: 581.25 | G14: December | H14: 801 | I14: December | J14: 2455 | K14: December
B24: Australia/ NZ Average by Month
A25: 2016-01-01 | B25: 617.75
A26: 2016-02-01 | B26: 439.6666667
A27: 2016-03-01 | B27: 353
A28: 2016-04-01 | B28: 393.6
A29: 2016-05-01 | B29: 401.25
A30: 2016-06-01 | B30: 321.5
A31: 2016-07-01 | B31: 395.8
A32: 2016-08-01 | B32: 352
A33: 2016-09-01 | B33: 514.2
A34: 2016-10-01 | B34: 855.6666667
A35: 2016-11-01 | B35: 941.25
A36: 2016-12-01 | B36: 794.8
A37: 2017-01-01 | B37: 808.25
A38: 2017-02-01 | B38: 618
A39: 2017-03-01 | B39: 449.2
A40: 2017-04-01 | B40: 435.25
A41: 2017-05-01 | B41: 407.25
A42: 2017-06-01 | B42: 348.4
A43: 2017-07-01 | B43: 404.5
A44: 2017-08-01 | B44: 500
A45: 2017-09-01 | B45: 713.6
A46: 2017-10-01 | B46: 1057.333333
A47: 2017-11-01 | B47: 1296
A48: 2017-12-01 | B48: 1184.2
A49: 2018-01-01 | B49: 1334.25
A50: 2018-02-01 | B50: 1304
A51: 2018-03-01 | B51: 972.6
A52: 2018-04-01 | B52: 848
A53: 2018-05-01 | B53: 830.25
A54: 2018-06-01 | B54: 732.8
A55: 2018-07-01 | B55: 736
A56: 2018-08-01 | B56: 671.4
A57: 2018-09-01 | B57: 545.25
A58: 2018-10-01 | B58: 736.6666667
A59: 2018-11-01 | B59: 677
A60: 2018-12-01 | B60: 581.25
A61: 2019-01-01 | B61: 560.25
A62: 2019-02-01 | B62: 500.67
A63: 2019-03-01 | B63: 377
A64: 2019-04-01 | B64: 326
A65: 2019-05-01 | B65: 273.0075
A66: 2019-06-01 | B66: 264.25
A67: 2019-07-01 | B67: 438.25
A68: 2019-08-01 | B68: 641.6
A69: 2019-09-01 | B69: 857.75
A70: 2019-10-01 | B70: 1116
A71: 2019-11-01 | B71: 1033
A72: 2019-12-01 | B72: 801
A73: 2020-01-01 | B73: 944
A74: 2020-02-01 | B74: 868
A75: 2020-03-01 | B75: 815
A76: 2020-04-01 | B76: 903
A77: 2020-05-01 | B77: 945.6
A78: 2020-06-01 | B78: 1024
A79: 2020-07-01 | B79: 1080
A80: 2020-08-01 | B80: 1128
A81: 2020-09-01 | B81: 1363
A82: 2020-10-01 | B82: 1828
A83: 2020-11-01 | B83: 2352
A84: 2020-12-01 | B84: 2455
A85: 2021-01-01 | B85: 2427
A86: 2021-02-01 | B86: 2393
A87: 2021-03-01 | B87: 2058
A88: 2021-04-01
A89: 2021-05-01
A90: 2021-06-01
A91: 2021-07-01
A92: 2021-08-01
A93: 2021-09-01
A94: 2021-10-01
A95: 2021-11-01
A96: 2021-12-01

Sheet East West Africa Trend (hidden)
B1: East West Africa Average by Month
B2: East West Africa Average by Month in 2016 | D2: East West Africa Average by Month in 2017 | F2: East West Africa Average by Month in 2018 | H2: East West Africa Average by Month in 2019 | J2: East West Africa Average by Month in 2020 | L2: East West Africa Average by Month in 2021
A3: January | B3: 1395 | C3: January | D3: 1622.5 | E3: January | F3: 1446.5 | G3: January | H3: 2553 | I3: January | J3: 2856 | K3: January | L3: 6412
A4: February | B4: 1249 | C4: February | D4: 1422.25 | E4: February | F4: 1792.75 | G4: February | H4: 2533.67 | I4: February | J4: 2930 | K4: February | L4: 6536
A5: March | B5: 1044.25 | C5: March | D5: 1569.4 | E5: March | F5: 1446.4 | G5: March | H5: 2657 | I5: March | J5: 2891 | K5: March | L5: 5910
A6: April | B6: 974.6 | C6: April | D6: 1986.75 | E6: April | F6: 1387.75 | G6: April | H6: 2670 | I6: April | J6: 2757 | K6: April
A7: May | B7: 1218.5 | C7: May | D7: 2223.25 | E7: May | F7: 1875 | G7: May | H7: 2574 | I7: May | J7: 2773.2 | K7: May
A8: June | B8: 990 | C8: June | D8: 2493.4 | E8: June | F8: 2206.8 | G8: June | H8: 2401.75 | I8: June | J8: 2741 | K8: June
A9: July | B9: 1172.6 | C9: July | D9: 2553.75 | E9: July | F9: 2045.75 | G9: July | H9: 2430 | I9: July | J9: 2685 | K9: July
A10: August | B10: 1167.5 | C10: August | D10: 1950.75 | E10: August | F10: 1955.2 | G10: August | H10: 2502 | I10: August | J10: 2706.5 | K10: August
A11: September | B11: 1179.2 | C11: September | D11: 1315 | E11: September | F11: ='[1]Main sheet'!O150 -> 1791.25 | G11: September | H11: 2325 | I11: September | J11: 3110.5 | K11: September
A12: October | B12: 1011.666667 | C12: October | D12: 1312 | E12: October | F12: ='[1]Main sheet'!O154 -> 2103.666667 | G12: October | H12: 2310 | I12: October | J12: 3393.2 | K12: October
A13: November | B13: 1209 | C13: November | D13: 1426 | E13: November | F13: 2517 | G13: November | H13: 2349 | I13: November | J13: 4094.5 | K13: November
A14: December | B14: 1545 | C14: December | D14: 1339.4 | E14: December | F14: 2410.25 | G14: December | H14: 2331 | I14: December | J14: 5095.25 | K14: December
B28: East West Africa Average by Month
A29: 2016-01-01 | B29: 1395
A30: 2016-02-01 | B30: 1249
A31: 2016-03-01 | B31: 1044.25
A32: 2016-04-01 | B32: 974.6
A33: 2016-05-01 | B33: 1218.5
A34: 2016-06-01 | B34: 990
A35: 2016-07-01 | B35: 1172.6
A36: 2016-08-01 | B36: 1167.5
A37: 2016-09-01 | B37: 1179.2
A38: 2016-10-01 | B38: 1011.666667
A39: 2016-11-01 | B39: 1209
A40: 2016-12-01 | B40: 1545
A41: 2017-01-01 | B41: 1622.5
A42: 2017-02-01 | B42: 1422.25
A43: 2017-03-01 | B43: 1569.4
A44: 2017-04-01 | B44: 1986.75
A45: 2017-05-01 | B45: 2223.25
A46: 2017-06-01 | B46: 2493.4
A47: 2017-07-01 | B47: 2553.75
A48: 2017-08-01 | B48: 1950.75
A49: 2017-09-01 | B49: 1315
A50: 2017-10-01 | B50: 1312
A51: 2017-11-01 | B51: 1426
A52: 2017-12-01 | B52: 1339.4
A53: 2018-01-01 | B53: 1446.5
A54: 2018-02-01 | B54: 1792.75
A55: 2018-03-01 | B55: 1446.4
A56: 2018-04-01 | B56: 1387.75
A57: 2018-05-01 | B57: 1875
A58: 2018-06-01 | B58: 2206.8
A59: 2018-07-01 | B59: 2045.75
A60: 2018-08-01 | B60: 1955.2
A61: 2018-09-01 | B61: 1791.25
A62: 2018-10-01 | B62: 2103.666667
A63: 2018-11-01 | B63: 2517
A64: 2018-12-01 | B64: 2410.25
A65: 2019-01-01 | B65: 2553
A66: 2019-02-01 | B66: 2533.67
A67: 2019-03-01 | B67: 2657
A68: 2019-04-01 | B68: 2670
A69: 2019-05-01 | B69: 2574
A70: 2019-06-01 | B70: 2401.75
A71: 2019-07-01 | B71: 2430
A72: 2019-08-01 | B72: 2502
A73: 2019-09-01 | B73: 2325
A74: 2019-10-01 | B74: 2310
A75: 2019-11-01 | B75: 2349
A76: 2019-12-01 | B76: 2331
A77: 2020-01-01 | B77: 2856
A78: 2020-02-01 | B78: 2930
A79: 2020-03-01 | B79: 2891
A80: 2020-04-01 | B80: 2757
A81: 2020-05-01 | B81: 2773.2
A82: 2020-06-01 | B82: 2741
A83: 2020-07-01 | B83: 2685
A84: 2020-08-01 | B84: 2706.5
A85: 2020-09-01 | B85: 3110.5
A86: 2020-10-01 | B86: 3393.2
A87: 2020-11-01 | B87: 4094.5
A88: 2020-12-01 | B88: 5095.25
A89: 2021-01-01 | B89: 6412
A90: 2021-02-01 | B90: 6536
A91: 2021-03-01 | B91: 5910
A92: 2021-04-01
A93: 2021-05-01
A94: 2021-06-01
A95: 2021-07-01
A96: 2021-08-01
A97: 2021-09-01
A98: 2021-10-01
A99: 2021-11-01
A100: 2021-12-01

Sheet South Africa Trend (hidden)
B1: South Africa Average by Month
B2: South Africa Average by Month in 2016 | D2: South Africa Average by Month in 2017 | F2: South Africa Average by Month in 2018 | H2: South Africa Average by Month in 2019 | J2: South Africa Average by Month in 2020 | L2: South Africa Average by Month in 2021
A3: January | B3: 526 | C3: January | D3: 1019.25 | E3: January | F3: 1237 | G3: January | H3: 851.25 | I3: January | J3: 1120 | K3: January | L3: 3196
A4: February | B4: 474 | C4: February | D4: 882.25 | E4: February | F4: 1300 | G4: February | H4: 818 | I4: February | J4: 1032 | K4: February | L4: 2981
A5: March | B5: 386.25 | C5: March | D5: 806.8 | E5: March | F5: 1111.2 | G5: March | H5: 704 | I5: March | J5: 969 | K5: March | L5: 2664
A6: April | B6: 325.4 | C6: April | D6: 1035 | E6: April | F6: 922.5 | G6: April | H6: 642 | I6: April | J6: 834 | K6: April
A7: May | B7: 331.75 | C7: May | D7: 1148.25 | E7: May | F7: 802.75 | G7: May | H7: 636.9125 | I7: May | J7: 744.2 | K7: May
A8: June | B8: 334.5 | C8: June | D8: 1259.8 | E8: June | F8: 796.4 | G8: June | H8: 748.75 | I8: June | J8: 646 | K8: June
A9: July | B9: 381.2 | C9: July | D9: 1412.5 | E9: July | F9: 585.75 | G9: July | H9: 765 | I9: July | J9: 706 | K9: July
A10: August | B10: 689.75 | C10: August | D10: 1326.5 | E10: August | F10: 547.4 | G10: August | H10: 762.8 | I10: August | J10: 874 | K10: August
A11: September | B11: 880.8 | C11: September | D11: 1272.8 | E11: September | F11: ='[1]Main sheet'!Q150 -> 740.5 | G11: September | H11: 807.5 | I11: September | J11: 1484.25 | K11: September
A12: October | B12: 907 | C12: October | D12: 1241 | E12: October | F12: ='[1]Main sheet'!Q154 -> 942.6666667 | G12: October | H12: 933 | I12: October | J12: 1853.6 | K12: October
A13: November | B13: 886.75 | C13: November | D13: 1302.25 | E13: November | F13: 884 | G13: November | H13: 969 | I13: November | J13: 1892.75 | K13: November
A14: December | B14: 876.6 | C14: December | D14: 1200.4 | E14: December | F14: 856.75 | G14: December | H14: 1019.25 | I14: December | J14: 2362 | K14: December
B27: South Africa Average by Month
A28: 2016-01-01 | B28: 526
A29: 2016-02-01 | B29: 474
A30: 2016-03-01 | B30: 386.25
A31: 2016-04-01 | B31: 325.4
A32: 2016-05-01 | B32: 331.75
A33: 2016-06-01 | B33: 334.5
A34: 2016-07-01 | B34: 381.2
A35: 2016-08-01 | B35: 689.75
A36: 2016-09-01 | B36: 880.8
A37: 2016-10-01 | B37: 907
A38: 2016-11-01 | B38: 886.75
A39: 2016-12-01 | B39: 876.6
A40: 2017-01-01 | B40: 1019.25
A41: 2017-02-01 | B41: 882.25
A42: 2017-03-01 | B42: 806.8
A43: 2017-04-01 | B43: 1035
A44: 2017-05-01 | B44: 1148.25
A45: 2017-06-01 | B45: 1259.8
A46: 2017-07-01 | B46: 1412.5
A47: 2017-08-01 | B47: 1326.5
A48: 2017-09-01 | B48: 1272.8
A49: 2017-10-01 | B49: 1241
A50: 2017-11-01 | B50: 1302.25
A51: 2017-12-01 | B51: 1200.4
A52: 2018-01-01 | B52: 1237
A53: 2018-02-01 | B53: 1300
A54: 2018-03-01 | B54: 1111.2
A55: 2018-04-01 | B55: 922.5
A56: 2018-05-01 | B56: 802.75
A57: 2018-06-01 | B57: 796.4
A58: 2018-07-01 | B58: 585.75
A59: 2018-08-01 | B59: 547.4
A60: 2018-09-01 | B60: 740.5
A61: 2018-10-01 | B61: 942.6666667
A62: 2018-11-01 | B62: 884
A63: 2018-12-01 | B63: 856.75
A64: 2019-01-01 | B64: 851.25
A65: 2019-02-01 | B65: 818
A66: 2019-03-01 | B66: 704
A67: 2019-04-01 | B67: 642
A68: 2019-05-01 | B68: 636.9125
A69: 2019-06-01 | B69: 748.75
A70: 2019-07-01 | B70: 765
A71: 2019-08-01 | B71: 762.8
A72: 2019-09-01 | B72: 807.5
A73: 2019-10-01 | B73: 933
A74: 2019-11-01 | B74: 969
A75: 2019-12-01 | B75: 1019.25
A76: 2020-01-01 | B76: 1120
A77: 2020-02-01 | B77: 1032
A78: 2020-03-01 | B78: 969
A79: 2020-04-01 | B79: 834
A80: 2020-05-01 | B80: 744.2
A81: 2020-06-01 | B81: 646
A82: 2020-07-01 | B82: 706
A83: 2020-08-01 | B83: 874
A84: 2020-09-01 | B84: 1484.25
A85: 2020-10-01 | B85: 1853.6
A86: 2020-11-01 | B86: 1892.75
A87: 2020-12-01 | B87: 2362
A88: 2021-01-01 | B88: 3196
A89: 2021-02-01 | B89: 2981
A90: 2021-03-01 | B90: 2664
A91: 2021-04-01
A92: 2021-05-01
A93: 2021-06-01
A94: 2021-07-01
A95: 2021-08-01
A96: 2021-09-01
A97: 2021-10-01
A98: 2021-11-01
A99: 2021-12-01

Sheet South America Trend (hidden)
B1: South America Average by Month
B2: South America Average by Month in 2016 | D2: South America Average by Month in 2017 | F2: South America Average by Month in 2018 | H2: South America Average by Month in 2019 | J2: South America Average by Month in 2020 | L2: South America Average by Month in 2021
A3: January | B3: 193.25 | C3: January | D3: 2408 | E3: January | F3: 2503 | G3: January | H3: 1456.5 | I3: January | J3: 2069 | K3: January | L3: 8625
A4: February | B4: 343 | C4: February | D4: 1863.75 | E4: February | F4: 2561 | G4: February | H4: 1319.33 | I4: February | J4: 1714 | K4: February | L4: 8303
A5: March | B5: 469.75 | C5: March | D5: 1808 | E5: March | F5: 2074 | G5: March | H5: 1467 | I5: March | J5: 1426 | K5: March | L5: 7205
A6: April | B6: 689 | C6: April | D6: 2540.5 | E6: April | F6: 1925.25 | G6: April | H6: 1305 | I6: April | J6: 982 | K6: April
A7: May | B7: 1296.25 | C7: May | D7: 3116.75 | E7: May | F7: 1927 | G7: May | H7: 997.6575 | I7: May | J7: 1073.8 | K7: May
A8: June | B8: 2148.25 | C8: June | D8: 3569 | E8: June | F8: 1875.4 | G8: June | H8: 1791 | I8: June | J8: 914 | K8: June
A9: July | B9: 2545.4 | C9: July | D9: 3606.75 | E9: July | F9: 1673 | G9: July | H9: 2051 | I9: July | J9: 633 | K9: July
A10: August | B10: 2758.75 | C10: August | D10: 2876.5 | E10: August | F10: 1642.8 | G10: August | H10: 1989.8 | I10: August | J10: 1379.25 | K10: August
A11: September | B11: 2084.2 | C11: September | D11: 2094.2 | E11: September | F11: ='[1]Main sheet'!S150 -> 1164.25 | G11: September | H11: 1865.5 | I11: September | J11: 3178 | K11: September
A12: October | B12: 2392.333333 | C12: October | D12: 2685.333333 | E12: October | F12: ='[1]Main sheet'!S154 -> 1049 | G12: October | H12: 1858 | I12: October | J12: 3967.8 | K12: October
A13: November | B13: 2666.5 | C13: November | D13: 2756.75 | E13: November | F13: 1133 | G13: November | H13: 1859 | I13: November | J13: 4403 | K13: November
A14: December | B14: 2187.2 | C14: December | D14: 2912.8 | E14: December | F14: 762.25 | G14: December | H14: 1999.25 | I14: December | J14: 6135.25 | K14: December
B24: South America Average by Month
A25: 2016-01-01 | B25: 193.25
A26: 2016-02-01 | B26: 343
A27: 2016-03-01 | B27: 469.75
A28: 2016-04-01 | B28: 689
A29: 2016-05-01 | B29: 1296.25
A30: 2016-06-01 | B30: 2148.25
A31: 2016-07-01 | B31: 2545.4
A32: 2016-08-01 | B32: 2758.75
A33: 2016-09-01 | B33: 2084.2
A34: 2016-10-01 | B34: 2392.333333
A35: 2016-11-01 | B35: 2666.5
A36: 2016-12-01 | B36: 2187.2
A37: 2017-01-01 | B37: 2408
A38: 2017-02-01 | B38: 1863.75
A39: 2017-03-01 | B39: 1808
A40: 2017-04-01 | B40: 2540.5
A41: 2017-05-01 | B41: 3116.75
A42: 2017-06-01 | B42: 3569
A43: 2017-07-01 | B43: 3606.75
A44: 2017-08-01 | B44: 2876.5
A45: 2017-09-01 | B45: 2094.2
A46: 2017-10-01 | B46: 2685.333333
A47: 2017-11-01 | B47: 2756.75
A48: 2017-12-01 | B48: 2912.8
A49: 2018-01-01 | B49: 2503
A50: 2018-02-01 | B50: 2561
A51: 2018-03-01 | B51: 2074
A52: 2018-04-01 | B52: 1925.25
A53: 2018-05-01 | B53: 1927
A54: 2018-06-01 | B54: 1875.4
A55: 2018-07-01 | B55: 1673
A56: 2018-08-01 | B56: 1642.8
A57: 2018-09-01 | B57: 1164.25
A58: 2018-10-01 | B58: 1049
A59: 2018-11-01 | B59: 1133
A60: 2018-12-01 | B60: 762.25
A61: 2019-01-01 | B61: 1456.5
A62: 2019-02-01 | B62: 1319.33
A63: 2019-03-01 | B63: 1467
A64: 2019-04-01 | B64: 1305
A65: 2019-05-01 | B65: 997.6575
A66: 2019-06-01 | B66: 1791
A67: 2019-07-01 | B67: 2051
A68: 2019-08-01 | B68: 1989.8
A69: 2019-09-01 | B69: 1865.5
A70: 2019-10-01 | B70: 1858
A71: 2019-11-01 | B71: 1859
A72: 2019-12-01 | B72: 1999.25
A73: 2020-01-01 | B73: 2069
A74: 2020-02-01 | B74: 1714
A75: 2020-03-01 | B75: 1426
A76: 2020-04-01 | B76: 982
A77: 2020-05-01 | B77: 1073.8
A78: 2020-06-01 | B78: 914
A79: 2020-07-01 | B79: 633
A80: 2020-08-01 | B80: 1379.25
A81: 2020-09-01 | B81: 3178
A82: 2020-10-01 | B82: 3967.8
A83: 2020-11-01 | B83: 4403
A84: 2020-12-01 | B84: 6135.25
A85: 2021-01-01 | B85: 8625
A86: 2021-02-01 | B86: 8303
A87: 2021-03-01 | B87: 7205
A88: 2021-04-01
A89: 2021-05-01
A90: 2021-06-01
A91: 2021-07-01
A92: 2021-08-01
A93: 2021-09-01
A94: 2021-10-01
A95: 2021-11-01
A96: 2021-12-01

Sheet West Japan Trend (hidden)
B1: West Japan Average by Month
B2: West Japan Average by Month in 2016 | D2: West Japan Average by Month in 2017 | F2: West Japan Average by Month in 2018 | H2: West Japan Average by Month in 2019 | J2: West Japan Average by Month in 2020 | L2: West Japan Average by Month in 2021
A3: January | B3: 125.25 | C3: January | D3: 210 | E3: January | F3: 211 | G3: January | H3: 226.5 | I3: January | J3: 226 | K3: January | L3: 247
A4: February | B4: 136 | C4: February | D4: 204.5 | E4: February | F4: 215.75 | G4: February | H4: 224.33 | I4: February | J4: 226 | K4: February | L4: 255
A5: March | B5: 153.75 | C5: March | D5: 211.8 | E5: March | F5: 215 | G5: March | H5: 227 | I5: March | J5: 227 | K5: March | L5: 250
A6: April | B6: 198.2 | C6: April | D6: 217.25 | E6: April | F6: 221.25 | G6: April | H6: 232 | I6: April | J6: 234 | K6: April
A7: May | B7: 199 | C7: May | D7: 218.5 | E7: May | F7: 228 | G7: May | H7: 232.035 | I7: May | J7: 230 | K7: May
A8: June | B8: 192 | C8: June | D8: 216.8 | E8: June | F8: 226.5 | G8: June | H8: 231 | I8: June | J8: 226 | K8: June
A9: July | B9: 190.4 | C9: July | D9: 217 | E9: July | F9: 226.25 | G9: July | H9: 234 | I9: July | J9: 229 | K9: July
A10: August | B10: 195 | C10: August | D10: 218 | E10: August | F10: 225.6 | G10: August | H10: 232.8 | I10: August | J10: 231 | K10: August
A11: September | B11: 201.6 | C11: September | D11: 218 | E11: September | F11: ='[1]Main sheet'!U150 -> 228.5 | G11: September | H11: 233 | I11: September | J11: 232 | K11: September
A12: October | B12: 205 | C12: October | D12: 213.3333333 | E12: October | F12: ='[1]Main sheet'!U154 -> 222.3333333 | G12: October | H12: 227 | I12: October | J12: 232.2 | K12: October
A13: November | B13: 219.25 | C13: November | D13: 215 | E13: November | F13: 227 | G13: November | H13: 226 | I13: November | J13: 248.25 | K13: November
A14: December | B14: 217.2 | C14: December | D14: 214.2 | E14: December | F14: 226 | G14: December | H14: 226 | I14: December | J14: 246.75 | K14: December
B25: West Japan Average by Month
A26: 2016-01-01 | B26: 125.25
A27: 2016-02-01 | B27: 136
A28: 2016-03-01 | B28: 153.75
A29: 2016-04-01 | B29: 198.2
A30: 2016-05-01 | B30: 199
A31: 2016-06-01 | B31: 192
A32: 2016-07-01 | B32: 190.4
A33: 2016-08-01 | B33: 195
A34: 2016-09-01 | B34: 201.6
A35: 2016-10-01 | B35: 205
A36: 2016-11-01 | B36: 219.25
A37: 2016-12-01 | B37: 217.2
A38: 2017-01-01 | B38: 210
A39: 2017-02-01 | B39: 204.5
A40: 2017-03-01 | B40: 211.8
A41: 2017-04-01 | B41: 217.25
A42: 2017-05-01 | B42: 218.5
A43: 2017-06-01 | B43: 216.8
A44: 2017-07-01 | B44: 217
A45: 2017-08-01 | B45: 218
A46: 2017-09-01 | B46: 218
A47: 2017-10-01 | B47: 213.3333333
A48: 2017-11-01 | B48: 215
A49: 2017-12-01 | B49: 214.2
A50: 2018-01-01 | B50: 211
A51: 2018-02-01 | B51: 215.75
A52: 2018-03-01 | B52: 215
A53: 2018-04-01 | B53: 221.25
A54: 2018-05-01 | B54: 228
A55: 2018-06-01 | B55: 226.5
A56: 2018-07-01 | B56: 226.25
A57: 2018-08-01 | B57: 225.6
A58: 2018-09-01 | B58: 228.5
A59: 2018-10-01 | B59: 222.3333333
A60: 2018-11-01 | B60: 227
A61: 2018-12-01 | B61: 226
A62: 2019-01-01 | B62: 226.5
A63: 2019-02-01 | B63: 224.33
A64: 2019-03-01 | B64: 227
A65: 2019-04-01 | B65: 232
A66: 2019-05-01 | B66: 232.035
A67: 2019-06-01 | B67: 231
A68: 2019-07-01 | B68: 234
A69: 2019-08-01 | B69: 232.8
A70: 2019-09-01 | B70: 233
A71: 2019-10-01 | B71: 227
A72: 2019-11-01 | B72: 226
A73: 2019-12-01 | B73: 226
A74: 2020-01-01 | B74: 226
A75: 2020-02-01 | B75: 226
A76: 2020-03-01 | B76: 227
A77: 2020-04-01 | B77: 234
A78: 2020-05-01 | B78: 230
A79: 2020-06-01 | B79: 226
A80: 2020-07-01 | B80: 229
A81: 2020-08-01 | B81: 231
A82: 2020-09-01 | B82: 232
A83: 2020-10-01 | B83: 232.2
A84: 2020-11-01 | B84: 248.25
A85: 2020-12-01 | B85: 246.75
A86: 2021-01-01 | B86: 247
A87: 2021-02-01 | B87: 255
A88: 2021-03-01 | B88: 250
A89: 2021-04-01
A90: 2021-05-01
A91: 2021-06-01
A92: 2021-07-01
A93: 2021-08-01
A94: 2021-09-01
A95: 2021-10-01
A96: 2021-11-01
A97: 2021-12-01

Sheet East Japan Trend (hidden)
B1: East Japan Average by Month
B2: East Japan Average by Month in 2016 | D2: East Japan Average by Month in 2017 | F2: East Japan Average by Month in 2018 | H2: East Japan Average by Month in 2019 | J2: East Japan Average by Month in 2020 | L2: East Japan Average by Month in 2021
A3: January | B3: 135 | C3: January | D3: 212 | E3: January | F3: 211.5 | G3: January | H3: 227.75 | I3: January | J3: 241 | K3: January | L3: 254
A4: February | B4: 145.6666667 | C4: February | D4: 206.5 | E4: February | F4: 217.5 | G4: February | H4: 224.33 | I4: February | J4: 236 | K4: February | L4: 264
A5: March | B5: 163.75 | C5: March | D5: 211.8 | E5: March | F5: 217.2 | G5: March | H5: 229 | I5: March | J5: 240 | K5: March | L5: 255
A6: April | B6: 192.8 | C6: April | D6: 217.25 | E6: April | F6: 222.5 | G6: April | H6: 233 | I6: April | J6: 242 | K6: April
A7: May | B7: 192.5 | C7: May | D7: 218.5 | E7: May | F7: 227 | G7: May | H7: 235.155 | I7: May | J7: 242.4 | K7: May
A8: June | B8: 186.25 | C8: June | D8: 217 | E8: June | F8: 225.25 | G8: June | H8: 233.5 | I8: June | J8: 238 | K8: June
A9: July | B9: 185 | C9: July | D9: 217 | E9: July | F9: 223.5 | G9: July | H9: 234 | I9: July | J9: 238 | K9: July
A10: August | B10: 188.75 | C10: August | D10: 218 | E10: August | F10: 225.6 | G10: August | H10: 234 | I10: August | J10: 238 | K10: August
A11: September | B11: 195.8 | C11: September | D11: 218 | E11: September | F11: ='[1]Main sheet'!W150 -> 228.5 | G11: September | H11: 235 | I11: September | J11: 238 | K11: September
A12: October | B12: 200 | C12: October | D12: 231.3333333 | E12: October | F12: ='[1]Main sheet'!W154 -> 223 | G12: October | H12: 232 | I12: October | J12: 238.2 | K12: October
A13: November | B13: 213.25 | C13: November | D13: 215 | E13: November | F13: 227 | G13: November | H13: 240 | I13: November | J13: 252.5 | K13: November
A14: December | B14: 212.8 | C14: December | D14: 214.2 | E14: December | F14: 227 | G14: December | H14: 240.25 | I14: December | J14: 251 | K14: December
B23: East Japan Average by Month
A24: 2016-01-01 | B24: 135
A25: 2016-02-01 | B25: 145.6666667
A26: 2016-03-01 | B26: 163.75
A27: 2016-04-01 | B27: 192.8
A28: 2016-05-01 | B28: 192.5
A29: 2016-06-01 | B29: 186.25
A30: 2016-07-01 | B30: 185
A31: 2016-08-01 | B31: 188.75
A32: 2016-09-01 | B32: 195.8
A33: 2016-10-01 | B33: 200
A34: 2016-11-01 | B34: 213.25
A35: 2016-12-01 | B35: 212.8
A36: 2017-01-01 | B36: 212
A37: 2017-02-01 | B37: 206.5
A38: 2017-03-01 | B38: 211.8
A39: 2017-04-01 | B39: 217.25
A40: 2017-05-01 | B40: 218.5
A41: 2017-06-01 | B41: 217
A42: 2017-07-01 | B42: 217
A43: 2017-08-01 | B43: 218
A44: 2017-09-01 | B44: 218
A45: 2017-10-01 | B45: 231.3333333
A46: 2017-11-01 | B46: 215
A47: 2017-12-01 | B47: 214.2
A48: 2018-01-01 | B48: 211.5
A49: 2018-02-01 | B49: 217.5
A50: 2018-03-01 | B50: 217.2
A51: 2018-04-01 | B51: 222.5
A52: 2018-05-01 | B52: 227
A53: 2018-06-01 | B53: 225.25
A54: 2018-07-01 | B54: 223.5
A55: 2018-08-01 | B55: 225.6
A56: 2018-09-01 | B56: 228.5
A57: 2018-10-01 | B57: 223
A58: 2018-11-01 | B58: 227
A59: 2018-12-01 | B59: 227
A60: 2019-01-01 | B60: 227.75
A61: 2019-02-01 | B61: 224.33
A62: 2019-03-01 | B62: 229
A63: 2019-04-01 | B63: 233
A64: 2019-05-01 | B64: 235.155
A65: 2019-06-01 | B65: 233.5
A66: 2019-07-01 | B66: 234
A67: 2019-08-01 | B67: 234
A68: 2019-09-01 | B68: 235
A69: 2019-10-01 | B69: 232
A70: 2019-11-01 | B70: 240
A71: 2019-12-01 | B71: 240.25
A72: 2020-01-01 | B72: 241
A73: 2020-02-01 | B73: 236
A74: 2020-03-01 | B74: 240
A75: 2020-04-01 | B75: 242
A76: 2020-05-01 | B76: 242.4
A77: 2020-06-01 | B77: 238
A78: 2020-07-01 | B78: 238
A79: 2020-08-01 | B79: 238
A80: 2020-09-01 | B80: 238
A81: 2020-10-01 | B81: 238.2
A82: 2020-11-01 | B82: 252.5
A83: 2020-12-01 | B83: 251
A84: 2021-01-01 | B84: 254
A85: 2021-02-01 | B85: 264
A86: 2021-03-01 | B86: 255
A87: 2021-04-01
A88: 2021-05-01
A89: 2021-06-01
A90: 2021-07-01
A91: 2021-08-01
A92: 2021-09-01
A93: 2021-10-01
A94: 2021-11-01
A95: 2021-12-01

Sheet Southeast Asia Trend (hidden)
B1: Southeast Asia Average by Month
B2: Southeast Asia Average by Month in 2016 | D2: Southeast Asia Average by Month in 2017 | F2: Southeast Asia Average by Month in 2018 | H2: Southeast Asia Average by Month in 2019 | J2: Southeast Asia Average by Month in 2020 | L2: Southeast Asia Average by Month in 2021
A3: January | B3: 90 | C3: January | D3: 101.75 | E3: January | F3: 153.5 | G3: January | H3: 155 | I3: January | J3: 189 | K3: January | L3: 960
A4: February | B4: 83.33333333 | C4: February | D4: 101.25 | E4: February | F4: 162 | G4: February | H4: 152.33 | I4: February | J4: 187 | K4: February | L4: 1003
A5: March | B5: 70.25 | C5: March | D5: 112.4 | E5: March | F5: 144 | G5: March | H5: 148 | I5: March | J5: 201 | K5: March | L5: 955
A6: April | B6: 57.6 | C6: April | D6: 135.5 | E6: April | F6: 142.75 | G6: April | H6: 144 | I6: April | J6: 201 | K6: April
A7: May | B7: 59.5 | C7: May | D7: 181 | E7: May | F7: 139.25 | G7: May | H7: 140.1675 | I7: May | J7: 174.6 | K7: May
A8: June | B8: 60 | C8: June | D8: 177.4 | E8: June | F8: 152.2 | G8: June | H8: 139.5 | I8: June | J8: 158 | K8: June
A9: July | B9: 55.2 | C9: July | D9: 181.25 | E9: July | F9: 142.25 | G9: July | H9: 125 | I9: July | J9: 145 | K9: July
A10: August | B10: 53.5 | C10: August | D10: 161.75 | E10: August | F10: 138.6 | G10: August | H10: 114.6 | I10: August | J10: 133.25 | K10: August
A11: September | B11: 53.2 | C11: September | D11: 148 | E11: September | F11: ='[1]Main sheet'!Y150 -> 137.25 | G11: September | H11: 105.75 | I11: September | J11: 135.75 | K11: September
A12: October | B12: 62.66666667 | C12: October | D12: 155.6666667 | E12: October | F12: ='[1]Main sheet'!Y154 -> 146.6666667 | G12: October | H12: 115 | I12: October | J12: 169.6 | K12: October
A13: November | B13: 91.25 | C13: November | D13: 169 | E13: November | F13: 148 | G13: November | H13: 153 | I13: November | J13: 695.25 | K13: November
A14: December | B14: 102.8 | C14: December | D14: 155 | E14: December | F14: 148.25 | G14: December | H14: 163 | I14: December | J14: 845.5 | K14: December
C21: Southeast Asia Average by Month
B22: 2016-01-01 | C22: 90
B23: 2016-02-01 | C23: 83.33333333
B24: 2016-03-01 | C24: 70.25
B25: 2016-04-01 | C25: 57.6
B26: 2016-05-01 | C26: 59.5
B27: 2016-06-01 | C27: 60
B28: 2016-07-01 | C28: 55.2
B29: 2016-08-01 | C29: 53.5
B30: 2016-09-01 | C30: 53.2
B31: 2016-10-01 | C31: 62.66666667
B32: 2016-11-01 | C32: 91.25
B33: 2016-12-01 | C33: 102.8
B34: 2017-01-01 | C34: 101.75
B35: 2017-02-01 | C35: 101.25
B36: 2017-03-01 | C36: 112.4
B37: 2017-04-01 | C37: 135.5
B38: 2017-05-01 | C38: 181
B39: 2017-06-01 | C39: 177.4
B40: 2017-07-01 | C40: 181.25
B41: 2017-08-01 | C41: 161.75
B42: 2017-09-01 | C42: 148
B43: 2017-10-01 | C43: 155.6666667
B44: 2017-11-01 | C44: 169
B45: 2017-12-01 | C45: 155
B46: 2018-01-01 | C46: 153.5
B47: 2018-02-01 | C47: 162
B48: 2018-03-01 | C48: 144
B49: 2018-04-01 | C49: 142.75
B50: 2018-05-01 | C50: 139.25
B51: 2018-06-01 | C51: 152.2
B52: 2018-07-01 | C52: 142.25
B53: 2018-08-01 | C53: 138.6
B54: 2018-09-01 | C54: 137.25
B55: 2018-10-01 | C55: 146.6666667
B56: 2018-11-01 | C56: 148
B57: 2018-12-01 | C57: 148.25
B58: 2019-01-01 | C58: 155
B59: 2019-02-01 | C59: 152.33
B60: 2019-03-01 | C60: 148
B61: 2019-04-01 | C61: 144
B62: 2019-05-01 | C62: 140.1675
B63: 2019-06-01 | C63: 139.5
B64: 2019-07-01 | C64: 125
B65: 2019-08-01 | C65: 114.6
B66: 2019-09-01 | C66: 105.75
B67: 2019-10-01 | C67: 115
B68: 2019-11-01 | C68: 153
B69: 2019-12-01 | C69: 163
B70: 2020-01-01 | C70: 189
B71: 2020-02-01 | C71: 187
B72: 2020-03-01 | C72: 201
B73: 2020-04-01 | C73: 201
B74: 2020-05-01 | C74: 174.6
B75: 2020-06-01 | C75: 158
B76: 2020-07-01 | C76: 145
B77: 2020-08-01 | C77: 133.25
B78: 2020-09-01 | C78: 135.75
B79: 2020-10-01 | C79: 169.6
B80: 2020-11-01 | C80: 695.25
B81: 2020-12-01 | C81: 845.5
B82: 2021-01-01 | C82: 960
B83: 2021-02-01 | C83: 1003
B84: 2021-03-01 | C84: 955
B85: 2021-04-01
B86: 2021-05-01
B87: 2021-06-01
B88: 2021-07-01
B89: 2021-08-01
B90: 2021-09-01
B91: 2021-10-01
B92: 2021-11-01
B93: 2021-12-01

Sheet Korea Trend (hidden)
B1: Korea Average by Month
B2: Korea Average by Month in 2016 | D2: Korea Asia Average by Month in 2017 | F2: Korea Average by Month in 2018 | H2: Korea Average by Month in 2019 | J2: Korea Average by Month in 2020 | L2: Korea Average by Month in 2021
A3: January | B3: 116.5 | C3: January | D3: 100.25 | E3: January | F3: 152.25 | G3: January | H3: 145.75 | I3: January | J3: 120 | K3: January | L3: 200
A4: February | B4: 125 | C4: February | D4: 97 | E4: February | F4: 161.25 | G4: February | H4: 153 | I4: February | J4: 118 | K4: February | L4: 318
A5: March | B5: 108.25 | C5: March | D5: 126 | E5: March | F5: 146.8 | G5: March | H5: 150 | I5: March | J5: 118 | K5: March | L5: 300
A6: April | B6: 104.8 | C6: April | D6: 163.25 | E6: April | F6: 169.25 | G6: April | H6: 128 | I6: April | J6: 120 | K6: April
A7: May | B7: 104 | C7: May | D7: 164 | E7: May | F7: 201.75 | G7: May | H7: 118.335 | I7: May | J7: 120 | K7: May
A8: June | B8: 105.75 | C8: June | D8: 161.6 | E8: June | F8: 184.8 | G8: June | H8: 117.75 | I8: June | J8: 129 | K8: June
A9: July | B9: 108 | C9: July | D9: 148.25 | E9: July | F9: 162.5 | G9: July | H9: 123 | I9: July | J9: 119 | K9: July
A10: August | B10: 96.25 | C10: August | D10: 134.25 | E10: August | F10: 156 | G10: August | H10: 117 | I10: August | J10: 117.75 | K10: August
A11: September | B11: 88.8 | C11: September | D11: 137.6 | E11: September | F11: ='[1]Main sheet'!AA150 -> 159 | G11: September | H11: 117 | I11: September | J11: 119 | K11: September
A12: October | B12: 94.66666667 | C12: October | D12: 143.3333333 | E12: October | F12: ='[1]Main sheet'!AA154 -> 158.6666667 | G12: October | H12: 125 | I12: October | J12: 126.8 | K12: October
A13: November | B13: 95.5 | C13: November | D13: 153.25 | E13: November | F13: 153 | G13: November | H13: 130 | I13: November | J13: 181 | K13: November
A14: December | B14: 98 | C14: December | D14: 153.6 | E14: December | F14: 150.5 | G14: December | H14: 118.75 | I14: December | J14: 201.5 | K14: December
B26: Southeast Asia Average by Month
A27: 2016-01-01 | B27: 116.5
A28: 2016-02-01 | B28: 125
A29: 2016-03-01 | B29: 108.25
A30: 2016-04-01 | B30: 104.8
A31: 2016-05-01 | B31: 104
A32: 2016-06-01 | B32: 105.75
A33: 2016-07-01 | B33: 108
A34: 2016-08-01 | B34: 96.25
A35: 2016-09-01 | B35: 88.8
A36: 2016-10-01 | B36: 94.66666667
A37: 2016-11-01 | B37: 95.5
A38: 2016-12-01 | B38: 98
A39: 2017-01-01 | B39: 100.25
A40: 2017-02-01 | B40: 97
A41: 2017-03-01 | B41: 126
A42: 2017-04-01 | B42: 163.25
A43: 2017-05-01 | B43: 164
A44: 2017-06-01 | B44: 161.6
A45: 2017-07-01 | B45: 148.25
A46: 2017-08-01 | B46: 134.25
A47: 2017-09-01 | B47: 137.6
A48: 2017-10-01 | B48: 143.3333333
A49: 2017-11-01 | B49: 153.25
A50: 2017-12-01 | B50: 153.6
A51: 2018-01-01 | B51: 152.25
A52: 2018-02-01 | B52: 161.25
A53: 2018-03-01 | B53: 146.8
A54: 2018-04-01 | B54: 169.25
A55: 2018-05-01 | B55: 201.75
A56: 2018-06-01 | B56: 184.8
A57: 2018-07-01 | B57: 162.5
A58: 2018-08-01 | B58: 156
A59: 2018-09-01 | B59: 159
A60: 2018-10-01 | B60: 158.6666667
A61: 2018-11-01 | B61: 153
A62: 2018-12-01 | B62: 150.5
A63: 2019-01-01 | B63: 145.75
A64: 2019-02-01 | B64: 153
A65: 2019-03-01 | B65: 150
A66: 2019-04-01 | B66: 128
A67: 2019-05-01 | B67: 118.335
A68: 2019-06-01 | B68: 117.75
A69: 2019-07-01 | B69: 123
A70: 2019-08-01 | B70: 117
A71: 2019-09-01 | B71: 117
A72: 2019-10-01 | B72: 125
A73: 2019-11-01 | B73: 130
A74: 2019-12-01 | B74: 118.75
A75: 2020-01-01 | B75: 120
A76: 2020-02-01 | B76: 118
A77: 2020-03-01 | B77: 118
A78: 2020-04-01 | B78: 120
A79: 2020-05-01 | B79: 120
A80: 2020-06-01 | B80: 129
A81: 2020-07-01 | B81: 119
A82: 2020-08-01 | B82: 117.75
A83: 2020-09-01 | B83: 119
A84: 2020-10-01 | B84: 126.8
A85: 2020-11-01 | B85: 181
A86: 2020-12-01 | B86: 201.5
A87: 2021-01-01 | B87: 200
A88: 2021-02-01 | B88: 318
A89: 2021-03-01 | B89: 300
A90: 2021-04-01
A91: 2021-05-01
A92: 2021-06-01
A93: 2021-07-01
A94: 2021-08-01
A95: 2021-09-01
A96: 2021-10-01
A97: 2021-11-01
A98: 2021-12-01

Sheet SCFI Trend Chart
A407: .

Sheet CCFI Weekly Figures
A3: CCFI Weekly trend
A6: Date | B6: Japan | C6: Japan Average by Month | D6: Europe | E6: Europe Average by Month | F6: West Coast America | G6: West Coast America Average by Month | H6: East Coast America | I6: East Coast America Average by Month | J6: Korea | K6: Korea Average by Month | L6: Southeast | M6: Southeast Average by Month | N6: Mediterranean | O6: Mediterranean Average by Month | P6: Australia/New Zealand | Q6: Australia/New Zealand Average by Month | R6: South Africa | S6: South Africa Average by Month | T6: South America | U6: South America Average by Month | V6: West East Africa | W6: West East Africa Average by Month | X6: Persian Gulf/Red Sea | Y6: Persian Gulf/Red Sea Average by Month
B7: USD | D7: USD | F7: USD | H7: USD | J7: USD | L7: USD | N7: USD | P7: USD | R7: USD | T7: USD | V7: USD | X7: USD
A8: 2021-04-02 | B8: 926.22 | D8: 2953.88 | F8: 1309.8 | H8: 1484.44 | J8: 859.96 | L8: 1333.76 | N8: 3372.37 | P8: 1493.92 | R8: 1557.23 | T8: 1685 | V8: 1426.5 | X8: 1710.58
A9: =A8+7 -> 2021-04-09 | B9: 937.24 | D9: 2975.54 | F9: 1298.83 | H9: 1459.88 | J9: 814.67 | L9: 1297.03 | N9: 3373.03 | P9: 1413.8 | R9: 1539.67 | T9: 1660.89 | V9: 1366.54 | X9: 1660.44
A10: 2021-04-16 | B10: 926.99 | D10: 2944.09 | F10: 1287.2 | H10: 1492.93 | J10: 849.16 | L10: 1278.35 | N10: 3340.48 | P10: 1465.59 | R10: 1543.5 | T10: 1649.25 | V10: 1452.46 | X10: 1699.54
A11: 2021-04-23 | B11: 933.74 | D11: 3047.68 | F11: 1307.61 | H11: 1488.65 | J11: 814.26 | L11: 1260.62 | N11: 3447.22 | P11: 1460.48 | R11: 1632.81 | T11: 1739.45 | V11: 1481.55 | X11: 1849.99
A12: 2021-04-30 | B12: 916.56 | C12: =AVERAGE(B8:B12) -> 928.15 | D12: 3196.86 | E12: =AVERAGE(D8:D12) -> 3023.61 | F12: 1355.39 | G12: =AVERAGE(F8:F12) -> 1311.766 | H12: 1549.47 | I12: =AVERAGE(H8:H12) -> 1495.074 | J12: 913.46 | K12: =AVERAGE(J8:J12) -> 850.302 | L12: 1242.37 | M12: =AVERAGE(L8:L12) -> 1282.426 | N12: 3611.36 | O12: =AVERAGE(N8:N12) -> 3428.892 | P12: 1492.73 | Q12: =AVERAGE(P8:P12) -> 1465.304 | R12: 1689.63 | S12: =AVERAGE(R8:R12) -> 1592.568 | T12: 1791.37 | U12: =AVERAGE(T8:T12) -> 1705.192 | V12: 1463.45 | W12: =AVERAGE(V8:V12) -> 1438.1 | X12: 2173.13 | Y12: =AVERAGE(X8:X12) -> 1818.736
A13: 2021-05-07 | B13: 919.29 | D13: 3354.56 | F13: 1371.96 | H13: 1675.29 | J13: 864.41 | L13: 1271.4 | N13: 3886.27 | P13: 1513.79 | R13: 1778.33 | T13: 1811.212 | V13: 1561.41 | X13: 2255.11
A14: 2021-05-14 | B14: 916.45 | D14: 3462.84 | F14: 1464.75 | H14: 1749.12 | J14: 853.96 | L14: 1255.98 | N14: 3908.94 | P14: 1552.13 | R14: 1819.62 | T14: 1862.63 | V14: 1554.37 | X14: 2361.11
A15: 2021-05-21 | B15: 915.13 | D15: 3560.66 | F15: 1541.02 | H15: 1855.86 | J15: 831.71 | L15: 1297.97 | N15: 4066.4 | P15: 1519.92 | R15: 1926.8 | T15: 1823.87 | V15: 1574.75 | X15: 2622.35
A16: 2021-05-28 | B16: 912.63 | C16: =AVERAGE(B13:B16) -> 915.875 | D16: 3739.5 | E16: =AVERAGE(D13:D16) -> 3529.39 | F16: 1590.53 | G16: =AVERAGE(F13:F16) -> 1492.065 | H16: 1893.27 | I16: =AVERAGE(H13:H16) -> 1793.385 | J16: 848.24 | K16: =AVERAGE(J13:J16) -> 849.58 | L16: 1274.92 | M16: =AVERAGE(L13:L16) -> 1275.0675 | N16: 4458.22 | O16: =AVERAGE(N13:N16) -> 4079.9575 | P16: 1545.11 | Q16: =AVERAGE(P13:P16) -> 1532.7375 | R16: 1955.68 | S16: =AVERAGE(R13:R16) -> 1870.1075 | T16: 1808.3 | U16: =AVERAGE(T13:T16) -> 1826.503 | V16: 1546.55 | W16: =AVERAGE(V13:V16) -> 1559.27 | X16: 2623.51 | Y16: =AVERAGE(X13:X16) -> 2465.52
A17: 2021-06-04 | B17: 917.48 | D17: 3835.78 | F17: 1619.89 | H17: 1942.21 | J17: 910.12 | L17: 1326.89 | N17: 4600.84 | P17: 1635.91 | R17: 2037.13 | T17: 1921.1 | V17: 1567.52 | X17: 2844.6
A18: 2021-06-11 | B18: 929.84 | D18: 4013.86 | F18: 1643.48 | H18: 1977.92 | J18: 888.09 | L18: 1340.88 | N18: 4797.74 | P18: 1585.7 | R18: 2104.9 | T18: 1984.9 | V18: 1620.66 | X18: 2865.45
A19: 2021-06-18 | B19: 914.74 | D19: 4187.33 | F19: 1718.08 | H19: 2134.62 | J19: 899.04 | L19: 1316.29 | N19: 4775.77 | P19: 1662.47 | R19: 2151.93 | T19: 2121.02 | V19: 1629.24 | X19: 3062.19
A20: 2021-06-25 | B20: 908.71 | C20: =AVERAGE(B17:B20) -> 917.6925 | D20: 4266.75 | E20: =AVERAGE(D17:D20) -> 4075.93 | F20: 1783.56 | G20: =AVERAGE(F17:F20) -> 1691.2525 | H20: 2137.08 | I20: =AVERAGE(H17:H20) -> 2047.9575 | J20: 936.62 | K20: =AVERAGE(J17:J20) -> 908.4675 | L20: 1307.05 | M20: =AVERAGE(L17:L20) -> 1322.7775 | N20: 5067.82 | O20: =AVERAGE(N17:N20) -> 4810.5425 | P20: 1664.36 | Q20: =AVERAGE(P17:P20) -> 1637.11 | R20: 2311.65 | S20: =AVERAGE(R17:R20) -> 2151.4025 | T20: 2144.2 | U20: =AVERAGE(T17:T20) -> 2042.805 | V20: 1775.34 | W20: =AVERAGE(V17:V20) -> 1648.19 | X20: 3189.09 | Y20: =AVERAGE(X17:X20) -> 2990.3325
A21: 2021-07-02 | B21: 934.15 | D21: 4392.57 | F21: 1811.62 | H21: 2200.9 | J21: 847.29 | L21: 1300.37 | N21: 5124.72 | P21: 1734.32 | R21: 2339.69 | T21: 2288.94 | V21: 1751.11 | X21: 3250.96
A22: 2021-07-09 | B22: 907.18 | D22: 4432.43 | F22: 1923.19 | H22: 2185.91 | J22: 911.25 | L22: 1318.1 | N22: 5180.33 | P22: 1744.07 | R22: 2492.24 | T22: 2210.69 | V22: 1888.74 | X22: 3313.46
A23: 2021-07-16 | B23: 911.65 | D23: 4702.86 | F23: 1840.64 | H23: 2170.8 | J23: 884.8 | L23: 1350.7 | N23: 5341.5 | P23: 1888.69 | R23: 2546.5 | T23: 2324.31 | V23: 2086.82 | X23: 3380.75
A24: 2021-07-23 | B24: 919.63 | D24: 4853.84 | F24: 1971.5 | H24: 2185.28 | J24: 866.83 | L24: 1289.71 | N24: 5649.76 | P24: 1972.5 | R24: 2519.78 | T24: 2375.84 | V24: 2006.53 | X24: 3412.71
A25: 2021-07-30 | B25: 923 | C25: =AVERAGE(B21:B25) -> 919.122 | D25: 5066.32 | E25: =AVERAGE(D21:D25) -> 4689.604 | F25: 1969.97 | G25: =AVERAGE(F21:F25) -> 1903.384 | H25: 2341.37 | I25: =AVERAGE(H21:H25) -> 2216.852 | J25: 883.53 | K25: =AVERAGE(J21:J25) -> 878.74 | L25: 1307.91 | M25: =AVERAGE(L21:L25) -> 1313.358 | N25: 5638.18 | O25: =AVERAGE(N21:N25) -> 5386.898 | P25: 2041.9 | Q25: =AVERAGE(P21:P25) -> 1876.296 | R25: 2634.85 | S25: =AVERAGE(R21:R25) -> 2506.612 | T25: 2376.06 | U25: =AVERAGE(T21:T25) -> 2315.168 | V25: 2031.94 | W25: =AVERAGE(V21:V25) -> 1953.028 | X25: 3579.87 | Y25: =AVERAGE(X21:X25) -> 3387.55
A26: 2021-08-06 | B26: 918.6 | D26: 5165.62 | F26: 2022.62 | H26: 2336.52 | J26: 1016.84 | L26: 1311.75 | N26: 5712.91 | P26: 2207.83 | R26: 2682.1 | T26: 2412.13 | V26: 2012.73 | X26: 3580.9
A27: 2021-08-13 | B27: 918.6 | D27: 5165.62 | F27: 2022.62 | H27: 2336.52 | J27: 1016.84 | L27: 1311.75 | N27: 5712.91 | P27: 2207.83 | R27: 2682.1 | T27: 2412.13 | V27: 2012.73 | X27: 3580.9
A28: 2021-08-20 | B28: 927.49 | D28: 5439.44 | F28: 2005.99 | H28: 2273.94 | J28: 1017.75 | L28: 1443.57 | N28: 5691.7 | P28: 2201.55 | R28: 2761.5 | T28: 2456.97 | V28: 2037.89 | X28: 3636.12
A29: 2021-08-27 | B29: 928.92 | C29: =AVERAGE(B26:B29) -> 923.4025 | D29: 5356.26 | E29: =AVERAGE(D26:D29) -> 5281.735 | F29: 2099.31 | G29: =AVERAGE(F26:F29) -> 2037.635 | H29: 2433.97 | I29: =AVERAGE(H26:H29) -> 2345.2375 | J29: 921.04 | K29: =AVERAGE(J26:J29) -> 993.1175 | L29: 1365.65 | M29: =AVERAGE(L26:L29) -> 1358.18 | N29: 5838.46 | O29: =AVERAGE(N26:N29) -> 5738.995 | P29: 2312.16 | Q29: =AVERAGE(P26:P29) -> 2232.3425 | R29: 2959.05 | S29: =AVERAGE(R26:R29) -> 2771.1875 | T29: 2467 | U29: =AVERAGE(T26:T29) -> 2437.0575 | V29: 2170.8 | W29: =AVERAGE(V26:V29) -> 2058.5375 | X29: 3666.26 | Y29: =AVERAGE(X26:X29) -> 3616.045
A30: 2021-09-03 | B30: 934.02 | D30: 5305.97 | F30: 2319.37 | H30: 2289.71 | J30: 937.42 | L30: 1324.3 | N30: 5706.33 | P30: 2377.27 | R30: 2990.97 | T30: 2491.9 | V30: 2081.38 | X30: 3762.09
A31: 2021-09-10 | B31: 957.11 | D31: 5459.48 | F31: 2225.72 | H31: 2435.87 | J31: 866.95 | L31: 1422.66 | N31: 5871.46 | P31: 2424.84 | R31: 3186.09 | T31: 2530.21 | V31: 2189.64 | X31: 3775.25
A32: 2021-09-17 | B32: 973.29 | D32: 5364.25 | F32: 2183.43 | H32: 2507.94 | J32: 940.67 | L32: 1410.42 | N32: 5936.6 | P32: 2563.42 | R32: 3349.35 | T32: 2567.4 | V32: 2217.58 | X32: 3808.57
A33: 2021-09-24 | B33: 1004.99 | C33: =AVERAGE(B30:B33) -> 967.3525 | D33: 5424.15 | E33: =AVERAGE(D30:D33) -> 5388.4625 | F33: 2271.4 | G33: =AVERAGE(F30:F33) -> 2249.98 | H33: 2534.41 | I33: =AVERAGE(H30:H33) -> 2441.9825 | J33: 966.68 | K33: =AVERAGE(J30:J33) -> 927.93 | L33: 1471.16 | M33: =AVERAGE(L30:L33) -> 1407.135 | N33: 6089.2 | O33: =AVERAGE(N30:N33) -> 5900.8975 | P33: 2397.63 | Q33: =AVERAGE(P30:P33) -> 2440.79 | R33: 3512.35 | S33: =AVERAGE(R30:R33) -> 3259.69 | T33: 2771.84 | U33: =AVERAGE(T30:T33) -> 2590.3375 | V33: 2061.73 | W33: =AVERAGE(V30:V33) -> 2137.5825 | X33: 4012.4 | Y33: =AVERAGE(X30:X33) -> 3839.5775
A34: 2021-10-01 | B34: 1032.23 | D34: 5393.79 | F34: 2217.28 | H34: 2512.38 | J34: 1048.84 | L34: 1412.16 | N34: 6087.31 | P34: 2592.07 | R34: 3566.99 | T34: 2737.06 | V34: 2089.35 | X34: 4026.02
A35: 2021-10-08 | B35: 1034.47 | D35: 5539.71 | F35: 2135.83 | H35: 2687.91 | J35: 1050.59 | L35: 1533.33 | N35: 5991.8 | P35: 2695.69 | R35: 3528.1 | T35: 2808.91 | V35: 2143.49 | X35: 4178.85
A36: 2021-10-15 | B36: 1041.86 | D36: 5530.61 | F36: 2295.6 | H36: 2547.78 | J36: 1054.22 | L36: 1579.92 | N36: 6053.66 | P36: 2668.88 | R36: 3602.37 | T36: 2835.45 | V36: 2056.98 | X36: 4138.36
A37: 2021-10-22 | B37: 1006.63 | D37: 5457.89 | F37: 2381.24 | H37: 2502.65 | J37: 993.24 | L37: 1582.26 | N37: 6249.77 | P37: 2807.19 | R37: 3657.93 | T37: 2921.06 | V37: 2103.92 | X37: 4051.4
A38: 2021-10-29 | B38: 1052.38 | C38: =AVERAGE(B34:B38) -> 1033.514 | D38: 5362.27 | E38: =AVERAGE(D34:D38) -> 5456.854 | F38: 2220.11 | G38: =AVERAGE(F34:F38) -> 2250.012 | H38: 2480.58 | I38: =AVERAGE(H34:H38) -> 2546.26 | J38: 1059.19 | K38: =AVERAGE(J34:J38) -> 1041.216 | L38: 1643.35 | M38: =AVERAGE(L34:L38) -> 1550.204 | N38: 6210.41 | O38: =AVERAGE(N34:N38) -> 6118.59 | P38: 2843.49 | Q38: =AVERAGE(P34:P38) -> 2721.464 | R38: 3763.81 | S38: =AVERAGE(R34:R38) -> 3623.84 | T38: 3000.72 | U38: =AVERAGE(T34:T38) -> 2860.64 | V38: 2137.59 | W38: =AVERAGE(V34:V38) -> 2106.266 | X38: 4040.84 | Y38: =AVERAGE(X34:X38) -> 4087.094
A39: 2021-11-05 | B39: 1057.46 | D39: 5426.49 | F39: 2251.7 | H39: 2465.83 | J39: 1060.05 | L39: 1596.88 | N39: 6185.97 | P39: 2848.96 | R39: 3761.38 | T39: 3029.47 | V39: 2082.29 | X39: 3980.06
A40: 2021-11-12 | B40: 1046.32 | D40: 5342.13 | F40: 2243.42 | H40: 2428.01 | J40: 1038.66 | L40: 1494.49 | N40: 6058.38 | P40: 2798.57 | R40: 3630.15 | T40: 2966.74 | V40: 2056.79 | X40: 4004.81
A41: 2021-11-19 | B41: 1100.04 | D41: 5292.4 | F41: 2268.13 | H41: 2431.04 | J41: 1053.1 | L41: 1568.62 | N41: 6126.6 | P41: 2833.57 | R41: 3669.44 | T41: 3038.47 | V41: 1972.02 | X41: 3938.09
A42: 2021-11-26 | B42: 1104.23 | C42: =AVERAGE(B39:B42) -> 1077.0125 | D42: 5062.62 | E42: =AVERAGE(D39:D42) -> 5280.91 | F42: 2292.95 | G42: =AVERAGE(F39:F42) -> 2264.05 | H42: 2247.18 | I42: =AVERAGE(H39:H42) -> 2393.015 | J42: 1108.2 | K42: =AVERAGE(J39:J42) -> 1065.0025 | L42: 1647.4 | M42: =AVERAGE(L39:L42) -> 1576.8475 | N42: 6047.57 | O42: =AVERAGE(N39:N42) -> 6104.63 | P42: 2867.47 | Q42: =AVERAGE(P39:P42) -> 2837.1425 | R42: 3436.49 | S42: =AVERAGE(R39:R42) -> 3624.365 | T42: 3017.31 | U42: =AVERAGE(T39:T42) -> 3012.9975 | V42: 2024.34 | W42: =AVERAGE(V39:V42) -> 2033.86 | X42: 3866.38 | Y42: =AVERAGE(X39:X42) -> 3947.335
A43: 2021-12-03 | B43: 1089.76 | D43: 5121.53 | F43: 2340.73 | H43: 2513.66 | J43: 1112.53 | L43: 1651.53 | N43: 5824.9 | P43: 2798.17 | R43: 3331.95 | T43: 2919.39 | V43: 1968.62 | X43: 3883.6
A44: 2021-12-10 | B44: 1100.35 | D44: 5161.89 | F44: 2438.17 | H44: 2489.21 | J44: 1107.88 | L44: 1793.92 | N44: 5844.85 | P44: 2658.7 | R44: 3429.84 | T44: 2855.98 | V44: 1965.19 | X44: 3861.7
A45: 2021-12-17 | B45: 1075.56 | D45: 5055.51 | F45: 2430.46 | H45: 2521.84 | J45: 1183.12 | L45: 1938.94 | N45: 5887.73 | P45: 2757.99 | R45: 3403.16 | T45: 2884.35 | V45: 1867.87 | X45: 3944.26
A46: 2021-12-24 | B46: 1063 | D46: 5112 | F46: 2413 | H46: 2662 | J46: 1178 | L46: 2089 | N46: 6046 | P46: 2789 | R46: 3441 | T46: 2937 | V46: 1936 | X46: 3953
A47: 2021-12-31 | B47: 1133.86 | C47: =AVERAGE(B43:B47) -> 1092.506 | D47: 5114.92 | E47: =AVERAGE(D43:D47) -> 5113.17 | F47: 2423.54 | G47: =AVERAGE(F43:F47) -> 2409.18 | H47: 2678.34 | I47: =AVERAGE(H43:H47) -> 2573.01 | J47: 1221.58 | K47: =AVERAGE(J43:J47) -> 1160.622 | L47: 2235.8 | M47: =AVERAGE(L43:L47) -> 1941.838 | N47: 6131.45 | O47: =AVERAGE(N43:N47) -> 5946.986 | P47: 2809.4 | Q47: =AVERAGE(P43:P47) -> 2762.652 | R47: 3340.48 | S47: =AVERAGE(R43:R47) -> 3389.286 | T47: 2988.16 | U47: =AVERAGE(T43:T47) -> 2916.976 | V47: 1865 | W47: =AVERAGE(V43:V47) -> 1920.536 | X47: 4083.56 | Y47: =AVERAGE(X43:X47) -> 3945.224
A48: 2022-01-07 | B48: 1170.51 | D48: 5239.46 | F48: 2630.05 | H48: 2649.67 | J48: 1239.99 | L48: 2311.08 | N48: 6200.15 | P48: 2829.49 | R48: 3364.03 | T48: 2940.66 | V48: 1862.97 | X48: 4155.27
A49: 2022-01-14 | B49: 1190.32 | D49: 5451.97 | F49: 2608.48 | H49: 2638.48 | J49: 1284.21 | L49: 2322.55 | N49: 6274.17 | P49: 2918.3 | R49: 3353.29 | T49: 2921.3 | V49: 1942.71 | X49: 4241.58
A50: 2022-01-21 | B50: 1281.92 | D50: 5636.83 | F50: 2590.39 | H50: 2738.93 | J50: 1307.37 | L50: 2293.13 | N50: 6472.06 | P50: 3034.83 | R50: 3406.29 | T50: 2942.83 | V50: 1941.16 | X50: 4187.1
A51: 2022-01-28 | B51: 1219.81 | C51: =AVERAGE(B48:B51) -> 1215.64 | D51: 5639.26 | E51: =AVERAGE(D48:D51) -> 5491.88 | F51: 2628.62 | G51: =AVERAGE(F48:F51) -> 2614.385 | H51: 2770.26 | I51: =AVERAGE(H48:H51) -> 2699.335 | J51: 1369 | K51: =AVERAGE(J48:J51) -> 1300.1425 | L51: 2294.88 | M51: =AVERAGE(L48:L51) -> 2305.41 | N51: 6577.1 | O51: =AVERAGE(N48:N51) -> 6380.87 | P51: 2917.77 | Q51: =AVERAGE(P48:P51) -> 2925.0975 | R51: 3336.96 | S51: =AVERAGE(R48:R51) -> 3365.1425 | T51: 2834.44 | U51: =AVERAGE(T48:T51) -> 2909.8075 | V51: 1952.07 | W51: =AVERAGE(V48:V51) -> 1924.7275 | X51: 4232.14 | Y51: =AVERAGE(X48:X51) -> 4204.0225
A52: 2022-02-04 | B52: Nil due to CNY
A53: 2022-02-11 | B53: 1227.87 | D53: 5854.14 | F53: 2745.24 | H53: 2801.93 | J53: 1264.83 | L53: 2213.51 | N53: 6614.07 | P53: 2839.66 | R53: 3257.02 | T53: 2669.63 | V53: 1936.97 | X53: 3882.36
A54: 2022-02-18 | B54: 1110.27 | D54: 5720.19 | F54: 2626.33 | H54: 2693.16 | J54: 1278.65 | L54: 2067.6 | N54: 6472.64 | P54: 2787.84 | R54: 3328.87 | T54: 2634.41 | V54: 1932.95 | X54: 4057.34
A55: 2022-02-25 | B55: 1166.6 | C55: =AVERAGE(B53:B55) -> 1168.246667 | D55: 5589.16 | E55: =AVERAGE(D53:D55) -> 5721.163333 | F55: 2591.78 | G55: =AVERAGE(F53:F55) -> 2654.45 | H55: 2658.14 | I55: =AVERAGE(H53:H55) -> 2717.743333 | J55: 1284.99 | K55: =AVERAGE(J53:J55) -> 1276.156667 | L55: 2018.86 | M55: =AVERAGE(L53:L55) -> 2099.99 | N55: 6135.7 | O55: =AVERAGE(N53:N55) -> 6407.47 | P55: 2771.15 | Q55: =AVERAGE(P53:P55) -> 2799.55 | R55: 3293.73 | S55: =AVERAGE(R53:R55) -> 3293.206667 | T55: 2611.73 | U55: =AVERAGE(T53:T55) -> 2638.59 | V55: 1884.8 | W55: =AVERAGE(V53:V55) -> 1918.24 | X55: 3974.8 | Y55: =AVERAGE(X53:X55) -> 3971.5
A56: 2022-03-04 | B56: 1128.75 | D56: 5528.5 | F56: 2578.94 | H56: 2667.82 | J56: 1262.2 | L56: 1941.06 | N56: 6271.72 | P56: 2659.69 | R56: 3258.92 | T56: 2472.23 | V56: 1920.67 | X56: 3824.46
A57: 2022-03-11 | B57: 1118.62 | D57: 5474.9 | F57: 2568.88 | H57: 2592.59 | J57: 1202.09 | L57: 1922.23 | N57: 6262.4 | P57: 2708.33 | R57: 3312.56 | T57: 2388.19 | V57: 1912.05 | X57: 3885.53
A58: 2022-03-18 | B58: 1124.72 | D58: 5372.2 | F58: 2470.76 | H58: 2646.21 | J58: 1268.6 | L58: 1848.47 | N58: 6229.19 | P58: 2641 | R58: 3333.78 | T58: 2331.93 | V58: 1842.41 | X58: 3696.16
A59: 2022-03-25 | B59: 1123.02 | C59: =AVERAGE(B56:B59) -> 1123.7775 | D59: 5284.06 | E59: =AVERAGE(D56:D59) -> 5414.915 | F59: 2520.33 | G59: =AVERAGE(F56:F59) -> 2534.7275 | H59: 2641.88 | I59: =AVERAGE(H56:H59) -> 2637.125 | J59: 1231.37 | K59: =AVERAGE(J56:J59) -> 1241.065 | L59: 1836.72 | M59: =AVERAGE(L56:L59) -> 1887.12 | N59: 6209.8 | O59: =AVERAGE(N56:N59) -> 6243.2775 | P59: 2561.81 | Q59: =AVERAGE(P56:P59) -> 2642.7075 | R59: 3267.55 | S59: =AVERAGE(R56:R59) -> 3293.2025 | T59: 2256.29 | U59: =AVERAGE(T56:T59) -> 2362.16 | V59: 1874.08 | W59: =AVERAGE(V56:V59) -> 1887.3025 | X59: 3596.72 | Y59: =AVERAGE(X56:X59) -> 3750.7175
A60: 2022-04-01 | B60: 1159.7 | D60: 5162.23 | F60: 2436.6 | H60: 2710.1 | J60: 1249.33 | L60: 1831.21 | N60: 6025.65 | P60: 2496.94 | R60: 3254.62 | T60: 2169.22 | V60: 1792.96 | X60: 3418.92
A61: 2022-04-08 | B61: 1178.22 | D61: 5104.4 | F61: 2286.79 | H61: 2608.64 | J61: 1249.11 | L61: 1765.12 | N61: 5928.69 | P61: 2507.58 | R61: 3190.66 | T61: 2035.08 | V61: 1810.13 | X61: 3245.9
A62: 2022-04-15 | B62: 1192.69 | D62: 5067.27 | F62: 2354.1 | H62: 2648.78 | J62: 1271.9 | L62: 1780.33 | N62: 6002.97 | P62: 2455.24 | R62: 3171.85 | T62: 2019.96 | V62: 1779.99 | X62: 3162.8
A63: 2022-04-22 | B63: 1221.93 | D63: 5082.92 | F63: 2336.96 | H63: 2645.47 | J63: 1228.95 | L63: 1761.57 | N63: 6004.53 | P63: 2556.4 | R63: 3102.21 | T63: 1954.15 | V63: 1660.15 | X63: 3013.83
A64: 2022-04-29 | B64: 1218.67 | C64: =AVERAGE(B60:B64) -> 1194.242 | D64: 5063.35 | E64: =AVERAGE(D60:D64) -> 5096.034 | F64: 2324.05 | G64: =AVERAGE(F60:F64) -> 2347.7 | H64: 2561.15 | I64: =AVERAGE(H60:H64) -> 2634.828 | J64: 1244.04 | K64: =AVERAGE(J60:J64) -> 1248.666 | L64: 1764.62 | M64: =AVERAGE(L60:L64) -> 1780.57 | N64: 6021.42 | O64: =AVERAGE(N60:N64) -> 5996.652 | P64: 2646.36 | Q64: =AVERAGE(P60:P64) -> 2532.504 | R64: 3112.71 | S64: =AVERAGE(R60:R64) -> 3166.41 | T64: 1944.27 | U64: =AVERAGE(T60:T64) -> 2024.536 | V64: 1754.7 | W64: =AVERAGE(V60:V64) -> 1759.586 | X64: 2943.57 | Y64: =AVERAGE(X60:X64) -> 3157.004
A65: 2022-05-06 | B65: 1197.05 | D65: 5039.23 | F65: 2339.09 | H65: 2517.59 | J65: 1179.54 | L65: 1712.04 | N65: 5947.17 | P65: 2658.9 | R65: 2997.41 | T65: 1970.44 | V65: 1676.08 | X65: 2746.89
A66: 2022-05-13 | B66: 1223.69 | D66: 5049.94 | F66: 2413.36 | H66: 2671.47 | J66: 1238.4 | L66: 1681.52 | N66: 5988.43 | P66: 2634.45 | R66: 3017.01 | T66: 1910.27 | V66: 1701.97 | X66: 2716.29
A67: 2022-05-20 | B67: 1218.83 | D67: 4978 | F67: 2598.5 | H67: 2916.52 | J67: 1224.03 | L67: 1723.94 | N67: 6010.56 | P67: 2710.37 | R67: 2993.9 | T67: 1922.3 | V67: 1703.71 | X67: 2633.23
A68: 2022-05-27 | B68: 1228.27 | C68: =AVERAGE(B65:B68) -> 1216.96 | D68: 5051.92 | E68: =AVERAGE(D65:D68) -> 5029.7725 | F68: 2714.62 | G68: =AVERAGE(F65:F68) -> 2516.3925 | H68: 3017.27 | I68: =AVERAGE(H65:H68) -> 2780.7125 | J68: 1238.64 | K68: =AVERAGE(J65:J68) -> 1220.1525 | L68: 1648.58 | M68: =AVERAGE(L65:L68) -> 1691.52 | N68: 6070.4 | O68: =AVERAGE(N65:N68) -> 6004.14 | P68: 2724.5 | Q68: =AVERAGE(P65:P68) -> 2682.055 | R68: 3010.17 | S68: =AVERAGE(R65:R68) -> 3004.6225 | T68: 1932.31 | U68: =AVERAGE(T65:T68) -> 1933.83 | V68: 1660.38 | W68: =AVERAGE(V65:V68) -> 1685.535 | X68: 2748.92 | Y68: =AVERAGE(X65:X68) -> 2711.3325
A69: 2022-06-03 | B69: 1219.25 | D69: 5024.21 | F69: 2682.4 | H69: 3024.65 | J69: 1221.4 | L69: 1692.98 | N69: 6065.34 | P69: 2749.14 | R69: 3003.44 | T69: 1885.95 | V69: 1672.81 | X69: 2828.98
A70: 2022-06-10 | B70: 1221.57 | D70: 5069.07 | F70: 2665.78 | H70: 3023.22 | J70: 1318.34 | L70: 1727.89 | N70: 6095.67 | P70: 2794.21 | R70: 2967.3 | T70: 1983.65 | V70: 1692.15 | X70: 3122.05
A71: 2022-06-17 | B71: 1222.9 | D71: 5068.91 | F71: 2691.53 | H71: 3022.06 | J71: 1223.54 | L71: 1738.3 | N71: 6145.5 | P71: 2821.29 | R71: 3060.78 | T71: 1999.35 | V71: 1640.4 | X71: 3291.83
A72: 2022-06-24 | B72: 1205.37 | C72: 1217.2725 | D72: 5024.16 | E72: 5046.5875 | F72: 2676.02 | G72: 2678.9325 | H72: 2982.23 | I72: 3013.04 | J72: 1211.95 | K72: 1243.8075 | L72: 1764.58 | M72: 1730.9375 | N72: 5976.09 | O72: 6070.65 | P72: 2835.29 | Q72: 2799.9825 | R72: 3115.2 | S72: 3036.68 | T72: 2132.36 | U72: 2000.3275 | V72: 1686.6 | W72: 1672.99 | X72: 3440.49 | Y72: 3170.8375
A73: =A72+7 -> 2022-07-01 | B73: 1184.65 | D73: 5098.72 | F73: 2643.55 | H73: 3012.13 | J73: 1296.37 | L73: 1758.78 | N73: 6026.07 | P73: 2801.11 | R73: 3051.48 | T73: 2148.3 | V73: 1682.52 | X73: 3613.78
A74: 2022-07-08 | B74: 1189.1 | D74: 4994.35 | F74: 2577.61 | H74: 2959.47 | J74: 1261.68 | L74: 1799.47 | N74: 5906.55 | P74: 2866.82 | R74: 3012.55 | T74: 2242.39 | V74: 1661.71 | X74: 3639.88
A75: 2022-07-15 | B75: 1200.3 | D75: 5085.87 | F75: 2642.41 | H75: 2927.72 | J75: 1263 | L75: 1748.99 | N75: 6012.58 | P75: 2878.02 | R75: 3083.11 | T75: 2314.23 | V75: 1665.94 | X75: 3707.59
A76: 2022-07-22 | B76: 1190.16 | D76: 5086.48 | F76: 2536.56 | H76: 2946.35 | J76: 1271.07 | L76: 1702.96 | N76: 5813.46 | P76: 2885.33 | R76: 3051.05 | T76: 2399.8 | V76: 1638.27 | X76: 3612.35
A77: 2022-07-29 | B77: 1208.25 | C77: =AVERAGE(B73:B77) -> 1194.492 | D77: 4997.28 | E77: =AVERAGE(D73:D77) -> 5052.54 | F77: 2529 | G77: =AVERAGE(F73:F77) -> 2585.826 | H77: 2949.48 | I77: =AVERAGE(H73:H77) -> 2959.03 | J77: 1298.88 | K77: =AVERAGE(J73:J77) -> 1278.2 | L77: 1665.57 | M77: =AVERAGE(L73:L77) -> 1735.154 | N77: 5749.89 | O77: =AVERAGE(N73:N77) -> 5901.71 | P77: 2888.2 | Q77: =AVERAGE(P73:P77) -> 2863.896 | R77: 3016.69 | S77: =AVERAGE(R73:R77) -> 3042.976 | T77: 2480.5 | U77: =AVERAGE(T73:T77) -> 2317.044 | V77: 1654.33 | W77: =AVERAGE(V73:V77) -> 1660.554 | X77: 3362.68 | Y77: =AVERAGE(X73:X77) -> 3587.256
A78: =A77+7 -> 2022-08-05 | B78: 1171.39 | D78: 5075.59 | F78: 2457.62 | H78: 2898.19 | J78: 1275.04 | L78: 1671.19 | N78: 5610.49 | P78: 2945.75 | R78: 2961.83 | T78: 2477.8 | V78: 1632.86 | X78: 3290.14
A79: 2022-08-12 | B79: 1192.98 | D79: 4910.61 | F79: 2471.12 | H79: 2876.22 | J79: 1299.45 | L79: 1483.01 | N79: 5507.71 | P79: 2902.29 | R79: 3030.7 | T79: 2420.29 | V79: 1603.03 | X79: 2910.29
A80: 2022-08-19 | B80: 1183.73 | D80: 4817.93 | F80: 2362.71 | H80: 2907.32 | J80: 1250.23 | L80: 1421.08 | N80: 5313.46 | P80: 2871.87 | R80: 2946.07 | T80: 2387.24 | V80: 1625.05 | X80: 2764.77
A81: 2022-08-26 | B81: 1180.12 | C81: =AVERAGE(B78:B81) -> 1182.055 | D81: 4689.31 | E81: =AVERAGE(D78:D81) -> 4873.36 | F81: 2360.4 | G81: =AVERAGE(F78:F81) -> 2412.9625 | H81: 2835.84 | I81: =AVERAGE(H78:H81) -> 2879.3925 | J81: 1300.88 | K81: =AVERAGE(J78:J81) -> 1281.4 | L81: 1291.72 | M81: =AVERAGE(L78:L81) -> 1466.75 | N81: 5163.95 | O81: =AVERAGE(N78:N81) -> 5398.9025 | P81: 2792.71 | Q81: =AVERAGE(P78:P81) -> 2878.155 | R81: 2878.11 | S81: =AVERAGE(R78:R81) -> 2954.1775 | T81: 2279.25 | U81: =AVERAGE(T78:T81) -> 2391.145 | V81: 1570.19 | W81: =AVERAGE(V78:V81) -> 1607.7825 | X81: 2484.17 | Y81: =AVERAGE(X78:X81) -> 2862.3425
A82: 2022-09-02 | B82: 1184.6 | D82: 4616.87 | F82: 2232.89 | H82: 2837.09 | J82: 1259.06 | L82: 1217.25 | N82: 5108.4 | P82: 2768.04 | R82: 2907.95 | T82: 2170.6 | V82: 1551.94 | X82: 2317.55
A83: 2022-09-09 | B83: 1165.83 | D83: 4455.48 | F83: 2194.66 | H83: 2799.37 | J83: 1261.41 | L83: 1131.24 | N83: 4833.04 | P83: 2789.66 | R83: 2842.58 | T83: 2061.24 | V83: 1525.51 | X83: 2022.84
A84: 2022-09-16 | B84: 1142.22 | D84: 4335 | F84: 2012.7 | H84: 2784.02 | J84: 1219.11 | L84: 1025.91 | N84: 4676.99 | P84: 2700.89 | R84: 2830.84 | T84: 1848.34 | V84: 1492.11 | X84: 1931.49
A85: 2022-09-23 | B85: 1174.39 | D85: 4178.14 | F85: 1913.8 | H85: 2600.25 | J85: 1211.33 | L85: 985.67 | N85: 4381.06 | P85: 2603.15 | R85: 2709.43 | T85: 1623.3 | V85: 1472.45 | X85: 1659.55
A86: 2022-09-30 | B86: 1142.76 | C86: =AVERAGE(B82:B86) -> 1161.96 | D86: 3995.68 | E86: =AVERAGE(D82:D86) -> 4316.234 | F86: 1697.24 | G86: =AVERAGE(F82:F86) -> 2010.258 | H86: 2480.83 | I86: =AVERAGE(H82:H86) -> 2700.312 | J86: 1285.28 | K86: =AVERAGE(J82:J86) -> 1247.238 | L86: 957.67 | M86: =AVERAGE(L82:L86) -> 1063.548 | N86: 4129.46 | O86: =AVERAGE(N82:N86) -> 4625.79 | P86: 2468.24 | Q86: =AVERAGE(P82:P86) -> 2665.996 | R86: 2636.91 | S86: =AVERAGE(R82:R86) -> 2785.542 | T86: 1441.9 | U86: =AVERAGE(T82:T86) -> 1829.076 | V86: 1387.43 | W86: =AVERAGE(V82:V86) -> 1485.888 | X86: 1486.18 | Y86: =AVERAGE(X82:X86) -> 1883.522
A87: 2022-10-07
A88: 2022-10-14 | B88: 1156.29 | D88: 3435.82 | F88: 1486.37 | H88: 2195.67 | J88: 1130.94 | L88: 852.89 | N88: 3505.76 | P88: 2316.13 | R88: 2455.97 | T88: 1156.27 | V88: 1288.66 | X88: 1124.11
A89: 2022-10-21 | B89: 1151.58 | D89: 3339.09 | F89: 1389.53 | H89: 2143.1 | J89: 1105.97 | L89: 866.42 | N89: 3314.62 | P89: 2173.84 | R89: 2420.39 | T89: 1156.47 | V89: 1282.32 | X89: 1104.7
A90: 2022-10-28 | B90: 1159.23 | C90: =AVERAGE(B88:B90) -> 1155.7 | D90: 3113.46 | E90: =AVERAGE(D88:D90) -> 3296.123333 | F90: 1241.65 | G90: =AVERAGE(F88:F90) -> 1372.516667 | H90: 2035.04 | I90: =AVERAGE(H88:H90) -> 2124.603333 | J90: 1121.31 | K90: =AVERAGE(J88:J90) -> 1119.406667 | L90: 844.86 | M90: =AVERAGE(L88:L90) -> 854.7233333 | N90: 3099.43 | O90: =AVERAGE(N88:N90) -> 3306.603333 | P90: 2050.89 | Q90: =AVERAGE(P88:P90) -> 2180.286667 | R90: 2379.03 | S90: =AVERAGE(R88:R90) -> 2418.463333 | T90: 1265.43 | U90: =AVERAGE(T88:T90) -> 1192.723333 | V90: 1263.17 | W90: =AVERAGE(V88:V90) -> 1278.05 | X90: 1191.86 | Y90: =AVERAGE(X88:X90) -> 1140.223333
A91: 2022-11-04 | B91: 1149.94 | D91: 2894.69 | F91: 1171.56 | H91: 1964.56 | J91: 1072.25 | L91: 887.69 | N91: 2917.04 | P91: 1886.41 | R91: 2336.69 | T91: 1262.93 | V91: 1242.65 | X91: 1355.79
A92: 2022-11-11 | B92: 1160.35 | D92: 2689.82 | F92: 1138.42 | H92: 1881.53 | J92: 1045.18 | L92: 863.08 | N92: 2771.26 | P92: 1782.67 | R92: 2367.34 | T92: 1229.71 | V92: 1229.67 | X92: 1529.17
A93: 2022-11-18 | B93: 1127.87 | D93: 2514.7 | F93: 1036.96 | H93: 1780.34 | J93: 1084.83 | L93: 846.32 | N93: 2668.72 | P93: 1630.54 | R93: 2332.71 | T93: 1129.45 | V93: 1148.96 | X93: 1672.14
A94: 2022-11-25 | B94: 1141.9 | C94: =AVERAGE(B91:B94) -> 1145.015 | D94: 2296.33 | E94: =AVERAGE(D91:D94) -> 2598.885 | F94: 988.72 | G94: =AVERAGE(F91:F94) -> 1083.915 | H94: 1676.37 | I94: =AVERAGE(H91:H94) -> 1825.7 | J94: 1055.43 | K94: =AVERAGE(J91:J94) -> 1064.4225 | L94: 842.58 | M94: =AVERAGE(L91:L94) -> 859.9175 | N94: 2547.43 | O94: =AVERAGE(N91:N94) -> 2726.1125 | P94: 1559.48 | Q94: =AVERAGE(P91:P94) -> 1714.775 | R94: 2268.19 | S94: =AVERAGE(R91:R94) -> 2326.2325 | T94: 960.37 | U94: =AVERAGE(T91:T94) -> 1145.615 | V94: 1146.32 | W94: =AVERAGE(V91:V94) -> 1191.9 | X94: 1643.67 | Y94: =AVERAGE(X91:X94) -> 1550.1925
A95: 2022-12-02 | B95: 1126 | D95: 2162 | F95: 928 | H95: 1559 | J95: 1037 | L95: 819 | N95: 2377 | P95: 1445 | R95: 2135 | T95: 800 | V95: 1075 | X95: 1468
A96: 2022-12-09 | B96: 1118.91 | D96: 2035.28 | F96: 927.2 | H96: 1515.6 | J96: 1049.48 | L96: 759.45 | N96: 2374.32 | P96: 1414.66 | R96: 2036.39 | T96: 727.39 | V96: 977.95 | X96: 1353.54
A97: 2022-12-16 | B97: 1091.22 | D97: 1893.97 | F97: 894.62 | H97: 1433.23 | J97: 1022.7 | L97: 761.23 | N97: 2246.64 | P97: 1250.91 | R97: 1903.42 | T97: 713.66 | V97: 916.19 | X97: 1294.27
A98: 2022-12-23 | B98: 1096.01 | D98: 1823.1 | F98: 906.35 | H98: 1391.15 | J98: 1030.27 | L98: 721.61 | N98: 2188.22 | P98: 1255.3 | R98: 1829.56 | T98: 670.63 | V98: 893.19 | X98: 1251.34
A99: 2022-12-30 | B99: 1071.92 | C99: =AVERAGE(B95:B99) -> 1100.812 | D99: 1766.36 | E99: =AVERAGE(D95:D99) -> 1936.142 | F99: 837.77 | G99: =AVERAGE(F95:F99) -> 898.788 | H99: 1377.49 | I99: =AVERAGE(H95:H99) -> 1455.294 | J99: 1029.85 | K99: =AVERAGE(J95:J99) -> 1033.86 | L99: 709.93 | M99: =AVERAGE(L95:L99) -> 754.244 | N99: 2184.18 | O99: =AVERAGE(N95:N99) -> 2274.072 | P99: 1276.11 | Q99: =AVERAGE(P95:P99) -> 1328.396 | R99: 1772.81 | S99: =AVERAGE(R95:R99) -> 1935.436 | T99: 674.85 | U99: =AVERAGE(T95:T99) -> 717.306 | V99: 817.49 | W99: =AVERAGE(V95:V99) -> 935.964 | X99: 1218.43 | Y99: =AVERAGE(X95:X99) -> 1317.116
A100: 2023-01-06 | B100: 1054.19 | D100: 1753.37 | F100: 843.96 | H100: 1364.14 | J100: 1003 | L100: 696.27 | N100: 2170.08 | P100: 1247.58 | R100: 1675.81 | T100: 676.51 | V100: 792.54 | X100: 1167.45
A101: 2023-01-13 | B101: 1020 | D101: 1584.12 | F101: 822.62 | H101: 1333 | J101: 901.38 | L101: 672.11 | N101: 2183.06 | P101: 1260.6 | R101: 1604.75 | T101: 667.25 | V101: 718.91 | X101: 1154.69
A102: 2023-01-20 | B102: 1073.04 | D102: 1502.35 | F102: 818.48 | H102: 1239.88 | J102: 964.54 | L102: 680.63 | N102: 2088.83 | P102: 1125.18 | R102: 1510.89 | T102: 599.88 | V102: 693.99 | X102: 1080.91
A103: 2023-01-27 | C103: =AVERAGE(B100:B102) -> 1049.076667 | E103: =AVERAGE(D100:D102) -> 1613.28 | G103: =AVERAGE(F100:F102) -> 828.3533333 | I103: =AVERAGE(H100:H102) -> 1312.34 | K103: =AVERAGE(J100:J102) -> 956.3066667 | M103: =AVERAGE(L100:L102) -> 683.0033333 | O103: =AVERAGE(N100:N102) -> 2147.323333 | Q103: =AVERAGE(P100:P102) -> 1211.12 | S103: =AVERAGE(R100:R102) -> 1597.15 | U103: =AVERAGE(T100:T102) -> 647.88 | W103: =AVERAGE(V100:V102) -> 735.1466667 | Y103: =AVERAGE(X100:X102) -> 1134.35
A104: 2023-02-03 | B104: 984.24 | D104: 1465.34 | F104: 794.74 | H104: 1199.03 | J104: 910.36 | L104: 654.94 | N104: 1974.65 | P104: 1057.96 | R104: 1443.99 | T104: 537.96 | V104: 628.81 | X104: 1025.98
A105: 2023-02-10 | B105: 1068.74 | D105: 1449.61 | F105: 846.32 | H105: 1218.5 | J105: 935.99 | L105: 689.6 | N105: 1983.61 | P105: 966.64 | R105: 1386.69 | T105: 570.77 | V105: 609.51 | X105: 1068.62
A106: 2023-02-17 | B106: 1035.23 | D106: 1411.53 | F106: 794.49 | H106: 1144.03 | J106: 773.32 | L106: 629.44 | N106: 1949.31 | P106: 1024.89 | R106: 1322.1 | T106: 623.93 | V106: 619.1 | X106: 1091.24
A107: 2023-02-24 | B107: 1027.08 | C107: =AVERAGE(B104:B107) -> 1028.8225 | D107: 1394.8 | E107: =AVERAGE(D104:D107) -> 1430.32 | F107: 779.96 | G107: =AVERAGE(F104:F107) -> 803.8775 | H107: 1118.37 | I107: =AVERAGE(H104:H107) -> 1169.9825 | J107: 830.12 | K107: =AVERAGE(J104:J107) -> 862.4475 | L107: 634.7 | M107: =AVERAGE(L104:L107) -> 652.17 | N107: 1863.22 | O107: =AVERAGE(N104:N107) -> 1942.6975 | P107: 969.18 | Q107: =AVERAGE(P104:P107) -> 1004.6675 | R107: 1260.46 | S107: =AVERAGE(R104:R107) -> 1353.31 | T107: 608.02 | U107: =AVERAGE(T104:T107) -> 585.17 | V107: 607.5 | W107: =AVERAGE(V104:V107) -> 616.23 | X107: 1115.86 | Y107: =AVERAGE(X104:X107) -> 1075.425
A108: 2023-03-03 | B108: 961.19 | D108: 1379.05 | F108: 781.02 | H108: 1083.66 | J108: 788.38 | L108: 605.36 | N108: 1835.08 | P108: 935.14 | R108: 1208.59 | T108: 640.77 | V108: 582.26 | X108: 1116.45
A109: 2023-03-10 | B109: 982.13 | D109: 1301.64 | F109: 746.83 | H109: 1048.5 | J109: 751.86 | L109: 608.14 | N109: 1803.34 | P109: 896.61 | R109: 1105.13 | T109: 620.87 | V109: 574.65 | X109: 1057.47
A110: 2023-03-17 | B110: 906.79 | D110: 1234.78 | F110: 738.04 | H110: 1065.24 | J110: 757.55 | L110: 645.82 | N110: 1766.54 | P110: 792.24 | R110: 1061.65 | T110: 590.59 | V110: 567.55 | X110: 1012.19
A111: 2023-03-24 | B111: 939.67 | D111: 1238.43 | F111: 709.22 | H111: 1071.26 | J111: 724.6 | L111: 641.92 | N111: 1755.82 | P111: 766.87 | R111: 984.29 | T111: 571.29 | V111: 555.94 | X111: 920.94
A112: 2023-03-31 | B112: 863.97 | C112: =AVERAGE(B108:B112) -> 930.75 | D112: 1215.22 | E112: =AVERAGE(D108:D112) -> 1273.824 | F112: 694.46 | G112: =AVERAGE(F108:F112) -> 733.914 | H112: 1042.05 | I112: =AVERAGE(H108:H112) -> 1062.142 | J112: 723 | K112: =AVERAGE(J108:J112) -> 749.078 | L112: 650.94 | M112: =AVERAGE(L108:L112) -> 630.436 | N112: 1707.87 | O112: =AVERAGE(N108:N112) -> 1773.73 | P112: 741.68 | Q112: =AVERAGE(P108:P112) -> 826.508 | R112: 951.95 | S112: =AVERAGE(R108:R112) -> 1062.322 | T112: 548.89 | U112: =AVERAGE(T108:T112) -> 594.482 | V112: 554.73 | W112: =AVERAGE(V108:V112) -> 567.026 | X112: 975.15 | Y112: =AVERAGE(X108:X112) -> 1016.44
A113: 2023-04-07 | B113: 902.3 | D113: 1201.7 | F113: 704.45 | H113: 917.68 | J113: 673.76 | L113: 667.82 | N113: 1714.53 | P113: 705.97 | R113: 940.98 | T113: 572.08 | V113: 546.35 | X113: 1001.51
A114: 2023-04-14 | B114: 860.35 | D114: 1177.7 | F114: 708.93 | H114: 931.72 | J114: 642.67 | L114: 666.7 | N114: 1661.47 | P114: 727.74 | R114: 882.33 | T114: 618.38 | V114: 558.07 | X114: 996.18
A115: 2023-04-21 | B115: 880.88 | D115: 1160.94 | F115: 676.48 | H115: 867.65 | J115: 600.76 | L115: 653.62 | N115: 1659.32 | P115: 661.47 | R115: 834.36 | T115: 655.69 | V115: 557.41 | X115: 1135.86
A116: 2023-04-28 | B116: 913.7 | C116: =AVERAGE(B113:B116) -> 889.3075 | D116: 1183.36 | E116: =AVERAGE(D113:D116) -> 1180.925 | F116: 723.27 | G116: =AVERAGE(F113:F116) -> 703.2825 | H116: 923.24 | I116: =AVERAGE(H113:H116) -> 910.0725 | J116: 611.43 | K116: =AVERAGE(J113:J116) -> 632.155 | L116: 657.46 | M116: =AVERAGE(L113:L116) -> 661.4 | N116: 1692.45 | O116: =AVERAGE(N113:N116) -> 1681.9425 | P116: 677.34 | Q116: =AVERAGE(P113:P116) -> 693.13 | R116: 820.18 | S116: =AVERAGE(R113:R116) -> 869.4625 | T116: 672.2 | U116: =AVERAGE(T113:T116) -> 629.5875 | V116: 563.34 | W116: =AVERAGE(V113:V116) -> 556.2925 | X116: 1180.16 | Y116: =AVERAGE(X113:X116) -> 1078.4275
A117: 2023-05-05 | B117: 883 | D117: 1170.67 | F117: 750.81 | H117: 933.14 | J117: 599.4 | L117: 644.67 | N117: 1696.22 | P117: 641.91 | R117: 780.97 | T117: 710.51 | V117: 550.94 | X117: 1226.51
A118: 2023-05-12 | B118: 845.02 | D118: 1170.32 | F118: 745.17 | H118: 910.59 | J118: 578.13 | L118: 629.95 | N118: 1687.81 | P118: 597.19 | R118: 771.98 | T118: 734.21 | V118: 585.31 | X118: 1190.73
A119: 2023-05-19 | B119: 863.12 | D119: 1165.19 | F119: 707.57 | H119: 897.13 | J119: 581.64 | L119: 634.15 | N119: 1681.2 | P119: 592.91 | R119: 795.89 | T119: 745.78 | V119: 596.03 | X119: 1156.02
A120: 2023-05-26 | B120: 899.69 | C120: =AVERAGE(B117:B120) -> 872.7075 | D120: 1147.57 | E120: =AVERAGE(D117:D120) -> 1163.4375 | F120: 703.31 | G120: =AVERAGE(F117:F120) -> 726.715 | H120: 885.38 | I120: =AVERAGE(H117:H120) -> 906.56 | J120: 574.15 | K120: =AVERAGE(J117:J120) -> 583.33 | L120: 630.51 | M120: =AVERAGE(L117:L120) -> 634.82 | N120: 1678.89 | O120: =AVERAGE(N117:N120) -> 1686.03 | P120: 576.82 | Q120: =AVERAGE(P117:P120) -> 602.2075 | R120: 772.21 | S120: =AVERAGE(R117:R120) -> 780.2625 | T120: 751.85 | U120: =AVERAGE(T117:T120) -> 735.5875 | V120: 604.35 | W120: =AVERAGE(V117:V120) -> 584.1575 | X120: 1104.97 | Y120: =AVERAGE(X117:X120) -> 1169.5575
A121: 2023-06-02 | B121: 870.51 | D121: 1149.52 | F121: 699.48 | H121: 860.07 | J121: 556.96 | L121: 608.57 | N121: 1684.25 | P121: 600.15 | R121: 765.78 | T121: 740.09 | V121: 576.17 | X121: 1118.08
A122: 2023-06-09 | B122: 869.94 | D122: 1134.35 | F122: 679.75 | H122: 847.79 | J122: 521.25 | L122: 618.15 | N122: 1688.84 | P122: 581.04 | R122: 762.29 | T122: 720.05 | V122: 584.71 | X122: 1118.96
A123: 2023-06-16 | B123: 854.96 | D123: 1124.82 | F123: 717.57 | H123: 868.11 | J123: 525.81 | L123: 607.5 | N123: 1649.82 | P123: 590.85 | R123: 766.59 | T123: 735.46 | V123: 603.48 | X123: 1134.39
A124: 2023-06-23 | B124: 858.59 | D124: 1119.38 | F124: 714.67 | H124: 857.98 | J124: 500.38 | L124: 598.58 | N124: 1628.44 | P124: 595.95 | R124: 731.72 | T124: 712.96 | V124: 583.26 | X124: 1153.39
A125: 2023-06-30 | B125: 838.88 | C125: =AVERAGE(B121:B125) -> 858.576 | D125: 1101.25 | E125: =AVERAGE(D121:D125) -> 1125.864 | F125: 665.41 | G125: =AVERAGE(F121:F125) -> 695.376 | H125: 814.22 | I125: =AVERAGE(H121:H125) -> 849.634 | J125: 489.1 | K125: =AVERAGE(J121:J125) -> 518.7 | L125: 599.61 | M125: =AVERAGE(L121:L125) -> 606.482 | N125: 1621.61 | O125: =AVERAGE(N121:N125) -> 1654.592 | P125: 605.4 | Q125: =AVERAGE(P121:P125) -> 594.678 | R125: 704.21 | S125: =AVERAGE(R121:R125) -> 746.118 | T125: 699.16 | U125: =AVERAGE(T121:T125) -> 721.544 | V125: 571.27 | W125: =AVERAGE(V121:V125) -> 583.778 | X125: 1129.31 | Y125: =AVERAGE(X121:X125) -> 1130.826
A126: 2023-07-07 | B126: 815.35 | D126: 1080.19 | F126: 654.88 | H126: 790.49 | J126: 486.97 | L126: 585.92 | N126: 1601.4 | P126: 588.49 | R126: 708.45 | T126: 678.18 | V126: 586.03 | X126: 1121.21
A127: 2023-07-14 | B127: 817.36 | D127: 1052.27 | F127: 659.13 | H127: 793.02 | J127: 458.59 | L127: 578.43 | N127: 1568.12 | P127: 575.69 | R127: 719.62 | T127: 702.77 | V127: 587.73 | X127: 1084.86
A128: 2023-07-21 | B128: 812.23 | D128: 1027.66 | F128: 670.35 | H128: 829.06 | J128: 445.94 | L128: 583.17 | N128: 1515.35 | P128: 580.51 | R128: 712.07 | T128: 703.05 | V128: 581.79 | X128: 1091.58
A129: 2023-07-28 | B129: 807.7 | C129: =AVERAGE(B126:B129) -> 813.16 | D129: 1031 | E129: =AVERAGE(D126:D129) -> 1047.78 | F129: 702.62 | G129: =AVERAGE(F126:F129) -> 671.745 | H129: 859.58 | I129: =AVERAGE(H126:H129) -> 818.0375 | J129: 414.38 | K129: =AVERAGE(J126:J129) -> 451.47 | L129: 559.95 | M129: =AVERAGE(L126:L129) -> 576.8675 | N129: 1505.01 | O129: =AVERAGE(N126:N129) -> 1547.47 | P129: 561.46 | Q129: =AVERAGE(P126:P129) -> 576.5375 | R129: 705.52 | S129: =AVERAGE(R126:R129) -> 711.415 | T129: 680.23 | U129: =AVERAGE(T126:T129) -> 691.0575 | V129: 587.64 | W129: =AVERAGE(V126:V129) -> 585.7975 | X129: 1007.35 | Y129: =AVERAGE(X126:X129) -> 1076.25
A130: 2023-08-04 | B130: 795.82 | D130: 1026.52 | F130: 736.26 | H130: 874.41 | J130: 395.74 | L130: 568.7 | N130: 1483.74 | P130: 583.62 | R130: 701.94 | T130: 681.63 | V130: 582.13 | X130: 948.01
A131: 2023-08-11 | B131: 788.46 | D131: 1074.36 | F131: 733.29 | H131: 880.06 | J131: 424.35 | L131: 551.09 | N131: 1533.86 | P131: 609.72 | R131: 705.2 | T131: 699.27 | V131: 591.91 | X131: 899.02
A132: 2023-08-18 | B132: 753.66 | D132: 1128.49 | F132: 754.56 | H132: 905.5 | J132: 435.18 | L132: 546.78 | N132: 1556.71 | P132: 623.82 | R132: 723.29 | T132: 713.21 | V132: 607.01 | X132: 854.99
A133: 2023-08-25 | B133: 783.26 | C133: =AVERAGE(B130:B133) -> 780.3 | D133: 1110.98 | E133: =AVERAGE(D130:D133) -> 1085.0875 | F133: 776.9 | G133: =AVERAGE(F130:F133) -> 750.2525 | H133: 904.8 | I133: =AVERAGE(H130:H133) -> 891.1925 | J133: 429.21 | K133: =AVERAGE(J130:J133) -> 421.12 | L133: 526.76 | M133: =AVERAGE(L130:L133) -> 548.3325 | N133: 1545.57 | O133: =AVERAGE(N130:N133) -> 1529.97 | P133: 648.14 | Q133: =AVERAGE(P130:P133) -> 616.325 | R133: 707.62 | S133: =AVERAGE(R130:R133) -> 709.5125 | T133: 727.74 | U133: =AVERAGE(T130:T133) -> 705.4625 | V133: 608.74 | W133: =AVERAGE(V130:V133) -> 597.4475 | X133: 904.35 | Y133: =AVERAGE(X130:X133) -> 901.5925
A134: 2023-09-01 | B134: 771.98 | D134: 1109.82 | F134: 766.87 | H134: 917.47 | J134: 432.66 | L134: 540.48 | N134: 1529.1 | P134: 668.85 | R134: 722.86 | T134: 714.37 | V134: 592.65 | X134: 910.45
A135: 2023-09-08 | B135: 788.99 | D135: 1074.2 | F135: 784.04 | H135: 914.66 | J135: 430.61 | L135: 548.91 | N135: 1495.42 | P135: 676.58 | R135: 724.17 | T135: 700.02 | V135: 596.86 | X135: 935.43
A136: 2023-09-15 | B136: 772.54 | D136: 1038.04 | F136: 772.12 | H136: 895.92 | J136: 438.2 | L136: 549.72 | N136: 1438 | P136: 724.8 | R136: 724.42 | T136: 675.47 | V136: 596.25 | X136: 965.02
A137: 2023-09-22 | B137: 792.2 | D137: 1025.82 | F137: 767.28 | H137: 882.06 | J137: 417.78 | L137: 579.72 | N137: 1404.61 | P137: 731.82 | R137: 726.22 | T137: 643.93 | V137: 572.95 | X137: 986.84
A138: =A137+7 -> 2023-09-29 | B138: 810.82 | C138: =AVERAGE(B134:B138) -> 787.306 | D138: 992.55 | E138: =AVERAGE(D134:D138) -> 1048.086 | F138: 747.28 | G138: =AVERAGE(F134:F138) -> 767.518 | H138: 860.47 | I138: =AVERAGE(H134:H138) -> 894.116 | J138: 439.61 | K138: =AVERAGE(J134:J138) -> 431.772 | L138: 582.04 | M138: =AVERAGE(L134:L138) -> 560.174 | N138: 1345.4 | O138: =AVERAGE(N134:N138) -> 1442.506 | P138: 753.55 | Q138: =AVERAGE(P134:P138) -> 711.12 | R138: 721.04 | S138: =AVERAGE(R134:R138) -> 723.742 | T138: 627.32 | U138: =AVERAGE(T134:T138) -> 672.222 | V138: 552.65 | W138: =AVERAGE(V134:V138) -> 582.272 | X138: 935.61 | Y138: =AVERAGE(X134:X138) -> 946.67
A139: 2023-10-06 | B139: CHINA PH | D139: CHINA PH | F139: CHINA PH | H139: CHINA PH | J139: CHINA PH | L139: CHINA PH | N139: CHINA PH | P139: CHINA PH | R139: CHINA PH | T139: CHINA PH | V139: CHINA PH | X139: CHINA PH
A140: 2023-10-13 | B140: 805.78 | D140: 948.33 | F140: 721.2 | H140: 823.44 | J140: 431.11 | L140: 594.4 | N140: 1274.41 | P140: 723.08 | R140: 706.09 | T140: 569.71 | V140: 516.26 | X140: 881.42
A141: 2023-10-20 | B141: 827.71 | D141: 939.52 | F141: 708.61 | H141: 845.96 | J141: 441.92 | L141: 611.05 | N141: 1240.47 | P141: 742.73 | R141: 716.14 | T141: 577.38 | V141: 513.39 | X141: 844.65
A142: 2023-10-27 | B142: 780.81 | C142: =AVERAGE(B139:B142) -> 804.7666667 | D142: 939.27 | E142: =AVERAGE(D139:D142) -> 942.3733333 | F142: 718.34 | G142: =AVERAGE(F139:F142) -> 716.05 | H142: 808.58 | I142: =AVERAGE(H139:H142) -> 825.9933333 | J142: 436 | K142: =AVERAGE(J139:J142) -> 436.3433333 | L142: 586.68 | M142: =AVERAGE(L139:L142) -> 597.3766667 | N142: 1221.31 | O142: =AVERAGE(N139:N142) -> 1245.396667 | P142: 759.5 | Q142: =AVERAGE(P139:P142) -> 741.77 | R142: 700.07 | S142: =AVERAGE(R139:R142) -> 707.4333333 | T142: 602.44 | U142: =AVERAGE(T139:T142) -> 583.1766667 | V142: 549.15 | W142: =AVERAGE(V139:V142) -> 526.2666667 | X142: 871.81 | Y142: =AVERAGE(X139:X142) -> 865.96
A143: 2023-11-03 | B143: 780.07 | D143: 903.5 | F143: 733.84 | H143: 811.9 | J143: 448 | L143: 646.1 | N143: 1234.07 | P143: 784.58 | R143: 741.09 | T143: 640.82 | V143: 544.66 | X143: 978.74
A144: 2023-11-10 | B144: 793.37 | D144: 952.58 | F144: 722.55 | H144: 824.8 | J144: 455.92 | L144: 642.34 | N144: 1237.25 | P144: 804.46 | R144: 769.08 | T144: 636.1 | V144: 576.88 | X144: 1038.41
A145: 2023-11-17 | B145: 775.77 | D145: 994.18 | F145: 740.52 | H145: 846.69 | J145: 434.06 | L145: 669.4 | N145: 1314.2 | P145: 838.54 | R145: 765.67 | T145: 672.72 | V145: 583.91 | X145: 1097.32
A146: 2023-11-24 | B146: 773.29 | C146: =AVERAGE(B143:B146) -> 780.625 | D146: 998.94 | E146: =AVERAGE(D143:D146) -> 962.3 | F146: 745.82 | G146: =AVERAGE(F143:F146) -> 735.6825 | H146: 850.55 | I146: =AVERAGE(H143:H146) -> 833.485 | J146: 451.47 | K146: =AVERAGE(J143:J146) -> 447.3625 | L146: 670.71 | M146: =AVERAGE(L143:L146) -> 657.1375 | N146: 1302.03 | O146: =AVERAGE(N143:N146) -> 1271.8875 | P146: 867.24 | Q146: =AVERAGE(P143:P146) -> 823.705 | R146: 769.68 | S146: =AVERAGE(R143:R146) -> 761.38 | T146: 668.68 | U146: =AVERAGE(T143:T146) -> 654.58 | V146: 579.84 | W146: =AVERAGE(V143:V146) -> 571.3225 | X146: 1126.05 | Y146: =AVERAGE(X143:X146) -> 1060.13
A147: 2023-12-01 | B147: 754.48 | D147: 974.24 | F147: 720.4 | H147: 853.34 | J147: 438.53 | L147: 686.04 | N147: 1261.95 | P147: 887.15 | R147: 773.5 | T147: 659.99 | V147: 576.39 | X147: 1056.23
A148: 2023-12-08 | B148: 771.3 | D148: 983.75 | F148: 718.95 | H148: 837.49 | J148: 435.36 | L148: 678.73 | N148: 1283.67 | P148: 875.39 | R148: 764.4 | T148: 651.72 | V148: 548.82 | X148: 1053.33
A149: 2023-12-15 | B149: 772.36 | D149: 1023.75 | F149: 718.5 | H149: 845.31 | J149: 455.82 | L149: 678.75 | N149: 1310.39 | P149: 862.07 | R149: 818.78 | T149: 644.75 | V149: 536.73 | X149: 1037.31
A150: 2023-12-22 | B150: 804.91 | D150: 1049.63 | F150: 703.99 | H150: 854.8 | J150: 454.56 | L150: 680.9 | N150: 1352.49 | P150: 849.19 | R150: 823.12 | T150: 650.16 | V150: 522.98 | X150: 1053.37
A151: 2023-12-29 | B151: 792.31 | C151: =AVERAGE(B147:B151) -> 779.072 | D151: 1107.46 | E151: =AVERAGE(D147:D151) -> 1027.766 | F151: 742 | G151: =AVERAGE(F147:F151) -> 720.768 | H151: 867.28 | I151: =AVERAGE(H147:H151) -> 851.644 | J151: 425.56 | K151: =AVERAGE(J147:J151) -> 441.966 | L151: 684.32 | M151: =AVERAGE(L147:L151) -> 681.748 | N151: 1493.29 | O151: =AVERAGE(N147:N151) -> 1340.358 | P151: 874.69 | Q151: =AVERAGE(P147:P151) -> 869.698 | R151: 829.27 | S151: =AVERAGE(R147:R151) -> 801.814 | T151: 621.3 | U151: =AVERAGE(T147:T151) -> 645.584 | V151: 511.85 | W151: =AVERAGE(V147:V151) -> 539.354 | X151: 1050.27 | Y151: =AVERAGE(X147:X151) -> 1050.102
A152: 2024-01-05 | B152: 726.14 | D152: 1180.59 | F152: 730.99 | H152: 901.64 | J152: 444.58 | L152: 677.98 | N152: 1664.75 | P152: 886.87 | R152: 850.29 | T152: 589.58 | V152: 521.69 | X152: 1112.07
A153: 2024-01-12 | B153: 793.77 | D153: 1654.04 | F153: 788.55 | H153: 993.71 | J153: 500.54 | L153: 679.88 | N153: 2200.62 | P153: 955.67 | R153: 1067.73 | T153: 645.22 | V153: 568.2 | X153: 1433.26
A154: 2024-01-19 | B154: 810.69 | D154: 2033.95 | F154: 851.88 | H154: 1049.92 | J154: 534.61 | L154: 695.49 | N154: 2517.37 | P154: 995.14 | R154: 1045.18 | T154: 748.1 | V154: 603.91 | X154: 1639.81
A155: 2024-01-26 | B155: 807.61 | C155: =AVERAGE(B152:B155) -> 784.5525 | D155: 2296.72 | E155: =AVERAGE(D152:D155) -> 1791.325 | F155: 916.57 | G155: =AVERAGE(F152:F155) -> 821.9975 | H155: 1154.5 | I155: =AVERAGE(H152:H155) -> 1024.9425 | J155: 508.58 | K155: =AVERAGE(J152:J155) -> 497.0775 | L155: 736.8 | M155: =AVERAGE(L152:L155) -> 697.5375 | N155: 2842.01 | O155: =AVERAGE(N152:N155) -> 2306.1875 | P155: 1030.01 | Q155: =AVERAGE(P152:P155) -> 966.9225 | R155: 1086.44 | S155: =AVERAGE(R152:R155) -> 1012.41 | T155: 776.67 | U155: =AVERAGE(T152:T155) -> 689.8925 | V155: 629.8 | W155: =AVERAGE(V152:V155) -> 580.9 | X155: 1714.18 | Y155: =AVERAGE(X152:X155) -> 1474.83
A156: 2024-02-02 | B156: 805.04 | D156: 2398.52 | F156: 1039.57 | H156: 1275 | J156: 549.67 | L156: 731.97 | N156: 3018.75 | P156: 1047.88 | R156: 1114.68 | T156: 735.86 | V156: 663.37 | X156: 1573.33
A157: 2024-02-09 | B157: 795.07 | D157: 2317.77 | F157: 1126.43 | H157: 1348.35 | J157: 507.14 | L157: 731.54 | N157: 2962.67 | P157: 1057.41 | R157: 1133.92 | T157: 719.92 | V157: 642.23 | X157: 1430.13
A158: 2024-02-16 | B158: CNY break
A159: 2024-02-23 | B159: CNY break | C159: =AVERAGE(B156:B159) -> 800.055 | D159: CNY break | E159: =AVERAGE(D156:D159) -> 2358.145 | F159: CNY break | G159: =AVERAGE(F156:F159) -> 1083 | H159: CNY break | I159: =AVERAGE(H156:H159) -> 1311.675 | J159: CNY break | K159: =AVERAGE(J156:J159) -> 528.405 | L159: CNY break | M159: =AVERAGE(L156:L159) -> 731.755 | N159: CNY break | O159: =AVERAGE(N156:N159) -> 2990.71 | P159: CNY break | Q159: =AVERAGE(P156:P159) -> 1052.645 | R159: CNY break | S159: =AVERAGE(R156:R159) -> 1124.3 | T159: CNY break | U159: =AVERAGE(T156:T159) -> 727.89 | V159: CNY break | W159: =AVERAGE(V156:V159) -> 652.8 | X159: CNY break | Y159: =AVERAGE(X156:X159) -> 1501.73
A160: 2024-03-01 | B160: 745.28 | D160: 2151.71 | F160: 1090.92 | H160: 1268.52 | J160: 471.47 | L160: 706.13 | N160: 2634.13 | P160: 1019.14 | R160: 911.25 | T160: 675.22 | V160: 592.01 | X160: 1314.4
A161: 2024-03-08 | B161: 761.48 | D161: 2014.51 | F161: 1055.1 | H161: 1199.73 | J161: 476.02 | L161: 722.58 | N161: 2511.47 | P161: 960.68 | R161: 944 | T161: 692.51 | V161: 633.98 | X161: 1396.36
A162: 2024-03-15 | B162: 739.21 | D162: 1886.68 | F162: 1041.39 | H162: 1166.7 | J162: 450.12 | L162: 701.16 | N162: 2470.1 | P162: 917.49 | R162: 891.51 | T162: 699.33 | V162: 603.47 | X162: 1519.67
A163: 2024-03-22 | B163: 754.2 | D163: 1856.3 | F163: 1001.68 | H163: 1143.24 | J163: 440.96 | L163: 724.4 | N163: 2392.77 | P163: 899.11 | R163: 899.96 | T163: 683.67 | V163: 597.55 | X163: 1347.59
A164: 2024-03-29 | B164: 767.95 | C164: =AVERAGE(B160:B164) -> 753.624 | D164: 1781.21 | E164: =AVERAGE(D160:D164) -> 1938.082 | F164: 958.83 | G164: =AVERAGE(F160:F164) -> 1029.584 | H164: 1120.53 | I164: =AVERAGE(H160:H164) -> 1179.744 | J164: 462.6 | K164: =AVERAGE(J160:J164) -> 460.234 | L164: 700.94 | M164: =AVERAGE(L160:L164) -> 711.042 | N164: 2349.48 | O164: =AVERAGE(N160:N164) -> 2471.59 | P164: 828.96 | Q164: =AVERAGE(P160:P164) -> 925.076 | R164: 886.25 | S164: =AVERAGE(R160:R164) -> 906.594 | T164: 656.42 | U164: =AVERAGE(T160:T164) -> 681.43 | V164: 586.89 | W164: =AVERAGE(V160:V164) -> 602.78 | X164: 1318.08 | Y164: =AVERAGE(X160:X164) -> 1379.22
A165: 2024-04-05 | B165: 742.04 | D165: 1769.46 | F165: 932.29 | H165: 1077.23 | J165: 454.04 | L165: 715.54 | N165: 2276.33 | P165: 816.11 | R165: 911.93 | T165: 669.7 | V165: 590.8 | X165: 1325.59
A166: 2024-04-12 | B166: 738.45 | D166: 1725.59 | F166: 953.08 | H166: 1063.41 | J166: 462.11 | L166: 704.79 | N166: 2262.61 | P166: 790.46 | R166: 869.1 | T166: 707.86 | V166: 570.84 | X166: 1353.12
A167: 2024-04-19 | B167: 722.84 | D167: 1720.21 | F167: 914.67 | H167: 1037.94 | J167: 438.16 | L167: 719.09 | N167: 2242.5 | P167: 778.05 | R167: 885.19 | T167: 775.42 | V167: 553.2 | X167: 1513.46
A168: 2024-04-26 | B168: 723.12 | C168: =AVERAGE(B165:B168) -> 731.6125 | D168: 1669.04 | E168: =AVERAGE(D165:D168) -> 1721.075 | F168: 909.82 | G168: =AVERAGE(F165:F168) -> 927.465 | H168: 1026.72 | I168: =AVERAGE(H165:H168) -> 1051.325 | J168: 444.5 | K168: =AVERAGE(J165:J168) -> 449.7025 | L168: 761.74 | M168: =AVERAGE(L165:L168) -> 725.29 | N168: 2308.15 | O168: =AVERAGE(N165:N168) -> 2272.3975 | P168: 790.84 | Q168: =AVERAGE(P165:P168) -> 793.865 | R168: 879.72 | S168: =AVERAGE(R165:R168) -> 886.485 | T168: 822.15 | U168: =AVERAGE(T165:T168) -> 743.7825 | V168: 598.17 | W168: =AVERAGE(V165:V168) -> 578.2525 | X168: 1583.97 | Y168: =AVERAGE(X165:X168) -> 1444.035
A169: 2024-05-03 | B169: Public Holiday in China
A170: 2024-05-10 | B170: 729.67 | D170: 1736.53 | F170: 923.32 | H170: 1017.46 | J170: 458.96 | L170: 775.15 | N170: 2373.54 | P170: 834.71 | R170: 961.46 | T170: 941.82 | V170: 699.5 | X170: 1697.72
A171: 2024-05-17 | B171: 745 | D171: 1838 | F171: 1007 | H171: 1106 | J171: 473 | L171: 820 | N171: 2453 | P171: 882 | R171: 1074 | T171: 1091 | V171: 798 | X171: 1701
A172: 2024-05-24 | B172: 735.55 | D172: 2011.53 | F172: 1077.15 | H172: 1183.38 | J172: 471.47 | L172: 822.8 | N172: 2568.46 | P172: 895.42 | R172: 1212.94 | T172: 1187.02 | V172: 944.09 | X172: 1687.42
A173: 2024-05-31 | B173: 753.28 | C173: =AVERAGE(B169:B173) -> 740.875 | D173: 2144.3 | E173: =AVERAGE(D169:D173) -> 1932.59 | F173: 1186.53 | G173: =AVERAGE(F169:F173) -> 1048.5 | H173: 1267.95 | I173: =AVERAGE(H169:H173) -> 1143.6975 | J173: 484.59 | K173: =AVERAGE(J169:J173) -> 472.005 | L173: 874.6 | M173: =AVERAGE(L169:L173) -> 823.1375 | N173: 2754.76 | O173: =AVERAGE(N169:N173) -> 2537.44 | P173: 957.12 | Q173: =AVERAGE(P169:P173) -> 892.3125 | R173: 1345.26 | S173: =AVERAGE(R169:R173) -> 1148.415 | T173: 1261.34 | U173: =AVERAGE(T169:T173) -> 1120.295 | V173: 1104.03 | W173: =AVERAGE(V169:V173) -> 886.405 | X173: 1863.84 | Y173: =AVERAGE(X169:X173) -> 1737.495
A174: 2024-06-07 | B174: 722.02 | D174: 2337.51 | F174: 1248.37 | H174: 1366.64 | J174: 486.08 | L174: 928.8 | N174: 2858.6 | P174: 974.29 | R174: 1544.33 | T174: 1374.69 | V174: 1321.35 | X174: 1955.35
A175: 2024-06-14 | B175: 708.33 | D175: 2546.88 | F175: 1367.66 | H175: 1473.05 | J175: 466.9 | L175: 1039.76 | N175: 3070.58 | P175: 978.09 | R175: 1961.56 | T175: 1483.87 | V175: 1430.41 | X175: 2170.72
A176: 2024-06-21 | B176: 726.62 | D176: 2677.11 | F176: 1440.54 | H176: 1563.58 | J176: 479.21 | L176: 1116.22 | N176: 3235.93 | P176: 989.52 | R176: 2025.93 | T176: 1561.51 | V176: 1480.68 | X176: 2365.93
A177: 2024-06-28 | B177: 750.29 | C177: =AVERAGE(B174:B177) -> 726.815 | D177: 2870.01 | E177: =AVERAGE(D174:D177) -> 2607.8775 | F177: 1507.75 | G177: =AVERAGE(F174:F177) -> 1391.08 | H177: 1619.21 | I177: =AVERAGE(H174:H177) -> 1505.62 | J177: 483.24 | K177: =AVERAGE(J174:J177) -> 478.8575 | L177: 1179.62 | M177: =AVERAGE(L174:L177) -> 1066.1 | N177: 3330.24 | O177: =AVERAGE(N174:N177) -> 3123.8375 | P177: 1002.64 | Q177: =AVERAGE(P174:P177) -> 986.135 | R177: 2151.7 | S177: =AVERAGE(R174:R177) -> 1920.88 | T177: 1671.9 | U177: =AVERAGE(T174:T177) -> 1522.9925 | V177: 1572.59 | W177: =AVERAGE(V174:V177) -> 1451.2575 | X177: 2451.72 | Y177: =AVERAGE(X174:X177) -> 2235.93
A178: 2024-07-05 | B178: 768.3 | D178: 3090.34 | F178: 1599.78 | H178: 1654.16 | J178: 504.54 | L178: 1258 | N178: 3462.6 | P178: 1031.03 | R178: 2256.25 | T178: 1736.85 | V178: 1490.85 | X178: 2386.63
A179: 2024-07-12 | B179: 774.44 | D179: 3282.9 | F179: 1688.08 | H179: 1728.05 | J179: 498.19 | L179: 1297.25 | N179: 3508.34 | P179: 1043.68 | R179: 2335.83 | T179: 1845.79 | V179: 1415.65 | X179: 2321.25
A180: 2024-07-19 | B180: 779 | D180: 3520.93 | F180: 1650.86 | H180: 1900.11 | J180: 538.06 | L180: 1377.61 | N180: 3654.79 | P180: 1062 | R180: 2437.37 | T180: 1854.89 | V180: 1404.98 | X180: 2153.25
A181: 2024-07-26 | B181: 768.92 | C181: =AVERAGE(B178:B181) -> 772.665 | D181: 3651.15 | E181: =AVERAGE(D178:D181) -> 3386.33 | F181: 1694.26 | G181: =AVERAGE(F178:F181) -> 1658.245 | H181: 1888.96 | I181: =AVERAGE(H178:H181) -> 1792.82 | J181: 520.48 | K181: =AVERAGE(J178:J181) -> 515.3175 | L181: 1373.71 | M181: =AVERAGE(L178:L181) -> 1326.6425 | N181: 3685.61 | O181: =AVERAGE(N178:N181) -> 3577.835 | P181: 1075.86 | Q181: =AVERAGE(P178:P181) -> 1053.1425 | R181: 2454.78 | S181: =AVERAGE(R178:R181) -> 2371.0575 | T181: 1753.68 | U181: =AVERAGE(T178:T181) -> 1797.8025 | V181: 1446.5 | W181: =AVERAGE(V178:V181) -> 1439.495 | X181: 2092.52 | Y181: =AVERAGE(X178:X181) -> 2238.4125
A182: 2024-08-02 | B182: 776.75 | D182: 3684.44 | F182: 1567.82 | H182: 1831.63 | J182: 548.56 | L182: 1291.22 | N182: 3633.01 | P182: 1046.44 | R182: 2451.24 | T182: 1654.95 | V182: 1452.95 | X182: 2034.86
A183: 2024-08-09 | B183: 783.22 | D183: 3694.33 | F183: 1568.84 | H183: 1770.67 | J183: 521.72 | L183: 1377.77 | N183: 3667.4 | P183: 1109.95 | R183: 2411.17 | T183: 1586.58 | V183: 1445.86 | X183: 2022.47
A184: 2024-08-16 | B184: 780.71 | D184: 3698.36 | F184: 1457.49 | H184: 1675.35 | J184: 539.6 | L184: 1229.99 | N184: 3553.92 | P184: 1147.73 | R184: 2385.21 | T184: 1465.72 | V184: 1428.97 | X184: 1998.4
A185: 2024-08-23 | B185: 776.69 | D185: 3581.44 | F185: 1398.44 | H185: 1632.22 | J185: 517.78 | L185: 1264.43 | N185: 3487.73 | P185: 1236.84 | R185: 2337.93 | T185: 1427.06 | V185: 1378.43 | X185: 1875.53
A186: 2024-08-30 | B186: 786.49 | C186: =AVERAGE(B182:B186) -> 780.772 | D186: 3424.58 | E186: =AVERAGE(D182:D186) -> 3616.63 | F186: 1407.56 | G186: =AVERAGE(F182:F186) -> 1480.03 | H186: 1628.61 | I186: =AVERAGE(H182:H186) -> 1707.696 | J186: 544.14 | K186: =AVERAGE(J182:J186) -> 534.36 | L186: 1191.53 | M186: =AVERAGE(L182:L186) -> 1270.988 | N186: 3422.94 | O186: =AVERAGE(N182:N186) -> 3553 | P186: 1289.35 | Q186: =AVERAGE(P182:P186) -> 1166.062 | R186: 2338.47 | S186: =AVERAGE(R182:R186) -> 2384.804 | T186: 1379.57 | U186: =AVERAGE(T182:T186) -> 1502.776 | V186: 1396.47 | W186: =AVERAGE(V182:V186) -> 1420.536 | X186: 1840.45 | Y186: =AVERAGE(X182:X186) -> 1954.342
A187: 2024-09-06 | B187: 805.05 | D187: 3274.95 | F187: 1372.23 | H187: 1623.36 | J187: 505.09 | L187: 1154.39 | N187: 3293.24 | P187: 1381.54 | R187: 2195.04 | T187: 1357.37 | V187: 1332.25 | X187: 1773.87
A188: 2024-09-13 | B188: 805.32 | D188: 3017.44 | F188: 1336.62 | H188: 1500.4 | J188: 533.49 | L188: 1099.65 | N188: 3130.3 | P188: 1449.4 | R188: 2316.11 | T188: 1402.84 | V188: 1316.94 | X188: 1605.14
A189: 2024-09-20 | B189: 811.99 | D189: 2801.71 | F189: 1335.05 | H189: 1401.75 | J189: 540.5 | L189: 1030.13 | N189: 2971.03 | P189: 1534.69 | R189: 2200.81 | T189: 1453.7 | V189: 1304.76 | X189: 1537.29
A190: 2024-09-27 | B190: 839.68 | C190: =AVERAGE(B187:B190) -> 815.51 | D190: 2519.13 | E190: =AVERAGE(D187:D190) -> 2903.3075 | F190: 1304.63 | G190: =AVERAGE(F187:F190) -> 1337.1325 | H190: 1345.52 | I190: =AVERAGE(H187:H190) -> 1467.7575 | J190: 525.48 | K190: =AVERAGE(J187:J190) -> 526.14 | L190: 999.71 | M190: =AVERAGE(L187:L190) -> 1070.97 | N190: 2740.74 | O190: =AVERAGE(N187:N190) -> 3033.8275 | P190: 1550.34 | Q190: =AVERAGE(P187:P190) -> 1478.9925 | R190: 2174.14 | S190: =AVERAGE(R187:R190) -> 2221.525 | T190: 1398.35 | U190: =AVERAGE(T187:T190) -> 1403.065 | V190: 1244.53 | W190: =AVERAGE(V187:V190) -> 1299.62 | X190: 1396.66 | Y190: =AVERAGE(X187:X190) -> 1578.24
A191: 2024-10-04 | B191: 839.68 | D191: 2519.13 | F191: 1304.63 | H191: 1345.52 | J191: 525.48 | L191: 999.71 | N191: 2740.74 | P191: 1550.34 | R191: 2174.14 | T191: 1398.35 | V191: 1244.53 | X191: 1396.66
A192: 2024-10-11 | B192: 877.36 | D192: 2155.56 | F192: 1251.24 | H192: 1232.97 | J192: 511.88 | L192: 948.83 | N192: 2412.96 | P192: 1437.53 | R192: 2137.16 | T192: 1260.68 | V192: 1139.44 | X192: 1077.49
A193: 2024-10-18 | B193: 863.98 | D193: 1992.69 | F193: 1213.64 | H193: 1184.11 | J193: 500.03 | L193: 925.99 | N193: 2252.77 | P193: 1427.09 | R193: 2029.62 | T193: 1202.35 | V193: 1114.34 | X193: 1043.13
A194: 2024-10-25 | B194: 865.35 | C194: =AVERAGE(B191:B194) -> 861.5925 | D194: 1864.77 | E194: =AVERAGE(D191:D194) -> 2133.0375 | F194: 1228.09 | G194: =AVERAGE(F191:F194) -> 1249.4 | H194: 1177.35 | I194: =AVERAGE(H191:H194) -> 1234.9875 | J194: 498.96 | K194: =AVERAGE(J191:J194) -> 509.0875 | L194: 934.54 | M194: =AVERAGE(L191:L194) -> 952.2675 | N194: 2098.67 | O194: =AVERAGE(N191:N194) -> 2376.285 | P194: 1431.08 | Q194: =AVERAGE(P191:P194) -> 1461.51 | R194: 1976.15 | S194: =AVERAGE(R191:R194) -> 2079.2675 | T194: 1167.42 | U194: =AVERAGE(T191:T194) -> 1257.2 | V194: 1104.55 | W194: =AVERAGE(V191:V194) -> 1150.715 | X194: 1035.38 | Y194: =AVERAGE(X191:X194) -> 1138.165
A195: 2024-11-01 | B195: 856.02 | D195: 1846.24 | F195: 1219.8 | H195: 1184.8 | J195: 502.35 | L195: 938.92 | N195: 2052.16 | P195: 1446.99 | R195: 1961 | T195: 1167.14 | V195: 1078.97 | X195: 1178.31
A196: 2024-11-08 | B196: 841.81 | D196: 1847.16 | F196: 1227.36 | H196: 1225.1 | J196: 483.42 | L196: 1005.39 | P196: 1462.4 | R196: 2017.93 | T196: 1167.7 | V196: 1090.02 | X196: 1292.01
A197: 2024-11-15 | B197: 845.2 | D197: 1954.75 | F197: 1214.83 | H197: 1184.39 | J197: 499.28 | L197: 1115.22 | N197: 2242.09 | P197: 1504.86 | R197: 1936.26 | T197: 1191.68 | V197: 1145.34 | X197: 1349.66
A198: 2024-11-22 | B198: 848.79 | D198: 2021.51 | F198: 1152.1 | H198: 1223.83 | J198: 487.31 | L198: 1193.54 | N198: 2399.2 | P198: 1523.25 | R198: 1954.66 | T198: 1104.25 | V198: 1139.44 | X198: 1451.03
A199: 2024-11-29 | B199: 928.47 | C199: =AVERAGE(B195:B199) -> 864.058 | D199: 2031.02 | E199: =AVERAGE(D195:D199) -> 1940.136 | F199: 1083.23 | G199: =AVERAGE(F195:F199) -> 1179.464 | H199: 1247.45 | I199: =AVERAGE(H195:H199) -> 1213.114 | J199: 500.87 | K199: =AVERAGE(J195:J199) -> 494.646 | L199: 1258.76 | M199: =AVERAGE(L195:L199) -> 1102.366 | N199: 2466.78 | O199: =AVERAGE(N195:N199) -> 2290.0575 | P199: 1524.64 | Q199: =AVERAGE(P195:P199) -> 1492.428 | R199: 1890.14 | S199: =AVERAGE(R195:R199) -> 1951.998 | T199: 1073.31 | U199: =AVERAGE(T195:T199) -> 1140.816 | V199: 1164.52 | W199: =AVERAGE(V195:V199) -> 1123.658 | X199: 1439.58 | Y199: =AVERAGE(X195:X199) -> 1342.118
A200: 2024-12-06 | B200: 961.13 | D200: 2070.81 | F200: 1023.64 | H200: 1224.28 | J200: 520.08 | L200: 1279.83 | N200: 2487.6 | P200: 1452.55 | R200: 1794 | T200: 1017.32 | V200: 1119.34 | X200: 1423.07
A201: 2024-12-13 | B201: 936.15 | D201: 2173.64 | F201: 980.24 | H201: 1252.36 | J201: 486.95 | L201: 1313.83 | N201: 2604.69 | P201: 1354.31 | R201: 1773.62 | T201: 1035.94 | V201: 1101.94 | X201: 1416.64
A202: =A201+7 -> 2024-12-20 | B202: 953.57 | D202: 2208.23 | F202: 972.04 | H202: 1208.78 | J202: 508.2 | L202: 1299.79 | N202: 2675.3 | P202: 1303.21 | R202: 1734.28 | T202: 1040.12 | V202: 1071.45 | X202: 1419.79
A203: 2024-12-27 | B203: 954.83 | C203: =AVERAGE(B200:B203) -> 951.42 | D203: 2273.19 | E203: =AVERAGE(D200:D203) -> 2181.4675 | F203: 996.53 | G203: =AVERAGE(F200:F203) -> 993.1125 | H203: 1221.23 | I203: =AVERAGE(H200:H203) -> 1226.6625 | J203: 504.79 | K203: =AVERAGE(J200:J203) -> 505.005 | L203: 1300.15 | M203: =AVERAGE(L200:L203) -> 1298.4 | N203: 2736.09 | O203: =AVERAGE(N200:N203) -> 2625.92 | P203: 1326.23 | Q203: =AVERAGE(P200:P203) -> 1359.075 | R203: 1662.82 | S203: =AVERAGE(R200:R203) -> 1741.18 | T203: 1010.33 | U203: =AVERAGE(T200:T203) -> 1025.9275 | V203: 1097.28 | W203: =AVERAGE(V200:V203) -> 1097.5025 | X203: 1442.24 | Y203: =AVERAGE(X200:X203) -> 1425.435
A204: 2025-01-03 | B204: 964.6 | D204: 2280.2 | F204: 1092.55 | H204: 1237.49 | J204: 537.33 | L204: 1293.45 | N204: 2828.74 | P204: 1365.02 | R204: 1641.24 | T204: 1016.71 | V204: 1093.78 | X204: 1440.5
... 68 more rows

Sheet 2025_CCFI
A1: CHINA CONTAINERIZED FREIGHT INDEX
A2: DATE | B2: JAPAN | C2: EUROPE | D2: W/C AMERICA | E2: E/C AMERICA | F2: KOREA | G2: SOUTHEAST | H2: MEDITERRANEAN | I2: AUSTRALIA/NEW ZEALAND | J2: SOUTH AFRICA | K2: SOUTH AMERICA | L2: WEST EAST AFRICA | M2: PERSIAN GULF/RED SEA
A3: 2025-01-03 | B3: 965 | C3: 2280 | D3: 1093 | E3: 1237 | F3: 537 | G3: 1293 | H3: 2829 | I3: 1365 | J3: 1641 | K3: 1017 | L3: 1094 | M3: 1441
A4: 2025-01-10 | B4: 952 | C4: 2292 | D4: 1159 | E4: 1330 | F4: 510 | G4: 1238 | H4: 2762 | I4: 1398 | J4: 1615 | K4: 1013 | L4: 1039 | M4: 1492
A5: 2025-01-17 | B5: 985 | C5: 2253 | D5: 1198 | E5: 1335 | F5: 491 | G5: 1226 | H5: 2807 | I5: 1388 | J5: 1549 | K5: 981 | L5: 1045 | M5: 1424
A6: 2025-01-24 | B6: 985 | C6: 2122 | D6: 1217 | E6: 1294 | F6: 508 | G6: 1171 | H6: 2682 | I6: 1260 | J6: 1494 | K6: 909 | L6: 1094 | M6: 1369
A7: 2025-01-31 | B7: 985 | C7: 2122 | D7: 1217 | E7: 1294 | F7: 508 | G7: 1171 | H7: 2682 | I7: 1260 | J7: 1494 | K7: 909 | L7: 1094 | M7: 1369
A8: 2025-02-07 | B8: 1006 | C8: 1934 | D8: 1175 | E8: 1292 | F8: 493 | G8: 1092 | H8: 2488 | I8: 1103 | J8: 1404 | K8: 856 | L8: 971 | M8: 1270
A9: 2025-02-14 | B9: 981 | C9: 1915 | D9: 1111 | E9: 1286 | F9: 527 | G9: 1056 | H9: 2482 | I9: 1025 | J9: 1422 | K9: 812 | L9: 965 | M9: 1265
A10: 2025-02-21 | B10: 979 | C10: 1791 | D10: 1070 | E10: 1208 | F10: 502 | G10: 1004 | H10: 2353 | I10: 1007 | J10: 1397 | K10: 821 | L10: 921 | M10: 1147
A11: 2025-02-28 | B11: 990 | C11: 1688 | D11: 997 | E11: 1108 | F11: 500 | G11: 973 | H11: 2145 | I11: 942 | J11: 1254 | K11: 818 | L11: 837 | M11: 1206
A12: 2025-03-07 | B12: 979 | C12: 1597 | D12: 963 | E12: 1061 | F12: 506 | G12: 953 | H12: 2112 | I12: 900 | J12: 1211 | K12: 796 | L12: 881 | M12: 1183
A13: 2025-03-14 | B13: 970 | C13: 1623 | D13: 923 | E13: 1040 | F13: 481 | G13: 962 | H13: 2076 | I13: 842 | J13: 1124 | K13: 742 | L13: 846 | M13: 1138
A14: 2025-03-21 | B14: 970 | C14: 1587 | D14: 860 | E14: 1001 | F14: 466 | G14: 947 | H14: 2028 | I14: 809 | J14: 1027 | K14: 685 | L14: 834 | M14: 1046
A15: 2025-03-28 | B15: 967 | C15: 1527 | D15: 806 | E15: 963 | F15: 502 | G15: 966 | H15: 1929 | I15: 841 | J15: 983 | K15: 661 | L15: 804 | M15: 1023
A16: 2025-04-04 | B16: 976 | C16: 1507 | D16: 777 | E16: 917 | F16: 499 | G16: 956 | H16: 1953 | I16: 836 | J16: 937 | K16: 639 | L16: 796 | M16: 1109
A17: 2025-04-11 | B17: 981 | C17: 1495 | D17: 796 | E17: 939 | F17: 498 | G17: 990 | H17: 1858 | I17: 868 | J17: 961 | K17: 614 | L17: 817 | M17: 1159
A18: 2025-04-18 | B18: 1001 | C18: 1486 | D18: 812 | E18: 930 | F18: 509 | G18: 991 | H18: 1812 | I18: 921 | J18: 957 | K18: 620 | L18: 812 | M18: 1201
A19: 2025-04-25 | B19: 977 | C19: 1500 | D19: 823 | E19: 930 | F19: 500 | G19: 1001 | H19: 1851 | I19: 944 | J19: 968 | K19: 598 | L19: 857 | M19: 1249
A20: 2025-05-02 | B20: 969 | C20: 1497 | D20: 837 | E20: 932 | F20: 507 | G20: 1003 | H20: 1841 | I20: 944 | J20: 959 | K20: 602 | L20: 824 | M20: 1220
A21: 2025-05-09 | B21: 974 | C21: 1445 | D21: 858 | E21: 916 | F21: 519 | G21: 980 | H21: 1863 | I21: 953 | J21: 943 | K21: 608 | L21: 848 | M21: 1113
A22: 2025-05-16 | B22: 975 | C22: 1430 | D22: 877 | E22: 965 | F22: 476 | G22: 965 | H22: 1839 | I22: 921 | J22: 944 | K22: 582 | L22: 855 | M22: 1118
A23: 2025-05-23 | B23: 1015 | C23: 1392.61 | D23: 908.14 | E23: 992.52 | F23: 507.58 | G23: 930.21 | H23: 1804.82 | I23: 896.21 | J23: 932.23 | K23: 572.55 | L23: 850.06 | M23: 1175.85
A24: 2025-05-30 | B24: 944.06 | C24: 1375.62 | D24: 944.06 | E24: 1085.18 | F24: 534.11 | G24: 961.73 | H24: 1798.19 | I24: 888.85 | J24: 930.3 | K24: 616.71 | L24: 866.07 | M24: 1147.14
A25: 2025-06-06 | B25: 961.51 | C25: 1397.02 | D25: 1034.94 | E25: 1129.98 | F25: 504.53 | G25: 930.16 | H25: 1861 | I25: 873.82 | J25: 934.91 | K25: 680.43 | L25: 875.85 | M25: 1204.78
A26: 2025-06-13 | B26: 952.84 | C26: 1488.87 | D26: 1094.58 | E26: 1250.26 | F26: 517.79 | G26: 941.71 | H26: 2111.01 | I26: 883.15 | J26: 1019.04 | K26: 862.18 | L26: 954.15 | M26: 1351.1
A27: 2025-06-20 | B27: 967.31 | C27: 1578.6 | D27: 1256.91 | E27: 1492.92 | F27: 505.25 | G27: 937.79 | H27: 2246.49 | I27: 860.88 | J27: 1051.3 | K27: 981.75 | L27: 1015.25 | M27: 1430.93
A28: 2025-06-27 | B28: 957.14 | C28: 1640.72 | D28: 1212.09 | E28: 1509.76 | F28: 490.84 | G28: 937.62 | H28: 2304.71 | I28: 881.05 | J28: 1176.9 | K28: 1034.82 | L28: 1094.42 | M28: 1570
A29: 2025-07-04 | B29: 958.26 | C29: 1694.3 | D29: 1084.28 | E29: 1376.51 | F29: 500.01 | G29: 941.27 | H29: 2283.86 | I29: 913.27 | J29: 1187.66 | K29: 1003.56 | L29: 1102.12 | M29: 1610.01
A30: 2025-07-11 | B30: 936.66 | C30: 1726.41 | D30: 1027.49 | E30: 1279.31 | F30: 474.5 | G30: 905.69 | H30: 2171.71 | I30: 920.14 | J30: 1276.09 | K30: 976.76 | L30: 1155.19 | M30: 1586.89
A31: 2025-07-18 | B31: 947.69 | C31: 1803.42 | D31: 941.65 | E31: 1216.23 | F31: 471.05 | G31: 914.29 | H31: 2151.55 | I31: 947.2 | J31: 1354.31 | K31: 1011.78 | L31: 1149.22 | M31: 1501.01
A32: 2025-07-25 | B32: 954.91 | C32: 1787.24 | D32: 880.99 | E32: 1117.14 | F32: 473.18 | G32: 902.05 | H32: 2081.12 | I32: 989.9 | J32: 1380.24 | K32: 969.98 | L32: 1170.05 | M32: 1353.38
A33: 2025-08-01 | B33: 933.84 | C33: 1789.5 | D33: 876.57 | E33: 1081.17 | F33: 469.33 | G33: 867.22 | H33: 1985.15 | I33: 1020.09 | J33: 1398.69 | K33: 925.92 | L33: 1120.92 | M33: 1228.05
A34: 2025-08-08 | B34: 940.56 | C34: 1799.05 | D34: 827.84 | E34: 1025.59 | F34: 446.57 | G34: 832.1 | H34: 1943.55 | I34: 1007.8 | J34: 1427.7 | K34: 863.33 | L34: 1094.38 | M34: 1130.69
A35: 2025-08-15 | B35: 927.83 | C35: 1790.47 | D35: 823.32 | E35: 982.06 | F35: 466.98 | G35: 839.79 | H35: 1974.51 | I35: 1042.41 | J35: 1446.33 | K35: 885.91 | L35: 1085.02 | M35: 1048.16
A36: 2025-08-22 | B36: 950.21 | C36: 1757.74 | D36: 799.19 | E36: 951.9 | F36: 483.87 | G36: 804.66 | H36: 1900.85 | I36: 1090.4 | J36: 1453.39 | K36: 884.77 | L36: 1041.27 | M36: 1088.86
A37: 2025-08-29 | B37: 957.13 | C37: 1685.8 | D37: 774.39 | E37: 936.26 | F37: 480.78 | G37: 823.99 | H37: 1880.81 | I37: 1105.64 | J37: 1452.95 | K37: 858.12 | L37: 1004.82 | M37: 1134.98
A38: 2025-09-05 | B38: 963.07 | C38: 1638.77 | D38: 774.4 | E38: 915.5 | F38: 497.37 | G38: 80302 | H38: 1852.58 | I38: 1097.46 | J38: 1445.99 | K38: 859.72 | L38: 992.49 | M38: 1245.01
A39: 2025-09-12 | B39: USD 964.10 | C39: USD 1,537.28 | D39: USD 757.45 | E39: USD 918.22 | F39: USD 492.32 | G39: USD 813.94 | H39: USD 1,778.50 | I39: USD 1,120.52 | J39: USD 1,456.25 | K39: USD 829.74 | L39: USD 978.96 | M39: USD 1,323.55
A40: 2025-09-19 | B40: 959.29 | C40: 1470.97 | D40: 805.69 | E40: 956.27 | F40: 506.33 | G40: 811.55 | H40: 1747.66 | I40: 1124.41 | J40: 1481.28 | K40: 807.35 | L40: 975.22 | M40: 1294.47
A41: 2025-09-26 | B41: 967.16 | C41: 1401.91 | D41: 824.92 | E41: 960.91 | F41: 487.91 | G41: 801.93 | H41: 1649.34 | I41: 1120.51 | J41: 1408.09 | K41: 765.88 | L41: 956.32 | M41: 1166.06
A42: 2025-10-03 | B42: 967.16 | C42: 1401.91 | D42: 824.92 | E42: 960.91 | F42: 487.91 | G42: 801.93 | H42: 1649.34 | I42: 1120.51 | J42: 1408.09 | K42: 765.88 | L42: 956.32 | M42: 1166.06
A43: 2025-10-10 | B43: 1001.97 | C43: 1287.15 | D43: 777.77 | E43: 893.04 | F43: 486.49 | G43: 784.28 | H43: 1510.61 | I43: 1082.85 | J43: 1384.69 | K43: 662.32 | L43: 907.24 | M43: 964.26
A44: 2025-10-17
A45: 2025-10-24
A46: 2025-10-31
A47: 2025-11-07
A48: 2025-11-14
A49: 2025-11-21
A50: 2025-11-28
A51: 2025-12-05
A52: 2025-12-12
A53: 2025-12-19
A54: 2025-12-26

Sheet CCFI Graph - Flexi
A1: EUROPE
B13: Sum of Europe Average by Month | C13: Years
B14: Date | C14: 2024 | D14: 2025
B15: Jan | C15: 1791.325 | D15: 2213.762
B16: Feb | C16: 2358.145 | D16: 1832.035
B17: Mar | C17: 1938.082 | D17: 1583.205
B18: Apr | C18: 1721.075 | D18: 1497.09
B19: May | C19: 1932.59 | D19: 1428.194
B20: Jun | C20: 2607.8775 | D20: 1526.3025
B21: Jul | C21: 3386.33 | D21: 1752.8425
B22: Aug | C22: 3616.63 | D22: 1764.418
B23: Sep | C23: 2903.3075
B24: Oct | C24: 2133.0375
B25: Nov | C25: 1940.136
B26: Dec | C26: 2181.4675
A33: OCEANIA
B45: Sum of Australia/New Zealand Average by Month | C45: Years
B46: Date | C46: 2024 | D46: 2025
B47: Jan | C47: 966.9225 | D47: 1334.264
B48: Feb | C48: 1052.645 | D48: 1019.28
B49: Mar | C49: 925.076 | D49: 848.0325
B50: Apr | C50: 793.865 | D50: 892.1575
B51: May | C51: 892.3125 | D51: 920.556
B52: Jun | C52: 986.135 | D52: 874.725
B53: Jul | C53: 1053.1425 | D53: 942.6275
B54: Aug | C54: 1166.062 | D54: 1053.186
B55: Sep | C55: 1478.9925
B56: Oct | C56: 1461.51
B57: Nov | C57: 1492.428
B58: Dec | C58: 1359.075
A66: USWC
B78: Sum of West Coast America Average by Month | C78: Years
B79: Date | C79: 2024 | D79: 2025
B80: Jan | C80: 821.9975 | D80: 1176.81
B81: Feb | C81: 1083 | D81: 1088.2825
B82: Mar | C82: 1029.584 | D82: 888.0125
B83: Apr | C83: 927.465 | D83: 801.9175
B84: May | C84: 1048.5 | D84: 884.84
B85: Jun | C85: 1391.08 | D85: 1149.63
B86: Jul | C86: 1658.245 | D86: 983.6025
B87: Aug | C87: 1480.03 | D87: 820.198
B88: Sep | C88: 1337.1325
B89: Oct | C89: 1249.4
B90: Nov | C90: 1179.464
B91: Dec | C91: 993.1125
A98: USEC
B110: Sum of East Coast America Average by Month | C110: Years
B111: Date | C111: 2024 | D111: 2025
B112: Jan | C112: 1024.9425 | D112: 1297.988
B113: Feb | C113: 1311.675 | D113: 1223.3475
B114: Mar | C114: 1179.744 | D114: 1016.3275
B115: Apr | C115: 1051.325 | D115: 929.0075
B116: May | C116: 1143.6975 | D116: 977.96
B117: Jun | C117: 1505.62 | D117: 1345.73
B118: Jul | C118: 1792.82 | D118: 1247.2975
B119: Aug | C119: 1707.696 | D119: 995.384
B120: Sep | C120: 1467.7575
B121: Oct | C121: 1234.9875
B122: Nov | C122: 1213.114
B123: Dec | C123: 1226.6625

Sheet CCFI All Trades Data for Trend (hidden)
A3: JAPAN
B4: Japan Average by Month in 2021 | D4: Japan Average by Month in 2022 | F4: Japan Average by Month in 2023 | H4: Japan Average by Month in 2024 | J4: Japan Average by Month in 2025
A5: JANUARY | C5: JANUARY | D5: 1215.64 | E5: JANUARY | F5: 1049.076667 | G5: JANUARY | H5: 784.5525 | I5: JANUARY | J5: 974.358
A6: FEBRUARY | C6: FEBRUARY | D6: 1168.246667 | E6: FEBRUARY | F6: 1028.8225 | G6: FEBRUARY | H6: 800.055 | I6: FEBRUARY | J6: 989.1325
A7: MARCH | C7: MARCH | D7: 1123.7775 | E7: MARCH | F7: 930.75 | G7: MARCH | H7: 753.624 | I7: MARCH | J7: 971.88
A8: APRIL | B8: 928 | C8: APRIL | D8: 1194.242 | E8: APRIL | F8: 889.3075 | G8: APRIL | H8: 731.6125 | I8: APRIL | J8: 983.8875
A9: MAY | B9: 916 | C9: MAY | D9: 1216.96 | E9: MAY | F9: 872.7075 | G9: MAY | H9: 740.875 | I9: MAY | J9: 975.244
A10: JUNE | B10: 918 | C10: JUNE | D10: 1217.2725 | E10: JUNE | F10: 858.576 | G10: JUNE | H10: 726.815 | I10: JUNE | J10: 959.7
A11: JULY | B11: 919 | C11: JULY | D11: 1194.492 | E11: JULY | F11: 813.16 | G11: JULY | H11: 772.665 | I11: JULY | J11: 949.38
A12: AUGUST | B12: 923 | C12: AUGUST | D12: 1182.055 | E12: AUGUST | F12: 780.3 | G12: AUGUST | H12: 780.772 | I12: AUGUST | J12: 933.8
A13: SEPTEMBER | B13: 967 | C13: SEPTEMBER | D13: 1161.96 | E13: SEPTEMBER | F13: 787.306 | G13: SEPTEMBER | H13: 815.51 | I13: SEPTEMBER
A14: OCTOBER | B14: 1034 | C14: OCTOBER | D14: 1155.7 | E14: OCTOBER | F14: 804.7666667 | G14: OCTOBER | H14: 861.5925 | I14: OCTOBER
A15: NOVEMBER | B15: 1077 | C15: NOVEMBER | D15: 1145.015 | E15: NOVEMBER | F15: 780.625 | G15: NOVEMBER | H15: 864.058 | I15: NOVEMBER
A16: DECEMBER | B16: 1093 | C16: DECEMBER | D16: 1100.812 | E16: DECEMBER | F16: 779.072 | G16: DECEMBER | H16: 951.42 | I16: DECEMBER
A17: EUROPE
B18: Europe Average by Month in 2021 | D18: Europe Average by Month in 2022 | F18: Europe Average by Month in 2023 | H18: Europe Average by Month in 2024 | J18: Europe Average by Month in 2025
A19: JANUARY | C19: JANUARY | D19: 5491.88 | E19: JANUARY | F19: 1613.28 | G19: JANUARY | H19: 1791.325 | I19: JANUARY | J19: 2213.762
A20: FEBRUARY | C20: FEBRUARY | D20: 5721.163333 | E20: FEBRUARY | F20: 1430.32 | G20: FEBRUARY | H20: 2358.145 | I20: FEBRUARY | J20: 1832.035
A21: MARCH | C21: MARCH | D21: 5414.915 | E21: MARCH | F21: 1273.824 | G21: MARCH | H21: 1938.082 | I21: MARCH | J21: 1583.205
A22: APRIL | B22: 3024 | C22: APRIL | D22: 5096.034 | E22: APRIL | F22: 1180.925 | G22: APRIL | H22: 1721.075 | I22: APRIL | J22: 1497.09
A23: MAY | B23: 3529 | C23: MAY | D23: 5029.7725 | E23: MAY | F23: 1163.4375 | G23: MAY | H23: 1932.59 | I23: MAY | J23: 1428.194
A24: JUNE | B24: 4076 | C24: JUNE | D24: 5046.5875 | E24: JUNE | F24: 1125.864 | G24: JUNE | H24: 2607.8775 | I24: JUNE | J24: 1526.3025
A25: JULY | B25: 4690 | C25: JULY | D25: 5052.54 | E25: JULY | F25: 1047.78 | G25: JULY | H25: 3386.33 | I25: JULY | J25: 1752.8425
A26: AUGUST | B26: 5282 | C26: AUGUST | D26: 4873.36 | E26: AUGUST | F26: 1085.0875 | G26: AUGUST | H26: 3616.63 | I26: AUGUST | J26: 1792.85
A27: SEPTEMBER | B27: 5388 | C27: SEPTEMBER | D27: 4316.234 | E27: SEPTEMBER | F27: 1048.086 | G27: SEPTEMBER | H27: 2903.3075 | I27: SEPTEMBER
A28: OCTOBER | B28: 5457 | C28: OCTOBER | D28: 3296.123333 | E28: OCTOBER | F28: 942.3733333 | G28: OCTOBER | H28: 2133.0375 | I28: OCTOBER
A29: NOVEMBER | B29: 5281 | C29: NOVEMBER | D29: 2598.885 | E29: NOVEMBER | F29: 962.3 | G29: NOVEMBER | H29: 1940.136 | I29: NOVEMBER
A30: DECEMBER | B30: 5113 | C30: DECEMBER | D30: 1936.142 | E30: DECEMBER | F30: 1027.766 | G30: DECEMBER | H30: 2181.4675 | I30: DECEMBER
A32: USWC
B33: America West Coast Average by Month in 2021 | D33: America West Coast Average by Month in 2022 | F33: America West Coast Average by Month in 2023 | H33: America West Coast Average by Month in 2024 | J33: America West Coast Average by Month in 2025
A34: JANUARY | C34: JANUARY | D34: 2614.385 | E34: JANUARY | F34: 828.3533333 | G34: JANUARY | H34: 821.9975 | I34: JANUARY | J34: 1176.81
A35: FEBRUARY | C35: FEBRUARY | D35: 2654.45 | E35: FEBRUARY | F35: 803.8775 | G35: FEBRUARY | H35: 1083 | I35: FEBRUARY | J35: 1088.2825
A36: MARCH | C36: MARCH | D36: 2534.7275 | E36: MARCH | F36: 733.914 | G36: MARCH | H36: 1029.584 | I36: MARCH | J36: 888.0125
A37: APRIL | B37: 1312 | C37: APRIL | D37: 2347.7 | E37: APRIL | F37: 703.2825 | G37: APRIL | H37: 927.465 | I37: APRIL | J37: 801.9175
A38: MAY | B38: 1492 | C38: MAY | D38: 2516.3925 | E38: MAY | F38: 726.715 | G38: MAY | H38: 1048.5 | I38: MAY | J38: 884.84
A39: JUNE | B39: 1691 | C39: JUNE | D39: 2678.9325 | E39: JUNE | F39: 695.376 | G39: JUNE | H39: 1391.08 | I39: JUNE | J39: 1149.63
A40: JULY | B40: 1903 | C40: JULY | D40: 2585.826 | E40: JULY | F40: 671.745 | G40: JULY | H40: 1658.245 | I40: JULY | J40: 983.6025
A41: AUGUST | B41: 2038 | C41: AUGUST | D41: 2412.9625 | E41: AUGUST | F41: 750.2525 | G41: AUGUST | H41: 1480.03 | I41: AUGUST | J41: 842.47
A42: SEPTEMBER | B42: 2250 | C42: SEPTEMBER | D42: 2010.258 | E42: SEPTEMBER | F42: 767.518 | G42: SEPTEMBER | H42: 1337.1325 | I42: SEPTEMBER
A43: OCTOBER | B43: 2250 | C43: OCTOBER | D43: 1372.516667 | E43: OCTOBER | F43: 716.05 | G43: OCTOBER | H43: 1249.4 | I43: OCTOBER
A44: NOVEMBER | B44: 2264 | C44: NOVEMBER | D44: 1083.915 | E44: NOVEMBER | F44: 735.6825 | G44: NOVEMBER | H44: 1179.464 | I44: NOVEMBER
A45: DECEMBER | B45: 2409 | C45: DECEMBER | D45: 898.788 | E45: DECEMBER | F45: 720.768 | G45: DECEMBER | H45: 993.1125 | I45: DECEMBER
A47: USEC
B48: America East Coast Average by Month in 2021 | D48: America East Coast Average by Month in 2022 | F48: America East Coast Average by Month in 2023 | H48: America East Coast Average by Month in 2024 | J48: America East Coast Average by Month in 2025
A49: January | C49: January | D49: 2699.335 | E49: January | F49: 1312.34 | G49: January | H49: 1024.9425 | I49: January | J49: 1297.988
A50: February | C50: February | D50: 2717.743333 | E50: February | F50: 1169.9825 | G50: February | H50: 1311.675 | I50: February | J50: 1223.3475
A51: March | C51: March | D51: 2637.125 | E51: March | F51: 1062.142 | G51: March | H51: 1179.744 | I51: March | J51: 1016.3275
A52: April | B52: 1495 | C52: April | D52: 2634.828 | E52: April | F52: 910.0725 | G52: April | H52: 1051.325 | I52: April | J52: 929.0075
A53: May | B53: 1793 | C53: May | D53: 2780.7125 | E53: May | F53: 906.56 | G53: May | H53: 1143.6975 | I53: May | J53: 977.96
A54: June | B54: 2048 | C54: June | D54: 3013.04 | E54: June | F54: 849.634 | G54: June | H54: 1505.62 | I54: June | J54: 1345.73
A55: July | B55: 2217 | C55: July | D55: 2959.03 | E55: July | F55: 818.0375 | G55: July | H55: 1792.82 | I55: July | J55: 1247.2975
A56: August | B56: 2345 | C56: August | D56: 2879.3925 | E56: August | F56: 891.1925 | G56: August | H56: 1707.696 | I56: August | J56: 1029.586667
A57: September | B57: 2442 | C57: September | D57: 2700.312 | E57: September | F57: 894.116 | G57: September | H57: 1467.7575 | I57: September
A58: October | B58: 2546 | C58: October | D58: 2124.603333 | E58: October | F58: 825.9933333 | G58: October | H58: 1234.9875 | I58: October
A59: November | B59: 2393 | C59: November | D59: 1825.7 | E59: November | F59: 833.485 | G59: November | H59: 1213.114 | I59: November
A60: December | B60: 2573 | C60: December | D60: 1455.294 | E60: December | F60: 851.644 | G60: December | H60: 1226.6625 | I60: December
A62: KOREA
B63: Korea Average by Month in 2021 | D63: Korea Average by Month in 2022 | F63: Korea Average by Month in 2023 | H63: Korea Average by Month in 2024 | J63: Korea Average by Month in 2025
A64: January | C64: January | D64: 1300.1425 | E64: January | F64: 956.3066667 | G64: January | H64: 497.0775 | I64: January | J64: 510.854
A65: February | C65: February | D65: 1276.156667 | E65: February | F65: 862.4475 | G65: February | H65: 528.405 | I65: February | J65: 505.7175
A66: March | C66: March | D66: 1241.065 | E66: March | F66: 749.078 | G66: March | H66: 460.234 | I66: March | J66: 488.8325
A67: April | B67: 850 | C67: April | D67: 1248.666 | E67: April | F67: 632.155 | G67: April | H67: 449.7025 | I67: April | J67: 501.5325
A68: May | B68: 850 | C68: May | D68: 1220.1525 | E68: May | F68: 583.33 | G68: May | H68: 472.005 | I68: May | J68: 508.664
A69: June | B69: 908 | C69: June | D69: 1243.8075 | E69: June | F69: 518.7 | G69: June | H69: 478.8575 | I69: June | J69: 504.6025
A70: July | B70: 879 | C70: July | D70: 1278.2 | E70: July | F70: 451.47 | G70: July | H70: 515.3175 | I70: July | J70: 479.685
A71: August | B71: 993 | C71: August | D71: 1281.4 | E71: August | F71: 421.12 | G71: August | H71: 534.36 | I71: August | J71: 460.9666667
A72: September | B72: 928 | C72: September | D72: 1247.238 | E72: September | F72: 431.772 | G72: September | H72: 526.14 | I72: September
A73: October | B73: 1041 | C73: October | D73: 1119.406667 | E73: October | F73: 436.3433333 | G73: October | H73: 509.0875 | I73: October
A74: November | B74: 1065 | C74: November | D74: 1064.4225 | E74: November | F74: 447.3625 | G74: November | H74: 494.646 | I74: November
A75: December | B75: 1161 | C75: December | D75: 1033.86 | E75: December | F75: 441.966 | G75: December | H75: 505.005 | I75: December
A77: SOUTHEAST
B78: Southeast Average by Month in 2021 | D78: Southeast Average by Month in 2022 | F78: Southeast Average by Month in 2023 | H78: Southeast Average by Month in 2024 | J78: Southeast Average by Month in 2025
A79: January | C79: January | D79: 2305.41 | E79: January | F79: 683.0033333 | G79: January | H79: 697.5375 | I79: January | J79: 1219.88
A80: February | C80: February | D80: 2099.99 | E80: February | F80: 652.17 | G80: February | H80: 731.755 | I80: February | J80: 1031.2975
A81: March | C81: March | D81: 1887.12 | E81: March | F81: 630.436 | G81: March | H81: 711.042 | I81: March | J81: 956.885
A82: April | B82: 1282 | C82: April | D82: 1780.57 | E82: April | F82: 661.4 | G82: April | H82: 725.29 | I82: April | J82: 984.2275
A83: May | B83: 1275 | C83: May | D83: 1691.52 | E83: May | F83: 634.82 | G83: May | H83: 823.1375 | I83: May | J83: 967.862
A84: June | B84: 1323 | C84: June | D84: 1730.9375 | E84: June | F84: 606.482 | G84: June | H84: 1066.1 | I84: June | J84: 936.82
A85: July | B85: 1313 | C85: July | D85: 1735.154 | E85: July | F85: 576.8675 | G85: July | H85: 1326.6425 | I85: July | J85: 915.825
A86: August | B86: 1358 | C86: August | D86: 1466.75 | E86: August | F86: 548.3325 | G86: August | H86: 1270.988 | I86: August | J86: 846.44
A87: September | B87: 1407 | C87: September | D87: 1063.548 | E87: September | F87: 560.174 | G87: September | H87: 1070.97 | I87: September
A88: October | B88: 1550 | C88: October | D88: 854.7233333 | E88: October | F88: 597.3766667 | G88: October | H88: 952.2675 | I88: October
A89: November | B89: 1577 | C89: November | D89: 859.9175 | E89: November | F89: 657.1375 | G89: November | H89: 1102.366 | I89: November
A90: December | B90: 1942 | C90: December | D90: 754.244 | E90: December | F90: 681.748 | G90: December | H90: 1298.4 | I90: December
A92: MEDITERRANEAN
B93: Mediterranean Average by Month in 2021 | D93: Mediterranean Average by Month in 2022 | F93: Mediterranean Average by Month in 2023 | H93: Mediterranean Average by Month in 2024 | J93: Mediterranean Average by Month in 2025
A94: January | C94: January | D94: 6380.87 | E94: January | F94: 2147.323333 | G94: January | H94: 2306.1875 | I94: January | J94: 2752.632
A95: February | C95: February | D95: 6407.47 | E95: February | F95: 1942.6975 | G95: February | H95: 2990.71 | I95: February | J95: 2366.8825
A96: March | C96: March | D96: 6243.2775 | E96: March | F96: 1773.73 | G96: March | H96: 2471.59 | I96: March | J96: 2036.1675
A97: April | B97: 3429 | C97: April | D97: 5996.652 | E97: April | F97: 1681.9425 | G97: April | H97: 2272.3975 | I97: April | J97: 1868.3525
A98: May | B98: 4080 | C98: May | D98: 6004.14 | E98: May | F98: 1686.03 | G98: May | H98: 2537.44 | I98: May | J98: 1829.454
A99: June | B99: 4811 | C99: June | D99: 6070.65 | E99: June | F99: 1654.592 | G99: June | H99: 3123.8375 | I99: June | J99: 2130.8025
A100: July | B100: 5387 | C100: July | D100: 5901.71 | E100: July | F100: 1547.47 | G100: July | H100: 3577.835 | I100: July | J100: 2172.06
A101: August | B101: 5739 | C101: August | D101: 5398.9025 | E101: August | F101: 1529.97 | G101: August | H101: 3553 | I101: August | J101: 1967.9
A102: September | B102: 5901 | C102: September | D102: 4625.79 | E102: September | F102: 1442.506 | G102: September | H102: 3033.8275 | I102: September
A103: October | B103: 6119 | C103: October | D103: 3306.603333 | E103: October | F103: 1245.396667 | G103: October | H103: 2376.285 | I103: October
A104: November | B104: 6105 | C104: November | D104: 2726.1125 | E104: November | F104: 1271.8875 | G104: November | H104: 2290.0575 | I104: November
A105: December | B105: 5947 | C105: December | D105: 2274.072 | E105: December | F105: 1340.358 | G105: December | H105: 2625.92 | I105: December
A107: AUSTRALIA / NZ
B108: Australia/New Zealand Average by Month in 2021 | D108: Australia/New Zealand Average by Month in 2022 | F108: Australia/New Zealand Average by Month in 2023 | H108: Australia/New Zealand Average by Month in 2024 | J108: Australia/New Zealand Average by Month in 2025
A109: January | C109: January | D109: 2925.0975 | E109: January | F109: 1211.12 | G109: January | H109: 966.9225 | I109: January | J109: 1334.264
A110: February | C110: February | D110: 2799.55 | E110: February | F110: 1004.6675 | G110: February | H110: 1052.645 | I110: February | J110: 1019.28
A111: March | C111: March | D111: 2642.7075 | E111: March | F111: 826.508 | G111: March | H111: 925.076 | I111: March | J111: 848.0325
A112: April | B112: 1465 | C112: April | D112: 2532.504 | E112: April | F112: 693.13 | G112: April | H112: 793.865 | I112: April | J112: 892.1575
A113: May | B113: 1533 | C113: May | D113: 2682.055 | E113: May | F113: 602.2075 | G113: May | H113: 892.3125 | I113: May | J113: 920.556
A114: June | B114: 1637 | C114: June | D114: 2799.9825 | E114: June | F114: 594.678 | G114: June | H114: 986.135 | I114: June | J114: 874.725
A115: July | B115: 1876 | C115: July | D115: 2863.896 | E115: July | F115: 576.5375 | G115: July | H115: 1053.1425 | I115: July | J115: 942.6275
A116: August | B116: 2232 | C116: August | D116: 2878.155 | E116: August | F116: 616.325 | G116: August | H116: 1166.062 | I116: August | J116: 1023.296667
A117: September | B117: 2441 | C117: September | D117: 2665.996 | E117: September | F117: 711.12 | G117: September | H117: 1478.9925 | I117: September
A118: October | B118: 2721 | C118: October | D118: 2180.286667 | E118: October | F118: 741.77 | G118: October | H118: 1461.51 | I118: October
A119: November | B119: 2837 | C119: November | D119: 1714.775 | E119: November | F119: 823.705 | G119: November | H119: 1492.428 | I119: November
A120: December | B120: 2763 | C120: December | D120: 1328.396 | E120: December | F120: 869.698 | G120: December | H120: 1359.075 | I120: December
A122: SOUTH AFRICA
B123: South Africa Average by Month in 2021 | D123: South Africa Average by Month in 2022 | F123: South Africa Average by Month in 2023 | H123: South Africa Average by Month in 2024 | J123: South Africa Average by Month in 2025
A124: January | C124: January | D124: 3365.1425 | E124: January | F124: 1597.15 | G124: January | H124: 1012.41 | I124: January | J124: 1558.458
A125: February | C125: February | D125: 3293.206667 | E125: February | F125: 1353.31 | G125: February | H125: 1124.3 | I125: February | J125: 1369.2325
A126: March | C126: March | D126: 3293.2025 | E126: March | F126: 1062.322 | G126: March | H126: 906.594 | I126: March | J126: 1086.38
A127: April | B127: 1593 | C127: April | D127: 3166.41 | E127: April | F127: 869.4625 | G127: April | H127: 886.485 | I127: April | J127: 955.8175
A128: May | B128: 1870 | C128: May | D128: 3004.6225 | E128: May | F128: 780.2625 | G128: May | H128: 1148.415 | I128: May | J128: 941.514
A129: June | B129: 2151 | C129: June | D129: 3036.68 | E129: June | F129: 746.118 | G129: June | H129: 1920.88 | I129: June | J129: 1045.5375
A130: July | B130: 2507 | C130: July | D130: 3042.976 | E130: July | F130: 711.415 | G130: July | H130: 2371.0575 | I130: July | J130: 1299.575
A131: August | B131: 2771 | C131: August | D131: 2954.1775 | E131: August | F131: 709.5125 | G131: August | H131: 2384.804 | I131: August | J131: 1424.13
A132: September | B132: 3260 | C132: September | D132: 2785.542 | E132: September | F132: 723.742 | G132: September | H132: 2221.525 | I132: September
A133: October | B133: 3624 | C133: October | D133: 2418.463333 | E133: October | F133: 707.4333333 | G133: October | H133: 2079.2675 | I133: October
A134: November | B134: 2837 | C134: November | D134: 2326.2325 | E134: November | F134: 761.38 | G134: November | H134: 1951.998 | I134: November
A135: December | B135: 3389 | C135: December | D135: 1935.436 | E135: December | F135: 801.814 | G135: December | H135: 1741.18 | I135: December
A137: SOUTH AMERICA
B138: South America Average by Month in 2021 | D138: South America Average by Month in 2022 | F138: South America Average by Month in 2023 | H138: South America Average by Month in 2024 | J138: South America Average by Month in 2025
A139: January | C139: January | D139: 2909.8075 | E139: January | F139: 647.88 | G139: January | H139: 689.8925 | I139: January | J139: 965.688
A140: February | C140: February | D140: 2638.59 | E140: February | F140: 585.17 | G140: February | H140: 727.89 | I140: February | J140: 826.855
A141: March | C141: March | D141: 2362.16 | E141: March | F141: 594.482 | G141: March | H141: 681.43 | I141: March | J141: 721.1625
A142: April | B142: 1705 | C142: April | D142: 2024.536 | E142: April | F142: 629.5875 | G142: April | H142: 743.7825 | I142: April | J142: 617.695
A143: May | B143: 1827 | C143: May | D143: 1933.83 | E143: May | F143: 735.5875 | G143: May | H143: 1120.295 | I143: May | J143: 596.46
A144: June | B144: 2043 | C144: June | D144: 2000.3275 | E144: June | F144: 721.544 | G144: June | H144: 1522.9925 | I144: June | J144: 889.795
A145: July | B145: 2315 | C145: July | D145: 2317.044 | E145: July | F145: 691.0575 | G145: July | H145: 1797.8025 | I145: July | J145: 990.52
A146: August | B146: 2437 | C146: August | D146: 2391.145 | E146: August | F146: 705.4625 | G146: August | H146: 1502.776 | I146: August | J146: 891.75
A147: September | B147: 2590 | C147: September | D147: 1829.076 | E147: September | F147: 672.222 | G147: September | H147: 1403.065 | I147: September
A148: October | B148: 2861 | C148: October | D148: 1192.723333 | E148: October | F148: 583.1766667 | G148: October | H148: 1257.2 | I148: October
A149: November | B149: 3013 | C149: November | D149: 1145.615 | E149: November | F149: 654.58 | G149: November | H149: 1140.816 | I149: November
A150: December | B150: 2917 | C150: December | D150: 717.306 | E150: December | F150: 645.584 | G150: December | H150: 1025.9275 | I150: December
A152: WEST EAST AFRICA
B153: West East Africa Average by Month in 2021 | D153: West East Africa Average by Month in 2022 | F153: West East Africa Average by Month in 2023 | H153: West East Africa Average by Month in 2024 | J153: West East Africa Average by Month in 2025
A154: January | C154: January | D154: 1924.7275 | E154: January | F154: 735.1466667 | G154: January | H154: 580.9 | I154: January | J154: 1073.142
A155: February | C155: February | D155: 1918.24 | E155: February | F155: 616.23 | G155: February | H155: 652.8 | I155: February | J155: 923.35
A156: March | C156: March | D156: 1887.3025 | E156: March | F156: 567.026 | G156: March | H156: 602.78 | I156: March | J156: 841.185
A157: April | B157: 1438 | C157: April | D157: 1759.586 | E157: April | F157: 556.2925 | G157: April | H157: 578.2525 | I157: April | J157: 820.8175
A158: May | B158: 1559 | C158: May | D158: 1685.535 | E158: May | F158: 584.1575 | G158: May | H158: 886.405 | I158: May | J158: 848.764
A159: June | B159: 1648 | C159: June | D159: 1672.99 | E159: June | F159: 583.778 | G159: June | H159: 1451.2575 | I159: June | J159: 984.9175
A160: July | B160: 1953 | C160: July | D160: 1660.554 | E160: July | F160: 585.7975 | G160: July | H160: 1439.495 | I160: July | J160: 1144.145
A161: August | B161: 2059 | C161: August | D161: 1607.7825 | E161: August | F161: 597.4475 | G161: August | H161: 1420.536 | I161: August | J161: 1100.1
A162: September | B162: 2138 | C162: September | D162: 1485.888 | E162: September | F162: 582.272 | G162: September | H162: 1299.62 | I162: September
A163: October | B163: 2106 | C163: October | D163: 1278.05 | E163: October | F163: 526.2666667 | G163: October | H163: 1150.715 | I163: October
A164: November | B164: 2034 | C164: November | D164: 1191.9 | E164: November | F164: 571.3225 | G164: November | H164: 1123.658 | I164: November
A165: December | B165: 1921 | C165: December | D165: 935.964 | E165: December | F165: 539.354 | G165: December | H165: 1097.5025 | I165: December
A167: PERSIAN GULF / RED SEA
B168: Persian Gulf/Red Sea Average by Month in 2021 | D168: Persian Gulf/Red Sea Average by Month in 2022 | F168: Persian Gulf/Red Sea Average by Month in 2023 | H168: Persian Gulf/Red Sea Average by Month in 2024 | J168: Persian Gulf/Red Sea Average by Month in 2025
A169: January | C169: January | D169: 4204.0225 | E169: January | F169: 1134.35 | G169: January | H169: 1474.83 | I169: January | J169: 1418.82
A170: February | C170: February | D170: 3971.5 | E170: February | F170: 1075.425 | G170: February | H170: 1501.73 | I170: February | J170: 1221.7875
A171: March | C171: March | D171: 3750.7175 | E171: March | F171: 1016.44 | G171: March | H171: 1379.22 | I171: March | J171: 1097.59
A172: April | B172: 1819 | C172: April | D172: 3157.004 | E172: April | F172: 1078.4275 | G172: April | H172: 1444.035 | I172: April | J172: 1179.4875
A173: May | B173: 2466 | C173: May | D173: 2711.3325 | E173: May | F173: 1169.5575 | G173: May | H173: 1737.495 | I173: May | J173: 1154.912
A174: June | B174: 2990 | C174: June | D174: 3170.8375 | E174: June | F174: 1130.826 | G174: June | H174: 2235.93 | I174: June | J174: 1389.2025
A175: July | B175: 3388 | C175: July | D175: 3587.256 | E175: July | F175: 1076.25 | G175: July | H175: 2238.4125 | I175: July | J175: 1512.8225
A176: August | B176: 3616 | C176: August | D176: 2862.3425 | E176: August | F176: 901.5925 | G176: August | H176: 1954.342 | I176: August | J176: 1135.58
A177: September | B177: 3840 | C177: September | D177: 1883.522 | E177: September | F177: 946.67 | G177: September | H177: 1578.24 | I177: September
A178: October | B178: 4087 | C178: October | D178: 1140.223333 | E178: October | F178: 865.96 | G178: October | H178: 1138.165 | I178: October
A179: November | B179: 3947 | C179: November | D179: 1550.1925 | E179: November | F179: 1060.13 | G179: November | H179: 1342.118 | I179: November
A180: December | B180: 3945 | C180: December | D180: 1317.116 | E180: December | F180: 1050.102 | G180: December | H180: 1425.435 | I180: December
B185: Japan Average by Month | C185: Europe Average by Month | D185: America West Coast Average by Month | E185: America East Coast Average by Month | F185: Korea Average by Month | G185: Southeast Average by Month | H185: Mediterranean Average by Month | I185: Australia/New Zealand Average by Month | J185: South Africa Average by Month | K185: South American Average by Month | L185: West East Africa Average by Month | M185: Persian Gulf/Red Sea Average by Month
A186: 2021-04-02 | B186: 928 | C186: 3024 | D186: 1312 | E186: 1495 | F186: 850 | G186: 1282 | H186: 3429 | I186: 1465 | J186: 1593 | K186: 1705 | L186: 1438 | M186: 1819
A187: 2021-05-02 | B187: 916 | C187: 3529 | D187: 1492 | E187: 1793 | F187: 850 | G187: 1275 | H187: 4080 | I187: 1533 | J187: 1870 | K187: 1827 | L187: 1559 | M187: 2466
A188: 2021-06-02 | B188: 918 | C188: 4076 | D188: 1691 | E188: 2048 | F188: 908 | G188: 1323 | H188: 4811 | I188: 1637 | J188: 2151 | K188: 2043 | L188: 1648 | M188: 2990
A189: 2021-07-02 | B189: 919 | C189: 4690 | D189: 1903 | E189: 2217 | F189: 879 | G189: 1313 | H189: 5387 | I189: 1876 | J189: 2507 | K189: 2315 | L189: 1953 | M189: 3388
A190: 2021-08-02 | B190: 923 | C190: 5282 | D190: 2038 | E190: 2345 | F190: 993 | G190: 1358 | H190: 5739 | I190: 2232 | J190: 2771 | K190: 2437 | L190: 2059 | M190: 3616
A191: 2021-09-02 | B191: 967 | C191: 5388 | D191: 2250 | E191: 2442 | F191: 928 | G191: 1407 | H191: 5901 | I191: 2441 | J191: 3260 | K191: 2590 | L191: 2138 | M191: 3840
A192: 2021-10-02 | B192: 1034 | C192: 5457 | D192: 2250 | E192: 2546 | F192: 1041 | G192: 1550 | H192: 6119 | I192: 2721 | J192: 3624 | K192: 2861 | L192: 2106 | M192: 4087
A193: 2021-11-02 | B193: 1077 | C193: 5281 | D193: 2264 | E193: 2393 | F193: 1065 | G193: 1577 | H193: 6105 | I193: 2837 | J193: 3624 | K193: 3013 | L193: 2034 | M193: 3947
A194: 2021-12-02 | B194: 1093 | C194: 5113 | D194: 2409 | E194: 2573 | F194: 1161 | G194: 1942 | H194: 5947 | I194: 2763 | J194: 3389 | K194: 2917 | L194: 1921 | M194: 3945
A195: 2022-01-02 | B195: 1215.64 | C195: 5491.88 | D195: 2614.385 | E195: 2699.335 | F195: 1300.1425 | G195: 2305.41 | H195: 6380.87 | I195: 2925.0975 | J195: 3365.1425 | K195: 2909.8075 | L195: 1924.7275 | M195: 4204.0225
A196: 2022-02-02 | B196: 1168.246667 | C196: 5721.163333 | D196: 2654.45 | E196: 2717.743333 | F196: 1276.156667 | G196: 2099.99 | H196: 6407.47 | I196: 2799.55 | J196: 3293.206667 | K196: 2638.59 | L196: 1918.24 | M196: 3971.5
A197: 2022-03-02 | B197: 1123.7775 | C197: 5414.915 | D197: 2534.7275 | E197: 2637.125 | F197: 1241.065 | G197: 1887.12 | H197: 6243.2775 | I197: 2642.7075 | J197: 3293.2025 | K197: 2362.16 | L197: 1887.3025 | M197: 3750.7175
A198: 2022-04-02 | B198: 1194.242 | C198: 5096.034 | D198: 2347.7 | E198: 2634.828 | F198: 1248.666 | G198: 1780.57 | H198: 5996.652 | I198: 2532.504 | J198: 3166.41 | K198: 2024.536 | L198: 1759.586 | M198: 3157.004
A199: 2022-05-02 | B199: 1216.96 | C199: 5029.7725 | D199: 2516.3925 | E199: 2780.7125 | F199: 1220.1525 | G199: 1691.52 | H199: 6004.14 | I199: 2682.055 | J199: 3004.6225 | K199: 1933.83 | L199: 1685.535 | M199: 2711.3325
A200: 2022-06-02 | B200: 1217.2725 | C200: 5046.5875 | D200: 2678.9325 | E200: 3013.04 | F200: 1243.8075 | G200: 1730.9375 | H200: 6070.65 | I200: 2799.9825 | J200: 3036.68 | K200: 2000.3275 | L200: 1672.99 | M200: 3170.8375
A201: 2022-07-02 | B201: 1194.492 | C201: 5052.54 | D201: 2585.826 | E201: 2959.03 | F201: 1278.2 | G201: 1735.154 | H201: 5901.71 | I201: 2863.896 | J201: 3042.976 | K201: 2317.044 | L201: 1660.554 | M201: 3587.256
A202: 2022-08-02 | B202: 1182.055 | C202: 4873.36 | D202: 2412.9625 | E202: 2879.3925 | F202: 1281.4 | G202: 1466.75 | H202: 5398.9025 | I202: 2878.155 | J202: 2954.1775 | K202: 2391.145 | L202: 1607.7825 | M202: 2862.3425
A203: 2022-09-02 | B203: 1161.96 | C203: 4316.234 | D203: 2010.258 | E203: 2700.312 | F203: 1247.238 | G203: 1063.548 | H203: 4625.79 | I203: 2665.996 | J203: 2785.542 | K203: 1829.076 | L203: 1485.888 | M203: 1883.522
A204: 2022-10-02 | B204: 1155.7 | C204: 3296.123333 | D204: 1372.516667 | E204: 2124.603333 | F204: 1119.406667 | G204: 854.7233333 | H204: 3306.603333 | I204: 2180.286667 | J204: 2418.463333 | K204: 1192.723333 | L204: 1278.05 | M204: 1140.223333
A205: 2022-11-02 | B205: 1145.015 | C205: 2598.885 | D205: 1083.915 | E205: 1825.7 | F205: 1064.4225 | G205: 859.9175 | H205: 2726.1125 | I205: 1714.775 | J205: 2326.2325 | K205: 1145.615 | L205: 1191.9 | M205: 1550.1925
A206: 2022-12-02 | B206: 1100.812 | C206: 1936.142 | D206: 898.788 | E206: 1455.294 | F206: 1033.86 | G206: 754.244 | H206: 2274.072 | I206: 1328.396 | J206: 1935.436 | K206: 717.306 | L206: 935.964 | M206: 1317.116
A207: 2023-01-02 | B207: 1049.076667 | C207: 1613.28 | D207: 828.3533333 | E207: 1312.34 | F207: 956.3066667 | G207: 683.0033333 | H207: 2147.323333 | I207: 1211.12 | J207: 1597.15 | K207: 647.88 | L207: 735.1466667 | M207: 1134.35
A208: 2023-02-02 | B208: 1028.8225 | C208: 1430.32 | D208: 803.8775 | E208: 1169.9825 | F208: 862.4475 | G208: 652.17 | H208: 1942.6975 | I208: 1004.6675 | J208: 1353.31 | K208: 585.17 | L208: 616.23 | M208: 1075.425
A209: 2023-03-02 | B209: 930.75 | C209: 1273.824 | D209: 733.914 | E209: 1062.142 | F209: 749.078 | G209: 630.436 | H209: 1773.73 | I209: 826.508 | J209: 1062.322 | K209: 594.482 | L209: 567.026 | M209: 1016.44
A210: 2023-04-02 | B210: 889.3075 | C210: 1180.925 | D210: 703.2825 | E210: 910.0725 | F210: 632.155 | G210: 661.4 | H210: 1681.9425 | I210: 693.13 | J210: 869.4625 | K210: 629.5875 | L210: 556.2925 | M210: 1078.4275
A211: 2023-05-02 | B211: 872.7075 | C211: 1163.4375 | D211: 726.715 | E211: 906.56 | F211: 583.33 | G211: 634.82 | H211: 1686.03 | I211: 602.2075 | J211: 780.2625 | K211: 735.5875 | L211: 584.1575 | M211: 1169.5575
A212: 2023-06-02 | B212: 858.576 | C212: 1125.864 | D212: 695.376 | E212: 849.634 | F212: 518.7 | G212: 606.482 | H212: 1654.592 | I212: 594.678 | J212: 746.118 | K212: 721.544 | L212: 583.778 | M212: 1130.826
A213: 2023-07-02 | B213: 813.16 | C213: 1047.78 | D213: 671.745 | E213: 818.0375 | F213: 451.47 | G213: 576.8675 | H213: 1547.47 | I213: 576.5375 | J213: 711.415 | K213: 691.0575 | L213: 585.7975 | M213: 1076.25
A214: 2023-08-02 | B214: 780.3 | C214: 1085.0875 | D214: 750.2525 | E214: 891.1925 | F214: 421.12 | G214: 548.3325 | H214: 1529.97 | I214: 616.325 | J214: 709.5125 | K214: 705.4625 | L214: 597.4475 | M214: 901.5925
A215: 2023-09-02 | B215: 787.306 | C215: 1048.086 | D215: 767.518 | E215: 894.116 | F215: 431.772 | G215: 560.174 | H215: 1442.506 | I215: 711.12 | J215: 723.742 | K215: 672.222 | L215: 582.272 | M215: 946.67
A216: 2023-10-02 | B216: 804.7666667 | C216: 942.3733333 | D216: 716.05 | E216: 825.9933333 | F216: 436.3433333 | G216: 597.3766667 | H216: 1245.396667 | I216: 741.77 | J216: 707.4333333 | K216: 583.1766667 | L216: 526.2666667 | M216: 865.96
... 26 more rows

Sheet CCFI Trend Chart
A407: .

Sheet FAQ
B1: FAQ
B3: Q: What is SCFI
B4: SCFI is the abbreviation of Shanghai Containerized Freight Index that reflects the fluctuation of spot freight rates on export container transport market from Shanghai.
B8: Q: What is the main differences between SCFI and CCFI?
B9: 1) Different geographic coverage: SCFI composite index is a weighted average of 15 individual routes. The individual trade route reflects the export container market from Shanghai by an average spot freight rates with a port-to-port freight level; CCFI composite index reflects China’s nationwide export container transport by the indices of individual routes showing the ups and downs of the entire shipping routes. 2) Different target market: SCFI targets at the spot rates of Shanghai export container transport market, which is more sensitive and periodical; CCFI targets the overall freight level (including spot and contractual rates) of China’s export container transport market, which is more comprehensive and macroeconomic.
B23: Q: What is the definition of freight rates of individual routes?
B24: The freight rate of individual routes of SCFI is the average all-in price which considers the spot ocean freights and related seaborne surcharges. The ports of destination are the base ports of the route, e.g. Mediterranean Sea—Barcelona/Valencia/Genoa/Naples, Europe—Hamburg/Rotterdam/Antwerp/Felixstowe/Le Havre, USWC—Los Angeles/Long Beach/Oakland, USEC—New York/Savannah/Norfolk/Charleston, West Japan—Osaka/Kobe, East Japan—Tokyo/Yokohama The seaborne surcharges include: Bunker Adjustment Factor(BAF)/ Fuel Adjustment Factor(FAF)/ Low Sulphur Surcharge(LSS) Emergency Bunker Surcharge(EBS)/ Emergency Bunker Additional (EBA) Currency Adjustment Factor(CAF)/ Yen Appreciation Surcharge (YAS) Peak Season Surcharge(PSS) War Risk Surcharge(WRS) Port Congestion Surcharge (PCS) Suez Canal transit Fee/Surcharge (SCS)/ Suez Canal Fee (SCF)/ Panama Transit Fee (PTF)/ Panama Canal Charge (PCC). Landside surcharge, such as Terminal Handle Charge(THC) at both ends, Port Facility Security Surcharge, South China Place of Origin Surcharge, US Automatic Customs Declaration Charge and Inland On-carriage Charges are not included.

Sheet 2024
A1: Date | B1: NWE TEU | C1: MED TEU | D1: USWC FEU | E1: USEC FEU | F1: Gulf & Red Sea (DXB) TEU | G1: ANZ (MEL) TEU | H1: E/W Africa (LOS) TEU | I1: S/ Africa DUR) TEU | J1: S/America (SSZ) TEU | K1: W/Japan TEU | L1: E/Japan TEU | M1: SE Asia (SIN) TEU | N1: Korea (PUS) TEU
A2: 2024-01-05 | B2: 2871 | C2: 3620 | D2: 2775 | E2: 3931 | F2: 2338 | G2: 1084 | H2: 2209 | I2: 1741 | J2: 2901 | K2: 294 | L2: 301 | M2: 259 | N2: 138
A3: 2024-01-12 | B3: 3103 | C3: 4037 | D3: 3974 | E3: 5813 | F3: 2224 | G3: 1211 | H3: 2341 | I3: 1805 | J3: 2874 | K3: 292 | L3: 300 | M3: 309 | N3: 140
A4: 2024-01-19 | B4: 3030 | C4: 4067 | D4: 4320 | E4: 6262 | F4: 1982 | G4: 1258 | H4: 2380 | I4: 1848 | J4: 2714 | K4: 289 | L4: 302 | M4: 327 | N4: 153
A5: 2024-01-26 | B5: 2861 | C5: 3903 | D5: 4412 | E5: 6413 | F5: 1662 | G5: 1266 | H5: 2460 | I5: 1851 | J5: 2666 | K5: 289 | L5: 302 | M5: 320 | N5: 159
A6: 2024-02-02 | B6: 2723 | C6: 3753 | D6: 5005 | E6: 6652 | F6: 1586 | G6: 1249 | H6: 2464 | I6: 1854 | J6: 2567 | K6: 289 | L6: 302 | M6: 305 | N6: 157
A7: 2024-02-09 | B7: 2648 | C7: 3705 | D7: 4833 | E7: 6452 | F7: 1550 | G7: 1228 | H7: 2480 | I7: 1871 | J7: 2567 | K7: 289 | L7: 302 | M7: 302 | N7: 156
A8: 2024-02-16 | B8: No SCFI due to Chinese New Year
A9: 2024-02-23 | B9: 2508 | C9: 3465 | D9: 4691 | E9: 6127 | F9: 1701 | G9: 1213 | H9: 2397 | I9: 1912 | J9: 2625 | K9: 289 | L9: 302 | M9: 297 | N9: 155
A10: 2024-03-01 | B10: 2277 | C10: 3292 | D10: 4262 | E10: 5747 | F10: 1715 | G10: 1133 | H10: 2310 | I10: 1874 | J10: 2625 | K10: 289 | L10: 302 | M10: 285 | N10: 153
A11: 2024-03-08 | B11: 2134 | C11: 3138 | D11: 4039 | E11: 5608 | F11: 1599 | G11: 1016 | H11: 2265 | I11: 1831 | J11: 2596 | K11: 289 | L11: 302 | M11: 278 | N11: 148
A12: 2024-03-15 | B12: 1971 | C12: 2977 | D12: 3776 | E12: 5252 | F12: 1410 | G12: 907 | H12: 2231 | I12: 1783 | J12: 2530 | K12: 289 | L12: 302 | M12: 280 | N12: 158
A13: 2024-03-22 | B13: 1943 | C13: 2887 | D13: 3621 | E13: 4842 | F13: 1503 | G13: 822 | H13: 2194 | I13: 1683 | J13: 2550 | K13: 288 | L13: 300 | M13: 281 | N13: 158
A14: 2024-03-29 | B14: 1994 | C14: 3009 | D14: 3407 | E14: 4447 | F14: 1697 | G14: 729 | H14: 2168 | I14: 1665 | J14: 2788 | K14: 288 | L14: 297 | M14: 284 | N14: 155
A15: 2024-04-05 | B15: 1997 | C15: 3014 | D15: 3308 | E15: 4359 | F15: 1894 | G15: 701 | H15: 2167 | I15: 1753 | J15: 3082 | K15: 296 | L15: 302 | M15: 283 | N15: 155
A16: 2024-04-12 | B16: 1971 | C16: 3010 | D16: 3205 | E16: 4179 | F16: 2051 | G16: 824 | H16: 2363 | I16: 1781 | J16: 3627 | K16: 294 | L16: 309 | M16: 280 | N16: 155
A17: 2024-04-19 | B17: 1971 | C17: 3048 | D17: 3175 | E17: 4071 | F17: 2032 | G17: 853 | H17: 2468 | I17: 1804 | J17: 4153 | K17: 292 | L17: 305 | M17: 295 | N17: 164
A18: 2024-04-26 | B18: 2300 | C18: 3235 | D18: 3602 | E18: 4661 | F18: 2047 | G18: 929 | H18: 2719 | I18: 2043 | J18: 4623 | K18: 292 | L18: 305 | M18: 307 | N18: 158
A19: 2024-05-03 | B19: No SCFI due to China Holiday
A20: 2024-05-10 | B20: 2869 | C20: 3915 | D20: 4393 | E20: 5562 | F20: 2124 | G20: 1169 | H20: 3767 | I20: 2657 | J20: 5461 | K20: 287 | L20: 309 | M20: 362 | N20: 161
A21: 2024-05-17 | B21: 3050 | C21: 3957 | D21: 5025 | E21: 6026 | F21: 2221 | G21: 1259 | H21: 4605 | I21: 3365 | J21: 6686 | K21: 292 | L21: 305 | M21: 406 | N21: 181
A22: 2024-05-24 | B22: 3409 | C22: 4248 | D22: 5189 | E22: 6482 | F22: 2391 | G22: 1289 | H22: 5352 | I22: 3888 | J22: 7065 | K22: 292 | L22: 305 | M22: 450 | N22: 161
A23: 2024-05-31 | B23: 3740 | C23: 4720 | D23: 6168 | E23: 7206 | F23: 2542 | G23: 1342 | H23: 6151 | I23: 4824 | J23: 7408 | K23: 293 | L23: 299 | M23: 547 | N23: 163
A24: 2024-06-07 | B24: 3949 | C24: 4784 | D24: 6209 | E24: 7447 | F24: 2855 | G24: 1440 | H24: 6142 | I24: 5205 | J24: 7936 | K24: 293 | L24: 299 | M24: 627 | N24: 163
A25: 2024-06-14 | B25: 4179 | C25: 4848 | D25: 6906 | E25: 7993 | F25: 2950 | G25: 1382 | H25: 5888 | I25: 5478 | J25: 8263 | K25: 293 | L25: 299 | M25: 679 | N25: 163
A26: 2024-06-21 | B26: 4336 | C26: 4855 | D26: 7173 | E26: 8277 | F26: 2893 | G26: 1406 | H26: 5776 | I26: 5541 | J26: 8558 | K26: 293 | L26: 299 | M26: 739 | N26: 169
A27: 2024-06-28 | B27: 4880 | C27: 5387 | D27: 7830 | E27: 9274 | F27: 2711 | G27: 1397 | H27: 5681 | I27: 5584 | J27: 8854 | K27: 293 | L27: 299 | M27: 743 | N27: 172
A28: 2024-07-05 | B28: 4857 | C28: 5432 | D28: 8103 | E28: 9945 | F28: 2436 | G28: 1375 | H28: 5563 | I28: 5426 | J28: 9026 | K28: 293 | L28: 299 | M28: 730 | N28: 166
A29: 2024-07-12 | B29: 5051 | C29: 5424 | D29: 7654 | E29: 9881 | F29: 2273 | G29: 1404 | H29: 5187 | I29: 5099 | J29: 8760 | K29: 293 | L29: 299 | M29: 753 | N29: 162
A30: 2024-07-19 | B30: 5000 | C30: 5361 | D30: 7124 | E30: 9751 | F30: 2193 | G30: 1385 | H30: 5056 | I30: 4954 | J30: 8212 | K30: 293 | L30: 299 | M30: 711 | N30: 165
A31: 2024-07-26 | B31: 4991 | C31: 5270 | D31: 6663 | E31: 9557 | F31: 2219 | G31: 1482 | H31: 5013 | I31: 4875 | J31: 7939 | K31: 293 | L31: 299 | M31: 673 | N31: 165
A32: 2024-08-02 | B32: 4907 | C32: 4997 | D32: 6245 | E32: 9346 | F32: 2217 | G32: 1581 | H32: 5064 | I32: 4882 | J32: 7867 | K32: 293 | L32: 299 | M32: 628 | N32: 162
A33: 2024-08-09 | B33: 4786 | C33: 4733 | D33: 6068 | E33: 9083 | F33: 2208 | G33: 1776 | H33: 5068 | I33: 4800 | J33: 7987 | K33: 293 | L33: 299 | M33: 595 | N33: 162
A34: 2024-08-16 | B34: 4610 | C34: 4645 | D34: 6581 | E34: 9297 | F34: 2139 | G34: 1911 | H34: 5015 | I34: 4809 | J34: 7730 | K34: 293 | L34: 299 | M34: 578 | N34: 162
A35: 2024-08-23 | B35: 4400 | C35: 4523 | D35: 5955 | E35: 8546 | F35: 1969 | G35: 2072 | H35: 5004 | I35: 4836 | J35: 7562 | K35: 293 | L35: 299 | M35: 544 | N35: 162
A36: 2024-08-30 | B36: 3876 | C36: 4083 | D36: 6140 | E36: 8439 | F36: 1756 | G36: 2235 | H36: 4873 | I36: 4754 | J36: 7698 | K36: 293 | L36: 299 | M36: 497 | N36: 161
A37: 2024-09-06 | B37: 3459 | C37: 3823 | D37: 5605 | E37: 7511 | F37: 1509 | G37: 2268 | H37: 4850 | I37: 4626 | J37: 7523 | K37: 298 | L37: 305 | M37: 467 | N37: 139
A38: 2024-09-13 | B38: 2841 | C38: 3365 | D38: 5494 | E38: 6838 | F38: 1264 | G38: 2267 | H38: 4656 | I38: 4539 | J38: 7301 | K38: 298 | L38: 306 | M38: 447 | N38: 147
A39: 2024-09-20 | B39: 2592 | C39: 2955 | D39: 5341 | E39: 6486 | F39: 1147 | G39: 2193 | H39: 4589 | I39: 4361 | J39: 6990 | K39: 301 | L39: 309 | M39: 412 | N39: 141
A40: 2024-09-27 | B40: 2250 | C40: 2541 | D40: 4852 | E40: 5626 | F40: 962 | G40: 2008 | H40: 4489 | I40: 4245 | J40: 6439 | K40: 301 | L40: 307 | M40: 396 | N40: 143
A41: 2024-10-04 | B41: No SCFI due to Golden week China Holiday
A42: 2024-10-11 | B42: 2040 | C42: 2369 | D42: 4730 | E42: 5554 | F42: 986 | G42: 1966 | H42: 4380 | I42: 4204 | J42: 6341 | K42: 302 | L42: 304 | M42: 389 | N42: 144
A43: 2024-10-18 | B43: 1950 | C43: 2312 | D43: 4726 | E43: 4969 | F43: 1193 | G43: 2026 | H43: 4428 | I43: 4254 | J43: 6235 | K43: 302 | L43: 304 | M43: 420 | N43: 144
A44: 2024-10-25 | B44: 2226 | C44: 2555 | D44: 4783 | E44: 5099 | F44: 1427 | G44: 2058 | H44: 4504 | I44: 4233 | J44: 6285 | K44: 304 | L44: 305 | M44: 464 | N44: 146
A45: 2024-11-01 | B45: 2442 | C45: 2907 | D45: 4826 | E45: 5258 | F45: 1507 | G45: 2145 | H45: 4610 | I45: 4296 | J45: 6359 | K45: 304 | L45: 305 | M45: 536 | N45: 147
A46: 2024-11-08 | B46: 2541 | C46: 3055 | D46: 4729 | E46: 5281 | F46: 1480 | G46: 2190 | H46: 4615 | I46: 4149 | J46: 5931 | K46: 304 | L46: 305 | M46: 601 | N46: 147
A47: 2024-11-15 | B47: 2512 | C47: 3080 | D47: 4181 | E47: 5062 | F47: 1421 | G47: 2159 | H47: 4546 | I47: 4012 | J47: 5515 | K47: 304 | L47: 305 | M47: 670 | N47: 138
A48: 2024-11-22 | B48: 2481 | C48: 3071 | D48: 3821 | E48: 4997 | F48: 1317 | G48: 2038 | H48: 4490 | I48: 3868 | J48: 5259 | K48: 304 | L48: 305 | M48: 647 | N48: 138
A49: 2024-11-29 | B49: 3039 | C49: 3682 | D49: 3345 | E49: 4954 | F49: 1362 | G49: 1850 | H49: 4480 | I49: 3776 | J49: 5346 | K49: 304 | L49: 307 | M49: 660 | N49: 139
A50: 2024-12-06 | B50: 3030 | C50: 3761 | D50: 3309 | E50: 4924 | F50: 1474 | G50: 1769 | H50: 4521 | I50: 3648 | J50: 5711 | K50: 306 | L50: 309 | M50: 682 | N50: 138
A51: 2024-12-13 | B51: 2963 | C51: 3746 | D51: 4023 | E51: 5494 | F51: 1507 | G51: 1922 | H51: 4542 | I51: 3579 | J51: 5608 | K51: 304 | L51: 307 | M51: 725 | N51: 138
A52: 2024-12-20 | B52: 2946 | C52: 3733 | D52: 4198 | E52: 5642 | F52: 1429 | G52: 1952 | H52: 4522 | I52: 3511 | J52: 5351 | K52: 304 | L52: 307 | M52: 711 | N52: 140
A53: 2024-12-27 | B53: 2962 | C53: 3780 | D53: 4581 | E53: 6074 | F53: 1444 | G53: 2110 | H53: 4531 | I53: 3466 | J53: 5468 | K53: 316 | L53: 316 | M53: 672 | N53: 140

Sheet 2023
A1: Date | B1: NWE TEU | C1: MED TEU | D1: USWC FEU | E1: USEC FEU | F1: Gulf & Red Sea (DXB) TEU | G1: ANZ (MEL) TEU | H1: E/W Africa (LOS) TEU | I1: S/ Africa DUR) TEU | J1: S/America (SSZ) TEU | K1: W/Japan TEU | L1: E/Japan TEU | M1: SE Asia (SIN) TEU | N1: Korea (PUS) TEU
A2: 2023-01-06 | B2: 1050 | C2: 1855 | D2: 1414 | E2: 2845 | F2: 1039 | G2: 589 | H2: 3151 | I2: 2759 | J2: 1231 | K2: 321 | L2: 331 | M2: 175 | N2: 238
A3: 2023-01-13 | B3: 1020 | C3: 1836 | D3: 1378 | E3: 2825 | F3: 1002 | G3: 545 | H3: 3091 | I3: 2724 | J3: 1117 | K3: 323 | L3: 331 | M3: 154 | N3: 238
A4: 2023-01-20 | B4: 1014 | C4: 1816 | D4: 1403 | E4: 2783 | F4: 1000 | G4: 515 | H4: 3047 | I4: 2701 | J4: 1065 | K4: 334 | L4: 331 | M4: 154 | N4: 238
A5: 2023-01-27 | B5: CHINA CNY HOLIDAY
A6: 2023-02-03 | B6: 961 | C6: 1754 | D6: 1363 | E6: 2706 | F6: 1040 | G6: 441 | H6: 2931 | I6: 2577 | J6: 1441 | K6: 326 | L6: 317 | M6: 150 | N6: 226
A7: 2023-02-10 | B7: 925 | C7: 1724 | D7: 1293 | E7: 2553 | F7: 1132 | G7: 414 | H7: 2864 | I7: 2479 | J7: 1522 | K7: 333 | L7: 324 | M7: 155 | N7: 211
A8: 2023-02-17 | B8: 910 | C8: 1633 | D8: 1273 | E8: 2496 | F8: 1079 | G8: 369 | H8: 2779 | I8: 2378 | J8: 1508 | K8: 331 | L8: 340 | M8: 161 | N8: 211
A9: 2023-02-24 | B9: 882 | C9: 1605 | D9: 1234 | E9: 2391 | F9: 1029 | G9: 346 | H9: 2758 | I9: 2296 | J9: 1507 | K9: 326 | L9: 336 | M9: 155 | N9: 208
A10: 2023-03-03 | B10: 865 | C10: 1600 | D10: 1200 | E10: 2321 | F10: 965 | G10: 334 | H10: 2718 | I10: 2112 | J10: 1482 | K10: 328 | L10: 328 | M10: 177 | N10: 202
A11: 2023-03-10 | B11: 865 | C11: 1589 | D11: 1163 | E11: 2194 | F11: 878 | G11: 280 | H11: 2734 | I11: 2010 | J11: 1378 | K11: 328 | L11: 328 | M11: 180 | N11: 200
A12: 2023-03-17 | B12: 878 | C12: 1651 | D12: 1161 | E12: 2088 | F12: 879 | G12: 277 | H12: 2731 | I12: 1896 | J12: 1306 | K12: 328 | L12: 328 | M12: 190 | N12: 197
A13: 2023-03-24 | B13: 884 | C13: 1606 | D13: 1155 | E13: 2038 | F13: 894 | G13: 324 | H13: 2725 | I13: 1860 | J13: 1422 | K13: 318 | L13: 327 | M13: 194 | N13: 188
A14: 2023-03-31 | B14: 863 | C14: 1602 | D14: 1148 | E14: 2010 | F14: 1040 | G14: 318 | H14: 2609 | I14: 1756 | J14: 1721 | K14: 319 | L14: 329 | M14: 199 | N14: 186
A15: 2023-04-07 | B15: 877 | C15: 1621 | D15: 1292 | E15: 2147 | F15: 1092 | G15: 267 | H15: 2655 | I15: 1741 | J15: 1817 | K15: 320 | L15: 329 | M15: 196 | N15: 184
A16: 2023-04-14 | B16: 871 | C16: 1618 | D16: 1668 | E16: 2565 | F16: 1221 | G16: 255 | H16: 2749 | I16: 1535 | J16: 2005 | K16: 324 | L16: 332 | M16: 191 | N16: 171
A17: 2023-04-21 | B17: 883 | C17: 1605 | D17: 1633 | E17: 2510 | F17: 1314 | G17: 238 | H17: 2684 | I17: 1500 | J17: 1989 | K17: 324 | L17: 332 | M17: 193 | N17: 172
A18: 2023-04-28 | B18: 881 | C18: 1609 | D18: 1453 | E18: 2418 | F18: 1297 | G18: 223 | H18: 2661 | I18: 1454 | J18: 1914 | K18: 324 | L18: 332 | M18: 182 | N18: 173
A19: 2023-05-05 | B19: 875 | C19: 1616 | D19: 1453 | E19: 2396 | F19: 1298 | G19: 218 | H19: 2683 | I19: 1457 | J19: 1929 | K19: 324 | L19: 332 | M19: 180 | N19: 170
A20: 2023-05-12 | B20: 870 | C20: 1624 | D20: 1385 | E20: 2381 | F20: 1324 | G20: 225 | H20: 2744 | I20: 1350 | J20: 1955 | K20: 321 | L20: 329 | M20: 173 | N20: 144
A21: 2023-05-19 | B21: 869 | C21: 1628 | D21: 1329 | E21: 2365 | F21: 1261 | G21: 279 | H21: 2759 | I21: 1417 | J21: 2009 | K21: 321 | L21: 329 | M21: 174 | N21: 140
A22: 2023-05-26 | B22: 859 | C22: 1651 | D22: 1398 | E22: 2374 | F22: 1276 | G22: 261 | H22: 2787 | I22: 1393 | J22: 2073 | K22: 321 | L22: 329 | M22: 171 | N22: 140
A23: 2023-06-02 | B23: 846 | C23: 1638 | D23: 1666 | E23: 2634 | F23: 1297 | G23: 254 | H23: 2758 | I23: 1375 | J23: 2236 | K23: 321 | L23: 329 | M23: 167 | N23: 140
A24: 2023-06-09 | B24: 831 | C24: 1626 | D24: 1388 | E24: 2435 | F24: 1280 | G24: 273 | H24: 2762 | I24: 1357 | J24: 2305 | K24: 328 | L24: 327 | M24: 164 | N24: 140
A25: 2023-06-16 | B25: 808 | C25: 1601 | D25: 1207 | E25: 2103 | F25: 1238 | G25: 269 | H25: 2744 | I25: 1332 | J25: 2375 | K25: 328 | L25: 327 | M25: 164 | N25: 140
A26: 2023-06-23 | B26: 793 | C26: 1588 | D26: 1173 | E26: 2061 | F26: 1226 | G26: 272 | H26: 2712 | I26: 1317 | J26: 2419 | K26: 329 | L26: 327 | M26: 165 | N26: 137
A27: 2023-06-30 | B27: 763 | C27: 1466 | D27: 1408 | E27: 2368 | F27: 1226 | G27: 260 | H27: 2672 | I27: 1297 | J27: 2532 | K27: 329 | L27: 327 | M27: 169 | N27: 131
A28: 2023-07-07 | B28: 740 | C28: 1413 | D28: 1404 | E28: 2368 | F28: 1145 | G28: 249 | H28: 2663 | I28: 1291 | J28: 2616 | K28: 327 | L28: 335 | M28: 153 | N28: 131
A29: 2023-07-14 | B29: 738 | C29: 1412 | D29: 1771 | E29: 2662 | F29: 1013 | G29: 248 | H29: 2666 | I29: 1304 | J29: 2665 | K29: 327 | L29: 335 | M29: 156 | N29: 131
A30: 2023-07-21 | B30: 742 | C30: 1407 | D30: 1764 | E30: 2676 | F30: 938 | G30: 257 | H30: 2729 | I30: 1293 | J30: 2580 | K30: 326 | L30: 334 | M30: 149 | N30: 131
A31: 2023-07-28 | B31: 975 | C31: 1503 | D31: 1943 | E31: 2853 | F31: 839 | G31: 318 | H31: 2637 | I31: 1334 | J31: 2513 | K31: 326 | L31: 334 | M31: 143 | N31: 131
A32: 2023-08-04 | B32: 947 | C32: 1529 | D32: 2002 | E32: 3013 | F32: 809 | G32: 340 | H32: 2572 | I32: 1323 | J32: 2451 | K32: 326 | L32: 334 | M32: 143 | N32: 165
A33: 2023-08-11 | B33: 926 | C33: 1507 | D33: 2017 | E33: 3071 | F33: 853 | G33: 435 | H33: 2533 | I33: 1379 | J33: 2444 | K33: 319 | L33: 332 | M33: 140 | N33: 157
A34: 2023-08-18 | B34: 852 | C34: 1500 | D34: 2003 | E34: 3110 | F34: 908 | G34: 453 | H34: 2501 | I34: 1328 | J34: 2285 | K34: 313 | L34: 318 | M34: 144 | N34: 157
A35: 2023-08-25 | B35: 802 | C35: 1455 | D35: 2006 | E35: 3052 | F35: 914 | G35: 520 | H35: 2472 | I35: 1377 | J35: 2107 | K35: 310 | L35: 318 | M35: 140 | N35: 138
A36: 2023-09-01 | B36: 768 | C36: 1364 | D36: 2136 | E36: 3132 | F36: 962 | G36: 588 | H36: 2457 | I36: 1355 | J36: 2055 | K36: 309 | L36: 318 | M36: 152 | N36: 145
A37: 2023-09-08 | B37: 714 | C37: 1308 | D37: 2037 | E37: 2869 | F37: 948 | G37: 630 | H37: 2403 | I37: 1348 | J37: 1924 | K37: 310 | L37: 318 | M37: 162 | N37: 145
A38: 2023-09-15 | B38: 658 | C38: 1248 | D38: 1888 | E38: 2550 | F38: 864 | G38: 617 | H38: 2323 | I38: 1324 | J38: 1816 | K38: 306 | L38: 320 | M38: 182 | N38: 145
A39: 2023-09-22 | B39: 623 | C39: 1217 | D39: 1790 | E39: 2377 | F39: 815 | G39: 610 | H39: 2220 | I39: 1312 | J39: 1793 | K39: 308 | L39: 322 | M39: 174 | N39: 147
A40: 2023-09-29 | B40: 599 | C40: 1166 | D40: 1729 | E40: 2249 | F40: 790 | G40: 600 | H40: 2183 | I40: 1305 | J40: 1756 | K40: 306 | L40: 321 | M40: 176 | N40: 147
A41: 2023-10-06 | B41: CHINA GOLDEN WEEK HOLIDAY
A42: 2023-10-13 | B42: 562 | C42: 1112 | D42: 1735 | E42: 2230 | F42: 841 | G42: 662 | H42: 2247 | I42: 1410 | J42: 1922 | K42: 306 | L42: 319 | M42: 180 | N42: 140
A43: 2023-10-20 | B43: 581 | C43: 1109 | D43: 1746 | E43: 2198 | F43: 962 | G43: 709 | H43: 2196 | I43: 1465 | J43: 2164 | K43: 307 | L43: 319 | M43: 185 | N43: 142
A44: 2023-10-27 | B44: 769 | C44: 1221 | D44: 1916 | E44: 2361 | F44: 1101 | G44: 792 | H44: 2307 | I44: 1514 | J44: 2425 | K44: 306 | L44: 319 | M44: 187 | N44: 142
A45: 2023-11-03 | B45: 756 | C45: 1231 | D45: 2102 | E45: 2434 | F45: 1268 | G45: 838 | H45: 2341 | I45: 1516 | J45: 2660 | K45: 307 | L45: 319 | M45: 192 | N45: 142
A46: 2023-11-10 | B46: 722 | C46: 1184 | D46: 1843 | E46: 2354 | F46: 1313 | G46: 911 | H46: 2295 | I46: 1521 | J46: 2767 | K46: 307 | L46: 321 | M46: 194 | N46: 142
A47: 2023-11-17 | B47: 707 | C47: 1147 | D47: 1696 | E47: 2351 | F47: 1271 | G47: 946 | H47: 2237 | I47: 1513 | J47: 2812 | K47: 304 | L47: 319 | M47: 194 | N47: 139
A48: 2023-11-24 | B48: 779 | C48: 1182 | D48: 1627 | E48: 2316 | F48: 1198 | G48: 927 | H48: 2246 | I48: 1518 | J48: 2700 | K48: 304 | L48: 319 | M48: 196 | N48: 137
A49: 2023-12-01 | B49: 851 | C49: 1260 | D49: 1646 | E49: 2446 | F49: 1152 | G49: 920 | H49: 2198 | I49: 1524 | J49: 2578 | K49: 304 | L49: 319 | M49: 200 | N49: 137
A50: 2023-12-08 | B50: 925 | C50: 1387 | D50: 1669 | E50: 2441 | F50: 1156 | G50: 915 | H50: 2164 | I50: 1552 | J50: 2483 | K50: 301 | L50: 309 | M50: 200 | N50: 137
A51: 2023-12-15 | B51: 1029 | C51: 1569 | D51: 1819 | E51: 2805 | F51: 1175 | G51: 916 | H51: 2054 | I51: 1560 | J51: 2329 | K51: 299 | L51: 307 | M51: 202 | N51: 137
A52: 2023-12-22 | B52: 1497 | C52: 2054 | D52: 1855 | E52: 2982 | F52: 1477 | G52: 923 | H52: 2054 | I52: 1595 | J52: 2340 | K52: 299 | L52: 306 | M52: 207 | N52: 138
A53: 2023-12-29 | B53: 2694 | C53: 3491 | D53: 2553 | E53: 3559 | F53: 2045 | G53: 1051 | H53: 2223 | I53: 1686 | J53: 2793 | K53: 299 | L53: 306 | M53: 208 | N53: 138

Sheet 2022
A1: Date | B1: NWE TEU | C1: MED TEU | D1: USWC FEU | E1: USEC FEU | F1: Gulf & Red Sea (DXB) | G1: ANZ (MEL) | H1: E/W Africa (LOS) | I1: S/ Africa DUR) | J1: S/America (SSZ) | K1: W/Japan | L1: E/Japan | M1: SE Asia (SIN) | N1: Korea (PUS)
A2: 2022-01-07 | B2: 7777 | C2: 7529 | D2: 7994 | E2: 11833 | F2: 3790 | G2: 4691 | H2: 7470 | I2: 6419 | J2: 10323 | K2: 304 | L2: 276 | M2: 1537 | N2: 432
A3: 2022-01-14 | B3: 7797 | C3: 7520 | D3: 7994 | E3: 11729 | F3: 3695 | G3: 4673 | H3: 7473 | I3: 6316 | J3: 10168 | K3: 318 | L3: 288 | M3: 1523 | N3: 456
A4: 2022-01-21 | B4: 7783 | C4: 7522 | D4: 7976 | E4: 11337 | F4: 3575 | G4: 4610 | H4: 7396 | I4: 6278 | J4: 9988 | K4: 341 | L4: 281 | M4: 1510 | N4: 449
A5: 2022-01-28 | B5: 7780 | C5: 7520 | D5: 7957 | E5: 10985 | F5: 3535 | G5: 4552 | H5: 7380 | I5: 6275 | J5: 9387 | K5: 287 | L5: 286 | M5: 1483 | N5: 449
A6: 2022-02-04
A7: 2022-02-11 | B7: 7677 | C7: 7435 | D7: 8054 | E7: 11022 | F7: 3518 | G7: 4602 | H7: 7244 | I7: 6162 | J7: 9261 | K7: 310 | L7: 305 | M7: 1465 | N7: 407
A8: 2022-02-18 | B8: 7652 | C8: 7416 | D8: 8117 | E8: 10870 | F8: 3518 | G8: 4515 | H8: 7174 | I8: 6140 | J8: 9093 | K8: 317 | L8: 291 | M8: 1403 | N8: 404
A9: 2022-02-25 | B9: 7519 | C9: 7339 | D9: 8066 | E9: 10864 | F9: 3426 | G9: 4379 | H9: 7115 | I9: 6097 | J9: 8801 | K9: 319 | L9: 290 | M9: 1236 | N9: 369
A10: 2022-03-04 | B10: 7387 | C10: 7254 | D10: 8110 | E10: 10678 | F10: 3350 | G10: 4216 | H10: 6964 | I10: 5980 | J10: 8358 | K10: 319 | L10: 290 | M10: 1195 | N10: 369
A11: 2022-03-11 | B11: 7019 | C11: 7073 | D11: 8105 | E11: 10634 | F11: 3228 | G11: 4041 | H11: 6905 | I11: 5849 | J11: 8045 | K11: 313 | L11: 307 | M11: 1153 | N11: 358
A12: 2022-03-18 | B12: 6797 | C12: 7035 | D12: 8023 | E12: 10634 | F12: 3118 | G12: 3955 | H12: 6773 | I12: 5778 | J12: 7626 | K12: 315 | L12: 309 | M12: 1135 | N12: 353
A13: 2022-03-25 | B13: 6593 | C13: 6921 | D13: 7960 | E13: 10504 | F13: 2843 | G13: 3815 | H13: 6683 | I13: 5658 | J13: 7289 | K13: 339 | L13: 329 | M13: 1098 | N13: 374
A14: 2022-04-01 | B14: 6425 | C14: 6839 | D14: 7916 | E14: 10395 | F14: 2653 | G14: 3712 | H14: 6665 | I14: 5577 | J14: 6794 | K14: 339 | L14: 329 | M14: 1085 | N14: 370
A15: 2022-04-08 | B15: 6157 | C15: 6773 | D15: 7860 | E15: 10581 | F15: 2563 | G15: 3621 | H15: 6597 | I15: 5526 | J15: 6650 | K15: 339 | L15: 329 | M15: 1054 | N15: 340
A16: 2022-04-15 | B16: 6086 | C16: 6738 | D16: 7860 | E16: 10649 | F16: 2471 | G16: 3514 | H16: 6573 | I16: 5520 | J16: 6528 | K16: 346 | L16: 335 | M16: 1035 | N16: 340
A17: 2022-04-22 | B17: 6016 | C17: 6690 | D17: 7860 | E17: 10645 | F17: 2428 | G17: 3423 | H17: 6552 | I17: 5485 | J17: 6564 | K17: 346 | L17: 335 | M17: 1015 | N17: 334
A18: 2022-04-29 | B18: 5984 | C18: 6671 | D18: 7888 | E18: 10629 | F18: 2388 | G18: 3322 | H18: 6534 | I18: 5476 | J18: 6494 | K18: 346 | L18: 335 | M18: 1001 | N18: 334
A19: 2022-05-06 | B19: 5955 | C19: 6691 | D19: 7888 | E19: 10588 | F19: 2344 | G19: 3332 | H19: 6485 | I19: 5444 | J19: 6284 | K19: 346 | L19: 354 | M19: 996 | N19: 328
A20: 2022-05-13 | B20: 5860 | C20: 6601 | D20: 7900 | E20: 10560 | F20: 2458 | G20: 3282 | H20: 6444 | I20: 5340 | J20: 6253 | K20: 344 | L20: 353 | M20: 992 | N20: 330
A21: 2022-05-20 | B21: 5862 | C21: 6614 | D21: 7888 | E21: 10560 | F21: 2567 | G21: 3297 | H21: 6383 | I21: 5383 | J21: 6309 | K21: 344 | L21: 354 | M21: 994 | N21: 330
A22: 2022-05-27 | B22: 5865 | C22: 6589 | D22: 7776 | E22: 10505 | F22: 2742 | G22: 3326 | H22: 6375 | I22: 5522 | J22: 6487 | K22: 344 | L22: 343 | M22: 1009 | N22: 333
A23: 2022-06-03 | B23: 5855 | C23: 6570 | D23: 7710 | E23: 10231 | F23: 3039 | G23: 3349 | H23: 6384 | I23: 5549 | J23: 6702 | K23: 344 | L23: 343 | M23: 1044 | N23: 333
A24: 2022-06-10 | B24: 5843 | C24: 6557 | D24: 7630 | E24: 10098 | F24: 3267 | G24: 3405 | H24: 6312 | I24: 5601 | J24: 7216 | K24: 344 | L24: 343 | M24: 1058 | N24: 333
A25: 2022-06-17 | B25: 5793 | C25: 6487 | D25: 7489 | E25: 10073 | F25: 3417 | G25: 3402 | H25: 6322 | I25: 5599 | J25: 7632 | K25: 338 | L25: 362 | M25: 1049 | N25: 325
A26: 2022-06-24 | B26: 5766 | C26: 6425 | D26: 7378 | E26: 9804 | F26: 3541 | G26: 3398 | H26: 6214 | I26: 5590 | J26: 7884 | K26: 338 | L26: 362 | M26: 1073 | N26: 328
A27: 2022-07-01 | B27: 5731 | C27: 6418 | D27: 7334 | E27: 9684 | F27: 3473 | G27: 3320 | H27: 6203 | I27: 5568 | J27: 8384 | K27: 342 | L27: 347 | M27: 1079 | N27: 359
A28: 2022-07-08 | B28: 5697 | C28: 6355 | D28: 7116 | E28: 9602 | F28: 3309 | G28: 3309 | H28: 6182 | I28: 5535 | J28: 8954 | K28: 342 | L28: 347 | M28: 1060 | N28: 362
A29: 2022-07-15 | B29: 5612 | C29: 6268 | D29: 6883 | E29: 9534 | F29: 3201 | G29: 3186 | H29: 6181 | I29: 5487 | J29: 9312 | K29: 342 | L29: 347 | M29: 1054 | N29: 358
A30: 2022-07-22 | B30: 5570 | C30: 6201 | D30: 6722 | E30: 9441 | F30: 2971 | G30: 3143 | H30: 6131 | I30: 5475 | J30: 9483 | K30: 342 | L30: 347 | M30: 1016 | N30: 353
A31: 2022-07-29 | B31: 5416 | C31: 5971 | D31: 6694 | E31: 9348 | F31: 2789 | G31: 2997 | H31: 6066 | I31: 5391 | J31: 9439 | K31: 318 | L31: 305 | M31: 968 | N31: 352
A32: 2022-08-05 | B32: 5166 | C32: 5852 | D32: 6499 | E32: 9330 | F32: 2601 | G32: 2988 | H32: 6050 | I32: 5336 | J32: 9531 | K32: 316 | L32: 305 | M32: 846 | N32: 343
A33: 2022-08-12 | B33: 4971 | C33: 5633 | D33: 6153 | E33: 9106 | F33: 2372 | G33: 2902 | H33: 5886 | I33: 5260 | J33: 9214 | K33: 316 | L33: 305 | M33: 775 | N33: 294
A34: 2022-08-19 | B34: 4788 | C34: 5483 | D34: 5782 | E34: 8992 | F34: 2231 | G34: 2853 | H34: 5748 | I34: 5220 | J34: 8965 | K34: 316 | L34: 305 | M34: 749 | N34: 289
A35: 2022-08-26 | B35: 4441 | C35: 5071 | D35: 5134 | E35: 8801 | F35: 2057 | G35: 2797 | H35: 5649 | I35: 5064 | J35: 8828 | K35: 327 | L35: 317 | M35: 591 | N35: 262
A36: 2022-09-02 | B36: 4252 | C36: 4774 | D36: 3959 | E36: 8318 | F36: 1767 | G36: 2662 | H36: 5429 | I36: 4950 | J36: 7981 | K36: 327 | L36: 305 | M36: 562 | N36: 256
A37: 2022-09-09 | B37: 3877 | C37: 4222 | D37: 3484 | E37: 7767 | F37: 1481 | G37: 2489 | H37: 5197 | I37: 4817 | J37: 7183 | K37: 325 | L37: 315 | M37: 463 | N37: 253
A38: 2022-09-16 | B38: 3545 | C38: 3777 | D38: 3050 | E38: 7176 | F38: 1232 | G38: 2262 | H38: 5022 | I38: 4654 | J38: 6342 | K38: 321 | L38: 311 | M38: 403 | N38: 265
A39: 2022-09-23 | B39: 3163 | C39: 3249 | D39: 2684 | E39: 6538 | F39: 988 | G39: 1956 | H39: 4979 | I39: 4532 | J39: 5479 | K39: 325 | L39: 302 | M39: 386 | N39: 265
A40: 2022-09-30 | B40: 2950 | C40: 2999 | D40: 2399 | E40: 6159 | F40: 912 | G40: 1850 | H40: 4811 | I40: 4407 | J40: 5025 | K40: 311 | L40: 301 | M40: 348 | N40: 262
A41: 2022-10-07
A42: 2022-10-14 | B42: 2581 | C42: 2747 | D42: 2097 | E42: 5816 | F42: 1171 | G42: 1561 | H42: 4837 | I42: 4446 | J42: 5120 | K42: 325 | L42: 302 | M42: 349 | N42: 254
A43: 2022-10-21 | B43: 2379 | C43: 2568 | D43: 2029 | E43: 5639 | F43: 1451 | G43: 1498 | H43: 4771 | I43: 4376 | J43: 5059 | K43: 323 | L43: 298 | M43: 352 | N43: 255
A44: 2022-10-28 | B44: 2102 | C44: 2344 | D44: 1902 | E44: 5318 | F44: 1727 | G44: 1354 | H44: 4750 | I44: 4211 | J44: 4541 | K44: 320 | L44: 298 | M44: 346 | N44: 254
A45: 2022-11-04 | B45: 1763 | C45: 2222 | D45: 1681 | E45: 4890 | F45: 1812 | G45: 1200 | H45: 4632 | I45: 4096 | J45: 3816 | K45: 320 | L45: 297 | M45: 355 | N45: 258
A46: 2022-11-11 | B46: 1478 | C46: 2061 | D46: 1632 | E46: 4223 | F46: 1650 | G46: 1006 | H46: 4363 | I46: 3925 | J46: 2944 | K46: 322 | L46: 318 | M46: 346 | N46: 256
A47: 2022-11-18 | B47: 1172 | C47: 1967 | D47: 1559 | E47: 3877 | F47: 1393 | G47: 802 | H47: 4111 | I47: 3738 | J47: 2576 | K47: 331 | L47: 308 | M47: 327 | N47: 254
A48: 2022-11-25 | B48: 1100 | C48: 1842 | D48: 1496 | E48: 3687 | F48: 1250 | G48: 613 | H48: 3861 | I48: 3520 | J48: 2276 | K48: 336 | L48: 337 | M48: 303 | N48: 251
A49: 2022-12-02 | B49: 1085 | C49: 1827 | D49: 1437 | E49: 3437 | F49: 1184 | G49: 602 | H49: 3717 | I49: 3366 | J49: 2025 | K49: 349 | L49: 337 | M49: 237 | N49: 272
A50: 2022-12-09 | B50: 1047 | C50: 1841 | D50: 1430 | E50: 3290 | F50: 1171 | G50: 705 | H50: 3567 | I50: 3085 | J50: 1834 | K50: 321 | L50: 331 | M50: 216 | N50: 269
A51: 2022-12-16 | B51: 1050 | C51: 1851 | D51: 1423 | E51: 3169 | F51: 1153 | G51: 738 | H51: 3401 | I51: 3087 | J51: 1649 | K51: 331 | L51: 341 | M51: 205 | N51: 236
A52: 2022-12-23 | B52: 1049 | C52: 1896 | D52: 1418 | E52: 3096 | F52: 1152 | G52: 721 | H52: 3367 | I52: 2957 | J52: 1570 | K52: 321 | L52: 331 | M52: 189 | N52: 225
A53: 2022-12-30 | B53: 1078 | C53: 1850 | D53: 1423 | E53: 3067 | F53: 1173 | G53: 692 | H53: 3295 | I53: 2979 | J53: 1433 | K53: 321 | L53: 331 | M53: 188 | N53: 238

Sheet 2021
A1: Date | B1: NWE TEU | C1: MED TEU | D1: USWC FEU | E1: USEC FEU | F1: Gulf & Red Sea (DXB) | G1: ANZ (MEL) | H1: E/W Africa (LOS) | I1: S/ Africa DUR) | J1: S/America (SSZ) | K1: W/Japan | L1: E/Japan | M1: SE Asia (SIN) | N1: Korea (PUS)
A2: 2021-01-01 | B2: 4091 | C2: 4286 | D2: 4018 | E2: 4729 | F2: 1903 | G2: 2465 | H2: 6072 | I2: 3158 | J2: 8173 | K2: 244 | L2: 251 | M2: 933 | N2: 196
A3: =A2+7 -> 2021-01-08 | B3: 4452 | C3: 4298 | D3: 4019 | E3: 4750 | F3: 1995 | G3: 2451 | H3: 6196 | I3: 3307 | J3: 8631 | K3: 244 | L3: 251 | M3: 943 | N3: 196
A4: =A3+7 -> 2021-01-15 | B4: 4413 | C4: 4296 | D4: 4054 | E4: 4800 | F4: 1982 | G4: 2406 | H4: 6630 | I4: 3298 | J4: 8907 | K4: 244 | L4: 521 | M4: 958 | N4: 203
A5: 2021-01-22 | B5: 4394 | C5: 4296 | D5: 3995 | E5: 4750 | F5: 1934 | G5: 2406 | H5: 6560 | I5: 3152 | J5: 8870 | K5: 246 | L5: 253 | M5: 974 | N5: 203
A6: 2021-01-29 | B6: 4276 | C6: 4337 | D6: 4088 | E6: 4679 | F6: 1895 | G6: 2409 | H6: 6604 | I6: 3063 | J6: 8544 | K6: 255 | L6: 264 | M6: 990 | N6: 203
A7: 2021-02-05 | B7: 4324 | C7: 4332 | D7: 4076 | E7: 4800 | F7: 1873 | G7: 2429 | H7: 6608 | I7: 3032 | J7: 8430 | K7: 256 | L7: 265 | M7: 996 | N7: 323
A8: 2021-02-12 | B8: 4108.55 | C8: 4281.76 | D8: 3968.96 | E8: 4800 | F8: 1858.8 | G8: 2376 | H8: 6567.53 | I8: 3022.67 | J8: 8391.67 | K8: 256 | L8: 265.14 | M8: 996.25 | N8: 323.33
A9: 2021-02-19 | B9: 4281 | C9: 4252 | D9: 4106 | E9: 4800 | F9: 1856 | G9: 2379 | H9: 6566 | I9: 3019 | J9: 8268 | K9: 256 | L9: 265 | M9: 1017 | N9: 323
A10: 2021-02-26 | B10: 4047 | C10: 4147 | D10: 3968 | E10: 4814 | F10: 1692 | G10: 2387 | H10: 6403 | I10: 2849 | J10: 8120 | K10: 252 | L10: 260 | M10: 1004 | N10: 301
A11: 2021-03-05 | B11: 3966 | C11: 4078 | D11: 4008 | E11: 4808 | F11: 1531 | G11: 2247 | H11: 5991 | I11: 2755 | J11: 7801 | K11: 252 | L11: 258 | M11: 998 | N11: 297
A12: 2021-03-12 | B12: 3712 | C12: 4020 | D12: 3999 | E12: 4786 | F12: 1428 | G12: 2095 | H12: 5887 | I12: 2694 | J12: 7373 | K12: 246 | L12: 251 | M12: 982 | N12: 296
A13: 2021-03-19 | B13: 3665 | C13: 3901 | D13: 3984 | E13: 4795 | F13: 1373 | G13: 2012 | H13: 5767 | I13: 2456 | J13: 6855 | K13: 250 | L13: 254 | M13: 955 | N13: 296
A14: 2021-03-26 | B14: 3742 | C14: 3900 | D14: 3971 | E14: 4839 | F14: 1355 | G14: 1877 | H14: 5994 | I14: 2749 | J14: 6790 | K14: 253 | L14: 258 | M14: 883 | N14: 311
A15: 2021-04-02 | B15: 3651 | C15: 3962 | D15: 4056 | E15: 4788 | F15: 1504 | G15: 1832 | H15: 6109 | I15: 2836 | J15: 6895 | K15: 255 | L15: 259 | M15: 868 | N15: 308
A16: 2021-04-09 | B16: 3964 | C16: 4026 | D16: 3931 | E16: 5334 | F16: 1624 | G16: 1810 | H16: 6242 | I16: 2996 | J16: 7155 | K16: 254 | L16: 261 | M16: 840 | N16: 308
A17: 2021-04-16 | B17: 4187 | C17: 4239 | D17: 4432 | E17: 5452 | F17: 1932 | G17: 1856 | H17: 6532 | I17: 3236 | J17: 7374 | K17: 254 | L17: 260 | M17: 854 | N17: 308
A18: 2021-04-23 | B18: 4325 | C18: 4446 | D18: 4967 | E18: 5687 | F18: 2160 | G18: 1878 | H18: 6412 | I18: 3326 | J18: 7304 | K18: 253 | L18: 260 | M18: 854 | N18: 312
A19: 2021-04-30 | B19: 4360 | C19: 4705 | D19: 5023 | E19: 6419 | F19: 2299 | G19: 1853 | H19: 6506 | I19: 3522 | J19: 7313 | K19: 252 | L19: 259 | M19: 857 | N19: 312
A20: 2021-05-07 | B20: 4678 | C20: 4803 | D20: 4608 | E20: 7036 | F20: 2441 | G20: 1896 | H20: 6482 | I20: 3594 | J20: 7410 | K20: 248 | L20: 257 | M20: 854 | N20: 306
A21: 2021-05-14 | B21: 5438 | C21: 5320 | D21: 4839 | E21: 7378 | F21: 2550 | G21: 1949 | H21: 6633 | I21: 3866 | J21: 7657 | K21: 281 | L21: 285 | M21: 868 | N21: 306
A22: 2021-05-21 | B22: 5579 | C22: 5526 | D22: 4843 | E22: 7521 | F22: 2646 | G22: 2007 | H22: 6723 | I22: 4017 | J22: 8097 | K22: 295 | L22: 297 | M22: 903 | N22: 319
A23: 2021-05-28 | B23: 5816 | C23: 5811 | D23: 4416 | E23: 7633 | F23: 2831 | G23: 2110 | H23: 7215 | I23: 4134 | J23: 8601 | K23: 305 | L23: 308 | M23: 934 | N23: 319
A24: 2021-06-04 | B24: 5887 | C24: 5952 | D24: 4826 | E24: 8475 | F24: 2859 | G24: 2154 | H24: 7292 | I24: 4205 | J24: 8915 | K24: 307 | L24: 311 | M24: 928 | N24: 318
A25: 2021-06-11 | B25: 6355 | C25: 6272 | D25: 4658 | E25: 8554 | F25: 2937 | G25: 2279 | H25: 7518 | I25: 4308 | J25: 9120 | K25: 302 | L25: 308 | M25: 926 | N25: 243
A26: 2021-06-18 | B26: 6351 | C26: 6392 | D26: 4716 | E26: 8914 | F26: 3002 | G26: 2395 | H26: 7728 | I26: 4396 | J26: 9297 | K26: 300 | L26: 306 | M26: 924 | N26: 231
A27: 2021-06-25 | B27: 6479 | C27: 6514 | D27: 4716 | E27: 8944 | F27: 2997 | G27: 2593 | H27: 7835 | I27: 4476 | J27: 9380 | K27: 297 | L27: 305 | M27: 912 | N27: 231
A28: 2021-07-02 | B28: 6786 | C28: 6655 | D28: 4944 | E28: 9254 | F28: 3116 | G28: 2768 | H28: 7938 | I28: 4572 | J28: 9379 | K28: 295 | L28: 302 | M28: 900 | N28: 229
A29: 2021-07-09 | B29: 6741 | C29: 6746 | D29: 5024 | E29: 9356 | F29: 3262 | G29: 2838 | H29: 8024 | I29: 4626 | J29: 9449 | K29: 292 | L29: 296 | M29: 880 | N29: 227
A30: 2021-07-16 | B30: 7023 | C30: 6893 | D30: 5334 | E30: 9655 | F30: 3373 | G30: 3002 | H30: 8025 | I30: 4680 | J30: 9383 | K30: 287 | L30: 284 | M30: 870 | N30: 229
A31: 2021-07-23 | B31: 7127 | C31: 6961 | D31: 5388 | E31: 9850 | F31: 3481 | G31: 3168 | H31: 8036 | I31: 4647 | J31: 9498 | K31: 282 | L31: 280 | M31: 856 | N31: 205
A32: 2021-07-30 | B32: 7395 | C32: 6991 | D32: 5518 | E32: 10067 | F32: 3553 | G32: 3406 | H32: 8102 | I32: 4873 | J32: 9720 | K32: 277 | L32: 277 | M32: 861 | N32: 189
A33: 2021-08-06 | B33: 7418 | C33: 7042 | D33: 5555 | E33: 10167 | F33: 3584 | G33: 3527 | H33: 8128 | I33: 5062 | J33: 9772 | K33: 274 | L33: 273 | M33: 866 | N33: 189
A34: 2021-08-13 | B34: 7407 | C34: 7051 | D34: 5744 | E34: 10452 | F34: 3643 | G34: 3717 | H34: 8280 | I34: 5322 | J34: 9820 | K34: 274 | L34: 274 | M34: 866 | N34: 189
A35: 2021-08-20 | B35: 7398 | C35: 7080 | D35: 5927 | E35: 10876 | F35: 3720 | G35: 3772 | H35: 8267 | I35: 5845 | J35: 9845 | K35: 275 | L35: 278 | M35: 860 | N35: 184
A36: 2021-08-27 | B36: 7365 | C36: 7125 | D36: 5949 | E36: 11138 | F36: 3776 | G36: 3962 | H36: 8412 | I36: 6336 | J36: 10000 | K36: 280 | L36: 281 | M36: 861 | N36: 236
A37: 2021-09-03 | B37: 7443 | C37: 7289 | D37: 6266 | E37: 11648 | F37: 3830 | G37: 4154 | H37: 8340 | I37: 6624 | J37: 10012 | K37: 281 | L37: 282 | M37: 883 | N37: 271
A38: 2021-09-10 | B38: 7491 | C38: 7365 | D38: 6322 | E38: 11731 | F38: 3941 | G38: 4198 | H38: 8359 | I38: 6732 | J38: 10148 | K38: 303 | L38: 305 | M38: 921 | N38: 273
A39: 2021-09-17 | B39: 7524 | C39: 7511 | D39: 6322 | E39: 11759 | F39: 3960 | G39: 4300 | H39: 8354 | I39: 6909 | J39: 10191 | K39: 355 | L39: 340 | M39: 934 | N39: 330
A40: 2021-09-24 | B40: 7551 | C40: 7498 | D40: 6322 | E40: 11976 | F40: 3925 | G40: 4442 | H40: 8313 | I40: 7039 | J40: 10195 | K40: 355 | L40: 340 | M40: 951 | N40: 339
A41: 2021-10-01 | B41: 7538 | C41: 7444 | D41: 6322 | E41: 11250 | F41: 3862 | G41: 4405 | H41: 8236 | I41: 6997 | J41: 10222 | K41: 355 | L41: 340 | M41: 970 | N41: 350
A42: =A41+7 -> 2021-10-08 | B42: 7714 | C42: 7448 | D42: 6371 | E42: 11114 | F42: 3859 | G42: 4418 | H42: 8244 | I42: 7009 | J42: 10226 | K42: 355 | L42: 340 | M42: 973 | N42: 351
A43: 2021-10-15 | B43: 7687 | C43: 7374 | D43: 6219 | E43: 10700 | F43: 3735 | G43: 4463 | H43: 8167 | I43: 7160 | J43: 10187 | K43: 356 | L43: 339 | M43: 963 | N43: 351
A44: 2021-10-22 | B44: 7666 | C44: 7335 | D44: 6343 | E44: 10544 | F44: 3687 | G44: 4494 | H44: 7996 | I44: 6957 | J44: 10211 | K44: 356 | L44: 339 | M44: 961 | N44: 351
A45: 2021-10-29 | B45: 7693 | C45: 7315 | D45: 6414 | E45: 10454 | F45: 3584 | G45: 4487 | H45: 7801 | I45: 6712 | J45: 10199 | K45: 324 | L45: 316 | M45: 965 | N45: 351
A46: 2021-11-05 | B46: 7637 | C46: 7269 | D46: 6461 | E46: 10428 | F46: 3459 | G46: 4474 | H46: 7751 | I46: 6650 | J46: 10135 | K46: 309 | L46: 297 | M46: 965 | N46: 344
A47: 2021-11-12 | B47: 7560 | C47: 7207 | D47: 6730 | E47: 10589 | F47: 3361 | G47: 4452 | H47: 7608 | I47: 6564 | J47: 10131 | K47: 321 | L47: 308 | M47: 978 | N47: 340
A48: 2021-11-19 | B48: 7552 | C48: 7234 | D48: 6730 | E48: 10415 | F48: 3338 | G48: 4445 | H48: 7499 | I48: 6487 | J48: 10135 | K48: 318 | L48: 305 | M48: 1010 | N48: 339
A49: 2021-11-26 | B49: 7549 | C49: 7234 | D49: 6730 | E49: 10427 | F49: 3360 | G49: 4448 | H49: 7444 | I49: 6454 | J49: 10137 | K49: 318 | L49: 305 | M49: 1124 | N49: 343
A50: 2021-12-03 | B50: 7587 | C50: 7251 | D50: 7019 | E50: 10623 | F50: 3536 | G50: 4459 | H50: 7425 | I50: 6427 | J50: 10139 | K50: 300 | L50: 298 | M50: 1266 | N50: 343
A51: 2021-12-10 | B51: 7597 | C51: 7314 | D51: 7300 | E51: 10644 | F51: 3538 | G51: 4459 | H51: 7442 | I51: 6441 | J51: 10105 | K51: 298 | L51: 288 | M51: 1368 | N51: 338
A52: 2021-12-17 | B52: 7603 | C52: 7329 | D52: 7419 | E52: 10983 | F52: 3666 | G52: 4490 | H52: 7454 | I52: 6435 | J52: 10161 | K52: 295 | L52: 272 | M52: 1469 | N52: 342
A53: 2021-12-24 | B53: 7671 | C53: 7420 | D53: 7444 | E53: 11351 | F53: 3753 | G53: 4544 | H53: 7461 | I53: 6480 | J53: 10297 | K53: 282 | L53: 271 | M53: 1494 | N53: 386
A54: 2021-12-31 | B54: 7751 | C54: 7535 | D54: 7681 | E54: 11579 | F54: 3860 | G54: 4683 | H54: 7476 | I54: 6473 | J54: 10276 | K54: 337 | L54: 268 | M54: 1489 | N54: 424

Sheet 2020
A1: Date | B1: NWE TEU | C1: MED TEU | D1: USWC FEU | E1: USEC FEU | F1: Gulf & Red Sea (DXB) | G1: ANZ (MEL) | H1: E/W Africa (LOS) | I1: S/ Africa DUR) | J1: S/America (SSZ) | K1: W/Japan | L1: E/Japan | M1: SE Asia (SIN) | N1: Korea (PUS)
A2: 2020-01-03 | B2: 1124 | C2: 1185 | D2: 1636 | E2: 2808 | F2: 1218 | G2: 949 | H2: 2744 | I2: 1159 | J2: 2183 | K2: 226 | L2: 242 | M2: 176 | N2: 118
A3: =A2+7 -> 2020-01-10 | B3: 1058 | C3: 1179 | D3: 1543 | E3: 2888 | F3: 1175 | G3: 937 | H3: 2873 | I3: 1150 | J3: 2136 | K3: 226 | L3: 243 | M3: 191 | N3: 120
A4: =A3+7 -> 2020-01-17 | B4: 1010 | C4: 1180 | D4: 1562 | E4: 2943 | F4: 1123 | G4: 949 | H4: 2897 | I4: 1084 | J4: 1989 | K4: 226 | L4: 243 | M4: 193 | N4: 120
A5: 2020-01-24 | B5: 969 | C5: 1179 | D5: 1545 | E5: 2951 | F5: 1126 | G5: 942 | H5: 2908 | I5: 1087 | J5: 1967 | K5: 224 | L5: 236 | M5: 195 | N5: 120
A6: 2020-01-31 | O6: Chinese New Year
A7: 2020-02-07 | O7: CORONA
A8: 2020-02-14 | B8: 850 | C8: 1031 | D8: 1423 | E8: 2768 | F8: 1089 | G8: 892 | H8: 2983 | I8: 1066 | J8: 1848 | K8: 215 | L8: 230 | M8: 178 | N8: 120
A9: 2020-02-21 | B9: 834 | C9: 977 | D9: 1367 | E9: 2683 | F9: 1027 | G9: 863 | H9: 2892 | I9: 1005 | J9: 1711 | K9: 224 | L9: 239 | M9: 191 | N9: 117
A10: 2020-02-28 | B10: 804 | C10: 928 | D10: 1394 | E10: 2690 | F10: 985 | G10: 849 | H10: 2916 | I10: 1025 | J10: 1582 | K10: 224 | L10: 239 | M10: 191 | N10: 117
A11: 2020-03-06 | B11: 830 | C11: 915 | D11: 1361 | E11: 2679 | F11: 958 | G11: 835 | H11: 2939 | I11: 1019 | J11: 1580 | K11: 225 | L11: 240 | M11: 191 | N11: 117
A12: 2020-03-13 | B12: 827 | C12: 903 | D12: 1610 | E12: 2912 | F12: 1009 | G12: 771 | H12: 2924 | I12: 978 | J12: 1460 | K12: 225 | L12: 240 | M12: 191 | N12: 117
A13: 2020-03-20 | B13: 797 | C13: 892 | D13: 1549 | E13: 2785 | F13: 1015 | G13: 753 | H13: 2842 | I13: 952 | J13: 1358 | K13: 225 | L13: 240 | M13: 211 | N13: 116
A14: 2020-03-27 | B14: 764 | C14: 880 | D14: 1515 | E14: 2758 | F14: 1004 | G14: 899 | H14: 2859 | I14: 926 | J14: 1304 | K14: 233 | L14: 240 | M14: 209 | N14: 120
A15: 2020-04-03 | B15: 750 | C15: 863 | D15: 1662 | E15: 2782 | F15: 896 | G15: 918 | H15: 2776 | I15: 889 | J15: 1114 | K15: 233 | L15: 240 | M15: 209 | N15: 120
A16: 2020-04-10 | B16: 734 | C16: 859 | D16: 1630 | E16: 2720 | F16: 813 | G16: 892 | H16: 2736 | I16: 849 | J16: 1008 | K16: 234 | L16: 241 | M16: 209 | N16: 120
A17: 2020-04-17 | B17: 725 | C17: 841 | D17: 1528 | E17: 2637 | F17: 708 | G17: 872 | H17: 2762 | I17: 809 | J17: 919 | K17: 234 | L17: 243 | M17: 199 | N17: 120
A18: 2020-04-24 | B18: 753 | C18: 844 | D18: 1495 | E18: 2620 | F18: 650 | G18: 929 | H18: 2752 | I18: 788 | J18: 886 | K18: 234 | L18: 243 | M18: 186 | N18: 120
A19: 2020-05-01 | B19: 739 | C19: 840 | D19: 1724 | E19: 2773 | F19: 637 | G19: 947 | H19: 2742 | I19: 789 | J19: 1050 | K19: 234 | L19: 243 | M19: 179 | N19: 120
A20: 2020-05-08 | B20: 744 | C20: 853 | D20: 1730 | E20: 2717 | F20: 640 | G20: 950 | H20: 2727 | I20: 762 | J20: 1180 | K20: 234 | L20: 243 | M20: 178 | N20: 120
A21: 2020-05-15 | B21: 831 | C21: 875 | D21: 1686 | E21: 2542 | F21: 656 | G21: 935 | H21: 2757 | I21: 739 | J21: 998 | K21: 228 | L21: 244 | M21: 173 | N21: 120
A22: 2020-05-22 | B22: 827 | C22: 879 | D22: 1678 | E22: 2543 | F22: 618 | G22: 937 | H22: 2817 | I22: 733 | J22: 930 | K22: 228 | L22: 244 | M22: 173 | N22: 120
A23: 2020-05-29 | B23: 863 | C23: 924 | D23: 2097 | E23: 2732 | F23: 581 | G23: 959 | H23: 2823 | I23: 698 | J23: 1211 | K23: 226 | L23: 238 | M23: 170 | N23: 120
A24: 2020-06-05 | B24: 880 | C24: 931 | D24: 2132 | E24: 2738 | F24: 543 | G24: 998 | H24: 2847 | I24: 682 | J24: 1147 | K24: 226 | L24: 238 | M24: 168 | N24: 134
A25: 2020-06-12 | B25: 875 | C25: 954 | D25: 2755 | E25: 3255 | F25: 470 | G25: 1008 | H25: 2818 | I25: 656 | J25: 936 | K25: 226 | L25: 238 | M25: 165 | N25: 134
A26: 2020-06-19 | B26: 886 | C26: 949 | D26: 2669 | E26: 3288 | F26: 430 | G26: 1017 | H26: 2757 | I26: 611 | J26: 794 | K26: 226 | L26: 238 | M26: 147 | N26: 124
A27: 2020-06-26 | B27: 890 | C27: 968 | D27: 2692 | E27: 3303 | F27: 458 | G27: 1073 | H27: 2742 | I27: 635 | J27: 779 | K27: 226 | L27: 238 | M27: 150 | N27: 124
